Workbook

Sheet Avropsblankett
B2: Särskild fördelningsnyckel inkl. Kontrakt | D2: =HYPERLINK("https://www.avropa.se/","Uppdaterad 2026-02-18. Kontrollera alltid inför avrop senaste versionen på avropa.se.") -> Uppdaterad 2026-02-18. Kontrollera alltid inför avrop senaste versionen på avropa.se.
B3: Tryckeritjänster Samtliga villkor fastställda | D3: Kundens diarienummer | N3: Visitkort | O3: Antal | P3: Affischer | Q3: Ateljétjänster | R3: Broschyrer | S3: Folders | T3: Katalog | U3: Kuvert | V3: Pappersmappar | W3: Rapport | X3: Roll_up | Y3: Statligt_tryck | Z3: Visitkort
D4: Datum ÅÅÅÅ-MM-DD | N4: Kuvert | O4: =B28&"_"&O3 -> _Antal | P4: Affischer_1 | Q4: Bildbearbetning, tex färgjustering och tryckanpassning | R4: Broschyrer_Variant_1 | S4: Folders_Variant_1 | T4: Katalog_1 | U4: Kuvert_Variant_1 | V4: Pappersmappar_Variant_1 | W4: Rapport_1 | X4: Roll_up_1 | Y4: Statligt_tryck_1 | Z4: Mattbestruket
B5: Kundens uppgifter | N5: Pappersmappar treklaff utan snodd | P5: Affischer_2 | Q5: Prepressarbete | R5: Broschyrer_Variant_2 | S5: Folders_Variant_2 | T5: Katalog_2 | U5: Kuvert_Variant_2 | V5: Pappersmappar_Variant_2 | W5: Rapport_2 | X5: Roll_up_2 | Y5: Statligt_tryck_2 | Z5: Obestruket
B6: Avropsberättigad: | N6: Folders | P6: Affischer_3 | Q6: Retusch | R6: Broschyrer_Variant_3 | S6: Folders_Variant_3 | U6: Kuvert_Variant_3 | V6: Pappersmappar_Variant_3 | X6: Roll_up_3
B7: Organisationsnr: | N7: Broschyrer | Q7: Layoutarbete med befintlig grafisk manual som bas | S7: Folders_Variant_4 | U7: Kuvert_Variant_4 | V7: Pappersmappar_Variant_4 | X7: Roll_up_4
B8: Kontaktperson: | N8: Statligt tryck | Q8: Formgivning | U8: Kuvert_Variant_5 | X8: Roll_up_5
B9: Telefonnummer: | N9: Rapport | U9: Kuvert_Variant_6 | X9: Roll_up_6
B10: E-postadress: | N10: Katalog | U10: Kuvert_Variant_7
B11: Fakturaadress: | N11: Roll up
B12: Standard för e-faktura: | N12: Affischer
B13: Fakturareferens: | N13: Ateljétjänster
B14: Leveransdag:
B15: Leveransadress:
B17: Information till ramavtalsleverantör:
B20: Vinnande ramavtalsleverantörs uppgifter | O20: Visitkort | P20: Brevpapper | Q20: Kuvert | S20: Pappersmappar | U20: Broschyrer | V20: Statligt_tryck | W20: Rapport | X20: Katalog | Z20: Visitkort | AA20: Kollegieblock | AB20: Brevpapper | AC20: Kuvert | AD20: Säkerhetskuvert | AE20: Korrespondenskort | AF20: Pappersmappar | AG20: Folders | AH20: Broschyrer | AI20: Statligt_tryck | AJ20: Rapport | AK20: Katalog | AL20: Roll_up | AM20: Affischer | AN20: Ateljétjänster | AO20: Lagerhållning
B21: Ramavtalsleverantör: | C21: =Uträkningsblad!E68 -> Ange vilken/vilka produkter och antal samt eventuella tillägg i de ljusgula rutorna på fliken avropsblankett som önskas avropas. | O21: Tryck | P21: Tryck | Q21: Tryck | S21: Tryck | U21: Beskrivning/omfång (Inlaga mellan 8 och 64 sidor) | V21: Beskrivning/omfång (Inlaga mellan 32 och 128 sidor) | W21: Beskrivning/omfång (Inlaga mellan 32 och 128 sidor) | X21: Beskrivning/omfång (Inlaga mellan 32 och 128 sidor) | Z21: Antal olika original | AA21: Antal (Minst antal är 100) | AB21: Antal ark (Minst antal är 500) | AC21: Antal (Minst antal är 500) | AD21: Antal (Minst antal är 500) | AE21: Antal (Minst antal är 100) | AF21: Antal (Minst antal är 100) | AG21: Antal (Minst antal är 100) | AH21: Antal (Minst antal är 500) | AI21: Antal (Minst antal är 250) | AJ21: Antal (Minst antal är 500) | AK21: Antal (Minst antal är 500) | AL21: Antal | AM21: Antal (Minst antal är 100) | AN21: Upp till antal hela timmar
B22: Organisationsnummer: | C22: =Uträkningsblad!E69 -> 
B23: Kontaktperson: | C23: =Uträkningsblad!E70 -> 
B24: Telefonnummer: | C24: =Uträkningsblad!E71 -> 
B25: E-postadress för avrop: | C25: =HYPERLINK("Mailto: "&Uträkningsblad!E72) -> Mailto: | N25: Visitkort | Q25: Kuvert | S25: Pappersmappar | T25: Folders | U25: Broschyrer | V25: Statligt_tryck | W25: Rapport | X25: Katalog | Y25: Roll_up | Z25: Affischer | AA25: Variabeltryck | AB25: Antal olika original | AC25: Antal (Minst antal är 100) | AD25: Antal (Minst antal är 250) | AE25: Antal ark (Minst antal är 500) | AF25: Antal (Minst antal är 500) | AG25: Upp till antal hela timmar | AH25: Antal
N26: Underlag: | Q26: Underlag: | S26: Underlag: | T26: Underlag: | U26: Underlag: | V26: Underlag: | W26: Underlag: | X26: Underlag: | Y26: Roll up: | Z26: Affischer: | AA26: Variabeltryck:
B27: Välj Vara/Tjänst 1 | C27: Välj variant | D27: =IF($B$28=$N$20,IF($N$21="","",$N21),IF($B$28=$O$20,IF($O$21="","",$O21),IF($B$28=$P$20,IF($P$21="","",$P21),IF($B$28=$Q$20,IF($Q$21="","",$Q21),IF($B$28=$R$20,IF($R$21="","",$R21),IF($B$28=$S$20,IF($S$21="","",$S21),"")))))) ->  | E27: =IF($B$28=$U$20,IF($U$21="","",$U21),IF($B$28=$V$20,IF($V$21="","",$V21),IF($B$28=$W$20,IF($W$21="","",$W21),IF($B$28=$X$20,IF($X$21="","",$X21),"")))) ->  | F27: =IF($B$28=$Z$20,IF($Z$21="","",$Z21),IF($B$28=$AA$20,IF($AA$21="","",$AA21),IF($B$28=$AB$20,IF($AB$21="","",$AB21),IF($B$28=$AC$20,IF($AC$21="","",$AC21),IF($B$28=$AD$20,IF($AD$21="","",$AD21),IF($B$28=$AE$20,IF($AE$21="","",$AE21),IF($B$28=$AF$20,IF($AF$21="","",$AF21),IF($B$28=$AG$20,IF($AG$21="","",$AG21),IF($B$28=$AH$20,IF($AH$21="","",$AH21),IF($B$28=$AI$20,IF($AI$21="","",$AI21),IF($B$28=$AJ$20,IF($AJ$21="","",$AJ21),IF($B$28=$AK$20,IF($AK$21="","",$AK21),IF($B$28=$AL$20,IF($AL$21="","",$AL21),IF($B$28=$AM$20,IF($AM$21="","",$AM21),IF($B$28=$AN$20,IF($AN$21="","",$AN21),""))))))))))))))) ->  | G27: =IF($B$28=$N$65,IF($N66="","",$N66),IF(OR($C$28=AF39,$C$28=AI39,$C$28=AJ39),IF(N75="","",N75),"")) ->  | N27: Format: | Q27: Binderi: | S27: Binderi: | T27: Format: | U27: Format: | V27: Format: | W27: Format: | X27: Format: | Y27: Underlag: | Z27: Underlag: | AA27: Format:
N28: Ytvikt: | Q28: Kuvert | S28: Stansmallar: | T28: Papper: | U28: Papper: | V28: Papper inlaga: | W28: Papper inlaga: | X28: Papper inlaga: | Y28: Höjd: | Z28: Papper: | AA28: Papper inlaga:
B29: =IF($B$28=$N$25,IF($N26="","",$N26),IF($B$28=$O$25,IF($O26="","",$O26),IF($B$28=$P$25,IF($P26="","",$P26),IF($B$28=$Q$25,IF($Q26="","",$Q26),IF($B$28=$R$25,IF($R26="","",$R26),IF($B$28=$S$25,IF($S26="","",$S26),IF($B$28=$T$25,IF($T26="","",$T26),IF($B$28=$U$25,IF($U26="","",$U26),IF($B$28=$V$25,IF($V26="","",$V26),IF($B$28=$W$25,IF($W26="","",$W26),IF($B$28=$X$25,IF($X26="","",$X26),IF($B$28=$Y$25,IF($Y26="","",$Y26),IF($B$28=$Z$25,IF($Z26="","",$Z26),IF($B$28=$AA$25,IF($AA26="","",$AA26),"")))))))))))))) ->  | C29: =IF($C$28=$N$39,IF($N40="","",$N40),IF($C$28=$O$39,IF($O40="","",$O40),IF($C$28=$P$39,IF($P40="","",$P40),IF($C$28=$Q$39,IF($Q40="","",$Q40),IF($C$28=$R$39,IF($R40="","",$R40),IF($C$28=$S$39,IF($S40="","",$S40),IF($C$28=$T$39,IF($T40="","",$T40),IF($C$28=$U$39,IF($U40="","",$U40),IF($C$28=$V$39,IF($V40="","",$V40),IF($C$28=$W$39,IF($W40="","",$W40),IF($C$28=$X$39,IF($X40="","",$X40),IF($C$28=$Y$39,IF($Y40="","",$Y40),IF($C$28=$Z$39,IF($Z40="","",$Z40),IF($C$28=$AA$39,IF($AA40="","",$AA40),IF($C$28=$AB$39,IF($AB40="","",$AB40),IF($C$28=$AC$39,IF($AC40="","",$AC40),IF($C$28=$AD$39,IF($AD40="","",$AD40),IF($C$28=$AE$39,IF($AE40="","",$AE40),IF($C$28=$AF$39,IF($AF40="","",$AF40),IF($C$28=$AG$39,IF($AG40="","",$AG40),IF($C$28=$AH$39,IF($AH40="","",$AH40),IF($C$28=$AI$39,IF($AI40="","",$AI40),IF($C$28=$AJ$39,IF($AJ40="","",$AJ40),IF($C$28=$AK$39,IF($AK40="","",$AK40),IF($C$28=$AL$39,IF($AL40="","",$AL40),IF($C$28=$AM$39,IF($AM40="","",$AM40),IF($C$28=$AN$39,IF($AN40="","",$AN40),IF($C$28=$AO$39,IF($AO40="","",$AO40),IF($C$28=$AP$39,IF($AP40="","",$AP40),IF($C$28=$AQ$39,IF($AQ40="","",$AQ40),IF($C$28=$AR$39,IF($AR40="","",$AR40),IF($C$28=$AS$39,IF($AS40="","",$AS40),IF($C$28=$AT$39,IF($AT40="","",$AT40),IF($C$28=$AU$39,IF($AU40="","",$AU40),IF($C$28=$AV$39,IF($AV40="","",$AV40),IF($C$28=$AW$39,IF($AW40="","",$AW40),IF($C$28=$AX$39,IF($AX40="","",$AX40),IF($C$28=$AY$39,IF($AY40="","",$AY40),IF($C$28=$AZ$39,IF($AZ40="","",$AZ40),IF($C$28=$BA$39,IF($BA40="","",$BA40),IF($C$28=$BB$39,IF($BB40="","",$BB40),IF($C$28=$BC$39,IF($BC40="","",$BC40),IF($C$28=$BD$39,IF($BD40="","",$BD40),IF($C$28=$BE$39,IF($BE40="","",$BE40),IF($C$28=$BF$39,IF($BF40="","",$BF40),IF($C$28=$BG$39,IF($BG40="","",$BG40),IF($C$28=$BH$39,IF($BH40="","",$BH40),IF($C$28=$BI$39,IF($BI40="","",$BI40),IF($C$28=$BJ$39,IF($BJ40="","",$BJ40),IF($C$28=$BK$39,IF($BK40="","",$BK40),IF($C$28=$BL$39,IF($BL40="","",$BL40),IF($C$28=$BM$39,IF($BM40="","",$BM40),IF($C$28=$BN$39,IF($BN40="","",$BN40),IF($C$28=$BO$39,IF($BO40="","",$BO40),IF($C$28=$BP$39,IF($BP40="","",$BP40),IF($C$28=$BQ$39,IF($BQ40="","",$BQ40),IF($C$28=$BR$39,IF($BR40="","",$BR40),IF($C$28=$BS$39,IF($BS40="","",$BS40),IF($C$28=$BT$39,IF($BT$40="","",$BT40),IF($C$28=$BU$39,IF($BU$40="","",$BU$40),"")))))))))))))))))))))))))))))))))))))))))))))))))))))))))))) ->  | N29: Tryck: | Q29: Storlek | S29: Papper: | T29: Tryck: | U29: Tryck: | V29: Papper omslag: | W29: Papper omslag: | X29: Papper omslag: | Y29: Material: | Z29: Tryck: | AA29: Kuvert:
C30: =IF($C$28=$N$39,IF($N41="","",$N41),IF($C$28=$O$39,IF($O41="","",$O41),IF($C$28=$P$39,IF($P41="","",$P41),IF($C$28=$Q$39,IF($Q41="","",$Q41),IF($C$28=$R$39,IF($R41="","",$R41),IF($C$28=$S$39,IF($S41="","",$S41),IF($C$28=$T$39,IF($T41="","",$T41),IF($C$28=$U$39,IF($U41="","",$U41),IF($C$28=$V$39,IF($V41="","",$V41),IF($C$28=$W$39,IF($W41="","",$W41),IF($C$28=$X$39,IF($X41="","",$X41),IF($C$28=$Y$39,IF($Y41="","",$Y41),IF($C$28=$Z$39,IF($Z41="","",$Z41),IF($C$28=$AA$39,IF($AA41="","",$AA41),IF($C$28=$AB$39,IF($AB41="","",$AB41),IF($C$28=$AC$39,IF($AC41="","",$AC41),IF($C$28=$AD$39,IF($AD41="","",$AD41),IF($C$28=$AE$39,IF($AE41="","",$AE41),IF($C$28=$AF$39,IF($AF41="","",$AF41),IF($C$28=$AG$39,IF($AG41="","",$AG41),IF($C$28=$AH$39,IF($AH41="","",$AH41),IF($C$28=$AI$39,IF($AI41="","",$AI41),IF($C$28=$AJ$39,IF($AJ41="","",$AJ41),IF($C$28=$AK$39,IF($AK41="","",$AK41),IF($C$28=$AL$39,IF($AL41="","",$AL41),IF($C$28=$AM$39,IF($AM41="","",$AM41),IF($C$28=$AN$39,IF($AN41="","",$AN41),IF($C$28=$AO$39,IF($AO41="","",$AO41),IF($C$28=$AP$39,IF($AP41="","",$AP41),IF($C$28=$AQ$39,IF($AQ41="","",$AQ41),IF($C$28=$AR$39,IF($AR41="","",$AR41),IF($C$28=$AS$39,IF($AS41="","",$AS41),IF($C$28=$AT$39,IF($AT41="","",$AT41),IF($C$28=$AU$39,IF($AU41="","",$AU41),IF($C$28=$AV$39,IF($AV41="","",$AV41),IF($C$28=$AW$39,IF($AW41="","",$AW41),IF($C$28=$AX$39,IF($AX41="","",$AX41),IF($C$28=$AY$39,IF($AY41="","",$AY41),IF($C$28=$AZ$39,IF($AZ41="","",$AZ41),IF($C$28=$BA$39,IF($BA41="","",$BA41),IF($C$28=$BB$39,IF($BB41="","",$BB41),IF($C$28=$BC$39,IF($BC41="","",$BC41),IF($C$28=$BD$39,IF($BD41="","",$BD41),IF($C$28=$BE$39,IF($BE41="","",$BE41),IF($C$28=$BF$39,IF($BF41="","",$BF41),IF($C$28=$BG$39,IF($BG41="","",$BG41),IF($C$28=$BH$39,IF($BH41="","",$BH41),IF($C$28=$BI$39,IF($BI41="","",$BI41),IF($C$28=$BJ$39,IF($BJ41="","",$BJ41),IF($C$28=$BK$39,IF($BK41="","",$BK41),IF($C$28=$BL$39,IF($BL41="","",$BL41),IF($C$28=$BM$39,IF($BM41="","",$BM41),IF($C$28=$BN$39,IF($BN41="","",$BN41),IF($C$28=$BO$39,IF($BO41="","",$BO41),IF($C$28=$BP$39,IF($BP41="","",$BP41),IF($C$28=$BQ$39,IF($BQ41="","",$BQ41),IF($C$28=$BR$39,IF($BR41="","",$BR41),IF($C$28=$BS$39,IF($BS41="","",$BS41),IF($C$28=$BT$39,IF($BT41="","",$BT41),IF($C$28=$BU$39,IF($BU41="","",$BU41),"")))))))))))))))))))))))))))))))))))))))))))))))))))))))))))) ->  | S30: Format: | T30: Sidor: | U30: Bokbinderi: | V30: Tryck: | W30: Tryck inlaga: | X30: Tryck inlaga: | Y30: Tryck: | AA30: Tryck inlaga:
C31: =IF($C$28=$N$39,IF($N42="","",$N42),IF($C$28=$O$39,IF($O42="","",$O42),IF($C$28=$P$39,IF($P42="","",$P42),IF($C$28=$Q$39,IF($Q42="","",$Q42),IF($C$28=$R$39,IF($R42="","",$R42),IF($C$28=$S$39,IF($S42="","",$S42),IF($C$28=$T$39,IF($T42="","",$T42),IF($C$28=$U$39,IF($U42="","",$U42),IF($C$28=$V$39,IF($V42="","",$V42),IF($C$28=$W$39,IF($W42="","",$W42),IF($C$28=$X$39,IF($X42="","",$X42),IF($C$28=$Y$39,IF($Y42="","",$Y42),IF($C$28=$Z$39,IF($Z42="","",$Z42),IF($C$28=$AA$39,IF($AA42="","",$AA42),IF($C$28=$AB$39,IF($AB42="","",$AB42),IF($C$28=$AC$39,IF($AC42="","",$AC42),IF($C$28=$AD$39,IF($AD42="","",$AD42),IF($C$28=$AE$39,IF($AE42="","",$AE42),IF($C$28=$AF$39,IF($AF42="","",$AF42),IF($C$28=$AG$39,IF($AG42="","",$AG42),IF($C$28=$AH$39,IF($AH42="","",$AH42),IF($C$28=$AI$39,IF($AI42="","",$AI42),IF($C$28=$AJ$39,IF($AJ42="","",$AJ42),IF($C$28=$AK$39,IF($AK42="","",$AK42),IF($C$28=$AL$39,IF($AL42="","",$AL42),IF($C$28=$AM$39,IF($AM42="","",$AM42),IF($C$28=$AN$39,IF($AN42="","",$AN42),IF($C$28=$AO$39,IF($AO42="","",$AO42),IF($C$28=$AP$39,IF($AP42="","",$AP42),IF($C$28=$AQ$39,IF($AQ42="","",$AQ42),IF($C$28=$AR$39,IF($AR42="","",$AR42),IF($C$28=$AS$39,IF($AS42="","",$AS42),IF($C$28=$AT$39,IF($AT42="","",$AT42),IF($C$28=$AU$39,IF($AU42="","",$AU42),IF($C$28=$AV$39,IF($AV42="","",$AV42),IF($C$28=$AW$39,IF($AW42="","",$AW42),IF($C$28=$AX$39,IF($AX42="","",$AX42),IF($C$28=$AY$39,IF($AY42="","",$AY42),IF($C$28=$AZ$39,IF($AZ42="","",$AZ42),IF($C$28=$BA$39,IF($BA42="","",$BA42),IF($C$28=$BB$39,IF($BB42="","",$BB42),IF($C$28=$BC$39,IF($BC42="","",$BC42),IF($C$28=$BD$39,IF($BD42="","",$BD42),IF($C$28=$BE$39,IF($BE42="","",$BE42),IF($C$28=$BF$39,IF($BF42="","",$BF42),IF($C$28=$BG$39,IF($BG42="","",$BG42),IF($C$28=$BH$39,IF($BH42="","",$BH42),IF($C$28=$BI$39,IF($BI42="","",$BI42),IF($C$28=$BJ$39,IF($BJ42="","",$BJ42),IF($C$28=$BK$39,IF($BK42="","",$BK42),IF($C$28=$BL$39,IF($BL42="","",$BL42),IF($C$28=$BM$39,IF($BM42="","",$BM42),IF($C$28=$BN$39,IF($BN42="","",$BN42),IF($C$28=$BO$39,IF($BO42="","",$BO42),IF($C$28=$BP$39,IF($BP42="","",$BP42),IF($C$28=$BQ$39,IF($BQ42="","",$BQ42),IF($C$28=$BR$39,IF($BR42="","",$BR42),IF($C$28=$BS$39,IF($BS42="","",$BS42),IF($C$28=$BT$39,IF($BT42="","",$BT42),IF($C$28=$BU$39,IF($BU42="","",$BU42),"")))))))))))))))))))))))))))))))))))))))))))))))))))))))))))) ->  | S31: Pappersmappar treklaff utan snodd | U31: Inlaga: | V31: Bokbinderi: | W31: Tryck omslag: | X31: Tryck omslag: | AA31: Tryck Kuvert:
C32: =IF($C$28=$N$39,IF($N43="","",$N43),IF($C$28=$O$39,IF($O43="","",$O43),IF($C$28=$P$39,IF($P43="","",$P43),IF($C$28=$Q$39,IF($Q43="","",$Q43),IF($C$28=$R$39,IF($R43="","",$R43),IF($C$28=$S$39,IF($S43="","",$S43),IF($C$28=$T$39,IF($T43="","",$T43),IF($C$28=$U$39,IF($U43="","",$U43),IF($C$28=$V$39,IF($V43="","",$V43),IF($C$28=$W$39,IF($W43="","",$W43),IF($C$28=$X$39,IF($X43="","",$X43),IF($C$28=$Y$39,IF($Y43="","",$Y43),IF($C$28=$Z$39,IF($Z43="","",$Z43),IF($C$28=$AA$39,IF($AA43="","",$AA43),IF($C$28=$AB$39,IF($AB43="","",$AB43),IF($C$28=$AC$39,IF($AC43="","",$AC43),IF($C$28=$AD$39,IF($AD43="","",$AD43),IF($C$28=$AE$39,IF($AE43="","",$AE43),IF($C$28=$AF$39,IF($AF43="","",$AF43),IF($C$28=$AG$39,IF($AG43="","",$AG43),IF($C$28=$AH$39,IF($AH43="","",$AH43),IF($C$28=$AI$39,IF($AI43="","",$AI43),IF($C$28=$AJ$39,IF($AJ43="","",$AJ43),IF($C$28=$AK$39,IF($AK43="","",$AK43),IF($C$28=$AL$39,IF($AL43="","",$AL43),IF($C$28=$AM$39,IF($AM43="","",$AM43),IF($C$28=$AN$39,IF($AN43="","",$AN43),IF($C$28=$AO$39,IF($AO43="","",$AO43),IF($C$28=$AP$39,IF($AP43="","",$AP43),IF($C$28=$AQ$39,IF($AQ43="","",$AQ43),IF($C$28=$AR$39,IF($AR43="","",$AR43),IF($C$28=$AS$39,IF($AS43="","",$AS43),IF($C$28=$AT$39,IF($AT43="","",$AT43),IF($C$28=$AU$39,IF($AU43="","",$AU43),IF($C$28=$AV$39,IF($AV43="","",$AV43),IF($C$28=$AW$39,IF($AW43="","",$AW43),IF($C$28=$AX$39,IF($AX43="","",$AX43),IF($C$28=$AY$39,IF($AY43="","",$AY43),IF($C$28=$AZ$39,IF($AZ43="","",$AZ43),IF($C$28=$BA$39,IF($BA43="","",$BA43),IF($C$28=$BB$39,IF($BB43="","",$BB43),IF($C$28=$BC$39,IF($BC43="","",$BC43),IF($C$28=$BD$39,IF($BD43="","",$BD43),IF($C$28=$BE$39,IF($BE43="","",$BE43),IF($C$28=$BF$39,IF($BF43="","",$BF43),IF($C$28=$BG$39,IF($BG43="","",$BG43),IF($C$28=$BH$39,IF($BH43="","",$BH43),IF($C$28=$BI$39,IF($BI43="","",$BI43),IF($C$28=$BJ$39,IF($BJ43="","",$BJ43),IF($C$28=$BK$39,IF($BK43="","",$BK43),IF($C$28=$BL$39,IF($BL43="","",$BL43),IF($C$28=$BM$39,IF($BM43="","",$BM43),IF($C$28=$BN$39,IF($BN43="","",$BN43),IF($C$28=$BO$39,IF($BO43="","",$BO43),IF($C$28=$BP$39,IF($BP43="","",$BP43),IF($C$28=$BQ$39,IF($BQ43="","",$BQ43),IF($C$28=$BR$39,IF($BR43="","",$BR43),IF($C$28=$BS$39,IF($BS43="","",$BS43),IF($C$28=$BT$39,IF($BT43="","",$BT43),IF($C$28=$BU$39,IF($BU43="","",$BU43),"")))))))))))))))))))))))))))))))))))))))))))))))))))))))))))) ->  | U32: Omslag: | V32: Tryck inlaga: | W32: Bokbinderi: | X32: Bokbinderi:
C33: =IF($C$28=$N$39,IF($N44="","",$N44),IF($C$28=$O$39,IF($O44="","",$O44),IF($C$28=$P$39,IF($P44="","",$P44),IF($C$28=$Q$39,IF($Q44="","",$Q44),IF($C$28=$R$39,IF($R44="","",$R44),IF($C$28=$S$39,IF($S44="","",$S44),IF($C$28=$T$39,IF($T44="","",$T44),IF($C$28=$U$39,IF($U44="","",$U44),IF($C$28=$V$39,IF($V44="","",$V44),IF($C$28=$W$39,IF($W44="","",$W44),IF($C$28=$X$39,IF($X44="","",$X44),IF($C$28=$Y$39,IF($Y44="","",$Y44),IF($C$28=$Z$39,IF($Z44="","",$Z44),IF($C$28=$AA$39,IF($AA44="","",$AA44),IF($C$28=$AB$39,IF($AB44="","",$AB44),IF($C$28=$AC$39,IF($AC44="","",$AC44),IF($C$28=$AD$39,IF($AD44="","",$AD44),IF($C$28=$AE$39,IF($AE44="","",$AE44),IF($C$28=$AF$39,IF($AF44="","",$AF44),IF($C$28=$AG$39,IF($AG44="","",$AG44),IF($C$28=$AH$39,IF($AH44="","",$AH44),IF($C$28=$AI$39,IF($AI44="","",$AI44),IF($C$28=$AJ$39,IF($AJ44="","",$AJ44),IF($C$28=$AK$39,IF($AK44="","",$AK44),IF($C$28=$AL$39,IF($AL44="","",$AL44),IF($C$28=$AM$39,IF($AM44="","",$AM44),IF($C$28=$AN$39,IF($AN44="","",$AN44),IF($C$28=$AO$39,IF($AO44="","",$AO44),IF($C$28=$AP$39,IF($AP44="","",$AP44),IF($C$28=$AQ$39,IF($AQ44="","",$AQ44),IF($C$28=$AR$39,IF($AR44="","",$AR44),IF($C$28=$AS$39,IF($AS44="","",$AS44),IF($C$28=$AT$39,IF($AT44="","",$AT44),IF($C$28=$AU$39,IF($AU44="","",$AU44),IF($C$28=$AV$39,IF($AV44="","",$AV44),IF($C$28=$AW$39,IF($AW44="","",$AW44),IF($C$28=$AX$39,IF($AX44="","",$AX44),IF($C$28=$AY$39,IF($AY44="","",$AY44),IF($C$28=$AZ$39,IF($AZ44="","",$AZ44),IF($C$28=$BA$39,IF($BA44="","",$BA44),IF($C$28=$BB$39,IF($BB44="","",$BB44),IF($C$28=$BC$39,IF($BC44="","",$BC44),IF($C$28=$BD$39,IF($BD44="","",$BD44),IF($C$28=$BE$39,IF($BE44="","",$BE44),IF($C$28=$BF$39,IF($BF44="","",$BF44),IF($C$28=$BG$39,IF($BG44="","",$BG44),IF($C$28=$BH$39,IF($BH44="","",$BH44),IF($C$28=$BI$39,IF($BI44="","",$BI44),IF($C$28=$BJ$39,IF($BJ44="","",$BJ44),IF($C$28=$BK$39,IF($BK44="","",$BK44),IF($C$28=$BL$39,IF($BL44="","",$BL44),IF($C$28=$BM$39,IF($BM44="","",$BM44),IF($C$28=$BN$39,IF($BN44="","",$BN44),IF($C$28=$BO$39,IF($BO44="","",$BO44),IF($C$28=$BP$39,IF($BP44="","",$BP44),IF($C$28=$BQ$39,IF($BQ44="","",$BQ44),IF($C$28=$BR$39,IF($BR44="","",$BR44),IF($C$28=$BS$39,IF($BS44="","",$BS44),IF($C$28=$BT$39,IF($BT44="","",$BT44),IF($C$28=$BU$39,IF($BU44="","",$BU44),"")))))))))))))))))))))))))))))))))))))))))))))))))))))))))))) ->  | U33: Tryck inlaga: | V33: Tryck omslag:
C34: =IF($C$28=$N$39,IF($N45="","",$N45),IF($C$28=$O$39,IF($O45="","",$O45),IF($C$28=$P$39,IF($P45="","",$P45),IF($C$28=$Q$39,IF($Q45="","",$Q45),IF($C$28=$R$39,IF($R45="","",$R45),IF($C$28=$S$39,IF($S45="","",$S45),IF($C$28=$T$39,IF($T45="","",$T45),IF($C$28=$U$39,IF($U45="","",$U45),IF($C$28=$V$39,IF($V45="","",$V45),IF($C$28=$W$39,IF($W45="","",$W45),IF($C$28=$X$39,IF($X45="","",$X45),IF($C$28=$Y$39,IF($Y45="","",$Y45),IF($C$28=$Z$39,IF($Z45="","",$Z45),IF($C$28=$AA$39,IF($AA45="","",$AA45),IF($C$28=$AB$39,IF($AB45="","",$AB45),IF($C$28=$AC$39,IF($AC45="","",$AC45),IF($C$28=$AD$39,IF($AD45="","",$AD45),IF($C$28=$AE$39,IF($AE45="","",$AE45),IF($C$28=$AF$39,IF($AF45="","",$AF45),IF($C$28=$AG$39,IF($AG45="","",$AG45),IF($C$28=$AH$39,IF($AH45="","",$AH45),IF($C$28=$AI$39,IF($AI45="","",$AI45),IF($C$28=$AJ$39,IF($AJ45="","",$AJ45),IF($C$28=$AK$39,IF($AK45="","",$AK45),IF($C$28=$AL$39,IF($AL45="","",$AL45),IF($C$28=$AM$39,IF($AM45="","",$AM45),IF($C$28=$AN$39,IF($AN45="","",$AN45),IF($C$28=$AO$39,IF($AO45="","",$AO45),IF($C$28=$AP$39,IF($AP45="","",$AP45),IF($C$28=$AQ$39,IF($AQ45="","",$AQ45),IF($C$28=$AR$39,IF($AR45="","",$AR45),IF($C$28=$AS$39,IF($AS45="","",$AS45),IF($C$28=$AT$39,IF($AT45="","",$AT45),IF($C$28=$AU$39,IF($AU45="","",$AU45),IF($C$28=$AV$39,IF($AV45="","",$AV45),IF($C$28=$AW$39,IF($AW45="","",$AW45),IF($C$28=$AX$39,IF($AX45="","",$AX45),IF($C$28=$AY$39,IF($AY45="","",$AY45),IF($C$28=$BA$39,IF($BA45="","",$BA45),IF($C$28=$BB$39,IF($BB45="","",$BB45),IF($C$28=$BC$39,IF($BC45="","",$BC45),IF($C$28=$BD$39,IF($BD45="","",$BD45),IF($C$28=$BE$39,IF($BE45="","",$BE45),IF($C$28=$BF$39,IF($BF45="","",$BF45),IF($C$28=$BG$39,IF($BG45="","",$BG45),IF($C$28=$BH$39,IF($BH45="","",$BH45),IF($C$28=$BI$39,IF($BI45="","",$BI45),IF($C$28=$BJ$39,IF($BJ45="","",$BJ45),IF($C$28=$BK$39,IF($BK45="","",$BK45),IF($C$28=$BL$39,IF($BL45="","",$BL45),IF($C$28=$BM$39,IF($BM45="","",$BM45),IF($C$28=$BN$39,IF($BN45="","",$BN45),IF($C$28=$BO$39,IF($BO45="","",$BO45),IF($C$28=$BP$39,IF($BP45="","",$BP45),IF($C$28=$BQ$39,IF($BQ45="","",$BQ45),IF($C$28=$BR$39,IF($BR45="","",$BR45),IF($C$28=$BS$39,IF($BS45="","",$BS45),IF($C$28=$BT$39,IF($BT45="","",$BT45),IF($C$28=$BU$39,IF($BU45="","",$BU45),""))))))))))))))))))))))))))))))))))))))))))))))))))))))))))) ->  | U34: Tryck omslag:
C35: =IF($C$28=$N$39,IF($N46="","",$N46),IF($C$28=$O$39,IF($O46="","",$O46),IF($C$28=$P$39,IF($P46="","",$P46),IF($C$28=$Q$39,IF($Q46="","",$Q46),IF($C$28=$R$39,IF($R46="","",$R46),IF($C$28=$S$39,IF($S46="","",$S46),IF($C$28=$T$39,IF($T46="","",$T46),IF($C$28=$U$39,IF($U46="","",$U46),IF($C$28=$V$39,IF($V46="","",$V46),IF($C$28=$W$39,IF($W46="","",$W46),IF($C$28=$X$39,IF($X46="","",$X46),IF($C$28=$Y$39,IF($Y46="","",$Y46),IF($C$28=$Z$39,IF($Z46="","",$Z46),IF($C$28=$AA$39,IF($AA46="","",$AA46),IF($C$28=$AB$39,IF($AB46="","",$AB46),IF($C$28=$AC$39,IF($AC46="","",$AC46),IF($C$28=$AD$39,IF($AD46="","",$AD46),IF($C$28=$AE$39,IF($AE46="","",$AE46),IF($C$28=$AF$39,IF($AF46="","",$AF46),IF($C$28=$AG$39,IF($AG46="","",$AG46),IF($C$28=$AH$39,IF($AH46="","",$AH46),IF($C$28=$AI$39,IF($AI46="","",$AI46),IF($C$28=$AJ$39,IF($AJ46="","",$AJ46),IF($C$28=$AK$39,IF($AK46="","",$AK46),IF($C$28=$AL$39,IF($AL46="","",$AL46),IF($C$28=$AM$39,IF($AM46="","",$AM46),IF($C$28=$AN$39,IF($AN46="","",$AN46),IF($C$28=$AO$39,IF($AO46="","",$AO46),IF($C$28=$AP$39,IF($AP46="","",$AP46),IF($C$28=$AQ$39,IF($AQ46="","",$AQ46),IF($C$28=$AR$39,IF($AR46="","",$AR46),IF($C$28=$AS$39,IF($AS46="","",$AS46),IF($C$28=$AT$39,IF($AT46="","",$AT46),IF($C$28=$AU$39,IF($AU46="","",$AU46),IF($C$28=$AV$39,IF($AV46="","",$AV46),IF($C$28=$AW$39,IF($AW46="","",$AW46),IF($C$28=$AX$39,IF($AX46="","",$AX46),IF($C$28=$AY$39,IF($AY46="","",$AY46),IF($C$28=$BA$39,IF($BA46="","",$BA46),IF($C$28=$BB$39,IF($BB46="","",$BB46),IF($C$28=$BC$39,IF($BC46="","",$BC46),IF($C$28=$BD$39,IF($BD46="","",$BD46),IF($C$28=$BE$39,IF($BE46="","",$BE46),IF($C$28=$BF$39,IF($BF46="","",$BF46),IF($C$28=$BG$39,IF($BG46="","",$BG46),IF($C$28=$BH$39,IF($BH46="","",$BH46),IF($C$28=$BI$39,IF($BI46="","",$BI46),IF($C$28=$BJ$39,IF($BJ46="","",$BJ46),IF($C$28=$BK$39,IF($BK46="","",$BK46),IF($C$28=$BL$39,IF($BL46="","",$BL46),IF($C$28=$BM$39,IF($BM46="","",$BM46),IF($C$28=$BN$39,IF($BN46="","",$BN46),IF($C$28=$BO$39,IF($BO46="","",$BO46),IF($C$28=$BP$39,IF($BP46="","",$BP46),IF($C$28=$BQ$39,IF($BQ46="","",$BQ46),IF($C$28=$BR$39,IF($BR46="","",$BR46),IF($C$28=$BS$39,IF($BS46="","",$BS46),""))))))))))))))))))))))))))))))))))))))))))))))))))))))))) -> 
B36: =IF($B$28=$N$25,IF($N33="","",$N33),IF($B$28=$O$25,IF($O33="","",$O33),IF($B$28=$P$25,IF($P33="","",$P33),IF($B$28=$Q$25,IF($Q33="","",$Q33),IF($B$28=$R$25,IF($R33="","",$R33),IF($B$28=$S$25,IF($S33="","",$S33),IF($B$28=$T$25,IF($T33="","",$T33),IF($B$28=$U$25,IF($U33="","",$U33),IF($B$28=$V$25,IF($V33="","",$V33),IF($B$28=$W$25,IF($W33="","",$W33),IF($B$28=$X$25,IF($X33="","",$X33),IF($B$28=$Y$25,IF($Y33="","",$Y33),IF($B$28=$Z$25,IF($Z33="","",$Z33),""))))))))))))) ->  | C36: =IF($C$28=$N$39,IF($N47="","",$N47),IF($C$28=$O$39,IF($O47="","",$O47),IF($C$28=$P$39,IF($P47="","",$P47),IF($C$28=$Q$39,IF($Q47="","",$Q47),IF($C$28=$R$39,IF($R47="","",$R47),IF($C$28=$S$39,IF($S47="","",$S47),IF($C$28=$T$39,IF($T47="","",$T47),IF($C$28=$U$39,IF($U47="","",$U47),IF($C$28=$V$39,IF($V47="","",$V47),IF($C$28=$W$39,IF($W47="","",$W47),IF($C$28=$X$39,IF($X47="","",$X47),IF($C$28=$Y$39,IF($Y47="","",$Y47),IF($C$28=$Z$39,IF($Z47="","",$Z47),IF($C$28=$AA$39,IF($AA47="","",$AA47),IF($C$28=$AB$39,IF($AB47="","",$AB47),IF($C$28=$AC$39,IF($AC47="","",$AC47),IF($C$28=$AD$39,IF($AD47="","",$AD47),IF($C$28=$AE$39,IF($AE47="","",$AE47),IF($C$28=$AF$39,IF($AF47="","",$AF47),IF($C$28=$AG$39,IF($AG47="","",$AG47),IF($C$28=$AH$39,IF($AH47="","",$AH47),IF($C$28=$AI$39,IF($AI47="","",$AI47),IF($C$28=$AJ$39,IF($AJ47="","",$AJ47),IF($C$28=$AK$39,IF($AK47="","",$AK47),IF($C$28=$AL$39,IF($AL47="","",$AL47),IF($C$28=$AM$39,IF($AM47="","",$AM47),IF($C$28=$AN$39,IF($AN47="","",$AN47),IF($C$28=$AO$39,IF($AO47="","",$AO47),IF($C$28=$AP$39,IF($AP47="","",$AP47),IF($C$28=$AQ$39,IF($AQ47="","",$AQ47),IF($C$28=$AR$39,IF($AR47="","",$AR47),IF($C$28=$AS$39,IF($AS47="","",$AS47),IF($C$28=$AT$39,IF($AT47="","",$AT47),IF($C$28=$AU$39,IF($AU47="","",$AU47),IF($C$28=$AV$39,IF($AV47="","",$AV47),IF($C$28=$AW$39,IF($AW47="","",$AW47),IF($C$28=$AX$39,IF($AX47="","",$AX47),IF($C$28=$AY$39,IF($AY47="","",$AY47),IF($C$28=$BA$39,IF($BA47="","",$BA47),IF($C$28=$BB$39,IF($BB47="","",$BB47),IF($C$28=$BC$39,IF($BC47="","",$BC47),IF($C$28=$BD$39,IF($BD47="","",$BD47),IF($C$28=$BE$39,IF($BE47="","",$BE47),IF($C$28=$BF$39,IF($BF47="","",$BF47),IF($C$28=$BG$39,IF($BG47="","",$BG47),IF($C$28=$BH$39,IF($BH47="","",$BH47),IF($C$28=$BI$39,IF($BI47="","",$BI47),IF($C$28=$BJ$39,IF($BJ47="","",$BJ47),IF($C$28=$BK$39,IF($BK47="","",$BK47),IF($C$28=$BL$39,IF($BL47="","",$BL47),IF($C$28=$BM$39,IF($BM47="","",$BM47),IF($C$28=$BN$39,IF($BN47="","",$BN47),IF($C$28=$BO$39,IF($BO47="","",$BO47),IF($C$28=$BP$39,IF($BP47="","",$BP47),IF($C$28=$BQ$39,IF($BQ47="","",$BQ47),IF($C$28=$BR$39,IF($BR47="","",$BR47),IF($C$28=$BS$39,IF($BS47="","",$BS47),""))))))))))))))))))))))))))))))))))))))))))))))))))))))))) -> 
B37: =IF($B$28=$N$25,IF($N34="","",$N34),IF($B$28=$O$25,IF($O34="","",$O34),IF($B$28=$P$25,IF($P34="","",$P34),IF($B$28=$Q$25,IF($Q34="","",$Q34),IF($B$28=$R$25,IF($R34="","",$R34),IF($B$28=$S$25,IF($S34="","",$S34),IF($B$28=$T$25,IF($T34="","",$T34),IF($B$28=$U$25,IF($U34="","",$U34),IF($B$28=$V$25,IF($V34="","",$V34),IF($B$28=$W$25,IF($W34="","",$W34),IF($B$28=$X$25,IF($X34="","",$X34),IF($B$28=$Y$25,IF($Y34="","",$Y34),IF($B$28=$Z$25,IF($Z34="","",$Z34),""))))))))))))) ->  | C37: =IF($C$28=$N$39,IF($N48="","",$N48),IF($C$28=$O$39,IF($O48="","",$O48),IF($C$28=$P$39,IF($P48="","",$P48),IF($C$28=$Q$39,IF($Q48="","",$Q48),IF($C$28=$R$39,IF($R48="","",$R48),IF($C$28=$S$39,IF($S48="","",$S48),IF($C$28=$T$39,IF($T48="","",$T48),IF($C$28=$U$39,IF($U48="","",$U48),IF($C$28=$V$39,IF($V48="","",$V48),IF($C$28=$W$39,IF($W48="","",$W48),IF($C$28=$X$39,IF($X48="","",$X48),IF($C$28=$Y$39,IF($Y48="","",$Y48),IF($C$28=$Z$39,IF($Z48="","",$Z48),IF($C$28=$AA$39,IF($AA48="","",$AA48),IF($C$28=$AB$39,IF($AB48="","",$AB48),IF($C$28=$AC$39,IF($AC48="","",$AC48),IF($C$28=$AD$39,IF($AD48="","",$AD48),IF($C$28=$AE$39,IF($AE48="","",$AE48),IF($C$28=$AF$39,IF($AF48="","",$AF48),IF($C$28=$AG$39,IF($AG48="","",$AG48),IF($C$28=$AH$39,IF($AH48="","",$AH48),IF($C$28=$AI$39,IF($AI48="","",$AI48),IF($C$28=$AJ$39,IF($AJ48="","",$AJ48),IF($C$28=$AK$39,IF($AK48="","",$AK48),IF($C$28=$AL$39,IF($AL48="","",$AL48),IF($C$28=$AM$39,IF($AM48="","",$AM48),IF($C$28=$AN$39,IF($AN48="","",$AN48),IF($C$28=$AO$39,IF($AO48="","",$AO48),IF($C$28=$AP$39,IF($AP48="","",$AP48),IF($C$28=$AQ$39,IF($AQ48="","",$AQ48),IF($C$28=$AR$39,IF($AR48="","",$AR48),IF($C$28=$AS$39,IF($AS48="","",$AS48),IF($C$28=$AT$39,IF($AT48="","",$AT48),IF($C$28=$AU$39,IF($AU48="","",$AU48),IF($C$28=$AV$39,IF($AV48="","",$AV48),IF($C$28=$AW$39,IF($AW48="","",$AW48),IF($C$28=$AX$39,IF($AX48="","",$AX48),IF($C$28=$AY$39,IF($AY48="","",$AY48),IF($C$28=$BA$39,IF($BA48="","",$BA48),IF($C$28=$BB$39,IF($BB48="","",$BB48),IF($C$28=$BC$39,IF($BC48="","",$BC48),IF($C$28=$BD$39,IF($BD48="","",$BD48),IF($C$28=$BE$39,IF($BE48="","",$BE48),IF($C$28=$BF$39,IF($BF48="","",$BF48),IF($C$28=$BG$39,IF($BG48="","",$BG48),IF($C$28=$BH$39,IF($BH48="","",$BH48),IF($C$28=$BI$39,IF($BI48="","",$BI48),IF($C$28=$BJ$39,IF($BJ48="","",$BJ48),IF($C$28=$BK$39,IF($BK48="","",$BK48),IF($C$28=$BL$39,IF($BL48="","",$BL48),IF($C$28=$BM$39,IF($BM48="","",$BM48),IF($C$28=$BN$39,IF($BN48="","",$BN48),IF($C$28=$BO$39,IF($BO48="","",$BO48),IF($C$28=$BP$39,IF($BP48="","",$BP48),IF($C$28=$BQ$39,IF($BQ48="","",$BQ48),IF($C$28=$BR$39,IF($BR48="","",$BR48),IF($C$28=$BS$39,IF($BS48="","",$BS48),""))))))))))))))))))))))))))))))))))))))))))))))))))))))))) -> 
B39: Välj Vara/Tjänst 2 | C39: Välj variant | D39: =IF($B$40=$N$20,IF($N$21="","",$N21),IF($B$40=$O$20,IF($O$21="","",$O21),IF($B$40=$P$20,IF($P$21="","",$P21),IF($B$40=$Q$20,IF($Q$21="","",$Q21),IF($B$40=$R$20,IF($R$21="","",$R21),IF($B$40=$S$20,IF($S$21="","",$S21),"")))))) ->  | E39: =IF($B$40=$U$20,IF($U$21="","",$U21),IF($B$40=$V$20,IF($V$21="","",$V21),IF($B$40=$W$20,IF($W$21="","",$W21),IF($B$40=$X$20,IF($X$21="","",$X21),"")))) ->  | F39: =IF($B$40=$Z$20,IF($Z$21="","",$Z21),IF($B$40=$AA$20,IF($AA$21="","",$AA21),IF($B$40=$AB$20,IF($AB$21="","",$AB21),IF($B$40=$AC$20,IF($AC$21="","",$AC21),IF($B$40=$AD$20,IF($AD$21="","",$AD21),IF($B$40=$AE$20,IF($AE$21="","",$AE21),IF($B$40=$AF$20,IF($AF$21="","",$AF21),IF($B$40=$AG$20,IF($AG$21="","",$AG21),IF($B$40=$AH$20,IF($AH$21="","",$AH21),IF($B$40=$AI$20,IF($AI$21="","",$AI21),IF($B$40=$AJ$20,IF($AJ$21="","",$AJ21),IF($B$40=$AK$20,IF($AK$21="","",$AK21),IF($B$40=$AL$20,IF($AL$21="","",$AL21),IF($B$40=$AM$20,IF($AM$21="","",$AM21),IF($B$40=$AN$20,IF($AN$21="","",$AN21),""))))))))))))))) ->  | G39: =IF($B$40=$N$65,IF($N66="","",$N66),"") ->  | N39: Mattbestruket | O39: Obestruket | AD39: Kuvert_Variant_1 | AE39: Kuvert_Variant_2 | AF39: Kuvert_Variant_3 | AG39: Kuvert_Variant_4 | AH39: Kuvert_Variant_5 | AI39: Kuvert_Variant_6 | AJ39: Kuvert_Variant_7 | AS39: Pappersmappar_Variant_1 | AT39: Pappersmappar_Variant_2 | AU39: Pappersmappar_Variant_3 | AV39: Pappersmappar_Variant_4 | AW39: Folders_Variant_1 | AX39: Folders_Variant_2 | AY39: Folders_Variant_3 | AZ39: Folders_Variant_4 | BA39: Broschyrer_Variant_1 | BB39: Broschyrer_Variant_2 | BC39: Broschyrer_Variant_3 | BD39: Statligt_tryck_1 | BE39: Statligt_tryck_2 | BF39: Rapport_1 | BG39: Rapport_2 | BH39: Katalog_1 | BI39: Katalog_2 | BJ39: Roll_up_1 | BK39: Roll_up_2 | BL39: Roll_up_3 | BM39: Roll_up_4 | BN39: Roll_up_5 | BO39: Roll_up_6 | BP39: Affischer_1 | BQ39: Affischer_2 | BR39: Affischer_3
N40: A: Öppna filer. B: PDF. C: PDFx enligt gällande ISO-standard. | O40: A: Öppna filer. B: PDF. C: PDFx enligt gällande ISO-standard. | AD40: A: Öppna filer. B: PDF. C: PDFx enligt gällande ISO-standard. (Avser inte variabeldata) | AE40: A: Öppna filer. B: PDF. C: PDFx enligt gällande ISO-standard. (Avser inte variabeldata) | AF40: A: Öppna filer. B: PDF. C: PDFx enligt gällande ISO-standard. (Avser inte variabeldata) | AG40: A: Öppna filer. B: PDF. C: PDFx enligt gällande ISO-standard. (Avser inte variabeldata) | AH40: A: Öppna filer. B: PDF. C: PDFx enligt gällande ISO-standard. (Avser inte variabeldata) | AI40: A: Öppna filer. B: PDF. C: PDFx enligt gällande ISO-standard. (Avser inte variabeldata) | AJ40: A: Öppna filer. B: PDF. C: PDFx enligt gällande ISO-standard. (Avser inte variabeldata) | AS40: A: Öppna filer. B: PDF. C: PDFx enligt gällande ISO-standard. (Avser inte variabeldata) | AT40: A: Öppna filer. B: PDF. C: PDFx enligt gällande ISO-standard. (Avser inte variabeldata) | AW40: C: PDFx enligt gällande ISO-standard. (Avser inte variabeldata) | AX40: A: Öppna filer. C: PDFx enligt gällande ISO-standard.(Avser inte variabeldata) | AY40: A: Öppna filer. B: PDF. C: PDFx enligt gällande ISO-standard.(Avser inte variabeldata) | AZ40: A: Öppna filer. B: PDF. C: PDFx enligt gällande ISO-standard.(Avser inte variabeldata) | BA40: A: Öppna filer. C: PDFx enligt gällande ISO-standard. (Avser inte variabeldata) | BB40: A: Öppna filer. B: PDF. C: PDFx enligt gällande ISO-standard. (Avser inte variabeldata) | BC40: A: Öppna filer. B: PDF. C: PDFx enligt gällande ISO-standard.(Avser inte variabeldata) | BD40: A: Öppna filer. B: PDF. C: PDFx enligt gällande ISO-standard. (Avser inte variabeldata) | BE40: A: Öppna filer. B: PDF. C: PDFx enligt gällande ISO-standard. (Avser inte variabeldata) | BF40: A: Öppna filer. C: PDFx enligt gällande ISO-standard. (Avser inte variabeldata) | BG40: A: Öppna filer. B: PDF. C: PDFx enligt gällande ISO-standard. (Avser inte variabeldata) | BH40: A: Öppna filer. B: PDF. C: PDFx enligt gällande ISO-standard. (Avser inte variabeldata) | BI40: A: Öppna filer. B: PDF. C: PDFx enligt gällande ISO-standard. (Avser inte variabeldata) | BJ40: Roll up Motiv 85 cm för montering i egen kassett, exklusive kassett och montering | BK40: Roll up Motiv 100 cm för montering i egen kassett, exklusive kassett och montering | BL40: Roll up Motiv 85 cm inklusive kassett för utbytbar roll up | BM40: Roll up Motiv 100 cm inklusive kassett för utbytbar roll up | BN40: Roll up Motiv 85 cm inklusive enkel kassett, där roll up inte går att byta | BO40: Roll up Motiv 100 cm inklusive enkel kassett, där roll up inte går att byta | BP40: 297_x_420_mm | BQ40: 500_x_700_mm | BR40: 700_x_1000_mm
B41: =IF($B$40=$N$25,IF($N26="","",$N26),IF($B$40=$O$25,IF($O26="","",$O26),IF($B$40=$P$25,IF($P26="","",$P26),IF($B$40=$Q$25,IF($Q26="","",$Q26),IF($B$40=$R$25,IF($R26="","",$R26),IF($B$40=$S$25,IF($S26="","",$S26),IF($B$40=$T$25,IF($T26="","",$T26),IF($B$40=$U$25,IF($U26="","",$U26),IF($B$40=$V$25,IF($V26="","",$V26),IF($B$40=$W$25,IF($W26="","",$W26),IF($B$40=$X$25,IF($X26="","",$X26),IF($B$40=$Y$25,IF($Y26="","",$Y26),IF($B$40=$Z$25,IF($Z26="","",$Z26),""))))))))))))) ->  | C41: =IF($C$40=$N$39,IF($N40="","",$N40),IF($C$40=$O$39,IF($O40="","",$O40),IF($C$40=$P$39,IF($P40="","",$P40),IF($C$40=$Q$39,IF($Q40="","",$Q40),IF($C$40=$R$39,IF($R40="","",$R40),IF($C$40=$S$39,IF($S40="","",$S40),IF($C$40=$T$39,IF($T40="","",$T40),IF($C$40=$U$39,IF($U40="","",$U40),IF($C$40=$V$39,IF($V40="","",$V40),IF($C$40=$W$39,IF($W40="","",$W40),IF($C$40=$X$39,IF($X40="","",$X40),IF($C$40=$Y$39,IF($Y40="","",$Y40),IF($C$40=$Z$39,IF($Z40="","",$Z40),IF($C$40=$AA$39,IF($AA40="","",$AA40),IF($C$40=$AB$39,IF($AB40="","",$AB40),IF($C$40=$AC$39,IF($AC40="","",$AC40),IF($C$40=$AD$39,IF($AD40="","",$AD40),IF($C$40=$AE$39,IF($AE40="","",$AE40),IF($C$40=$AF$39,IF($AF40="","",$AF40),IF($C$40=$AG$39,IF($AG40="","",$AG40),IF($C$40=$AH$39,IF($AH40="","",$AH40),IF($C$40=$AI$39,IF($AI40="","",$AI40),IF($C$40=$AJ$39,IF($AJ40="","",$AJ40),IF($C$40=$AK$39,IF($AK40="","",$AK40),IF($C$40=$AL$39,IF($AL40="","",$AL40),IF($C$40=$AM$39,IF($AM40="","",$AM40),IF($C$40=$AN$39,IF($AN40="","",$AN40),IF($C$40=$AO$39,IF($AO40="","",$AO40),IF($C$40=$AP$39,IF($AP40="","",$AP40),IF($C$40=$AQ$39,IF($AQ40="","",$AQ40),IF($C$40=$AR$39,IF($AR40="","",$AR40),IF($C$40=$AS$39,IF($AS40="","",$AS40),IF($C$40=$AT$39,IF($AT40="","",$AT40),IF($C$40=$AU$39,IF($AU40="","",$AU40),IF($C$40=$AV$39,IF($AV40="","",$AV40),IF($C$40=$AW$39,IF($AW40="","",$AW40),IF($C$40=$AX$39,IF($AX40="","",$AX40),IF($C$40=$AY$39,IF($AY40="","",$AY40),IF($C$40=$AZ$39,IF($AZ40="","",$AZ40),IF($C$40=$BA$39,IF($BA40="","",$BA40),IF($C$40=$BB$39,IF($BB40="","",$BB40),IF($C$40=$BC$39,IF($BC40="","",$BC40),IF($C$40=$BD$39,IF($BD40="","",$BD40),IF($C$40=$BE$39,IF($BE40="","",$BE40),IF($C$40=$BF$39,IF($BF40="","",$BF40),IF($C$40=$BG$39,IF($BG40="","",$BG40),IF($C$40=$BH$39,IF($BH40="","",$BH40),IF($C$40=$BI$39,IF($BI40="","",$BI40),IF($C$40=$BJ$39,IF($BJ40="","",$BJ40),IF($C$40=$BK$39,IF($BK40="","",$BK40),IF($C$40=$BL$39,IF($BL40="","",$BL40),IF($C$40=$BM$39,IF($BM40="","",$BM40),IF($C$40=$BN$39,IF($BN40="","",$BN40),IF($C$40=$BO$39,IF($BO40="","",$BO40),IF($C$40=$BP$39,IF($BP40="","",$BP40),IF($C$40=$BQ$39,IF($BQ40="","",$BQ40),IF($C$40=$BR$39,IF($BR40="","",$BR40),IF($C$40=$BS$39,IF($BS40="","",$BS40),"")))))))))))))))))))))))))))))))))))))))))))))))))))))))))) ->  | N41: 90 x 55 mm | O41: 90 x 55 mm | AD41: Kuvertet ska kunna tryckas | AE41: Kuvertet ska kunna tryckas | AF41: Kuvertet ska kunna tryckas | AG41: Kuvertet ska kunna tryckas | AH41: Kuvertet ska kunna tryckas | AI41: Kuvertet ska kunna tryckas | AJ41: Kuvertet ska kunna tryckas | AS41: Stansas och bigas enligt tryckeriets stansmall. | AT41: Stansas och bigas enligt tryckeriets stansmall. | AW41: A4 | AX41: A5 | AY41: 105 x 297 mm | AZ41: A4 | BA41: A4 | BB41: A4 | BC41: A5 | BD41: 165 x 242 mm | BE41: 165 x 242 mm | BF41: A4 | BG41: 165 x 242 mm | BH41: A4 | BI41: 225 x 270 mm | BJ41: A: Öppna filer. B: PDF. C: PDFx enligt gällande ISO-standard. (Avser inte variabeldata) | BK41: A: Öppna filer. B: PDF. C: PDFx enligt gällande ISO-standard. (Avser inte variabeldata) | BL41: A: Öppna filer. B: PDF. C: PDFx enligt gällande ISO-standard. (Avser inte variabeldata) | BM41: A: Öppna filer. B: PDF. C: PDFx enligt gällande ISO-standard. (Avser inte variabeldata) | BN41: A: Öppna filer. B: PDF. C: PDFx enligt gällande ISO-standard. (Avser inte variabeldata) | BO41: A: Öppna filer. B: PDF. C: PDFx enligt gällande ISO-standard. (Avser inte variabeldata) | BP41: A: Öppna filer. B: PDF. C: PDFx enligt gällande ISO-standard. (Avser inte variabeldata) | BQ41: A: Öppna filer. B: PDF. C: PDFx enligt gällande ISO-standard. (Avser inte variabeldata) | BR41: A: Öppna filer. B: PDF. C: PDFx enligt gällande ISO-standard. (Avser inte variabeldata)
C42: =IF($C$40=$N$39,IF($N41="","",$N41),IF($C$40=$O$39,IF($O41="","",$O41),IF($C$40=$P$39,IF($P41="","",$P41),IF($C$40=$Q$39,IF($Q41="","",$Q41),IF($C$40=$R$39,IF($R41="","",$R41),IF($C$40=$S$39,IF($S41="","",$S41),IF($C$40=$T$39,IF($T41="","",$T41),IF($C$40=$U$39,IF($U41="","",$U41),IF($C$40=$V$39,IF($V41="","",$V41),IF($C$40=$W$39,IF($W41="","",$W41),IF($C$40=$X$39,IF($X41="","",$X41),IF($C$40=$Y$39,IF($Y41="","",$Y41),IF($C$40=$Z$39,IF($Z41="","",$Z41),IF($C$40=$AA$39,IF($AA41="","",$AA41),IF($C$40=$AB$39,IF($AB41="","",$AB41),IF($C$40=$AC$39,IF($AC41="","",$AC41),IF($C$40=$AD$39,IF($AD41="","",$AD41),IF($C$40=$AE$39,IF($AE41="","",$AE41),IF($C$40=$AF$39,IF($AF41="","",$AF41),IF($C$40=$AG$39,IF($AG41="","",$AG41),IF($C$40=$AH$39,IF($AH41="","",$AH41),IF($C$40=$AI$39,IF($AI41="","",$AI41),IF($C$40=$AJ$39,IF($AJ41="","",$AJ41),IF($C$40=$AK$39,IF($AK41="","",$AK41),IF($C$40=$AL$39,IF($AL41="","",$AL41),IF($C$40=$AM$39,IF($AM41="","",$AM41),IF($C$40=$AN$39,IF($AN41="","",$AN41),IF($C$40=$AO$39,IF($AO41="","",$AO41),IF($C$40=$AP$39,IF($AP41="","",$AP41),IF($C$40=$AQ$39,IF($AQ41="","",$AQ41),IF($C$40=$AR$39,IF($AR41="","",$AR41),IF($C$40=$AS$39,IF($AS41="","",$AS41),IF($C$40=$AT$39,IF($AT41="","",$AT41),IF($C$40=$AU$39,IF($AU41="","",$AU41),IF($C$40=$AV$39,IF($AV41="","",$AV41),IF($C$40=$AW$39,IF($AW41="","",$AW41),IF($C$40=$AX$39,IF($AX41="","",$AX41),IF($C$40=$AY$39,IF($AY41="","",$AY41),IF($C$40=$AZ$39,IF($AZ41="","",$AZ41),IF($C$40=$BA$39,IF($BA41="","",$BA41),IF($C$40=$BB$39,IF($BB41="","",$BB41),IF($C$40=$BC$39,IF($BC41="","",$BC41),IF($C$40=$BD$39,IF($BD41="","",$BD41),IF($C$40=$BE$39,IF($BE41="","",$BE41),IF($C$40=$BF$39,IF($BF41="","",$BF41),IF($C$40=$BG$39,IF($BG41="","",$BG41),IF($C$40=$BH$39,IF($BH41="","",$BH41),IF($C$40=$BI$39,IF($BI41="","",$BI41),IF($C$40=$BJ$39,IF($BJ41="","",$BJ41),IF($C$40=$BK$39,IF($BK41="","",$BK41),IF($C$40=$BL$39,IF($BL41="","",$BL41),IF($C$40=$BM$39,IF($BM41="","",$BM41),IF($C$40=$BN$39,IF($BN41="","",$BN41),IF($C$40=$BO$39,IF($BO41="","",$BO41),IF($C$40=$BP$39,IF($BP41="","",$BP41),IF($C$40=$BQ$39,IF($BQ41="","",$BQ41),IF($C$40=$BR$39,IF($BR41="","",$BR41),IF($C$40=$BS$39,IF($BS41="","",$BS41),"")))))))))))))))))))))))))))))))))))))))))))))))))))))))))) ->  | N42: 300 g | O42: 300 g | AD42: Kuvert vitt utan fönster, självhäftande klaff med täckremsa. Klaffen ska vara tryckbar, ej utfallande. 90g | AE42: Kuvert vitt utan fönster, självhäftande klaff med täckremsa. Klaffen ska vara tryckbar, ej utfallande. 100g | AF42: Kuvert vitt fönster stående, självhäftande klaff med täckremsa. Klaffen ska vara tryckbar, ej utfallande. 100g | AG42: Kuvert vitt utan fönster, självhäftande klaff med täckremsa. Klaffen ska vara tryckbar, ej utfallande. 90g | AH42: Kuvert vitt utan fönster, självhäftande klaff med täckremsa. Klaffen ska vara tryckbar, ej utfallande. 115g | AI42: Kuvert vitt fönster, självhäftande klaff med täckremsa. Klaffen ska vara tryckbar, ej utfallande. 90g | AJ42: Kuvert vitt fönster, självhäftande klaff med täckremsa. Klaffen ska vara tryckbar, ej utfallande. 115g | AS42: Ska kunna tillhandahållas av tryckeriet för egen tillverkning i Indesign för framställning av pdfx-fil | AT42: Ska kunna tillhandahållas av tryckeriet för egen tillverkning i Indesign för framställning av pdfx-fil | AW42: Mattbestruket 130 g | AX42: Mattbestruket 130 g | AY42: Mattbestruket 130 g | AZ42: Mattbestruket 130 g | BA42: 130g obestruket | BD42: 70g offsetpapper | BE42: 70g offsetpapper | BF42: Obestruket 80 g | BG42: Mattbestruket 100 g | BH42: Bestruket 80 g | BI42: Bestruket 80 g | BJ42: Minst 200 cm | BK42: Minst 200 cm | BL42: Minst 200 cm | BM42: Minst 200 cm | BN42: Minst 200 cm | BO42: Minst 200 cm | BP42: Bestruket gloss 170 g | BQ42: Bestruket gloss 170 g | BR42: Bestruket gloss 170 g
C43: =IF($C$40=$N$39,IF($N42="","",$N42),IF($C$40=$O$39,IF($O42="","",$O42),IF($C$40=$P$39,IF($P42="","",$P42),IF($C$40=$Q$39,IF($Q42="","",$Q42),IF($C$40=$R$39,IF($R42="","",$R42),IF($C$40=$S$39,IF($S42="","",$S42),IF($C$40=$T$39,IF($T42="","",$T42),IF($C$40=$U$39,IF($U42="","",$U42),IF($C$40=$V$39,IF($V42="","",$V42),IF($C$40=$W$39,IF($W42="","",$W42),IF($C$40=$X$39,IF($X42="","",$X42),IF($C$40=$Y$39,IF($Y42="","",$Y42),IF($C$40=$Z$39,IF($Z42="","",$Z42),IF($C$40=$AA$39,IF($AA42="","",$AA42),IF($C$40=$AB$39,IF($AB42="","",$AB42),IF($C$40=$AC$39,IF($AC42="","",$AC42),IF($C$40=$AD$39,IF($AD42="","",$AD42),IF($C$40=$AE$39,IF($AE42="","",$AE42),IF($C$40=$AF$39,IF($AF42="","",$AF42),IF($C$40=$AG$39,IF($AG42="","",$AG42),IF($C$40=$AH$39,IF($AH42="","",$AH42),IF($C$40=$AI$39,IF($AI42="","",$AI42),IF($C$40=$AJ$39,IF($AJ42="","",$AJ42),IF($C$40=$AK$39,IF($AK42="","",$AK42),IF($C$40=$AL$39,IF($AL42="","",$AL42),IF($C$40=$AM$39,IF($AM42="","",$AM42),IF($C$40=$AN$39,IF($AN42="","",$AN42),IF($C$40=$AO$39,IF($AO42="","",$AO42),IF($C$40=$AP$39,IF($AP42="","",$AP42),IF($C$40=$AQ$39,IF($AQ42="","",$AQ42),IF($C$40=$AR$39,IF($AR42="","",$AR42),IF($C$40=$AS$39,IF($AS42="","",$AS42),IF($C$40=$AT$39,IF($AT42="","",$AT42),IF($C$40=$AU$39,IF($AU42="","",$AU42),IF($C$40=$AV$39,IF($AV42="","",$AV42),IF($C$40=$AW$39,IF($AW42="","",$AW42),IF($C$40=$AX$39,IF($AX42="","",$AX42),IF($C$40=$AY$39,IF($AY42="","",$AY42),IF($C$40=$AZ$39,IF($AZ42="","",$AZ42),IF($C$40=$BA$39,IF($BA42="","",$BA42),IF($C$40=$BB$39,IF($BB42="","",$BB42),IF($C$40=$BC$39,IF($BC42="","",$BC42),IF($C$40=$BD$39,IF($BD42="","",$BD42),IF($C$40=$BE$39,IF($BE42="","",$BE42),IF($C$40=$BF$39,IF($BF42="","",$BF42),IF($C$40=$BG$39,IF($BG42="","",$BG42),IF($C$40=$BH$39,IF($BH42="","",$BH42),IF($C$40=$BI$39,IF($BI42="","",$BI42),IF($C$40=$BJ$39,IF($BJ42="","",$BJ42),IF($C$40=$BK$39,IF($BK42="","",$BK42),IF($C$40=$BL$39,IF($BL42="","",$BL42),IF($C$40=$BM$39,IF($BM42="","",$BM42),IF($C$40=$BN$39,IF($BN42="","",$BN42),IF($C$40=$BO$39,IF($BO42="","",$BO42),IF($C$40=$BP$39,IF($BP42="","",$BP42),IF($C$40=$BQ$39,IF($BQ42="","",$BQ42),IF($C$40=$BR$39,IF($BR42="","",$BR42),IF($C$40=$BS$39,IF($BS42="","",$BS42),"")))))))))))))))))))))))))))))))))))))))))))))))))))))))))) ->  | N43: Enligt valde varianten | O43: Enligt valde varianten | AD43: C4 | AE43: C4 | AF43: C4 | AG43: C5 | AH43: C5 | AI43: C5 | AJ43: C5 | AS43: Oliksidig kartong, , där mappens insida är otryckt obestruken och med blanka sidan utåt (trycksidan). Ytvikt mellan 240-250 g | AT43: Obestruket papper vitt 300 g | AW43: 4+4 färger | AX43: 4+4 färger | AY43: 4+4 färger | AZ43: 4+4 färger | BA43: 4+4 färger | BD43: Inget separat omslag | BE43: 225 g colorit eller motsvarande | BF43: Bestruket 250 g | BG43: Mattbestruket 150 g | BH43: Bestruket 150 g | BI43: Bestruket 130 g | BJ43: Kassett i aluminium och tyg i PVC-fritt material | BK43: Kassett i aluminium och tyg iPVC-fritt material | BL43: Kassett i aluminium och tyg i PVC-fritt material | BM43: Kassett i aluminium och tyg i PVC-fritt material | BN43: Kassett i aluminium och tyg i PVC-fritt material | BO43: Kassett i aluminium och tyg i PVC-fritt material | BP43: 4+0 | BQ43: 4+0 | BR43: 4+0
C44: =IF($C$40=$N$39,IF($N43="","",$N43),IF($C$40=$O$39,IF($O43="","",$O43),IF($C$40=$P$39,IF($P43="","",$P43),IF($C$40=$Q$39,IF($Q43="","",$Q43),IF($C$40=$R$39,IF($R43="","",$R43),IF($C$40=$S$39,IF($S43="","",$S43),IF($C$40=$T$39,IF($T43="","",$T43),IF($C$40=$U$39,IF($U43="","",$U43),IF($C$40=$V$39,IF($V43="","",$V43),IF($C$40=$W$39,IF($W43="","",$W43),IF($C$40=$X$39,IF($X43="","",$X43),IF($C$40=$Y$39,IF($Y43="","",$Y43),IF($C$40=$Z$39,IF($Z43="","",$Z43),IF($C$40=$AA$39,IF($AA43="","",$AA43),IF($C$40=$AB$39,IF($AB43="","",$AB43),IF($C$40=$AC$39,IF($AC43="","",$AC43),IF($C$40=$AD$39,IF($AD43="","",$AD43),IF($C$40=$AE$39,IF($AE43="","",$AE43),IF($C$40=$AF$39,IF($AF43="","",$AF43),IF($C$40=$AG$39,IF($AG43="","",$AG43),IF($C$40=$AH$39,IF($AH43="","",$AH43),IF($C$40=$AI$39,IF($AI43="","",$AI43),IF($C$40=$AJ$39,IF($AJ43="","",$AJ43),IF($C$40=$AK$39,IF($AK43="","",$AK43),IF($C$40=$AL$39,IF($AL43="","",$AL43),IF($C$40=$AM$39,IF($AM43="","",$AM43),IF($C$40=$AN$39,IF($AN43="","",$AN43),IF($C$40=$AO$39,IF($AO43="","",$AO43),IF($C$40=$AP$39,IF($AP43="","",$AP43),IF($C$40=$AQ$39,IF($AQ43="","",$AQ43),IF($C$40=$AR$39,IF($AR43="","",$AR43),IF($C$40=$AS$39,IF($AS43="","",$AS43),IF($C$40=$AT$39,IF($AT43="","",$AT43),IF($C$40=$AU$39,IF($AU43="","",$AU43),IF($C$40=$AV$39,IF($AV43="","",$AV43),IF($C$40=$AW$39,IF($AW43="","",$AW43),IF($C$40=$AX$39,IF($AX43="","",$AX43),IF($C$40=$AY$39,IF($AY43="","",$AY43),IF($C$40=$AZ$39,IF($AZ43="","",$AZ43),IF($C$40=$BA$39,IF($BA43="","",$BA43),IF($C$40=$BB$39,IF($BB43="","",$BB43),IF($C$40=$BC$39,IF($BC43="","",$BC43),IF($C$40=$BD$39,IF($BD43="","",$BD43),IF($C$40=$BE$39,IF($BE43="","",$BE43),IF($C$40=$BF$39,IF($BF43="","",$BF43),IF($C$40=$BG$39,IF($BG43="","",$BG43),IF($C$40=$BH$39,IF($BH43="","",$BH43),IF($C$40=$BI$39,IF($BI43="","",$BI43),IF($C$40=$BJ$39,IF($BJ43="","",$BJ43),IF($C$40=$BK$39,IF($BK43="","",$BK43),IF($C$40=$BL$39,IF($BL43="","",$BL43),IF($C$40=$BM$39,IF($BM43="","",$BM43),IF($C$40=$BN$39,IF($BN43="","",$BN43),IF($C$40=$BO$39,IF($BO43="","",$BO43),IF($C$40=$BP$39,IF($BP43="","",$BP43),IF($C$40=$BQ$39,IF($BQ43="","",$BQ43),IF($C$40=$BR$39,IF($BR43="","",$BR43),IF($C$40=$BS$39,IF($BS43="","",$BS43),"")))))))))))))))))))))))))))))))))))))))))))))))))))))))))) ->  | AS44: För A4 dokument | AT44: För A4 dokument | AW44: 4 stycken | AX44: 4 stycken | AY44: 4 stycken | AZ44: 6 stycken | BA44: Klammerhäftning | BB44: Klammerhäftning | BC44: Klammerhäftning | BD44: 1+1 Svart | BF44: 1+1 | BG44: 1+1 | BH44: 4+4 | BI44: 4+4 | BJ44: 4+0 | BK44: 4+0 | BL44: 4+0 | BM44: 4+0 | BN44: 4+0 | BO44: 4+0
C45: =IF($C$40=$N$39,IF($N44="","",$N44),IF($C$40=$O$39,IF($O44="","",$O44),IF($C$40=$P$39,IF($P44="","",$P44),IF($C$40=$Q$39,IF($Q44="","",$Q44),IF($C$40=$R$39,IF($R44="","",$R44),IF($C$40=$S$39,IF($S44="","",$S44),IF($C$40=$T$39,IF($T44="","",$T44),IF($C$40=$U$39,IF($U44="","",$U44),IF($C$40=$V$39,IF($V44="","",$V44),IF($C$40=$W$39,IF($W44="","",$W44),IF($C$40=$X$39,IF($X44="","",$X44),IF($C$40=$Y$39,IF($Y44="","",$Y44),IF($C$40=$Z$39,IF($Z44="","",$Z44),IF($C$40=$AA$39,IF($AA44="","",$AA44),IF($C$40=$AB$39,IF($AB44="","",$AB44),IF($C$40=$AC$39,IF($AC44="","",$AC44),IF($C$40=$AD$39,IF($AD44="","",$AD44),IF($C$40=$AE$39,IF($AE44="","",$AE44),IF($C$40=$AF$39,IF($AF44="","",$AF44),IF($C$40=$AG$39,IF($AG44="","",$AG44),IF($C$40=$AH$39,IF($AH44="","",$AH44),IF($C$40=$AI$39,IF($AI44="","",$AI44),IF($C$40=$AJ$39,IF($AJ44="","",$AJ44),IF($C$40=$AK$39,IF($AK44="","",$AK44),IF($C$40=$AL$39,IF($AL44="","",$AL44),IF($C$40=$AM$39,IF($AM44="","",$AM44),IF($C$40=$AN$39,IF($AN44="","",$AN44),IF($C$40=$AO$39,IF($AO44="","",$AO44),IF($C$40=$AP$39,IF($AP44="","",$AP44),IF($C$40=$AQ$39,IF($AQ44="","",$AQ44),IF($C$40=$AR$39,IF($AR44="","",$AR44),IF($C$40=$AS$39,IF($AS44="","",$AS44),IF($C$40=$AT$39,IF($AT44="","",$AT44),IF($C$40=$AU$39,IF($AU44="","",$AU44),IF($C$40=$AV$39,IF($AV44="","",$AV44),IF($C$40=$AW$39,IF($AW44="","",$AW44),IF($C$40=$AX$39,IF($AX44="","",$AX44),IF($C$40=$AY$39,IF($AY44="","",$AY44),IF($C$40=$AZ$39,IF($AZ44="","",$AZ44),IF($C$40=$BA$39,IF($BA44="","",$BA44),IF($C$40=$BB$39,IF($BB44="","",$BB44),IF($C$40=$BC$39,IF($BC44="","",$BC44),IF($C$40=$BD$39,IF($BD44="","",$BD44),IF($C$40=$BE$39,IF($BE44="","",$BE44),IF($C$40=$BF$39,IF($BF44="","",$BF44),IF($C$40=$BG$39,IF($BG44="","",$BG44),IF($C$40=$BH$39,IF($BH44="","",$BH44),IF($C$40=$BI$39,IF($BI44="","",$BI44),IF($C$40=$BJ$39,IF($BJ44="","",$BJ44),IF($C$40=$BK$39,IF($BK44="","",$BK44),IF($C$40=$BL$39,IF($BL44="","",$BL44),IF($C$40=$BM$39,IF($BM44="","",$BM44),IF($C$40=$BN$39,IF($BN44="","",$BN44),IF($C$40=$BO$39,IF($BO44="","",$BO44),IF($C$40=$BP$39,IF($BP44="","",$BP44),IF($C$40=$BQ$39,IF($BQ44="","",$BQ44),IF($C$40=$BR$39,IF($BR44="","",$BR44),IF($C$40=$BS$39,IF($BS44="","",$BS44),"")))))))))))))))))))))))))))))))))))))))))))))))))))))))))) ->  | AS45: Klaffarna ska vara tillräckligt breda för att pappersmapparnas funktion ska vara förenlig med vad som är fackmannamässigt i branschen och för att rymma minst 100 stycken A4-ark (80g/m2) på ett funktionsenligt sätt. Två av klaffarna sitter på mappens baksida | AT45: Klaffarna ska vara tillräckligt breda för att pappersmapparnas funktion ska vara förenlig med vad som är fackmannamässigt i branschen och för att rymma minst 100 stycken A4-ark (80g/m2) på ett funktionsenligt sätt. Två av klaffarna sitter på mappens baksida | BB45: Mattbestruket 130 g | BC45: Obestruket papper 80g | BD45: Triohålning, klamring. Limbindning vid omfång (inlaga och omslag) 113 sidor eller fler. | BE45: Triohålning, klamring. Limbindning vid omfång (inlaga och omslag) 113 sidor eller fler. | BF45: 4+0 | BG45: 4+0 | BH45: 4+4 | BI45: 4+4
C46: =IF($C$40=$N$39,IF($N45="","",$N45),IF($C$40=$O$39,IF($O45="","",$O45),IF($C$40=$P$39,IF($P45="","",$P45),IF($C$40=$Q$39,IF($Q45="","",$Q45),IF($C$40=$R$39,IF($R45="","",$R45),IF($C$40=$S$39,IF($S45="","",$S45),IF($C$40=$T$39,IF($T45="","",$T45),IF($C$40=$U$39,IF($U45="","",$U45),IF($C$40=$V$39,IF($V45="","",$V45),IF($C$40=$W$39,IF($W45="","",$W45),IF($C$40=$X$39,IF($X45="","",$X45),IF($C$40=$Y$39,IF($Y45="","",$Y45),IF($C$40=$Z$39,IF($Z45="","",$Z45),IF($C$40=$AA$39,IF($AA45="","",$AA45),IF($C$40=$AB$39,IF($AB45="","",$AB45),IF($C$40=$AC$39,IF($AC45="","",$AC45),IF($C$40=$AD$39,IF($AD45="","",$AD45),IF($C$40=$AE$39,IF($AE45="","",$AE45),IF($C$40=$AF$39,IF($AF45="","",$AF45),IF($C$40=$AG$39,IF($AG45="","",$AG45),IF($C$40=$AH$39,IF($AH45="","",$AH45),IF($C$40=$AI$39,IF($AI45="","",$AI45),IF($C$40=$AJ$39,IF($AJ45="","",$AJ45),IF($C$40=$AK$39,IF($AK45="","",$AK45),IF($C$40=$AL$39,IF($AL45="","",$AL45),IF($C$40=$AM$39,IF($AM45="","",$AM45),IF($C$40=$AN$39,IF($AN45="","",$AN45),IF($C$40=$AO$39,IF($AO45="","",$AO45),IF($C$40=$AP$39,IF($AP45="","",$AP45),IF($C$40=$AQ$39,IF($AQ45="","",$AQ45),IF($C$40=$AR$39,IF($AR45="","",$AR45),IF($C$40=$AS$39,IF($AS45="","",$AS45),IF($C$40=$AT$39,IF($AT45="","",$AT45),IF($C$40=$AU$39,IF($AU45="","",$AU45),IF($C$40=$AV$39,IF($AV45="","",$AV45),IF($C$40=$AW$39,IF($AW45="","",$AW45),IF($C$40=$AX$39,IF($AX45="","",$AX45),IF($C$40=$AY$39,IF($AY45="","",$AY45),IF($C$40=$BA$39,IF($BA45="","",$BA45),IF($C$40=$BB$39,IF($BB45="","",$BB45),IF($C$40=$BC$39,IF($BC45="","",$BC45),IF($C$40=$BD$39,IF($BD45="","",$BD45),IF($C$40=$BE$39,IF($BE45="","",$BE45),IF($C$40=$BF$39,IF($BF45="","",$BF45),IF($C$40=$BG$39,IF($BG45="","",$BG45),IF($C$40=$BH$39,IF($BH45="","",$BH45),IF($C$40=$BI$39,IF($BI45="","",$BI45),IF($C$40=$BJ$39,IF($BJ45="","",$BJ45),IF($C$40=$BK$39,IF($BK45="","",$BK45),IF($C$40=$BL$39,IF($BL45="","",$BL45),IF($C$40=$BM$39,IF($BM45="","",$BM45),IF($C$40=$BN$39,IF($BN45="","",$BN45),IF($C$40=$BO$39,IF($BO45="","",$BO45),IF($C$40=$BP$39,IF($BP45="","",$BP45),IF($C$40=$BQ$39,IF($BQ45="","",$BQ45),IF($C$40=$BR$39,IF($BR45="","",$BR45),IF($C$40=$BS$39,IF($BS45="","",$BS45),""))))))))))))))))))))))))))))))))))))))))))))))))))))))))) ->  | BB46: Mattbestruket 250 g | BC46: Bestruket 250g | BE46: 1+1 Svart | BF46: Limbindning | BG46: Limbindning | BH46: Klammerhäftning, men vid omfång (inlaga och omslag) 113 sidor eller fler limbindning. | BI46: Klammerhäftning, men vid omfång (inlaga och omslag) 113 sidor eller fler limbindning.
C47: =IF($C$40=$N$39,IF($N46="","",$N46),IF($C$40=$O$39,IF($O46="","",$O46),IF($C$40=$P$39,IF($P46="","",$P46),IF($C$40=$Q$39,IF($Q46="","",$Q46),IF($C$40=$R$39,IF($R46="","",$R46),IF($C$40=$S$39,IF($S46="","",$S46),IF($C$40=$T$39,IF($T46="","",$T46),IF($C$40=$U$39,IF($U46="","",$U46),IF($C$40=$V$39,IF($V46="","",$V46),IF($C$40=$W$39,IF($W46="","",$W46),IF($C$40=$X$39,IF($X46="","",$X46),IF($C$40=$Y$39,IF($Y46="","",$Y46),IF($C$40=$Z$39,IF($Z46="","",$Z46),IF($C$40=$AA$39,IF($AA46="","",$AA46),IF($C$40=$AB$39,IF($AB46="","",$AB46),IF($C$40=$AC$39,IF($AC46="","",$AC46),IF($C$40=$AD$39,IF($AD46="","",$AD46),IF($C$40=$AE$39,IF($AE46="","",$AE46),IF($C$40=$AF$39,IF($AF46="","",$AF46),IF($C$40=$AG$39,IF($AG46="","",$AG46),IF($C$40=$AH$39,IF($AH46="","",$AH46),IF($C$40=$AI$39,IF($AI46="","",$AI46),IF($C$40=$AJ$39,IF($AJ46="","",$AJ46),IF($C$40=$AK$39,IF($AK46="","",$AK46),IF($C$40=$AL$39,IF($AL46="","",$AL46),IF($C$40=$AM$39,IF($AM46="","",$AM46),IF($C$40=$AN$39,IF($AN46="","",$AN46),IF($C$40=$AO$39,IF($AO46="","",$AO46),IF($C$40=$AP$39,IF($AP46="","",$AP46),IF($C$40=$AQ$39,IF($AQ46="","",$AQ46),IF($C$40=$AR$39,IF($AR46="","",$AR46),IF($C$40=$AS$39,IF($AS46="","",$AS46),IF($C$40=$AT$39,IF($AT46="","",$AT46),IF($C$40=$AU$39,IF($AU46="","",$AU46),IF($C$40=$AV$39,IF($AV46="","",$AV46),IF($C$40=$AW$39,IF($AW46="","",$AW46),IF($C$40=$AX$39,IF($AX46="","",$AX46),IF($C$40=$AY$39,IF($AY46="","",$AY46),IF($C$40=$BA$39,IF($BA46="","",$BA46),IF($C$40=$BB$39,IF($BB46="","",$BB46),IF($C$40=$BC$39,IF($BC46="","",$BC46),IF($C$40=$BD$39,IF($BD46="","",$BD46),IF($C$40=$BE$39,IF($BE46="","",$BE46),IF($C$40=$BF$39,IF($BF46="","",$BF46),IF($C$40=$BG$39,IF($BG46="","",$BG46),IF($C$40=$BH$39,IF($BH46="","",$BH46),IF($C$40=$BI$39,IF($BI46="","",$BI46),IF($C$40=$BJ$39,IF($BJ46="","",$BJ46),IF($C$40=$BK$39,IF($BK46="","",$BK46),IF($C$40=$BL$39,IF($BL46="","",$BL46),IF($C$40=$BM$39,IF($BM46="","",$BM46),IF($C$40=$BN$39,IF($BN46="","",$BN46),IF($C$40=$BO$39,IF($BO46="","",$BO46),IF($C$40=$BP$39,IF($BP46="","",$BP46),IF($C$40=$BQ$39,IF($BQ46="","",$BQ46),IF($C$40=$BR$39,IF($BR46="","",$BR46),IF($C$40=$BS$39,IF($BS46="","",$BS46),""))))))))))))))))))))))))))))))))))))))))))))))))))))))))) ->  | BB47: 4+4 färger | BC47: 1+1 färger (svart) | BE47: 1+1 Svart
C48: =IF($C$40=$N$39,IF($N47="","",$N47),IF($C$40=$O$39,IF($O47="","",$O47),IF($C$40=$P$39,IF($P47="","",$P47),IF($C$40=$Q$39,IF($Q47="","",$Q47),IF($C$40=$R$39,IF($R47="","",$R47),IF($C$40=$S$39,IF($S47="","",$S47),IF($C$40=$T$39,IF($T47="","",$T47),IF($C$40=$U$39,IF($U47="","",$U47),IF($C$40=$V$39,IF($V47="","",$V47),IF($C$40=$W$39,IF($W47="","",$W47),IF($C$40=$X$39,IF($X47="","",$X47),IF($C$40=$Y$39,IF($Y47="","",$Y47),IF($C$40=$Z$39,IF($Z47="","",$Z47),IF($C$40=$AA$39,IF($AA47="","",$AA47),IF($C$40=$AB$39,IF($AB47="","",$AB47),IF($C$40=$AC$39,IF($AC47="","",$AC47),IF($C$40=$AD$39,IF($AD47="","",$AD47),IF($C$40=$AE$39,IF($AE47="","",$AE47),IF($C$40=$AF$39,IF($AF47="","",$AF47),IF($C$40=$AG$39,IF($AG47="","",$AG47),IF($C$40=$AH$39,IF($AH47="","",$AH47),IF($C$40=$AI$39,IF($AI47="","",$AI47),IF($C$40=$AJ$39,IF($AJ47="","",$AJ47),IF($C$40=$AK$39,IF($AK47="","",$AK47),IF($C$40=$AL$39,IF($AL47="","",$AL47),IF($C$40=$AM$39,IF($AM47="","",$AM47),IF($C$40=$AN$39,IF($AN47="","",$AN47),IF($C$40=$AO$39,IF($AO47="","",$AO47),IF($C$40=$AP$39,IF($AP47="","",$AP47),IF($C$40=$AQ$39,IF($AQ47="","",$AQ47),IF($C$40=$AR$39,IF($AR47="","",$AR47),IF($C$40=$AS$39,IF($AS47="","",$AS47),IF($C$40=$AT$39,IF($AT47="","",$AT47),IF($C$40=$AU$39,IF($AU47="","",$AU47),IF($C$40=$AV$39,IF($AV47="","",$AV47),IF($C$40=$AW$39,IF($AW47="","",$AW47),IF($C$40=$AX$39,IF($AX47="","",$AX47),IF($C$40=$AY$39,IF($AY47="","",$AY47),IF($C$40=$BA$39,IF($BA47="","",$BA47),IF($C$40=$BB$39,IF($BB47="","",$BB47),IF($C$40=$BC$39,IF($BC47="","",$BC47),IF($C$40=$BD$39,IF($BD47="","",$BD47),IF($C$40=$BE$39,IF($BE47="","",$BE47),IF($C$40=$BF$39,IF($BF47="","",$BF47),IF($C$40=$BG$39,IF($BG47="","",$BG47),IF($C$40=$BH$39,IF($BH47="","",$BH47),IF($C$40=$BI$39,IF($BI47="","",$BI47),IF($C$40=$BJ$39,IF($BJ47="","",$BJ47),IF($C$40=$BK$39,IF($BK47="","",$BK47),IF($C$40=$BL$39,IF($BL47="","",$BL47),IF($C$40=$BM$39,IF($BM47="","",$BM47),IF($C$40=$BN$39,IF($BN47="","",$BN47),IF($C$40=$BO$39,IF($BO47="","",$BO47),IF($C$40=$BP$39,IF($BP47="","",$BP47),IF($C$40=$BQ$39,IF($BQ47="","",$BQ47),IF($C$40=$BR$39,IF($BR47="","",$BR47),IF($C$40=$BS$39,IF($BS47="","",$BS47),""))))))))))))))))))))))))))))))))))))))))))))))))))))))))) ->  | BB48: 4+4 färger | BC48: 4+4 färger
C49: =IF($C$40=$N$39,IF($N48="","",$N48),IF($C$40=$O$39,IF($O48="","",$O48),IF($C$40=$P$39,IF($P48="","",$P48),IF($C$40=$Q$39,IF($Q48="","",$Q48),IF($C$40=$R$39,IF($R48="","",$R48),IF($C$40=$S$39,IF($S48="","",$S48),IF($C$40=$T$39,IF($T48="","",$T48),IF($C$40=$U$39,IF($U48="","",$U48),IF($C$40=$V$39,IF($V48="","",$V48),IF($C$40=$W$39,IF($W48="","",$W48),IF($C$40=$X$39,IF($X48="","",$X48),IF($C$40=$Y$39,IF($Y48="","",$Y48),IF($C$40=$Z$39,IF($Z48="","",$Z48),IF($C$40=$AA$39,IF($AA48="","",$AA48),IF($C$40=$AB$39,IF($AB48="","",$AB48),IF($C$40=$AC$39,IF($AC48="","",$AC48),IF($C$40=$AD$39,IF($AD48="","",$AD48),IF($C$40=$AE$39,IF($AE48="","",$AE48),IF($C$40=$AF$39,IF($AF48="","",$AF48),IF($C$40=$AG$39,IF($AG48="","",$AG48),IF($C$40=$AH$39,IF($AH48="","",$AH48),IF($C$40=$AI$39,IF($AI48="","",$AI48),IF($C$40=$AJ$39,IF($AJ48="","",$AJ48),IF($C$40=$AK$39,IF($AK48="","",$AK48),IF($C$40=$AL$39,IF($AL48="","",$AL48),IF($C$40=$AM$39,IF($AM48="","",$AM48),IF($C$40=$AN$39,IF($AN48="","",$AN48),IF($C$40=$AO$39,IF($AO48="","",$AO48),IF($C$40=$AP$39,IF($AP48="","",$AP48),IF($C$40=$AQ$39,IF($AQ48="","",$AQ48),IF($C$40=$AR$39,IF($AR48="","",$AR48),IF($C$40=$AS$39,IF($AS48="","",$AS48),IF($C$40=$AT$39,IF($AT48="","",$AT48),IF($C$40=$AU$39,IF($AU48="","",$AU48),IF($C$40=$AV$39,IF($AV48="","",$AV48),IF($C$40=$AW$39,IF($AW48="","",$AW48),IF($C$40=$AX$39,IF($AX48="","",$AX48),IF($C$40=$AY$39,IF($AY48="","",$AY48),IF($C$40=$BA$39,IF($BA48="","",$BA48),IF($C$40=$BB$39,IF($BB48="","",$BB48),IF($C$40=$BC$39,IF($BC48="","",$BC48),IF($C$40=$BD$39,IF($BD48="","",$BD48),IF($C$40=$BE$39,IF($BE48="","",$BE48),IF($C$40=$BF$39,IF($BF48="","",$BF48),IF($C$40=$BG$39,IF($BG48="","",$BG48),IF($C$40=$BH$39,IF($BH48="","",$BH48),IF($C$40=$BI$39,IF($BI48="","",$BI48),IF($C$40=$BJ$39,IF($BJ48="","",$BJ48),IF($C$40=$BK$39,IF($BK48="","",$BK48),IF($C$40=$BL$39,IF($BL48="","",$BL48),IF($C$40=$BM$39,IF($BM48="","",$BM48),IF($C$40=$BN$39,IF($BN48="","",$BN48),IF($C$40=$BO$39,IF($BO48="","",$BO48),IF($C$40=$BP$39,IF($BP48="","",$BP48),IF($C$40=$BQ$39,IF($BQ48="","",$BQ48),IF($C$40=$BR$39,IF($BR48="","",$BR48),IF($C$40=$BS$39,IF($BS48="","",$BS48),""))))))))))))))))))))))))))))))))))))))))))))))))))))))))) -> 
B51: Välj Vara/Tjänst 3 | C51: Välj variant | D51: =IF($B$52=$N$20,IF($N$21="","",$N21),IF($B$52=$O$20,IF($O$21="","",$O21),IF($B$52=$P$20,IF($P$21="","",$P21),IF($B$52=$Q$20,IF($Q$21="","",$Q21),IF($B$52=$R$20,IF($R$21="","",$R21),IF($B$52=$S$20,IF($S$21="","",$S21),"")))))) ->  | E51: =IF($B$52=$U$20,IF($U$21="","",$U21),IF($B$52=$V$20,IF($V$21="","",$V21),IF($B$52=$W$20,IF($W$21="","",$W21),IF($B$52=$X$20,IF($X$21="","",$X21),"")))) ->  | F51: =IF($B$52=$Z$20,IF($Z$21="","",$Z21),IF($B$52=$AA$20,IF($AA$21="","",$AA21),IF($B$52=$AB$20,IF($AB$21="","",$AB21),IF($B$52=$AC$20,IF($AC$21="","",$AC21),IF($B$52=$AD$20,IF($AD$21="","",$AD21),IF($B$52=$AE$20,IF($AE$21="","",$AE21),IF($B$52=$AF$20,IF($AF$21="","",$AF21),IF($B$52=$AG$20,IF($AG$21="","",$AG21),IF($B$52=$AH$20,IF($AH$21="","",$AH21),IF($B$52=$AI$20,IF($AI$21="","",$AI21),IF($B$52=$AJ$20,IF($AJ$21="","",$AJ21),IF($B$52=$AK$20,IF($AK$21="","",$AK21),IF($B$52=$AL$20,IF($AL$21="","",$AL21),IF($B$52=$AM$20,IF($AM$21="","",$AM21),IF($B$52=$AN$20,IF($AN$21="","",$AN21),""))))))))))))))) ->  | G51: =IF($B$52=$N$65,IF($N66="","",$N66),"") -> 
B53: =IF($B$52=$N$25,IF($N26="","",$N26),IF($B$52=$O$25,IF($O26="","",$O26),IF($B$52=$P$25,IF($P26="","",$P26),IF($B$52=$Q$25,IF($Q26="","",$Q26),IF($B$52=$R$25,IF($R26="","",$R26),IF($B$52=$S$25,IF($S26="","",$S26),IF($B$52=$T$25,IF($T26="","",$T26),IF($B$52=$U$25,IF($U26="","",$U26),IF($B$52=$V$25,IF($V26="","",$V26),IF($B$52=$W$25,IF($W26="","",$W26),IF($B$52=$X$25,IF($X26="","",$X26),IF($B$52=$Y$25,IF($Y26="","",$Y26),IF($B$52=$Z$25,IF($Z26="","",$Z26),""))))))))))))) ->  | C53: =IF($C$52=$N$39,IF($N40="","",$N40),IF($C$52=$O$39,IF($O40="","",$O40),IF($C$52=$P$39,IF($P40="","",$P40),IF($C$52=$Q$39,IF($Q40="","",$Q40),IF($C$52=$R$39,IF($R40="","",$R40),IF($C$52=$S$39,IF($S40="","",$S40),IF($C$52=$T$39,IF($T40="","",$T40),IF($C$52=$U$39,IF($U40="","",$U40),IF($C$52=$V$39,IF($V40="","",$V40),IF($C$52=$W$39,IF($W40="","",$W40),IF($C$52=$X$39,IF($X40="","",$X40),IF($C$52=$Y$39,IF($Y40="","",$Y40),IF($C$52=$Z$39,IF($Z40="","",$Z40),IF($C$52=$AA$39,IF($AA40="","",$AA40),IF($C$52=$AB$39,IF($AB40="","",$AB40),IF($C$52=$AC$39,IF($AC40="","",$AC40),IF($C$52=$AD$39,IF($AD40="","",$AD40),IF($C$52=$AE$39,IF($AE40="","",$AE40),IF($C$52=$AF$39,IF($AF40="","",$AF40),IF($C$52=$AG$39,IF($AG40="","",$AG40),IF($C$52=$AH$39,IF($AH40="","",$AH40),IF($C$52=$AI$39,IF($AI40="","",$AI40),IF($C$52=$AJ$39,IF($AJ40="","",$AJ40),IF($C$52=$AK$39,IF($AK40="","",$AK40),IF($C$52=$AL$39,IF($AL40="","",$AL40),IF($C$52=$AM$39,IF($AM40="","",$AM40),IF($C$52=$AN$39,IF($AN40="","",$AN40),IF($C$52=$AO$39,IF($AO40="","",$AO40),IF($C$52=$AP$39,IF($AP40="","",$AP40),IF($C$52=$AQ$39,IF($AQ40="","",$AQ40),IF($C$52=$AR$39,IF($AR40="","",$AR40),IF($C$52=$AS$39,IF($AS40="","",$AS40),IF($C$52=$AT$39,IF($AT40="","",$AT40),IF($C$52=$AU$39,IF($AU40="","",$AU40),IF($C$52=$AV$39,IF($AV40="","",$AV40),IF($C$52=$AW$39,IF($AW40="","",$AW40),IF($C$52=$AX$39,IF($AX40="","",$AX40),IF($C$52=$AY$39,IF($AY40="","",$AY40),IF($C$52=$AZ$39,IF($AZ40="","",$AZ40),IF($C$52=$BA$39,IF($BA40="","",$BA40),IF($C$52=$BB$39,IF($BB40="","",$BB40),IF($C$52=$BC$39,IF($BC40="","",$BC40),IF($C$52=$BD$39,IF($BD40="","",$BD40),IF($C$52=$BE$39,IF($BE40="","",$BE40),IF($C$52=$BF$39,IF($BF40="","",$BF40),IF($C$52=$BG$39,IF($BG40="","",$BG40),IF($C$52=$BH$39,IF($BH40="","",$BH40),IF($C$52=$BI$39,IF($BI40="","",$BI40),IF($C$52=$BJ$39,IF($BJ40="","",$BJ40),IF($C$52=$BK$39,IF($BK40="","",$BK40),IF($C$52=$BL$39,IF($BL40="","",$BL40),IF($C$52=$BM$39,IF($BM40="","",$BM40),IF($C$52=$BN$39,IF($BN40="","",$BN40),IF($C$52=$BO$39,IF($BO40="","",$BO40),IF($C$52=$BP$39,IF($BP40="","",$BP40),IF($C$52=$BQ$39,IF($BQ40="","",$BQ40),IF($C$52=$BR$39,IF($BR40="","",$BR40),IF($C$52=$BS$39,IF($BS40="","",$BS40),"")))))))))))))))))))))))))))))))))))))))))))))))))))))))))) -> 
C54: =IF($C$52=$N$39,IF($N41="","",$N41),IF($C$52=$O$39,IF($O41="","",$O41),IF($C$52=$P$39,IF($P41="","",$P41),IF($C$52=$Q$39,IF($Q41="","",$Q41),IF($C$52=$R$39,IF($R41="","",$R41),IF($C$52=$S$39,IF($S41="","",$S41),IF($C$52=$T$39,IF($T41="","",$T41),IF($C$52=$U$39,IF($U41="","",$U41),IF($C$52=$V$39,IF($V41="","",$V41),IF($C$52=$W$39,IF($W41="","",$W41),IF($C$52=$X$39,IF($X41="","",$X41),IF($C$52=$Y$39,IF($Y41="","",$Y41),IF($C$52=$Z$39,IF($Z41="","",$Z41),IF($C$52=$AA$39,IF($AA41="","",$AA41),IF($C$52=$AB$39,IF($AB41="","",$AB41),IF($C$52=$AC$39,IF($AC41="","",$AC41),IF($C$52=$AD$39,IF($AD41="","",$AD41),IF($C$52=$AE$39,IF($AE41="","",$AE41),IF($C$52=$AF$39,IF($AF41="","",$AF41),IF($C$52=$AG$39,IF($AG41="","",$AG41),IF($C$52=$AH$39,IF($AH41="","",$AH41),IF($C$52=$AI$39,IF($AI41="","",$AI41),IF($C$52=$AJ$39,IF($AJ41="","",$AJ41),IF($C$52=$AK$39,IF($AK41="","",$AK41),IF($C$52=$AL$39,IF($AL41="","",$AL41),IF($C$52=$AM$39,IF($AM41="","",$AM41),IF($C$52=$AN$39,IF($AN41="","",$AN41),IF($C$52=$AO$39,IF($AO41="","",$AO41),IF($C$52=$AP$39,IF($AP41="","",$AP41),IF($C$52=$AQ$39,IF($AQ41="","",$AQ41),IF($C$52=$AR$39,IF($AR41="","",$AR41),IF($C$52=$AS$39,IF($AS41="","",$AS41),IF($C$52=$AT$39,IF($AT41="","",$AT41),IF($C$52=$AU$39,IF($AU41="","",$AU41),IF($C$52=$AV$39,IF($AV41="","",$AV41),IF($C$52=$AW$39,IF($AW41="","",$AW41),IF($C$52=$AX$39,IF($AX41="","",$AX41),IF($C$52=$AY$39,IF($AY41="","",$AY41),IF($C$52=$AZ$39,IF($AZ41="","",$AZ41),IF($C$52=$BA$39,IF($BA41="","",$BA41),IF($C$52=$BB$39,IF($BB41="","",$BB41),IF($C$52=$BC$39,IF($BC41="","",$BC41),IF($C$52=$BD$39,IF($BD41="","",$BD41),IF($C$52=$BE$39,IF($BE41="","",$BE41),IF($C$52=$BF$39,IF($BF41="","",$BF41),IF($C$52=$BG$39,IF($BG41="","",$BG41),IF($C$52=$BH$39,IF($BH41="","",$BH41),IF($C$52=$BI$39,IF($BI41="","",$BI41),IF($C$52=$BJ$39,IF($BJ41="","",$BJ41),IF($C$52=$BK$39,IF($BK41="","",$BK41),IF($C$52=$BL$39,IF($BL41="","",$BL41),IF($C$52=$BM$39,IF($BM41="","",$BM41),IF($C$52=$BN$39,IF($BN41="","",$BN41),IF($C$52=$BO$39,IF($BO41="","",$BO41),IF($C$52=$BP$39,IF($BP41="","",$BP41),IF($C$52=$BQ$39,IF($BQ41="","",$BQ41),IF($C$52=$BR$39,IF($BR41="","",$BR41),IF($C$52=$BS$39,IF($BS41="","",$BS41),"")))))))))))))))))))))))))))))))))))))))))))))))))))))))))) -> 
C55: =IF($C$52=$N$39,IF($N42="","",$N42),IF($C$52=$O$39,IF($O42="","",$O42),IF($C$52=$P$39,IF($P42="","",$P42),IF($C$52=$Q$39,IF($Q42="","",$Q42),IF($C$52=$R$39,IF($R42="","",$R42),IF($C$52=$S$39,IF($S42="","",$S42),IF($C$52=$T$39,IF($T42="","",$T42),IF($C$52=$U$39,IF($U42="","",$U42),IF($C$52=$V$39,IF($V42="","",$V42),IF($C$52=$W$39,IF($W42="","",$W42),IF($C$52=$X$39,IF($X42="","",$X42),IF($C$52=$Y$39,IF($Y42="","",$Y42),IF($C$52=$Z$39,IF($Z42="","",$Z42),IF($C$52=$AA$39,IF($AA42="","",$AA42),IF($C$52=$AB$39,IF($AB42="","",$AB42),IF($C$52=$AC$39,IF($AC42="","",$AC42),IF($C$52=$AD$39,IF($AD42="","",$AD42),IF($C$52=$AE$39,IF($AE42="","",$AE42),IF($C$52=$AF$39,IF($AF42="","",$AF42),IF($C$52=$AG$39,IF($AG42="","",$AG42),IF($C$52=$AH$39,IF($AH42="","",$AH42),IF($C$52=$AI$39,IF($AI42="","",$AI42),IF($C$52=$AJ$39,IF($AJ42="","",$AJ42),IF($C$52=$AK$39,IF($AK42="","",$AK42),IF($C$52=$AL$39,IF($AL42="","",$AL42),IF($C$52=$AM$39,IF($AM42="","",$AM42),IF($C$52=$AN$39,IF($AN42="","",$AN42),IF($C$52=$AO$39,IF($AO42="","",$AO42),IF($C$52=$AP$39,IF($AP42="","",$AP42),IF($C$52=$AQ$39,IF($AQ42="","",$AQ42),IF($C$52=$AR$39,IF($AR42="","",$AR42),IF($C$52=$AS$39,IF($AS42="","",$AS42),IF($C$52=$AT$39,IF($AT42="","",$AT42),IF($C$52=$AU$39,IF($AU42="","",$AU42),IF($C$52=$AV$39,IF($AV42="","",$AV42),IF($C$52=$AW$39,IF($AW42="","",$AW42),IF($C$52=$AX$39,IF($AX42="","",$AX42),IF($C$52=$AY$39,IF($AY42="","",$AY42),IF($C$52=$AZ$39,IF($AZ42="","",$AZ42),IF($C$52=$BA$39,IF($BA42="","",$BA42),IF($C$52=$BB$39,IF($BB42="","",$BB42),IF($C$52=$BC$39,IF($BC42="","",$BC42),IF($C$52=$BD$39,IF($BD42="","",$BD42),IF($C$52=$BE$39,IF($BE42="","",$BE42),IF($C$52=$BF$39,IF($BF42="","",$BF42),IF($C$52=$BG$39,IF($BG42="","",$BG42),IF($C$52=$BH$39,IF($BH42="","",$BH42),IF($C$52=$BI$39,IF($BI42="","",$BI42),IF($C$52=$BJ$39,IF($BJ42="","",$BJ42),IF($C$52=$BK$39,IF($BK42="","",$BK42),IF($C$52=$BL$39,IF($BL42="","",$BL42),IF($C$52=$BM$39,IF($BM42="","",$BM42),IF($C$52=$BN$39,IF($BN42="","",$BN42),IF($C$52=$BO$39,IF($BO42="","",$BO42),IF($C$52=$BP$39,IF($BP42="","",$BP42),IF($C$52=$BQ$39,IF($BQ42="","",$BQ42),IF($C$52=$BR$39,IF($BR42="","",$BR42),IF($C$52=$BS$39,IF($BS42="","",$BS42),"")))))))))))))))))))))))))))))))))))))))))))))))))))))))))) ->  | N55: Mattbestruket | O55: Obestruket | U55: Brevpapper_Variant_1 | V55: Brevpapper_Variant_2 | W55: Brevpapper_Variant_3 | X55: Brevpapper_Variant_4 | Y55: Brevpapper_Variant_5 | Z55: Brevpapper_Variant_6 | AA55: Brevpapper_Variant_7 | AB55: Brevpapper_Variant_8 | AC55: Brevpapper_Variant_9 | AD55: Kuvert_Variant_1 | AE55: Kuvert_Variant_2 | AF55: Kuvert_Variant_3 | AG55: Kuvert_Variant_4 | AH55: Kuvert_Variant_5 | AI55: Kuvert_Variant_6 | AJ55: Kuvert_Variant_7 | AK55: Kuvert_Variant_8 | AL55: Säkerhetskuvert_Variant_1 | AM55: Säkerhetskuvert_Variant_2 | AN55: Säkerhetskuvert_Variant_3 | AO55: Säkerhetskuvert_Variant_4 | AP55: Korrespondenskort_Variant_1 | AQ55: Korrespondenskort_Variant_2 | AR55: Korrespondenskort_Variant_3 | AS55: Korrespondenskort_Variant_4 | AT55: Korrespondenskort_Variant_5 | AU55: Korrespondenskort_Variant_6 | AV55: Pappersmappar_Variant_1 | AW55: Pappersmappar_Variant_2 | AX55: Pappersmappar_Variant_3 | AY55: Pappersmappar_Variant_4
C56: =IF($C$52=$N$39,IF($N43="","",$N43),IF($C$52=$O$39,IF($O43="","",$O43),IF($C$52=$P$39,IF($P43="","",$P43),IF($C$52=$Q$39,IF($Q43="","",$Q43),IF($C$52=$R$39,IF($R43="","",$R43),IF($C$52=$S$39,IF($S43="","",$S43),IF($C$52=$T$39,IF($T43="","",$T43),IF($C$52=$U$39,IF($U43="","",$U43),IF($C$52=$V$39,IF($V43="","",$V43),IF($C$52=$W$39,IF($W43="","",$W43),IF($C$52=$X$39,IF($X43="","",$X43),IF($C$52=$Y$39,IF($Y43="","",$Y43),IF($C$52=$Z$39,IF($Z43="","",$Z43),IF($C$52=$AA$39,IF($AA43="","",$AA43),IF($C$52=$AB$39,IF($AB43="","",$AB43),IF($C$52=$AC$39,IF($AC43="","",$AC43),IF($C$52=$AD$39,IF($AD43="","",$AD43),IF($C$52=$AE$39,IF($AE43="","",$AE43),IF($C$52=$AF$39,IF($AF43="","",$AF43),IF($C$52=$AG$39,IF($AG43="","",$AG43),IF($C$52=$AH$39,IF($AH43="","",$AH43),IF($C$52=$AI$39,IF($AI43="","",$AI43),IF($C$52=$AJ$39,IF($AJ43="","",$AJ43),IF($C$52=$AK$39,IF($AK43="","",$AK43),IF($C$52=$AL$39,IF($AL43="","",$AL43),IF($C$52=$AM$39,IF($AM43="","",$AM43),IF($C$52=$AN$39,IF($AN43="","",$AN43),IF($C$52=$AO$39,IF($AO43="","",$AO43),IF($C$52=$AP$39,IF($AP43="","",$AP43),IF($C$52=$AQ$39,IF($AQ43="","",$AQ43),IF($C$52=$AR$39,IF($AR43="","",$AR43),IF($C$52=$AS$39,IF($AS43="","",$AS43),IF($C$52=$AT$39,IF($AT43="","",$AT43),IF($C$52=$AU$39,IF($AU43="","",$AU43),IF($C$52=$AV$39,IF($AV43="","",$AV43),IF($C$52=$AW$39,IF($AW43="","",$AW43),IF($C$52=$AX$39,IF($AX43="","",$AX43),IF($C$52=$AY$39,IF($AY43="","",$AY43),IF($C$52=$AZ$39,IF($AZ43="","",$AZ43),IF($C$52=$BA$39,IF($BA43="","",$BA43),IF($C$52=$BB$39,IF($BB43="","",$BB43),IF($C$52=$BC$39,IF($BC43="","",$BC43),IF($C$52=$BD$39,IF($BD43="","",$BD43),IF($C$52=$BE$39,IF($BE43="","",$BE43),IF($C$52=$BF$39,IF($BF43="","",$BF43),IF($C$52=$BG$39,IF($BG43="","",$BG43),IF($C$52=$BH$39,IF($BH43="","",$BH43),IF($C$52=$BI$39,IF($BI43="","",$BI43),IF($C$52=$BJ$39,IF($BJ43="","",$BJ43),IF($C$52=$BK$39,IF($BK43="","",$BK43),IF($C$52=$BL$39,IF($BL43="","",$BL43),IF($C$52=$BM$39,IF($BM43="","",$BM43),IF($C$52=$BN$39,IF($BN43="","",$BN43),IF($C$52=$BO$39,IF($BO43="","",$BO43),IF($C$52=$BP$39,IF($BP43="","",$BP43),IF($C$52=$BQ$39,IF($BQ43="","",$BQ43),IF($C$52=$BR$39,IF($BR43="","",$BR43),IF($C$52=$BS$39,IF($BS43="","",$BS43),"")))))))))))))))))))))))))))))))))))))))))))))))))))))))))) ->  | N56: 1+0 (svart) | O56: 1+0 (svart) | U56: ´(4+4) (logotyp och adressinfo etc.) | V56: ´(4+4) (logotyp och adressinfo etc.) | W56: ´(4+4) (logotyp och adressinfo etc.) | X56: ´(4+1) (logotyp och adressinfo etc.) | Y56: ´(4+1) (logotyp och adressinfo etc.) | Z56: ´(4+1) (logotyp och adressinfo etc.) | AA56: ´(1+0) (logotyp och adressinfo etc.) | AB56: ´(1+0) (logotyp och adressinfo etc.) | AC56: ´(1+0) (logotyp och adressinfo etc.) | AD56: Tryck ´4+4 | AE56: Tryck ´4+4 | AF56: Tryck ´4+4 | AG56: Tryck ´4+4 | AH56: Tryck ´4+4 | AI56: Tryck ´4+4 | AJ56: Tryck ´4+4 | AK56: Tryck ´4+4 | AL56: Tryck ´4+4 (logotyp och adressinfo etc.) | AM56: Tryck ´4+4 (logotyp och adressinfo etc.) | AN56: Tryck ´4+4 (logotyp och adressinfo etc.) | AO56: Tryck ´4+4 (logotyp och adressinfo etc.) | AP56: Tryck ´4+0 (logotyp och adressinfo på kort och kuvert etc.) | AQ56: Tryck ´4+0 (logotyp och adressinfo på kort och kuvert etc.) | AR56: Tryck ´4+0 (logotyp och adressinfo på kort och kuvert etc.) | AS56: Tryck ´4+0 (logotyp och adressinfo på kort och kuvert etc.) | AT56: Tryck ´4+0 (logotyp och adressinfo på kort och kuvert etc.) | AU56: Tryck ´4+0 (logotyp och adressinfo på kort och kuvert etc.) | AV56: Tryck 4+0 | AW56: Tryck 4+0 | AX56: Tryck 4+0 | AY56: Tryck 4+0
C57: =IF($C$52=$N$39,IF($N44="","",$N44),IF($C$52=$O$39,IF($O44="","",$O44),IF($C$52=$P$39,IF($P44="","",$P44),IF($C$52=$Q$39,IF($Q44="","",$Q44),IF($C$52=$R$39,IF($R44="","",$R44),IF($C$52=$S$39,IF($S44="","",$S44),IF($C$52=$T$39,IF($T44="","",$T44),IF($C$52=$U$39,IF($U44="","",$U44),IF($C$52=$V$39,IF($V44="","",$V44),IF($C$52=$W$39,IF($W44="","",$W44),IF($C$52=$X$39,IF($X44="","",$X44),IF($C$52=$Y$39,IF($Y44="","",$Y44),IF($C$52=$Z$39,IF($Z44="","",$Z44),IF($C$52=$AA$39,IF($AA44="","",$AA44),IF($C$52=$AB$39,IF($AB44="","",$AB44),IF($C$52=$AC$39,IF($AC44="","",$AC44),IF($C$52=$AD$39,IF($AD44="","",$AD44),IF($C$52=$AE$39,IF($AE44="","",$AE44),IF($C$52=$AF$39,IF($AF44="","",$AF44),IF($C$52=$AG$39,IF($AG44="","",$AG44),IF($C$52=$AH$39,IF($AH44="","",$AH44),IF($C$52=$AI$39,IF($AI44="","",$AI44),IF($C$52=$AJ$39,IF($AJ44="","",$AJ44),IF($C$52=$AK$39,IF($AK44="","",$AK44),IF($C$52=$AL$39,IF($AL44="","",$AL44),IF($C$52=$AM$39,IF($AM44="","",$AM44),IF($C$52=$AN$39,IF($AN44="","",$AN44),IF($C$52=$AO$39,IF($AO44="","",$AO44),IF($C$52=$AP$39,IF($AP44="","",$AP44),IF($C$52=$AQ$39,IF($AQ44="","",$AQ44),IF($C$52=$AR$39,IF($AR44="","",$AR44),IF($C$52=$AS$39,IF($AS44="","",$AS44),IF($C$52=$AT$39,IF($AT44="","",$AT44),IF($C$52=$AU$39,IF($AU44="","",$AU44),IF($C$52=$AV$39,IF($AV44="","",$AV44),IF($C$52=$AW$39,IF($AW44="","",$AW44),IF($C$52=$AX$39,IF($AX44="","",$AX44),IF($C$52=$AY$39,IF($AY44="","",$AY44),IF($C$52=$AZ$39,IF($AZ44="","",$AZ44),IF($C$52=$BA$39,IF($BA44="","",$BA44),IF($C$52=$BB$39,IF($BB44="","",$BB44),IF($C$52=$BC$39,IF($BC44="","",$BC44),IF($C$52=$BD$39,IF($BD44="","",$BD44),IF($C$52=$BE$39,IF($BE44="","",$BE44),IF($C$52=$BF$39,IF($BF44="","",$BF44),IF($C$52=$BG$39,IF($BG44="","",$BG44),IF($C$52=$BH$39,IF($BH44="","",$BH44),IF($C$52=$BI$39,IF($BI44="","",$BI44),IF($C$52=$BJ$39,IF($BJ44="","",$BJ44),IF($C$52=$BK$39,IF($BK44="","",$BK44),IF($C$52=$BL$39,IF($BL44="","",$BL44),IF($C$52=$BM$39,IF($BM44="","",$BM44),IF($C$52=$BN$39,IF($BN44="","",$BN44),IF($C$52=$BO$39,IF($BO44="","",$BO44),IF($C$52=$BP$39,IF($BP44="","",$BP44),IF($C$52=$BQ$39,IF($BQ44="","",$BQ44),IF($C$52=$BR$39,IF($BR44="","",$BR44),IF($C$52=$BS$39,IF($BS44="","",$BS44),"")))))))))))))))))))))))))))))))))))))))))))))))))))))))))) ->  | N57: 1+1 (svart) | O57: 1+1 (svart) | AD57: Tryck ´4+0 | AE57: Tryck ´4+0 | AF57: Tryck ´4+0 | AG57: Tryck ´4+0 | AH57: Tryck ´4+0 | AI57: Tryck ´4+0 | AJ57: Tryck ´4+0 | AK57: Tryck ´4+0 | AL57: Tryck ´4+0 (logotyp och adressinfo etc.) | AM57: Tryck ´4+0 (logotyp och adressinfo etc.) | AN57: Tryck ´4+0 (logotyp och adressinfo etc.) | AO57: Tryck ´4+0 (logotyp och adressinfo etc.) | AP57: Tryck ´1+0 (logotyp och adressinfo på kort och kuvert etc.) (svart) | AQ57: Tryck ´1+0 (logotyp och adressinfo på kort och kuvert etc.) (svart) | AR57: Tryck ´1+0 (logotyp och adressinfo på kort och kuvert etc.) (svart) | AS57: Tryck ´1+0 (logotyp och adressinfo på kort och kuvert etc.) (svart) | AT57: Tryck ´1+0 (logotyp och adressinfo på kort och kuvert etc.) (svart) | AU57: Tryck ´1+0 (logotyp och adressinfo på kort och kuvert etc.) (svart) | AV57: Tryck 4+1 där budskap placeras på mappens insida | AW57: Tryck 4+1 där budskap placeras på mappens insida | AX57: Tryck 4+1 där budskap placeras på mappens insida | AY57: Tryck 4+1 där budskap placeras på mappens insida
C58: =IF($C$52=$N$39,IF($N45="","",$N45),IF($C$52=$O$39,IF($O45="","",$O45),IF($C$52=$P$39,IF($P45="","",$P45),IF($C$52=$Q$39,IF($Q45="","",$Q45),IF($C$52=$R$39,IF($R45="","",$R45),IF($C$52=$S$39,IF($S45="","",$S45),IF($C$52=$T$39,IF($T45="","",$T45),IF($C$52=$U$39,IF($U45="","",$U45),IF($C$52=$V$39,IF($V45="","",$V45),IF($C$52=$W$39,IF($W45="","",$W45),IF($C$52=$X$39,IF($X45="","",$X45),IF($C$52=$Y$39,IF($Y45="","",$Y45),IF($C$52=$Z$39,IF($Z45="","",$Z45),IF($C$52=$AA$39,IF($AA45="","",$AA45),IF($C$52=$AB$39,IF($AB45="","",$AB45),IF($C$52=$AC$39,IF($AC45="","",$AC45),IF($C$52=$AD$39,IF($AD45="","",$AD45),IF($C$52=$AE$39,IF($AE45="","",$AE45),IF($C$52=$AF$39,IF($AF45="","",$AF45),IF($C$52=$AG$39,IF($AG45="","",$AG45),IF($C$52=$AH$39,IF($AH45="","",$AH45),IF($C$52=$AI$39,IF($AI45="","",$AI45),IF($C$52=$AJ$39,IF($AJ45="","",$AJ45),IF($C$52=$AK$39,IF($AK45="","",$AK45),IF($C$52=$AL$39,IF($AL45="","",$AL45),IF($C$52=$AM$39,IF($AM45="","",$AM45),IF($C$52=$AN$39,IF($AN45="","",$AN45),IF($C$52=$AO$39,IF($AO45="","",$AO45),IF($C$52=$AP$39,IF($AP45="","",$AP45),IF($C$52=$AQ$39,IF($AQ45="","",$AQ45),IF($C$52=$AR$39,IF($AR45="","",$AR45),IF($C$52=$AS$39,IF($AS45="","",$AS45),IF($C$52=$AT$39,IF($AT45="","",$AT45),IF($C$52=$AU$39,IF($AU45="","",$AU45),IF($C$52=$AV$39,IF($AV45="","",$AV45),IF($C$52=$AW$39,IF($AW45="","",$AW45),IF($C$52=$AX$39,IF($AX45="","",$AX45),IF($C$52=$AY$39,IF($AY45="","",$AY45),IF($C$52=$BA$39,IF($BA45="","",$BA45),IF($C$52=$BB$39,IF($BB45="","",$BB45),IF($C$52=$BC$39,IF($BC45="","",$BC45),IF($C$52=$BD$39,IF($BD45="","",$BD45),IF($C$52=$BE$39,IF($BE45="","",$BE45),IF($C$52=$BF$39,IF($BF45="","",$BF45),IF($C$52=$BG$39,IF($BG45="","",$BG45),IF($C$52=$BH$39,IF($BH45="","",$BH45),IF($C$52=$BI$39,IF($BI45="","",$BI45),IF($C$52=$BJ$39,IF($BJ45="","",$BJ45),IF($C$52=$BK$39,IF($BK45="","",$BK45),IF($C$52=$BL$39,IF($BL45="","",$BL45),IF($C$52=$BM$39,IF($BM45="","",$BM45),IF($C$52=$BN$39,IF($BN45="","",$BN45),IF($C$52=$BO$39,IF($BO45="","",$BO45),IF($C$52=$BP$39,IF($BP45="","",$BP45),IF($C$52=$BQ$39,IF($BQ45="","",$BQ45),IF($C$52=$BR$39,IF($BR45="","",$BR45),IF($C$52=$BS$39,IF($BS45="","",$BS45),""))))))))))))))))))))))))))))))))))))))))))))))))))))))))) ->  | N58: 4+0 | O58: 4+0 | AD58: Tryck ´1+0 | AE58: Tryck ´1+0 | AF58: Tryck ´1+0 | AG58: Tryck ´1+0 | AH58: Tryck ´1+0 | AI58: Tryck ´1+0 | AJ58: Tryck ´1+0 | AK58: Tryck ´1+0
C59: =IF($C$52=$N$39,IF($N46="","",$N46),IF($C$52=$O$39,IF($O46="","",$O46),IF($C$52=$P$39,IF($P46="","",$P46),IF($C$52=$Q$39,IF($Q46="","",$Q46),IF($C$52=$R$39,IF($R46="","",$R46),IF($C$52=$S$39,IF($S46="","",$S46),IF($C$52=$T$39,IF($T46="","",$T46),IF($C$52=$U$39,IF($U46="","",$U46),IF($C$52=$V$39,IF($V46="","",$V46),IF($C$52=$W$39,IF($W46="","",$W46),IF($C$52=$X$39,IF($X46="","",$X46),IF($C$52=$Y$39,IF($Y46="","",$Y46),IF($C$52=$Z$39,IF($Z46="","",$Z46),IF($C$52=$AA$39,IF($AA46="","",$AA46),IF($C$52=$AB$39,IF($AB46="","",$AB46),IF($C$52=$AC$39,IF($AC46="","",$AC46),IF($C$52=$AD$39,IF($AD46="","",$AD46),IF($C$52=$AE$39,IF($AE46="","",$AE46),IF($C$52=$AF$39,IF($AF46="","",$AF46),IF($C$52=$AG$39,IF($AG46="","",$AG46),IF($C$52=$AH$39,IF($AH46="","",$AH46),IF($C$52=$AI$39,IF($AI46="","",$AI46),IF($C$52=$AJ$39,IF($AJ46="","",$AJ46),IF($C$52=$AK$39,IF($AK46="","",$AK46),IF($C$52=$AL$39,IF($AL46="","",$AL46),IF($C$52=$AM$39,IF($AM46="","",$AM46),IF($C$52=$AN$39,IF($AN46="","",$AN46),IF($C$52=$AO$39,IF($AO46="","",$AO46),IF($C$52=$AP$39,IF($AP46="","",$AP46),IF($C$52=$AQ$39,IF($AQ46="","",$AQ46),IF($C$52=$AR$39,IF($AR46="","",$AR46),IF($C$52=$AS$39,IF($AS46="","",$AS46),IF($C$52=$AT$39,IF($AT46="","",$AT46),IF($C$52=$AU$39,IF($AU46="","",$AU46),IF($C$52=$AV$39,IF($AV46="","",$AV46),IF($C$52=$AW$39,IF($AW46="","",$AW46),IF($C$52=$AX$39,IF($AX46="","",$AX46),IF($C$52=$AY$39,IF($AY46="","",$AY46),IF($C$52=$BA$39,IF($BA46="","",$BA46),IF($C$52=$BB$39,IF($BB46="","",$BB46),IF($C$52=$BC$39,IF($BC46="","",$BC46),IF($C$52=$BD$39,IF($BD46="","",$BD46),IF($C$52=$BE$39,IF($BE46="","",$BE46),IF($C$52=$BF$39,IF($BF46="","",$BF46),IF($C$52=$BG$39,IF($BG46="","",$BG46),IF($C$52=$BH$39,IF($BH46="","",$BH46),IF($C$52=$BI$39,IF($BI46="","",$BI46),IF($C$52=$BJ$39,IF($BJ46="","",$BJ46),IF($C$52=$BK$39,IF($BK46="","",$BK46),IF($C$52=$BL$39,IF($BL46="","",$BL46),IF($C$52=$BM$39,IF($BM46="","",$BM46),IF($C$52=$BN$39,IF($BN46="","",$BN46),IF($C$52=$BO$39,IF($BO46="","",$BO46),IF($C$52=$BP$39,IF($BP46="","",$BP46),IF($C$52=$BQ$39,IF($BQ46="","",$BQ46),IF($C$52=$BR$39,IF($BR46="","",$BR46),IF($C$52=$BS$39,IF($BS46="","",$BS46),""))))))))))))))))))))))))))))))))))))))))))))))))))))))))) ->  | N59: 4+4 | O59: 4+4
C60: =IF($C$52=$N$39,IF($N47="","",$N47),IF($C$52=$O$39,IF($O47="","",$O47),IF($C$52=$P$39,IF($P47="","",$P47),IF($C$52=$Q$39,IF($Q47="","",$Q47),IF($C$52=$R$39,IF($R47="","",$R47),IF($C$52=$S$39,IF($S47="","",$S47),IF($C$52=$T$39,IF($T47="","",$T47),IF($C$52=$U$39,IF($U47="","",$U47),IF($C$52=$V$39,IF($V47="","",$V47),IF($C$52=$W$39,IF($W47="","",$W47),IF($C$52=$X$39,IF($X47="","",$X47),IF($C$52=$Y$39,IF($Y47="","",$Y47),IF($C$52=$Z$39,IF($Z47="","",$Z47),IF($C$52=$AA$39,IF($AA47="","",$AA47),IF($C$52=$AB$39,IF($AB47="","",$AB47),IF($C$52=$AC$39,IF($AC47="","",$AC47),IF($C$52=$AD$39,IF($AD47="","",$AD47),IF($C$52=$AE$39,IF($AE47="","",$AE47),IF($C$52=$AF$39,IF($AF47="","",$AF47),IF($C$52=$AG$39,IF($AG47="","",$AG47),IF($C$52=$AH$39,IF($AH47="","",$AH47),IF($C$52=$AI$39,IF($AI47="","",$AI47),IF($C$52=$AJ$39,IF($AJ47="","",$AJ47),IF($C$52=$AK$39,IF($AK47="","",$AK47),IF($C$52=$AL$39,IF($AL47="","",$AL47),IF($C$52=$AM$39,IF($AM47="","",$AM47),IF($C$52=$AN$39,IF($AN47="","",$AN47),IF($C$52=$AO$39,IF($AO47="","",$AO47),IF($C$52=$AP$39,IF($AP47="","",$AP47),IF($C$52=$AQ$39,IF($AQ47="","",$AQ47),IF($C$52=$AR$39,IF($AR47="","",$AR47),IF($C$52=$AS$39,IF($AS47="","",$AS47),IF($C$52=$AT$39,IF($AT47="","",$AT47),IF($C$52=$AU$39,IF($AU47="","",$AU47),IF($C$52=$AV$39,IF($AV47="","",$AV47),IF($C$52=$AW$39,IF($AW47="","",$AW47),IF($C$52=$AX$39,IF($AX47="","",$AX47),IF($C$52=$AY$39,IF($AY47="","",$AY47),IF($C$52=$BA$39,IF($BA47="","",$BA47),IF($C$52=$BB$39,IF($BB47="","",$BB47),IF($C$52=$BC$39,IF($BC47="","",$BC47),IF($C$52=$BD$39,IF($BD47="","",$BD47),IF($C$52=$BE$39,IF($BE47="","",$BE47),IF($C$52=$BF$39,IF($BF47="","",$BF47),IF($C$52=$BG$39,IF($BG47="","",$BG47),IF($C$52=$BH$39,IF($BH47="","",$BH47),IF($C$52=$BI$39,IF($BI47="","",$BI47),IF($C$52=$BJ$39,IF($BJ47="","",$BJ47),IF($C$52=$BK$39,IF($BK47="","",$BK47),IF($C$52=$BL$39,IF($BL47="","",$BL47),IF($C$52=$BM$39,IF($BM47="","",$BM47),IF($C$52=$BN$39,IF($BN47="","",$BN47),IF($C$52=$BO$39,IF($BO47="","",$BO47),IF($C$52=$BP$39,IF($BP47="","",$BP47),IF($C$52=$BQ$39,IF($BQ47="","",$BQ47),IF($C$52=$BR$39,IF($BR47="","",$BR47),IF($C$52=$BS$39,IF($BS47="","",$BS47),""))))))))))))))))))))))))))))))))))))))))))))))))))))))))) ->  | N60: 2+0 (svart + PMS) | O60: 2+0 (svart + PMS)
C61: =IF($C$52=$N$39,IF($N48="","",$N48),IF($C$52=$O$39,IF($O48="","",$O48),IF($C$52=$P$39,IF($P48="","",$P48),IF($C$52=$Q$39,IF($Q48="","",$Q48),IF($C$52=$R$39,IF($R48="","",$R48),IF($C$52=$S$39,IF($S48="","",$S48),IF($C$52=$T$39,IF($T48="","",$T48),IF($C$52=$U$39,IF($U48="","",$U48),IF($C$52=$V$39,IF($V48="","",$V48),IF($C$52=$W$39,IF($W48="","",$W48),IF($C$52=$X$39,IF($X48="","",$X48),IF($C$52=$Y$39,IF($Y48="","",$Y48),IF($C$52=$Z$39,IF($Z48="","",$Z48),IF($C$52=$AA$39,IF($AA48="","",$AA48),IF($C$52=$AB$39,IF($AB48="","",$AB48),IF($C$52=$AC$39,IF($AC48="","",$AC48),IF($C$52=$AD$39,IF($AD48="","",$AD48),IF($C$52=$AE$39,IF($AE48="","",$AE48),IF($C$52=$AF$39,IF($AF48="","",$AF48),IF($C$52=$AG$39,IF($AG48="","",$AG48),IF($C$52=$AH$39,IF($AH48="","",$AH48),IF($C$52=$AI$39,IF($AI48="","",$AI48),IF($C$52=$AJ$39,IF($AJ48="","",$AJ48),IF($C$52=$AK$39,IF($AK48="","",$AK48),IF($C$52=$AL$39,IF($AL48="","",$AL48),IF($C$52=$AM$39,IF($AM48="","",$AM48),IF($C$52=$AN$39,IF($AN48="","",$AN48),IF($C$52=$AO$39,IF($AO48="","",$AO48),IF($C$52=$AP$39,IF($AP48="","",$AP48),IF($C$52=$AQ$39,IF($AQ48="","",$AQ48),IF($C$52=$AR$39,IF($AR48="","",$AR48),IF($C$52=$AS$39,IF($AS48="","",$AS48),IF($C$52=$AT$39,IF($AT48="","",$AT48),IF($C$52=$AU$39,IF($AU48="","",$AU48),IF($C$52=$AV$39,IF($AV48="","",$AV48),IF($C$52=$AW$39,IF($AW48="","",$AW48),IF($C$52=$AX$39,IF($AX48="","",$AX48),IF($C$52=$AY$39,IF($AY48="","",$AY48),IF($C$52=$BA$39,IF($BA48="","",$BA48),IF($C$52=$BB$39,IF($BB48="","",$BB48),IF($C$52=$BC$39,IF($BC48="","",$BC48),IF($C$52=$BD$39,IF($BD48="","",$BD48),IF($C$52=$BE$39,IF($BE48="","",$BE48),IF($C$52=$BF$39,IF($BF48="","",$BF48),IF($C$52=$BG$39,IF($BG48="","",$BG48),IF($C$52=$BH$39,IF($BH48="","",$BH48),IF($C$52=$BI$39,IF($BI48="","",$BI48),IF($C$52=$BJ$39,IF($BJ48="","",$BJ48),IF($C$52=$BK$39,IF($BK48="","",$BK48),IF($C$52=$BL$39,IF($BL48="","",$BL48),IF($C$52=$BM$39,IF($BM48="","",$BM48),IF($C$52=$BN$39,IF($BN48="","",$BN48),IF($C$52=$BO$39,IF($BO48="","",$BO48),IF($C$52=$BP$39,IF($BP48="","",$BP48),IF($C$52=$BQ$39,IF($BQ48="","",$BQ48),IF($C$52=$BR$39,IF($BR48="","",$BR48),IF($C$52=$BS$39,IF($BS48="","",$BS48),""))))))))))))))))))))))))))))))))))))))))))))))))))))))))) ->  | N61: 2+0 (svart + PMS) | O61: 2+2 (svart + PMS)
B63: Välj Vara/Tjänst 4 | C63: Välj variant | D63: =IF($B$64=$N$20,IF($N$21="","",$N21),IF($B$64=$O$20,IF($O$21="","",$O21),IF($B$64=$P$20,IF($P$21="","",$P21),IF($B$64=$Q$20,IF($Q$21="","",$Q21),IF($B$64=$R$20,IF($R$21="","",$R21),IF($B$64=$S$20,IF($S$21="","",$S21),"")))))) ->  | E63: =IF($B$64=$U$20,IF($U$21="","",$U21),IF($B$64=$V$20,IF($V$21="","",$V21),IF($B$64=$W$20,IF($W$21="","",$W21),IF($B$64=$X$20,IF($X$21="","",$X21),"")))) ->  | F63: =IF($B$64=$Z$20,IF($Z$21="","",$Z21),IF($B$64=$AA$20,IF($AA$21="","",$AA21),IF($B$64=$AB$20,IF($AB$21="","",$AB21),IF($B$64=$AC$20,IF($AC$21="","",$AC21),IF($B$64=$AD$20,IF($AD$21="","",$AD21),IF($B$64=$AE$20,IF($AE$21="","",$AE21),IF($B$64=$AF$20,IF($AF$21="","",$AF21),IF($B$64=$AG$20,IF($AG$21="","",$AG21),IF($B$64=$AH$20,IF($AH$21="","",$AH21),IF($B$64=$AI$20,IF($AI$21="","",$AI21),IF($B$64=$AJ$20,IF($AJ$21="","",$AJ21),IF($B$64=$AK$20,IF($AK$21="","",$AK21),IF($B$64=$AL$20,IF($AL$21="","",$AL21),IF($B$64=$AM$20,IF($AM$21="","",$AM21),IF($B$64=$AN$20,IF($AN$21="","",$AN21),""))))))))))))))) ->  | G63: =IF($B$64=$N$65,IF($N66="","",$N66),"") -> 
B65: =IF($B$64=$N$25,IF($N26="","",$N26),IF($B$64=$O$25,IF($O26="","",$O26),IF($B$64=$P$25,IF($P26="","",$P26),IF($B$64=$Q$25,IF($Q26="","",$Q26),IF($B$64=$R$25,IF($R26="","",$R26),IF($B$64=$S$25,IF($S26="","",$S26),IF($B$64=$T$25,IF($T26="","",$T26),IF($B$64=$U$25,IF($U26="","",$U26),IF($B$64=$V$25,IF($V26="","",$V26),IF($B$64=$W$25,IF($W26="","",$W26),IF($B$64=$X$25,IF($X26="","",$X26),IF($B$64=$Y$25,IF($Y26="","",$Y26),IF($B$64=$Z$25,IF($Z26="","",$Z26),""))))))))))))) ->  | C65: =IF($C$64=$N$39,IF($N40="","",$N40),IF($C$64=$O$39,IF($O40="","",$O40),IF($C$64=$P$39,IF($P40="","",$P40),IF($C$64=$Q$39,IF($Q40="","",$Q40),IF($C$64=$R$39,IF($R40="","",$R40),IF($C$64=$S$39,IF($S40="","",$S40),IF($C$64=$T$39,IF($T40="","",$T40),IF($C$64=$U$39,IF($U40="","",$U40),IF($C$64=$V$39,IF($V40="","",$V40),IF($C$64=$W$39,IF($W40="","",$W40),IF($C$64=$X$39,IF($X40="","",$X40),IF($C$64=$Y$39,IF($Y40="","",$Y40),IF($C$64=$Z$39,IF($Z40="","",$Z40),IF($C$64=$AA$39,IF($AA40="","",$AA40),IF($C$64=$AB$39,IF($AB40="","",$AB40),IF($C$64=$AC$39,IF($AC40="","",$AC40),IF($C$64=$AD$39,IF($AD40="","",$AD40),IF($C$64=$AE$39,IF($AE40="","",$AE40),IF($C$64=$AF$39,IF($AF40="","",$AF40),IF($C$64=$AG$39,IF($AG40="","",$AG40),IF($C$64=$AH$39,IF($AH40="","",$AH40),IF($C$64=$AI$39,IF($AI40="","",$AI40),IF($C$64=$AJ$39,IF($AJ40="","",$AJ40),IF($C$64=$AK$39,IF($AK40="","",$AK40),IF($C$64=$AL$39,IF($AL40="","",$AL40),IF($C$64=$AM$39,IF($AM40="","",$AM40),IF($C$64=$AN$39,IF($AN40="","",$AN40),IF($C$64=$AO$39,IF($AO40="","",$AO40),IF($C$64=$AP$39,IF($AP40="","",$AP40),IF($C$64=$AQ$39,IF($AQ40="","",$AQ40),IF($C$64=$AR$39,IF($AR40="","",$AR40),IF($C$64=$AS$39,IF($AS40="","",$AS40),IF($C$64=$AT$39,IF($AT40="","",$AT40),IF($C$64=$AU$39,IF($AU40="","",$AU40),IF($C$64=$AV$39,IF($AV40="","",$AV40),IF($C$64=$AW$39,IF($AW40="","",$AW40),IF($C$64=$AX$39,IF($AX40="","",$AX40),IF($C$64=$AY$39,IF($AY40="","",$AY40),IF($C$64=$AZ$39,IF($AZ40="","",$AZ40),IF($C$64=$BA$39,IF($BA40="","",$BA40),IF($C$64=$BB$39,IF($BB40="","",$BB40),IF($C$64=$BC$39,IF($BC40="","",$BC40),IF($C$64=$BD$39,IF($BD40="","",$BD40),IF($C$64=$BE$39,IF($BE40="","",$BE40),IF($C$64=$BF$39,IF($BF40="","",$BF40),IF($C$64=$BG$39,IF($BG40="","",$BG40),IF($C$64=$BH$39,IF($BH40="","",$BH40),IF($C$64=$BI$39,IF($BI40="","",$BI40),IF($C$64=$BJ$39,IF($BJ40="","",$BJ40),IF($C$64=$BK$39,IF($BK40="","",$BK40),IF($C$64=$BL$39,IF($BL40="","",$BL40),IF($C$64=$BM$39,IF($BM40="","",$BM40),IF($C$64=$BN$39,IF($BN40="","",$BN40),IF($C$64=$BO$39,IF($BO40="","",$BO40),IF($C$64=$BP$39,IF($BP40="","",$BP40),IF($C$64=$BQ$39,IF($BQ40="","",$BQ40),IF($C$64=$BR$39,IF($BR40="","",$BR40),IF($C$64=$BS$39,IF($BS40="","",$BS40),"")))))))))))))))))))))))))))))))))))))))))))))))))))))))))) ->  | N65: Visitkort
B66: =IF($B$64=$N$25,IF($N27="","",$N27),IF($B$64=$O$25,IF($O27="","",$O27),IF($B$64=$P$25,IF($P27="","",$P27),IF($B$64=$Q$25,IF($Q27="","",$Q27),IF($B$64=$R$25,IF($R27="","",$R27),IF($B$64=$S$25,IF($S27="","",$S27),IF($B$64=$T$25,IF($T27="","",$T27),IF($B$64=$U$25,IF($U27="","",$U27),IF($B$64=$V$25,IF($V27="","",$V27),IF($B$64=$W$25,IF($W27="","",$W27),IF($B$64=$X$25,IF($X27="","",$X27),IF($B$64=$Y$25,IF($Y27="","",$Y27),IF($B$64=$Z$25,IF($Z27="","",$Z27),""))))))))))))) ->  | C66: =IF($C$64=$N$39,IF($N41="","",$N41),IF($C$64=$O$39,IF($O41="","",$O41),IF($C$64=$P$39,IF($P41="","",$P41),IF($C$64=$Q$39,IF($Q41="","",$Q41),IF($C$64=$R$39,IF($R41="","",$R41),IF($C$64=$S$39,IF($S41="","",$S41),IF($C$64=$T$39,IF($T41="","",$T41),IF($C$64=$U$39,IF($U41="","",$U41),IF($C$64=$V$39,IF($V41="","",$V41),IF($C$64=$W$39,IF($W41="","",$W41),IF($C$64=$X$39,IF($X41="","",$X41),IF($C$64=$Y$39,IF($Y41="","",$Y41),IF($C$64=$Z$39,IF($Z41="","",$Z41),IF($C$64=$AA$39,IF($AA41="","",$AA41),IF($C$64=$AB$39,IF($AB41="","",$AB41),IF($C$64=$AC$39,IF($AC41="","",$AC41),IF($C$64=$AD$39,IF($AD41="","",$AD41),IF($C$64=$AE$39,IF($AE41="","",$AE41),IF($C$64=$AF$39,IF($AF41="","",$AF41),IF($C$64=$AG$39,IF($AG41="","",$AG41),IF($C$64=$AH$39,IF($AH41="","",$AH41),IF($C$64=$AI$39,IF($AI41="","",$AI41),IF($C$64=$AJ$39,IF($AJ41="","",$AJ41),IF($C$64=$AK$39,IF($AK41="","",$AK41),IF($C$64=$AL$39,IF($AL41="","",$AL41),IF($C$64=$AM$39,IF($AM41="","",$AM41),IF($C$64=$AN$39,IF($AN41="","",$AN41),IF($C$64=$AO$39,IF($AO41="","",$AO41),IF($C$64=$AP$39,IF($AP41="","",$AP41),IF($C$64=$AQ$39,IF($AQ41="","",$AQ41),IF($C$64=$AR$39,IF($AR41="","",$AR41),IF($C$64=$AS$39,IF($AS41="","",$AS41),IF($C$64=$AT$39,IF($AT41="","",$AT41),IF($C$64=$AU$39,IF($AU41="","",$AU41),IF($C$64=$AV$39,IF($AV41="","",$AV41),IF($C$64=$AW$39,IF($AW41="","",$AW41),IF($C$64=$AX$39,IF($AX41="","",$AX41),IF($C$64=$AY$39,IF($AY41="","",$AY41),IF($C$64=$AZ$39,IF($AZ41="","",$AZ41),IF($C$64=$BA$39,IF($BA41="","",$BA41),IF($C$64=$BB$39,IF($BB41="","",$BB41),IF($C$64=$BC$39,IF($BC41="","",$BC41),IF($C$64=$BD$39,IF($BD41="","",$BD41),IF($C$64=$BE$39,IF($BE41="","",$BE41),IF($C$64=$BF$39,IF($BF41="","",$BF41),IF($C$64=$BG$39,IF($BG41="","",$BG41),IF($C$64=$BH$39,IF($BH41="","",$BH41),IF($C$64=$BI$39,IF($BI41="","",$BI41),IF($C$64=$BJ$39,IF($BJ41="","",$BJ41),IF($C$64=$BK$39,IF($BK41="","",$BK41),IF($C$64=$BL$39,IF($BL41="","",$BL41),IF($C$64=$BM$39,IF($BM41="","",$BM41),IF($C$64=$BN$39,IF($BN41="","",$BN41),IF($C$64=$BO$39,IF($BO41="","",$BO41),IF($C$64=$BP$39,IF($BP41="","",$BP41),IF($C$64=$BQ$39,IF($BQ41="","",$BQ41),IF($C$64=$BR$39,IF($BR41="","",$BR41),IF($C$64=$BS$39,IF($BS41="","",$BS41),"")))))))))))))))))))))))))))))))))))))))))))))))))))))))))) ->  | N66: Antal
N69: Antal
N70: 100
N71: 250
N72: 500
B75: Välj Vara/Tjänst 5 | C75: Välj variant | D75: =IF($B$76=$N$20,IF($N$21="","",$N21),IF($B$76=$O$20,IF($O$21="","",$O21),IF($B$76=$P$20,IF($P$21="","",$P21),IF($B$76=$Q$20,IF($Q$21="","",$Q21),IF($B$76=$R$20,IF($R$21="","",$R21),IF($B$76=$S$20,IF($S$21="","",$S21),"")))))) ->  | E75: =IF($B$76=$U$20,IF($U$21="","",$U21),IF($B$76=$V$20,IF($V$21="","",$V21),IF($B$76=$W$20,IF($W$21="","",$W21),IF($B$76=$X$20,IF($X$21="","",$X21),"")))) ->  | F75: =IF($B$76=$Z$20,IF($Z$21="","",$Z21),IF($B$76=$AA$20,IF($AA$21="","",$AA21),IF($B$76=$AB$20,IF($AB$21="","",$AB21),IF($B$76=$AC$20,IF($AC$21="","",$AC21),IF($B$76=$AD$20,IF($AD$21="","",$AD21),IF($B$76=$AE$20,IF($AE$21="","",$AE21),IF($B$76=$AF$20,IF($AF$21="","",$AF21),IF($B$76=$AG$20,IF($AG$21="","",$AG21),IF($B$76=$AH$20,IF($AH$21="","",$AH21),IF($B$76=$AI$20,IF($AI$21="","",$AI21),IF($B$76=$AJ$20,IF($AJ$21="","",$AJ21),IF($B$76=$AK$20,IF($AK$21="","",$AK21),IF($B$76=$AL$20,IF($AL$21="","",$AL21),IF($B$76=$AM$20,IF($AM$21="","",$AM21),IF($B$76=$AN$20,IF($AN$21="","",$AN21),""))))))))))))))) ->  | G75: =IF($B$76=$N$65,IF($N66="","",$N66),"") ->  | N75: Fönsterplasering | P75: Kuvert
N76: V2 Fönster till vänster | P76: Fönsterplasering
B77: =IF($B$76=$N$25,IF($N26="","",$N26),IF($B$76=$O$25,IF($O26="","",$O26),IF($B$76=$P$25,IF($P26="","",$P26),IF($B$76=$Q$25,IF($Q26="","",$Q26),IF($B$76=$R$25,IF($R26="","",$R26),IF($B$76=$S$25,IF($S26="","",$S26),IF($B$76=$T$25,IF($T26="","",$T26),IF($B$76=$U$25,IF($U26="","",$U26),IF($B$76=$V$25,IF($V26="","",$V26),IF($B$76=$W$25,IF($W26="","",$W26),IF($B$76=$X$25,IF($X26="","",$X26),IF($B$76=$Y$25,IF($Y26="","",$Y26),IF($B$76=$Z$25,IF($Z26="","",$Z26),""))))))))))))) ->  | C77: =IF($C$76=$N$39,IF($N40="","",$N40),IF($C$76=$O$39,IF($O40="","",$O40),IF($C$76=$P$39,IF($P40="","",$P40),IF($C$76=$Q$39,IF($Q40="","",$Q40),IF($C$76=$R$39,IF($R40="","",$R40),IF($C$76=$S$39,IF($S40="","",$S40),IF($C$76=$T$39,IF($T40="","",$T40),IF($C$76=$U$39,IF($U40="","",$U40),IF($C$76=$V$39,IF($V40="","",$V40),IF($C$76=$W$39,IF($W40="","",$W40),IF($C$76=$X$39,IF($X40="","",$X40),IF($C$76=$Y$39,IF($Y40="","",$Y40),IF($C$76=$Z$39,IF($Z40="","",$Z40),IF($C$76=$AA$39,IF($AA40="","",$AA40),IF($C$76=$AB$39,IF($AB40="","",$AB40),IF($C$76=$AC$39,IF($AC40="","",$AC40),IF($C$76=$AD$39,IF($AD40="","",$AD40),IF($C$76=$AE$39,IF($AE40="","",$AE40),IF($C$76=$AF$39,IF($AF40="","",$AF40),IF($C$76=$AG$39,IF($AG40="","",$AG40),IF($C$76=$AH$39,IF($AH40="","",$AH40),IF($C$76=$AI$39,IF($AI40="","",$AI40),IF($C$76=$AJ$39,IF($AJ40="","",$AJ40),IF($C$76=$AK$39,IF($AK40="","",$AK40),IF($C$76=$AL$39,IF($AL40="","",$AL40),IF($C$76=$AM$39,IF($AM40="","",$AM40),IF($C$76=$AN$39,IF($AN40="","",$AN40),IF($C$76=$AO$39,IF($AO40="","",$AO40),IF($C$76=$AP$39,IF($AP40="","",$AP40),IF($C$76=$AQ$39,IF($AQ40="","",$AQ40),IF($C$76=$AR$39,IF($AR40="","",$AR40),IF($C$76=$AS$39,IF($AS40="","",$AS40),IF($C$76=$AT$39,IF($AT40="","",$AT40),IF($C$76=$AU$39,IF($AU40="","",$AU40),IF($C$76=$AV$39,IF($AV40="","",$AV40),IF($C$76=$AW$39,IF($AW40="","",$AW40),IF($C$76=$AX$39,IF($AX40="","",$AX40),IF($C$76=$AY$39,IF($AY40="","",$AY40),IF($C$76=$AZ$39,IF($AZ40="","",$AZ40),IF($C$76=$BA$39,IF($BA40="","",$BA40),IF($C$76=$BB$39,IF($BB40="","",$BB40),IF($C$76=$BC$39,IF($BC40="","",$BC40),IF($C$76=$BD$39,IF($BD40="","",$BD40),IF($C$76=$BE$39,IF($BE40="","",$BE40),IF($C$76=$BF$39,IF($BF40="","",$BF40),IF($C$76=$BG$39,IF($BG40="","",$BG40),IF($C$76=$BH$39,IF($BH40="","",$BH40),IF($C$76=$BI$39,IF($BI40="","",$BI40),IF($C$76=$BJ$39,IF($BJ40="","",$BJ40),IF($C$76=$BK$39,IF($BK40="","",$BK40),IF($C$76=$BL$39,IF($BL40="","",$BL40),IF($C$76=$BM$39,IF($BM40="","",$BM40),IF($C$76=$BN$39,IF($BN40="","",$BN40),IF($C$76=$BO$39,IF($BO40="","",$BO40),IF($C$76=$BP$39,IF($BP40="","",$BP40),IF($C$76=$BQ$39,IF($BQ40="","",$BQ40),IF($C$76=$BR$39,IF($BR40="","",$BR40),IF($C$76=$BS$39,IF($BS40="","",$BS40),"")))))))))))))))))))))))))))))))))))))))))))))))))))))))))) ->  | N77: H2 Fönster till höger
B78: =IF($B$76=$N$25,IF($N27="","",$N27),IF($B$76=$O$25,IF($O27="","",$O27),IF($B$76=$P$25,IF($P27="","",$P27),IF($B$76=$Q$25,IF($Q27="","",$Q27),IF($B$76=$R$25,IF($R27="","",$R27),IF($B$76=$S$25,IF($S27="","",$S27),IF($B$76=$T$25,IF($T27="","",$T27),IF($B$76=$U$25,IF($U27="","",$U27),IF($B$76=$V$25,IF($V27="","",$V27),IF($B$76=$W$25,IF($W27="","",$W27),IF($B$76=$X$25,IF($X27="","",$X27),IF($B$76=$Y$25,IF($Y27="","",$Y27),IF($B$76=$Z$25,IF($Z27="","",$Z27),""))))))))))))) ->  | C78: =IF($C$76=$N$39,IF($N41="","",$N41),IF($C$76=$O$39,IF($O41="","",$O41),IF($C$76=$P$39,IF($P41="","",$P41),IF($C$76=$Q$39,IF($Q41="","",$Q41),IF($C$76=$R$39,IF($R41="","",$R41),IF($C$76=$S$39,IF($S41="","",$S41),IF($C$76=$T$39,IF($T41="","",$T41),IF($C$76=$U$39,IF($U41="","",$U41),IF($C$76=$V$39,IF($V41="","",$V41),IF($C$76=$W$39,IF($W41="","",$W41),IF($C$76=$X$39,IF($X41="","",$X41),IF($C$76=$Y$39,IF($Y41="","",$Y41),IF($C$76=$Z$39,IF($Z41="","",$Z41),IF($C$76=$AA$39,IF($AA41="","",$AA41),IF($C$76=$AB$39,IF($AB41="","",$AB41),IF($C$76=$AC$39,IF($AC41="","",$AC41),IF($C$76=$AD$39,IF($AD41="","",$AD41),IF($C$76=$AE$39,IF($AE41="","",$AE41),IF($C$76=$AF$39,IF($AF41="","",$AF41),IF($C$76=$AG$39,IF($AG41="","",$AG41),IF($C$76=$AH$39,IF($AH41="","",$AH41),IF($C$76=$AI$39,IF($AI41="","",$AI41),IF($C$76=$AJ$39,IF($AJ41="","",$AJ41),IF($C$76=$AK$39,IF($AK41="","",$AK41),IF($C$76=$AL$39,IF($AL41="","",$AL41),IF($C$76=$AM$39,IF($AM41="","",$AM41),IF($C$76=$AN$39,IF($AN41="","",$AN41),IF($C$76=$AO$39,IF($AO41="","",$AO41),IF($C$76=$AP$39,IF($AP41="","",$AP41),IF($C$76=$AQ$39,IF($AQ41="","",$AQ41),IF($C$76=$AR$39,IF($AR41="","",$AR41),IF($C$76=$AS$39,IF($AS41="","",$AS41),IF($C$76=$AT$39,IF($AT41="","",$AT41),IF($C$76=$AU$39,IF($AU41="","",$AU41),IF($C$76=$AV$39,IF($AV41="","",$AV41),IF($C$76=$AW$39,IF($AW41="","",$AW41),IF($C$76=$AX$39,IF($AX41="","",$AX41),IF($C$76=$AY$39,IF($AY41="","",$AY41),IF($C$76=$AZ$39,IF($AZ41="","",$AZ41),IF($C$76=$BA$39,IF($BA41="","",$BA41),IF($C$76=$BB$39,IF($BB41="","",$BB41),IF($C$76=$BC$39,IF($BC41="","",$BC41),IF($C$76=$BD$39,IF($BD41="","",$BD41),IF($C$76=$BE$39,IF($BE41="","",$BE41),IF($C$76=$BF$39,IF($BF41="","",$BF41),IF($C$76=$BG$39,IF($BG41="","",$BG41),IF($C$76=$BH$39,IF($BH41="","",$BH41),IF($C$76=$BI$39,IF($BI41="","",$BI41),IF($C$76=$BJ$39,IF($BJ41="","",$BJ41),IF($C$76=$BK$39,IF($BK41="","",$BK41),IF($C$76=$BL$39,IF($BL41="","",$BL41),IF($C$76=$BM$39,IF($BM41="","",$BM41),IF($C$76=$BN$39,IF($BN41="","",$BN41),IF($C$76=$BO$39,IF($BO41="","",$BO41),IF($C$76=$BP$39,IF($BP41="","",$BP41),IF($C$76=$BQ$39,IF($BQ41="","",$BQ41),IF($C$76=$BR$39,IF($BR41="","",$BR41),IF($C$76=$BS$39,IF($BS41="","",$BS41),"")))))))))))))))))))))))))))))))))))))))))))))))))))))))))) -> 
D87: Vinnande Ramavtalsleverantör: | F87: =IF(Uträkningsblad!D61>25000,"Avropet överstiger 25 000kr, använd förnyad konkurensutsättning för avrop",IF(Uträkningsblad!D61=0,"Vinnande Ramavtalsleverantör",IF(E108=1,D95,IF(E108=2,D96,IF(E108=3,D97,IF(E108=4,D98,IF(E108=5,D99,""))))))) -> Vinnande Ramavtalsleverantör
C90: =SUM(C87:C88) -> 0
D91: Totalpris exkl frakt: | F91: =Uträkningsblad!D61 -> 0
D92: Fraktkostnad: (Fylls i av ramavtalsleverantör)
D93: Totalsumma: | F93: =SUM(F91:G92) -> 0
C94: Rangordning för avropet
C95: Rangordnad 1:a | D95: =Uträkningsblad!D48 -> Ange vilken/vilka produkter och antal samt eventuella tillägg i de ljusgula rutorna på fliken avropsblankett som önskas avropas. | F95: =Uträkningsblad!I48 -> 
C96: Rangordnad 2:a | D96: =Uträkningsblad!D49 ->  | F96: =Uträkningsblad!I49 -> 
C97: Rangordnad 3:a | D97: =Uträkningsblad!D50 ->  | F97: =Uträkningsblad!I50 -> 
C98: Rangordnad 4:a | D98: =Uträkningsblad!D51 ->  | F98: =Uträkningsblad!I51 -> 
C99: Rangordnad 5:a | D99: =Uträkningsblad!D52 ->  | F99: =Uträkningsblad!I52 -> 
C100: Rangordnad 6:a | D100: =Uträkningsblad!D53 ->  | F100: =Uträkningsblad!I53 -> 
C101: Rangordnad 7:a | D101: =Uträkningsblad!D54 ->  | F101: =Uträkningsblad!I54 -> 
C102: Rangordnad 8:a | D102: =Uträkningsblad!D55 ->  | F102: =Uträkningsblad!I55 -> 
C103: Rangordnad 9:a | D103: =Uträkningsblad!D56 ->  | F103: =Uträkningsblad!I56 -> 
C104: Rangordnad 10:a | D104: =Uträkningsblad!D57 ->  | F104: =Uträkningsblad!I57 -> 
C108: Om vinnnande ramavtalsleverantör inte kan leverera, visas nästa ramavtalsleverantör i rangordningen för avropet | E108: 1
B111: Underskrift kund
B114: Datum
B117: Underskrift ramavtalsleverantör
B120: Datum

Sheet Uträkningsblad
B4: Ramavtalsleverantör | C4: Bröderna Hansson H-tryck Aktiebolag | D4: Elanders Sverige AB | E4: Exakta Print AB | F4: Kalmar Kuvert Sweden AB | G4: Ljungbergs Tryckeri i Klippan AB | H4: Scandinavian Print Group Sweden AB | I4: Stema Specialtryck AB | J4: Stibo Complete A/S | K4: Åtta.45 Tryckeri AB | L4: Leverantör 10
B5: Organisationsnr | C5: 556086-1535 | D5: 556262–1689 | E5: 556364–1595 | F5: 556547–2726 | G5: 556884–2511 | H5: 556323–6776 | I5: 556297–6497 | J5: 37120928 | K5: 556569–6068 | L5: Org nr 10
B6: Kontaktperson | C6: Sam Hansson | D6: Joachim Fabrelius | E6: Fredrik Tenggren | F6: Ulf Andersson | G6: Mikael Svensson | H6: Mikael Falkbäck | I6: Daniel Larsson | J6: Christian Johansson | K6: Jacob Fischerstrom | L6: Kontakt namn 10
B7: Telefonnummer | C7: 0433-79813 | D7: 018-480 10 32 | E7: 070-226 22 46 | F7: 070-549 19 50 | G7: 076-534 93 42 | H7: 08-554 204 32 | I7: 033-48 07 22 | J7: 0728-57 59 94 | K7: 08-55334820 | L7: Telefon nummer 10
B8: E-postadress för avrop | C8: sam@h-tryck.se | D8: Kammarkollegiet@elanders.com | E8: kamavrop@exakta.se | F8: avrop@kalmarkuvert.se | G8: avropa@ljungbergs.se | H8: kammarkollegiet@scandinavianprintgroup.se | I8: kammarkollegiet@stema.nu | J8: avrop@stibo.com | K8: kamm@atta45.se | L8: Lev10@lev.se
B9: Varor/tjänster
A10: 1 | B10: Visitkort | C10: =Visitkort!B38 -> 0 | D10: =Visitkort!F38 -> 0 | E10: =Visitkort!J38 -> 0 | F10: =Visitkort!N38 -> 0 | G10: =Visitkort!R38 -> 0 | H10: =Visitkort!V38 -> 0 | I10: =Visitkort!Z38 -> 0 | J10: =Visitkort!AD38 -> 0 | K10: =Visitkort!AH38 -> 0 | L10: =Visitkort!AL38 -> 0
B11: Prisjustering Visitkort | C11: 0 | D11: 0 | E11: 0 | F11: 0 | G11: 0 | H11: 0 | I11: 0 | J11: 0 | K11: 0 | L11: 0
A12: 2 | B12: Kuvert | C12: =Kuvert!D83 -> 0 | D12: =Kuvert!H83 -> 0 | E12: =Kuvert!L83 -> 0 | F12: =Kuvert!P83 -> 0 | G12: =Kuvert!T83 -> 0 | H12: =Kuvert!X83 -> 0 | I12: =Kuvert!AB83 -> 0 | J12: =Kuvert!AF83 -> 0 | K12: =Kuvert!AJ83 -> 0 | L12: =Kuvert!AN83 -> 0
B13: Prisjustering Kuvert | C13: 0 | D13: 0 | E13: 0 | F13: 0 | G13: 0 | H13: 0 | I13: 0 | J13: 0 | K13: 0 | L13: 0
A14: 3 | B14: Pappersmappar treklaff utan snodd | C14: =Pappersmapp!D30 -> 0 | D14: =Pappersmapp!H30 -> 0 | E14: =Pappersmapp!L30 -> 0 | F14: =Pappersmapp!P30 -> 0 | G14: =Pappersmapp!T30 -> 0 | H14: =Pappersmapp!X30 -> 0 | I14: =Pappersmapp!AB30 -> 0 | J14: =Pappersmapp!AF30 -> 0 | K14: =Pappersmapp!AJ30 -> 0 | L14: =Pappersmapp!AN30 -> 0
B15: Prisjustering Pappersmappar | C15: 0 | D15: 0 | E15: 0 | F15: 0 | G15: 0 | H15: 0 | I15: 0 | J15: 0 | K15: 0 | L15: 0
A16: 4 | B16: Folders | C16: =Folders!E52 -> 0 | D16: =Folders!J52 -> 0 | E16: =Folders!O52 -> 0 | F16: =Folders!T52 -> 0 | G16: =Folders!Y52 -> 0 | H16: =Folders!AD52 -> 0 | I16: =Folders!AI52 -> 0 | J16: =Folders!AN52 -> 0 | K16: =Folders!AS52 -> 0 | L16: =Folders!AX52 -> 0
B17: Prisjustering Folders | C17: 0 | D17: 0 | E17: 0 | F17: 0 | G17: 0 | H17: 0 | I17: 0 | J17: 0 | K17: 0 | L17: 0
A18: 5 | B18: Broschyrer | C18: =Broschyrer!E45 -> 0 | D18: =Broschyrer!J45 -> 0 | E18: =Broschyrer!O45 -> 0 | F18: =Broschyrer!T45 -> 0 | G18: =Broschyrer!Y45 -> 0 | H18: =Broschyrer!AD45 -> 0 | I18: =Broschyrer!AI45 -> 0 | J18: =Broschyrer!AN45 -> 0 | K18: =Broschyrer!AS45 -> 0 | L18: =Broschyrer!AX45 -> 0
B19: Prisjustering Broschyrer | C19: 0 | D19: 0 | E19: 0 | F19: 0 | G19: 0 | H19: 0 | I19: 0 | J19: 0 | K19: 0 | L19: 0
A20: 6 | B20: Statligt tryck | C20: ='Statligt tryck'!E31 -> 0 | D20: ='Statligt tryck'!J31 -> 0 | E20: ='Statligt tryck'!O31 -> 0 | F20: ='Statligt tryck'!T31 -> 0 | G20: ='Statligt tryck'!Y31 -> 0 | H20: ='Statligt tryck'!AD31 -> 0 | I20: ='Statligt tryck'!AI31 -> 0 | J20: ='Statligt tryck'!AN31 -> 0 | K20: ='Statligt tryck'!AS31 -> 0 | L20: ='Statligt tryck'!AX31 -> 0
B21: Prisjustering Statligt tryck | C21: 0 | D21: 0 | E21: 0 | F21: 0 | G21: 0 | H21: 0 | I21: 0 | J21: 0 | K21: 0 | L21: 0
A22: 7 | B22: Rapport | C22: =Rapport!E33 -> 0 | D22: =Rapport!J33 -> 0 | E22: =Rapport!O33 -> 0 | F22: =Rapport!T33 -> 0 | G22: =Rapport!Y33 -> 0 | H22: =Rapport!AD33 -> 0 | I22: =Rapport!AI33 -> 0 | J22: =Rapport!AN33 -> 0 | K22: =Rapport!AS33 -> 0 | L22: =Rapport!AX33 -> 0
B23: Prisjustering Rapport | C23: 0 | D23: 0 | E23: 0 | F23: 0 | G23: 0 | H23: 0 | I23: 0 | J23: 0 | K23: 0 | L23: 0
A24: 8 | B24: Katalog | C24: =Katalog!E33 -> 0 | D24: =Katalog!J33 -> 0 | E24: =Katalog!O33 -> 0 | F24: =Katalog!T33 -> 0 | G24: =Katalog!Y33 -> 0 | H24: =Katalog!AD33 -> 0 | I24: =Katalog!AI33 -> 0 | J24: =Katalog!AN33 -> 0 | K24: =Katalog!AS33 -> 0 | L24: =Katalog!AX33 -> 0
B25: Prisjustering Katalog | C25: 0 | D25: 0 | E25: 0 | F25: 0 | G25: 0 | H25: 0 | I25: 0 | J25: 0 | K25: 0 | L25: 0
A26: 9 | B26: Roll up | C26: ='Roll up'!D61 -> 0 | D26: ='Roll up'!I61 -> 0 | E26: ='Roll up'!N61 -> 0 | F26: ='Roll up'!S61 -> 0 | G26: ='Roll up'!X61 -> 0 | H26: ='Roll up'!AC61 -> 0 | I26: ='Roll up'!AH61 -> 0 | J26: ='Roll up'!AM61 -> 0 | K26: ='Roll up'!AR61 -> 0 | L26: ='Roll up'!AW61 -> 0
B27: Prisjustering Roll up | C27: 0 | D27: 0 | E27: 0 | F27: 0 | G27: 0 | H27: 0 | I27: 0 | J27: 0 | K27: 0 | L27: 0
A28: 10 | B28: Affischer | C28: =Affischer!D35 -> 0 | D28: =Affischer!I35 -> 0 | E28: =Affischer!N35 -> 0 | F28: =Affischer!S35 -> 0 | G28: =Affischer!X35 -> 0 | H28: =Affischer!AC35 -> 0 | I28: =Affischer!AH35 -> 0 | J28: =Affischer!AM35 -> 0 | K28: =Affischer!AR35 -> 0 | L28: =Affischer!AW35 -> 0
B29: Prisjustering Affischer | C29: 0 | D29: 0 | E29: 0 | F29: 0 | G29: 0 | H29: 0 | I29: 0 | J29: 0 | K29: 0 | L29: 0
A30: 11 | B30: Ateljétjänster | C30: =Ateljétjänster!B15 -> 0 | D30: =Ateljétjänster!D15 -> 0 | E30: =Ateljétjänster!F15 -> 0 | F30: =Ateljétjänster!H15 -> 0 | G30: =Ateljétjänster!J15 -> 0 | H30: =Ateljétjänster!L15 -> 0 | I30: =Ateljétjänster!N15 -> 0 | J30: =Ateljétjänster!P15 -> 0 | K30: =Ateljétjänster!R15 -> 0 | L30: =Ateljétjänster!T15 -> 0
B31: Prisjustering Ateljétjänster | C31: 0 | D31: 0 | E31: 0 | F31: 0 | G31: 0 | H31: 0 | I31: 0 | J31: 0 | K31: 0 | L31: 0
R32: 2022-04-01 | S32: 2022-04-01
R33: Basmånad | S33: Ny indexmånad
B34: Summa | C34: =SUM(C10*(1+C11),C12*(1+C13),C14*(1+C15),C16*(1+C17),C18*(1+C19),C20*(1+C21),C22*(1+C23),C24*(1+C25),C26*(1+C27),C28*(1+C29),C30*(1+C31)) -> 0 | D34: =SUM(D10*(1+D11),D12*(1+D13),D14*(1+D15),D16*(1+D17),D18*(1+D19),D20*(1+D21),D22*(1+D23),D24*(1+D25),D26*(1+D27),D28*(1+D29),D30*(1+D31)) -> 0 | E34: 0 | F34: 0 | G34: 0 | H34: 0 | I34: 0 | J34: 0 | K34: 0 | L34: 0 | R34: 134.8 | S34: 135 | T34: 25 % AKI, arbetare inom privat sektor, SNI 2007, H+J transportföretag; informations- och kommunikationsföretag (preliminära siffror). April månad 2020 ska utgöra basmånad.
R35: 151.9 | S35: 160 | T35: 25 % AKI, tjänstemän inom privat sektor, SNI 2007, H+J transportföretag; informations- och kommunikationsföretag (preliminära siffror). April månad 2020 ska utgöra basmånad.
O36: =SUM((S34/R34)*0.25+(S35/R35)*0.25+(S36/R36)*0.5)-1 -> 0.02279296788 | R36: 137.5 | S36: 140 | T36: 50 % ITPI, SPIN 2015, 17.1 Massa, papper och papp. April månad 2020 ska utgöra basmånad.
B37: Summa | C37: =C34 -> 0 | D37: =D34 -> 0 | E37: 0 | F37: 0 | G37: 0 | H37: 0 | I37: 0 | J37: 0 | K37: 0 | L37: 0
A40: Rangordning | C40: =_xlfn.RANK.EQ(C37,$C$37:$L$37,2) -> 1 | D40: 1 | E40: 1 | F40: 1 | G40: 1 | H40: 1 | I40: 1 | J40: 1 | K40: 1 | L40: 11
C41: =SUM(C40+0.09) -> 1.09 | D41: =SUM(D40+0.07) -> 1.07 | E41: =SUM(E40+0.03) -> 1.03 | F41: =SUM(F40+0.06) -> 1.06 | G41: =SUM(G40+0.04) -> 1.04 | H41: =SUM(H40+0.05) -> 1.05 | I41: =SUM(I40+0.01) -> 1.01 | J41: =SUM(J40+0.02) -> 1.02 | K41: =SUM(K40+0.08) -> 1.08 | L41: =SUM(L40+0.1) -> 11.1
C42: =_xlfn.RANK.EQ(C41,$C$41:$L$41,2) -> 9 | D42: 7 | E42: 3 | F42: 6 | G42: 4 | H42: 5 | I42: 1 | J42: 2 | K42: 8 | L42: 10
C43: =COUNTIF(C40:L40,1) -> 9
I47: Pris
A48: Rangordning för avropet | C48: 1 | D48: =IF($D$61>25000,"Avropet överstiger 25 000kr, ",IF($D$61=0,"Ange vilken/vilka produkter och antal samt eventuella tillägg i de ljusgula rutorna på fliken avropsblankett som önskas avropas.",IF($C$42=K48,$C$4,IF($D$42=K48,$D$4,IF($E$42=K48,$E$4,IF($F$42=K48,$F$4,IF($G$42=K48,$G$4,IF($H$42=K48,$H$4,IF($I$42=K48,$I$4,IF($J$42=K48,$J$4,IF($K$42=K48,$K$4,IF($L$42=K48,$L$4,"Ingen lev")))))))))))) -> Ange vilken/vilka produkter och antal samt eventuella tillägg i de ljusgula rutorna på fliken avropsblankett som önskas avropas. | I48: =IF(D61=0,"",IF(C42=1,C37,IF(D42=1,D37,IF(E42=1,E37,IF(F42=1,F37,IF(G42=1,G37,IF(H42=1,H37,IF(I42=1,I37,IF(J42=1,J37,IF(K42=1,K37,IF(L42=1,L37,IF(#REF!=1,#REF!,"")))))))))))) ->  | K48: 1
C49: 2 | D49: =IF($D$61>25000,"använd förnyad konkurensutsättning för avrop",IF($D$61=0,"",IF($C$42=K49,$C$4,IF($D$42=K49,$D$4,IF($E$42=K49,$E$4,IF($F$42=K49,$F$4,IF($G$42=K49,$G$4,IF($H$42=K49,$H$4,IF($I$42=K49,$I$4,IF($J$42=K49,$J$4,IF($K$42=K49,$K$4,IF($L$42=K49,$L$4,"Ingen lev")))))))))))) ->  | I49: =IF(D61=0,"",IF(C42=2,C37,IF(D42=2,D37,IF(E42=2,E37,IF(F42=2,F37,IF(G42=2,G37,IF(H42=2,H37,IF(I42=2,I37,IF(J42=2,J37,IF(K42=2,K37,IF(L42=2,L37,IF(#REF!=2,#REF!,"")))))))))))) ->  | K49: 2
C50: 3 | D50: =IF($D$61>25000," ",IF($D$61=0,"",IF($C$42=K50,$C$4,IF($D$42=K50,$D$4,IF($E$42=K50,$E$4,IF($F$42=K50,$F$4,IF($G$42=K50,$G$4,IF($H$42=K50,$H$4,IF($I$42=K50,$I$4,IF($J$42=K50,$J$4,IF($K$42=K50,$K$4,IF($L$42=K50,$L$4,"Ingen lev")))))))))))) ->  | I50: =IF(D61=0,"",IF(C42=3,C37,IF(D42=3,D37,IF(E42=3,E37,IF(F42=3,F37,IF(G42=3,G37,IF(H42=3,H37,IF(I42=3,I37,IF(J42=3,J37,IF(K42=3,K37,IF(L42=3,L37,IF(#REF!=3,#REF!,"")))))))))))) ->  | K50: 3
C51: 4 | D51: =IF($D$61>25000," ",IF($D$61=0," ",IF($C$42=K51,$C$4,IF($D$42=K51,$D$4,IF($E$42=K51,$E$4,IF($F$42=K51,$F$4,IF($G$42=K51,$G$4,IF($H$42=K51,$H$4,IF($I$42=K51,$I$4,IF($J$42=K51,$J$4,IF($K$42=K51,$K$4,IF($L$42=K51,$L$4,"Ingen lev")))))))))))) ->  | I51: =IF(D61=0,"",IF(C42=4,C37,IF(D42=4,D37,IF(E42=4,E37,IF(F42=4,F37,IF(G42=4,G37,IF(H42=4,H37,IF(I42=4,I37,IF(J42=4,J37,IF(K42=4,K37,IF(L42=4,L37,IF(#REF!=4,#REF!,"")))))))))))) ->  | K51: 4
C52: 5 | I52: =IF(D61=0,"",IF(C42=5,C37,IF(D42=5,D37,IF(E42=5,E37,IF(F42=5,F37,IF(G42=5,G37,IF(H42=5,H37,IF(I42=5,I37,IF(J42=5,J37,IF(K42=5,K37,IF(L42=5,L37,IF(#REF!=5,#REF!,"")))))))))))) ->  | K52: 5
C53: 6 | I53: =IF(D61=0,"",IF(C42=6,C37,IF(D42=6,D37,IF(E42=6,E37,IF(F42=6,F37,IF(G42=6,G37,IF(H42=6,H37,IF(I42=6,I37,IF(J42=6,J37,IF(K42=6,K37,IF(L42=6,L37,IF(#REF!=6,#REF!,"")))))))))))) ->  | K53: 6
C54: 7 | I54: =IF(D61=0,"",IF(C42=7,C37,IF(D42=7,D37,IF(E42=7,E37,IF(F42=7,F37,IF(G42=7,G37,IF(H42=7,H37,IF(I42=7,I37,IF(J42=7,J37,IF(K42=7,K37,IF(L42=7,L37,IF(#REF!=7,#REF!,"")))))))))))) ->  | K54: 7
C55: 8 | I55: =IF(D61=0,"",IF(C42=8,C37,IF(D42=8,D37,IF(E42=8,E37,IF(F42=8,F37,IF(G42=8,G37,IF(H42=8,H37,IF(I42=8,I37,IF(J42=8,J37,IF(K42=8,K37,IF(L42=8,L37,IF(#REF!=8,#REF!,"")))))))))))) ->  | K55: 8
C56: 9 | I56: =IF(D61=0,"",IF(C42=9,C37,IF(D42=9,D37,IF(E42=9,E37,IF(F42=9,F37,IF(G42=9,G37,IF(H42=9,H37,IF(I42=9,I37,IF(J42=9,J37,IF(K42=9,K37,IF(L42=9,L37,IF(#REF!=9,#REF!,"")))))))))))) ->  | K56: 9
C57: 10 | I57: =IF(D61=0,"",IF(C42=10,C37,IF(D42=10,D37,IF(E42=10,E37,IF(F42=10,F37,IF(G42=10,G37,IF(H42=10,H37,IF(I42=10,I37,IF(J42=10,J37,IF(K42=10,K37,IF(L42=10,L37,IF(#REF!=10,#REF!,"")))))))))))) ->  | K57: 10
D61: =IF(C42=E64,C37,IF(D42=E64,D37,IF(E42=E64,E37,IF(F42=E64,F37,IF(G42=E64,G37,IF(H42=E64,H37,IF(I42=E64,I37,IF(J42=E64,J37,IF(K42=E64,K37,IF(L42=E64,L37,IF(#REF!=E64,#REF!,"Ingen lev"))))))))))) -> 0
E64: =Avropsblankett!E108 -> 1
D67: Vinnande ramavtalsleverantörs uppgifter
D68: Ramavtalslev | E68: =IF(E64=K48,D48,IF(E64=K49,D49,IF(E64=K50,D50,IF(E64=K51,D51,IF(E64=K52,D52,IF(E64=K53,D53,IF(E64=K54,D54,IF(E64=K55,D55,IF(E64=K56,D56,IF(E64=K57,D57,"")))))))))) -> Ange vilken/vilka produkter och antal samt eventuella tillägg i de ljusgula rutorna på fliken avropsblankett som önskas avropas.
D69: Organisationsnr | E69: =IF(E68=C4,C5,IF(E68=D4,D5,IF(E68=E4,E5,IF(E68=F4,F5,IF(E68=G4,G5,IF(E68=H4,H5,IF(E68=I4,I5,IF(E68=J4,J5,IF(E68=K4,K5,IF(E68=L4,L5,"")))))))))) -> 
D70: Kontaktperson | E70: =IF(E68=C4,C6,IF(E68=D4,D6,IF(E68=E4,E6,IF(E68=F4,F6,IF(E68=G4,G6,IF(E68=H4,H6,IF(E68=I4,I6,IF(E68=J4,J6,IF(E68=K4,K6,IF(E68=L4,L6,"")))))))))) -> 
D71: Telefonnummer | E71: =IF(E68=C4,C7,IF(E68=D4,D7,IF(E68=E4,E7,IF(E68=F4,F7,IF(E68=G4,G7,IF(E68=H4,H7,IF(E68=I4,I7,IF(E68=J4,J7,IF(E68=K4,K7,IF(E68=L4,L7,"")))))))))) -> 
D72: E-postadress för avrop | E72: =IF(E68=C4,C8,IF(E68=D4,D8,IF(E68=E4,E8,IF(E68=F4,F8,IF(E68=G4,G8,IF(E68=H4,H8,IF(E68=I4,I8,IF(E68=J4,J8,IF(E68=K4,K8,IF(E68=L4,L8,"")))))))))) -> 

Sheet Affischer
A1: Affischer | C1: =Uträkningsblad!C4 -> Bröderna Hansson H-tryck Aktiebolag | H1: =Uträkningsblad!D4 -> Elanders Sverige AB | M1: =Uträkningsblad!E4 -> Exakta Print AB | R1: =Uträkningsblad!F4 -> Kalmar Kuvert Sweden AB | W1: =Uträkningsblad!G4 -> Ljungbergs Tryckeri i Klippan AB | AB1: =Uträkningsblad!H4 -> Scandinavian Print Group Sweden AB | AG1: =Uträkningsblad!I4 -> Stema Specialtryck AB | AL1: =Uträkningsblad!J4 -> Stibo Complete A/S | AQ1: =Uträkningsblad!K4 -> Åtta.45 Tryckeri AB | AV1: =Uträkningsblad!L4 -> Leverantör 10
A3: Underlag: | B3: A: Öppna filer. B: PDF/PDFx.
A4: Papper: | B4: Bestruket gloss 170 g
A5: Tryck: | B5: 4+0
C6: Priser lämnas i gulmarkerade fält nedan | H6: Priser lämnas i gulmarkerade fält nedan | M6: Priser lämnas i gulmarkerade fält nedan | R6: Priser lämnas i gulmarkerade fält nedan | W6: Priser lämnas i gulmarkerade fält nedan | AB6: Priser lämnas i gulmarkerade fält nedan | AG6: Priser lämnas i gulmarkerade fält nedan | AL6: Priser lämnas i gulmarkerade fält nedan | AQ6: Priser lämnas i gulmarkerade fält nedan | AV6: Priser lämnas i gulmarkerade fält nedan
A7: Affischer_1 | C7: Upplaga | D7: Ange pris | E7: Följande | F7: Ange pris | H7: Upplaga | I7: Ange pris | J7: Följande | K7: Ange pris | M7: Upplaga | N7: Ange pris | O7: Följande | P7: Ange pris | R7: Upplaga | S7: Ange pris | T7: Följande | U7: Ange pris | W7: Upplaga | X7: Ange pris | Y7: Följande | Z7: Ange pris | AB7: Upplaga | AC7: Ange pris | AD7: Följande | AE7: Ange pris | AG7: Upplaga | AH7: Ange pris | AI7: Följande | AJ7: Ange pris | AL7: Upplaga | AM7: Ange pris | AN7: Följande | AO7: Ange pris | AQ7: Upplaga | AR7: Ange pris | AS7: Följande | AT7: Ange pris | AV7: Upplaga | AW7: Ange pris | AX7: Följande | AY7: Ange pris
A8: 297 x 420 mm | C8: 100 | D8: 758 | E8: 50 | F8: 91 | H8: 100 | I8: 790 | J8: 50 | K8: 80 | M8: 100 | N8: 1500 | O8: 50 | P8: 100 | R8: 100 | S8: 400 | T8: 50 | U8: 60 | W8: 100 | X8: 290 | Y8: 50 | Z8: 30 | AB8: 100 | AC8: 558 | AD8: 50 | AE8: 65 | AG8: 100 | AH8: 750 | AI8: 50 | AJ8: 100 | AL8: 100 | AM8: 475 | AN8: 50 | AO8: 100 | AQ8: 100 | AR8: 690 | AS8: 50 | AT8: 40 | AV8: 100 | AW8: 960 | AX8: 50 | AY8: 45
A9: 297 x 420 mm | C9: 500 | D9: 1491 | H9: 500 | I9: 1420 | M9: 500 | N9: 1900 | R9: 500 | S9: 715 | W9: 500 | X9: 667 | AB9: 500 | AC9: 1074 | AG9: 500 | AH9: 1550 | AL9: 500 | AM9: 1150 | AQ9: 500 | AR9: 2290 | AV9: 500 | AW9: 1315
D10: =IF(Avropsblankett!$C$28=$A$7,IF(Avropsblankett!$F$28="","",IF(Avropsblankett!$F$28<500,D8,D9)),"") ->  | F10: =IF(Avropsblankett!$C$28=$A$7,IF(Avropsblankett!$F$28="","",IF(Avropsblankett!$F$28<500,((Avropsblankett!$F$28-100)*F8/50),((Avropsblankett!$F$28-500)*F8/50))),"") ->  | I10: =IF(Avropsblankett!$C$28=$A$7,IF(Avropsblankett!$F$28="","",IF(Avropsblankett!$F$28<500,I8,I9)),"") ->  | K10: =IF(Avropsblankett!$C$28=$A$7,IF(Avropsblankett!$F$28="","",IF(Avropsblankett!$F$28<500,((Avropsblankett!$F$28-100)*K8/50),((Avropsblankett!$F$28-500)*K8/50))),"") ->  | N10: =IF(Avropsblankett!$C$28=$A$7,IF(Avropsblankett!$F$28="","",IF(Avropsblankett!$F$28<500,N8,N9)),"") ->  | P10: =IF(Avropsblankett!$C$28=$A$7,IF(Avropsblankett!$F$28="","",IF(Avropsblankett!$F$28<500,((Avropsblankett!$F$28-100)*P8/50),((Avropsblankett!$F$28-500)*P8/50))),"") ->  | S10: =IF(Avropsblankett!$C$28=$A$7,IF(Avropsblankett!$F$28="","",IF(Avropsblankett!$F$28<500,S8,S9)),"") ->  | U10: =IF(Avropsblankett!$C$28=$A$7,IF(Avropsblankett!$F$28="","",IF(Avropsblankett!$F$28<500,((Avropsblankett!$F$28-100)*U8/50),((Avropsblankett!$F$28-500)*U8/50))),"") ->  | X10: =IF(Avropsblankett!$C$28=$A$7,IF(Avropsblankett!$F$28="","",IF(Avropsblankett!$F$28<500,X8,X9)),"") ->  | Z10: =IF(Avropsblankett!$C$28=$A$7,IF(Avropsblankett!$F$28="","",IF(Avropsblankett!$F$28<500,((Avropsblankett!$F$28-100)*Z8/50),((Avropsblankett!$F$28-500)*Z8/50))),"") ->  | AC10: =IF(Avropsblankett!$C$28=$A$7,IF(Avropsblankett!$F$28="","",IF(Avropsblankett!$F$28<500,AC8,AC9)),"") ->  | AE10: =IF(Avropsblankett!$C$28=$A$7,IF(Avropsblankett!$F$28="","",IF(Avropsblankett!$F$28<500,((Avropsblankett!$F$28-100)*AE8/50),((Avropsblankett!$F$28-500)*AE8/50))),"") ->  | AH10: =IF(Avropsblankett!$C$28=$A$7,IF(Avropsblankett!$F$28="","",IF(Avropsblankett!$F$28<500,AH8,AH9)),"") ->  | AJ10: =IF(Avropsblankett!$C$28=$A$7,IF(Avropsblankett!$F$28="","",IF(Avropsblankett!$F$28<500,((Avropsblankett!$F$28-100)*AJ8/50),((Avropsblankett!$F$28-500)*AJ8/50))),"") ->  | AM10: =IF(Avropsblankett!$C$28=$A$7,IF(Avropsblankett!$F$28="","",IF(Avropsblankett!$F$28<500,AM8,AM9)),"") ->  | AO10: =IF(Avropsblankett!$C$28=$A$7,IF(Avropsblankett!$F$28="","",IF(Avropsblankett!$F$28<500,((Avropsblankett!$F$28-100)*AO8/50),((Avropsblankett!$F$28-500)*AO8/50))),"") ->  | AR10: =IF(Avropsblankett!$C$28=$A$7,IF(Avropsblankett!$F$28="","",IF(Avropsblankett!$F$28<500,AR8,AR9)),"") ->  | AT10: =IF(Avropsblankett!$C$28=$A$7,IF(Avropsblankett!$F$28="","",IF(Avropsblankett!$F$28<500,((Avropsblankett!$F$28-100)*AT8/50),((Avropsblankett!$F$28-500)*AT8/50))),"") ->  | AW10: =IF(Avropsblankett!$C$28=$A$7,IF(Avropsblankett!$F$28="","",IF(Avropsblankett!$F$28<500,AW8,AW9)),"") ->  | AY10: =IF(Avropsblankett!$C$28=$A$7,IF(Avropsblankett!$F$28="","",IF(Avropsblankett!$F$28<500,((Avropsblankett!$F$28-100)*AY8/50),((Avropsblankett!$F$28-500)*AY8/50))),"") -> 
D11: =IF(Avropsblankett!$C$40=$A$7,IF(Avropsblankett!$F$40="","",IF(Avropsblankett!$F$40<500,D8,D9)),"") ->  | F11: =IF(Avropsblankett!$C$40=$A$7,IF(Avropsblankett!$F$40="","",IF(Avropsblankett!$F$40<500,((Avropsblankett!$F$40-100)*F8/50),((Avropsblankett!$F$40-500)*F8/50))),"") ->  | I11: =IF(Avropsblankett!$C$40=$A$7,IF(Avropsblankett!$F$40="","",IF(Avropsblankett!$F$40<500,I8,I9)),"") ->  | K11: =IF(Avropsblankett!$C$40=$A$7,IF(Avropsblankett!$F$40="","",IF(Avropsblankett!$F$40<500,((Avropsblankett!$F$40-100)*K8/50),((Avropsblankett!$F$40-500)*K8/50))),"") ->  | N11: =IF(Avropsblankett!$C$40=$A$7,IF(Avropsblankett!$F$40="","",IF(Avropsblankett!$F$40<500,N8,N9)),"") ->  | P11: =IF(Avropsblankett!$C$40=$A$7,IF(Avropsblankett!$F$40="","",IF(Avropsblankett!$F$40<500,((Avropsblankett!$F$40-100)*P8/50),((Avropsblankett!$F$40-500)*P8/50))),"") ->  | S11: =IF(Avropsblankett!$C$40=$A$7,IF(Avropsblankett!$F$40="","",IF(Avropsblankett!$F$40<500,S8,S9)),"") ->  | U11: =IF(Avropsblankett!$C$40=$A$7,IF(Avropsblankett!$F$40="","",IF(Avropsblankett!$F$40<500,((Avropsblankett!$F$40-100)*U8/50),((Avropsblankett!$F$40-500)*U8/50))),"") ->  | X11: =IF(Avropsblankett!$C$40=$A$7,IF(Avropsblankett!$F$40="","",IF(Avropsblankett!$F$40<500,X8,X9)),"") ->  | Z11: =IF(Avropsblankett!$C$40=$A$7,IF(Avropsblankett!$F$40="","",IF(Avropsblankett!$F$40<500,((Avropsblankett!$F$40-100)*Z8/50),((Avropsblankett!$F$40-500)*Z8/50))),"") ->  | AC11: =IF(Avropsblankett!$C$40=$A$7,IF(Avropsblankett!$F$40="","",IF(Avropsblankett!$F$40<500,AC8,AC9)),"") ->  | AE11: =IF(Avropsblankett!$C$40=$A$7,IF(Avropsblankett!$F$40="","",IF(Avropsblankett!$F$40<500,((Avropsblankett!$F$40-100)*AE8/50),((Avropsblankett!$F$40-500)*AE8/50))),"") ->  | AH11: =IF(Avropsblankett!$C$40=$A$7,IF(Avropsblankett!$F$40="","",IF(Avropsblankett!$F$40<500,AH8,AH9)),"") ->  | AJ11: =IF(Avropsblankett!$C$40=$A$7,IF(Avropsblankett!$F$40="","",IF(Avropsblankett!$F$40<500,((Avropsblankett!$F$40-100)*AJ8/50),((Avropsblankett!$F$40-500)*AJ8/50))),"") ->  | AM11: =IF(Avropsblankett!$C$40=$A$7,IF(Avropsblankett!$F$40="","",IF(Avropsblankett!$F$40<500,AM8,AM9)),"") ->  | AO11: =IF(Avropsblankett!$C$40=$A$7,IF(Avropsblankett!$F$40="","",IF(Avropsblankett!$F$40<500,((Avropsblankett!$F$40-100)*AO8/50),((Avropsblankett!$F$40-500)*AO8/50))),"") ->  | AR11: =IF(Avropsblankett!$C$40=$A$7,IF(Avropsblankett!$F$40="","",IF(Avropsblankett!$F$40<500,AR8,AR9)),"") ->  | AT11: =IF(Avropsblankett!$C$40=$A$7,IF(Avropsblankett!$F$40="","",IF(Avropsblankett!$F$40<500,((Avropsblankett!$F$40-100)*AT8/50),((Avropsblankett!$F$40-500)*AT8/50))),"") ->  | AW11: =IF(Avropsblankett!$C$40=$A$7,IF(Avropsblankett!$F$40="","",IF(Avropsblankett!$F$40<500,AW8,AW9)),"") ->  | AY11: =IF(Avropsblankett!$C$40=$A$7,IF(Avropsblankett!$F$40="","",IF(Avropsblankett!$F$40<500,((Avropsblankett!$F$40-100)*AY8/50),((Avropsblankett!$F$40-500)*AY8/50))),"") -> 
D12: =IF(Avropsblankett!$C$52=$A$7,IF(Avropsblankett!$F$52="","",IF(Avropsblankett!$F$52<500,D8,D9)),"") ->  | F12: =IF(Avropsblankett!$C$52=$A$7,IF(Avropsblankett!$F$52="","",IF(Avropsblankett!$F$52<500,((Avropsblankett!$F$52-100)*F8/50),((Avropsblankett!$F$52-500)*F8/50))),"") ->  | I12: =IF(Avropsblankett!$C$52=$A$7,IF(Avropsblankett!$F$52="","",IF(Avropsblankett!$F$52<500,I8,I9)),"") ->  | K12: =IF(Avropsblankett!$C$52=$A$7,IF(Avropsblankett!$F$52="","",IF(Avropsblankett!$F$52<500,((Avropsblankett!$F$52-100)*K8/50),((Avropsblankett!$F$52-500)*K8/50))),"") ->  | N12: =IF(Avropsblankett!$C$52=$A$7,IF(Avropsblankett!$F$52="","",IF(Avropsblankett!$F$52<500,N8,N9)),"") ->  | P12: =IF(Avropsblankett!$C$52=$A$7,IF(Avropsblankett!$F$52="","",IF(Avropsblankett!$F$52<500,((Avropsblankett!$F$52-100)*P8/50),((Avropsblankett!$F$52-500)*P8/50))),"") ->  | S12: =IF(Avropsblankett!$C$52=$A$7,IF(Avropsblankett!$F$52="","",IF(Avropsblankett!$F$52<500,S8,S9)),"") ->  | U12: =IF(Avropsblankett!$C$52=$A$7,IF(Avropsblankett!$F$52="","",IF(Avropsblankett!$F$52<500,((Avropsblankett!$F$52-100)*U8/50),((Avropsblankett!$F$52-500)*U8/50))),"") ->  | X12: =IF(Avropsblankett!$C$52=$A$7,IF(Avropsblankett!$F$52="","",IF(Avropsblankett!$F$52<500,X8,X9)),"") ->  | Z12: =IF(Avropsblankett!$C$52=$A$7,IF(Avropsblankett!$F$52="","",IF(Avropsblankett!$F$52<500,((Avropsblankett!$F$52-100)*Z8/50),((Avropsblankett!$F$52-500)*Z8/50))),"") ->  | AC12: =IF(Avropsblankett!$C$52=$A$7,IF(Avropsblankett!$F$52="","",IF(Avropsblankett!$F$52<500,AC8,AC9)),"") ->  | AE12: =IF(Avropsblankett!$C$52=$A$7,IF(Avropsblankett!$F$52="","",IF(Avropsblankett!$F$52<500,((Avropsblankett!$F$52-100)*AE8/50),((Avropsblankett!$F$52-500)*AE8/50))),"") ->  | AH12: =IF(Avropsblankett!$C$52=$A$7,IF(Avropsblankett!$F$52="","",IF(Avropsblankett!$F$52<500,AH8,AH9)),"") ->  | AJ12: =IF(Avropsblankett!$C$52=$A$7,IF(Avropsblankett!$F$52="","",IF(Avropsblankett!$F$52<500,((Avropsblankett!$F$52-100)*AJ8/50),((Avropsblankett!$F$52-500)*AJ8/50))),"") ->  | AM12: =IF(Avropsblankett!$C$52=$A$7,IF(Avropsblankett!$F$52="","",IF(Avropsblankett!$F$52<500,AM8,AM9)),"") ->  | AO12: =IF(Avropsblankett!$C$52=$A$7,IF(Avropsblankett!$F$52="","",IF(Avropsblankett!$F$52<500,((Avropsblankett!$F$52-100)*AO8/50),((Avropsblankett!$F$52-500)*AO8/50))),"") ->  | AR12: =IF(Avropsblankett!$C$52=$A$7,IF(Avropsblankett!$F$52="","",IF(Avropsblankett!$F$52<500,AR8,AR9)),"") ->  | AT12: =IF(Avropsblankett!$C$52=$A$7,IF(Avropsblankett!$F$52="","",IF(Avropsblankett!$F$52<500,((Avropsblankett!$F$52-100)*AT8/50),((Avropsblankett!$F$52-500)*AT8/50))),"") ->  | AW12: =IF(Avropsblankett!$C$52=$A$7,IF(Avropsblankett!$F$52="","",IF(Avropsblankett!$F$52<500,AW8,AW9)),"") ->  | AY12: =IF(Avropsblankett!$C$52=$A$7,IF(Avropsblankett!$F$52="","",IF(Avropsblankett!$F$52<500,((Avropsblankett!$F$52-100)*AY8/50),((Avropsblankett!$F$52-500)*AY8/50))),"") -> 
D13: =IF(Avropsblankett!$C$64=$A$7,IF(Avropsblankett!$F$64="","",IF(Avropsblankett!$F$64<500,D8,D9)),"") ->  | F13: =IF(Avropsblankett!$C$64=$A$7,IF(Avropsblankett!$F$64="","",IF(Avropsblankett!$F$64<500,((Avropsblankett!$F$64-100)*F8/50),((Avropsblankett!$F$64-500)*F8/50))),"") ->  | I13: =IF(Avropsblankett!$C$64=$A$7,IF(Avropsblankett!$F$64="","",IF(Avropsblankett!$F$64<500,I8,I9)),"") ->  | K13: =IF(Avropsblankett!$C$64=$A$7,IF(Avropsblankett!$F$64="","",IF(Avropsblankett!$F$64<500,((Avropsblankett!$F$64-100)*K8/50),((Avropsblankett!$F$64-500)*K8/50))),"") ->  | N13: =IF(Avropsblankett!$C$64=$A$7,IF(Avropsblankett!$F$64="","",IF(Avropsblankett!$F$64<500,N8,N9)),"") ->  | P13: =IF(Avropsblankett!$C$64=$A$7,IF(Avropsblankett!$F$64="","",IF(Avropsblankett!$F$64<500,((Avropsblankett!$F$64-100)*P8/50),((Avropsblankett!$F$64-500)*P8/50))),"") ->  | S13: =IF(Avropsblankett!$C$64=$A$7,IF(Avropsblankett!$F$64="","",IF(Avropsblankett!$F$64<500,S8,S9)),"") ->  | U13: =IF(Avropsblankett!$C$64=$A$7,IF(Avropsblankett!$F$64="","",IF(Avropsblankett!$F$64<500,((Avropsblankett!$F$64-100)*U8/50),((Avropsblankett!$F$64-500)*U8/50))),"") ->  | X13: =IF(Avropsblankett!$C$64=$A$7,IF(Avropsblankett!$F$64="","",IF(Avropsblankett!$F$64<500,X8,X9)),"") ->  | Z13: =IF(Avropsblankett!$C$64=$A$7,IF(Avropsblankett!$F$64="","",IF(Avropsblankett!$F$64<500,((Avropsblankett!$F$64-100)*Z8/50),((Avropsblankett!$F$64-500)*Z8/50))),"") ->  | AC13: =IF(Avropsblankett!$C$64=$A$7,IF(Avropsblankett!$F$64="","",IF(Avropsblankett!$F$64<500,AC8,AC9)),"") ->  | AE13: =IF(Avropsblankett!$C$64=$A$7,IF(Avropsblankett!$F$64="","",IF(Avropsblankett!$F$64<500,((Avropsblankett!$F$64-100)*AE8/50),((Avropsblankett!$F$64-500)*AE8/50))),"") ->  | AH13: =IF(Avropsblankett!$C$64=$A$7,IF(Avropsblankett!$F$64="","",IF(Avropsblankett!$F$64<500,AH8,AH9)),"") ->  | AJ13: =IF(Avropsblankett!$C$64=$A$7,IF(Avropsblankett!$F$64="","",IF(Avropsblankett!$F$64<500,((Avropsblankett!$F$64-100)*AJ8/50),((Avropsblankett!$F$64-500)*AJ8/50))),"") ->  | AM13: =IF(Avropsblankett!$C$64=$A$7,IF(Avropsblankett!$F$64="","",IF(Avropsblankett!$F$64<500,AM8,AM9)),"") ->  | AO13: =IF(Avropsblankett!$C$64=$A$7,IF(Avropsblankett!$F$64="","",IF(Avropsblankett!$F$64<500,((Avropsblankett!$F$64-100)*AO8/50),((Avropsblankett!$F$64-500)*AO8/50))),"") ->  | AR13: =IF(Avropsblankett!$C$64=$A$7,IF(Avropsblankett!$F$64="","",IF(Avropsblankett!$F$64<500,AR8,AR9)),"") ->  | AT13: =IF(Avropsblankett!$C$64=$A$7,IF(Avropsblankett!$F$64="","",IF(Avropsblankett!$F$64<500,((Avropsblankett!$F$64-100)*AT8/50),((Avropsblankett!$F$64-500)*AT8/50))),"") ->  | AW13: =IF(Avropsblankett!$C$64=$A$7,IF(Avropsblankett!$F$64="","",IF(Avropsblankett!$F$64<500,AW8,AW9)),"") ->  | AY13: =IF(Avropsblankett!$C$64=$A$7,IF(Avropsblankett!$F$64="","",IF(Avropsblankett!$F$64<500,((Avropsblankett!$F$64-100)*AY8/50),((Avropsblankett!$F$64-500)*AY8/50))),"") -> 
D14: =IF(Avropsblankett!$C$76=$A$7,IF(Avropsblankett!$F$76="","",IF(Avropsblankett!$F$76<500,D8,D9)),"") ->  | F14: =IF(Avropsblankett!$C$76=$A$7,IF(Avropsblankett!$F$76="","",IF(Avropsblankett!$F$76<500,((Avropsblankett!$F$76-100)*F8/50),((Avropsblankett!$F$76-500)*F8/50))),"") ->  | I14: =IF(Avropsblankett!$C$76=$A$7,IF(Avropsblankett!$F$76="","",IF(Avropsblankett!$F$76<500,I8,I9)),"") ->  | K14: =IF(Avropsblankett!$C$76=$A$7,IF(Avropsblankett!$F$76="","",IF(Avropsblankett!$F$76<500,((Avropsblankett!$F$76-100)*K8/50),((Avropsblankett!$F$76-500)*K8/50))),"") ->  | N14: =IF(Avropsblankett!$C$76=$A$7,IF(Avropsblankett!$F$76="","",IF(Avropsblankett!$F$76<500,N8,N9)),"") ->  | P14: =IF(Avropsblankett!$C$76=$A$7,IF(Avropsblankett!$F$76="","",IF(Avropsblankett!$F$76<500,((Avropsblankett!$F$76-100)*P8/50),((Avropsblankett!$F$76-500)*P8/50))),"") ->  | S14: =IF(Avropsblankett!$C$76=$A$7,IF(Avropsblankett!$F$76="","",IF(Avropsblankett!$F$76<500,S8,S9)),"") ->  | U14: =IF(Avropsblankett!$C$76=$A$7,IF(Avropsblankett!$F$76="","",IF(Avropsblankett!$F$76<500,((Avropsblankett!$F$76-100)*U8/50),((Avropsblankett!$F$76-500)*U8/50))),"") ->  | X14: =IF(Avropsblankett!$C$76=$A$7,IF(Avropsblankett!$F$76="","",IF(Avropsblankett!$F$76<500,X8,X9)),"") ->  | Z14: =IF(Avropsblankett!$C$76=$A$7,IF(Avropsblankett!$F$76="","",IF(Avropsblankett!$F$76<500,((Avropsblankett!$F$76-100)*Z8/50),((Avropsblankett!$F$76-500)*Z8/50))),"") ->  | AC14: =IF(Avropsblankett!$C$76=$A$7,IF(Avropsblankett!$F$76="","",IF(Avropsblankett!$F$76<500,AC8,AC9)),"") ->  | AE14: =IF(Avropsblankett!$C$76=$A$7,IF(Avropsblankett!$F$76="","",IF(Avropsblankett!$F$76<500,((Avropsblankett!$F$76-100)*AE8/50),((Avropsblankett!$F$76-500)*AE8/50))),"") ->  | AH14: =IF(Avropsblankett!$C$76=$A$7,IF(Avropsblankett!$F$76="","",IF(Avropsblankett!$F$76<500,AH8,AH9)),"") ->  | AJ14: =IF(Avropsblankett!$C$76=$A$7,IF(Avropsblankett!$F$76="","",IF(Avropsblankett!$F$76<500,((Avropsblankett!$F$76-100)*AJ8/50),((Avropsblankett!$F$76-500)*AJ8/50))),"") ->  | AM14: =IF(Avropsblankett!$C$76=$A$7,IF(Avropsblankett!$F$76="","",IF(Avropsblankett!$F$76<500,AM8,AM9)),"") ->  | AO14: =IF(Avropsblankett!$C$76=$A$7,IF(Avropsblankett!$F$76="","",IF(Avropsblankett!$F$76<500,((Avropsblankett!$F$76-100)*AO8/50),((Avropsblankett!$F$76-500)*AO8/50))),"") ->  | AR14: =IF(Avropsblankett!$C$76=$A$7,IF(Avropsblankett!$F$76="","",IF(Avropsblankett!$F$76<500,AR8,AR9)),"") ->  | AT14: =IF(Avropsblankett!$C$76=$A$7,IF(Avropsblankett!$F$76="","",IF(Avropsblankett!$F$76<500,((Avropsblankett!$F$76-100)*AT8/50),((Avropsblankett!$F$76-500)*AT8/50))),"") ->  | AW14: =IF(Avropsblankett!$C$76=$A$7,IF(Avropsblankett!$F$76="","",IF(Avropsblankett!$F$76<500,AW8,AW9)),"") ->  | AY14: =IF(Avropsblankett!$C$76=$A$7,IF(Avropsblankett!$F$76="","",IF(Avropsblankett!$F$76<500,((Avropsblankett!$F$76-100)*AY8/50),((Avropsblankett!$F$76-500)*AY8/50))),"") -> 
D15: =SUM(D10:D14) -> 0 | F15: =SUM(F10:F14) -> 0 | I15: =SUM(I10:I14) -> 0 | K15: =SUM(K10:K14) -> 0 | N15: =SUM(N10:N14) -> 0 | P15: =SUM(P10:P14) -> 0 | S15: =SUM(S10:S14) -> 0 | U15: =SUM(U10:U14) -> 0 | X15: =SUM(X10:X14) -> 0 | Z15: =SUM(Z10:Z14) -> 0 | AC15: =SUM(AC10:AC14) -> 0 | AE15: =SUM(AE10:AE14) -> 0 | AH15: =SUM(AH10:AH14) -> 0 | AJ15: =SUM(AJ10:AJ14) -> 0 | AM15: =SUM(AM10:AM14) -> 0 | AO15: =SUM(AO10:AO14) -> 0 | AR15: =SUM(AR10:AR14) -> 0 | AT15: =SUM(AT10:AT14) -> 0 | AW15: =SUM(AW10:AW14) -> 0 | AY15: =SUM(AY10:AY14) -> 0
A16: Affischer_2 | C16: Upplaga | D16: Ange pris | E16: Följande | F16: Ange pris | H16: Upplaga | I16: Ange pris | J16: Följande | K16: Ange pris | M16: Upplaga | N16: Ange pris | O16: Följande | P16: Ange pris | R16: Upplaga | S16: Ange pris | T16: Följande | U16: Ange pris | W16: Upplaga | X16: Ange pris | Y16: Följande | Z16: Ange pris | AB16: Upplaga | AC16: Ange pris | AD16: Följande | AE16: Ange pris | AG16: Upplaga | AH16: Ange pris | AI16: Följande | AJ16: Ange pris | AL16: Upplaga | AM16: Ange pris | AN16: Följande | AO16: Ange pris | AQ16: Upplaga | AR16: Ange pris | AS16: Följande | AT16: Ange pris | AV16: Upplaga | AW16: Ange pris | AX16: Följande | AY16: Ange pris
A17: 500 x 700 mm | C17: 100 | D17: 1200 | E17: 50 | F17: 237 | H17: 100 | I17: 3630 | J17: 50 | K17: 165 | M17: 100 | N17: 2300 | O17: 50 | P17: 225 | R17: 100 | S17: 1450 | T17: 50 | U17: 100 | W17: 100 | X17: 995 | Y17: 50 | Z17: 50 | AB17: 100 | AC17: 740 | AD17: 50 | AE17: 141 | AG17: 100 | AH17: 2000 | AI17: 50 | AJ17: 150 | AL17: 100 | AM17: 2350 | AN17: 50 | AO17: 280 | AQ17: 100 | AR17: 2450 | AS17: 50 | AT17: 70 | AV17: 100 | AW17: 2115 | AX17: 50 | AY17: 125
A18: 500 x 700 mm | C18: 500 | D18: 3100 | H18: 500 | I18: 4950 | M18: 500 | N18: 3600 | R18: 500 | S18: 2400 | W18: 500 | X18: 1683 | AB18: 500 | AC18: 1918 | AG18: 500 | AH18: 2600 | AL18: 500 | AM18: 2980 | AQ18: 500 | AR18: 2900 | AV18: 500 | AW18: 2585
D19: =IF(Avropsblankett!$C$28=$A$16,IF(Avropsblankett!$F$28="","",IF(Avropsblankett!$F$28<500,D17,D18)),"") ->  | F19: =IF(Avropsblankett!$C$28=$A$16,IF(Avropsblankett!$F$28="","",IF(Avropsblankett!$F$28<500,((Avropsblankett!$F$28-100)*F17/50),((Avropsblankett!$F$28-500)*F17/50))),"") ->  | I19: =IF(Avropsblankett!$C$28=$A$16,IF(Avropsblankett!$F$28="","",IF(Avropsblankett!$F$28<500,I17,I18)),"") ->  | K19: =IF(Avropsblankett!$C$28=$A$16,IF(Avropsblankett!$F$28="","",IF(Avropsblankett!$F$28<500,((Avropsblankett!$F$28-100)*K17/50),((Avropsblankett!$F$28-500)*K17/50))),"") ->  | N19: =IF(Avropsblankett!$C$28=$A$16,IF(Avropsblankett!$F$28="","",IF(Avropsblankett!$F$28<500,N17,N18)),"") ->  | P19: =IF(Avropsblankett!$C$28=$A$16,IF(Avropsblankett!$F$28="","",IF(Avropsblankett!$F$28<500,((Avropsblankett!$F$28-100)*P17/50),((Avropsblankett!$F$28-500)*P17/50))),"") ->  | S19: =IF(Avropsblankett!$C$28=$A$16,IF(Avropsblankett!$F$28="","",IF(Avropsblankett!$F$28<500,S17,S18)),"") ->  | U19: =IF(Avropsblankett!$C$28=$A$16,IF(Avropsblankett!$F$28="","",IF(Avropsblankett!$F$28<500,((Avropsblankett!$F$28-100)*U17/50),((Avropsblankett!$F$28-500)*U17/50))),"") ->  | X19: =IF(Avropsblankett!$C$28=$A$16,IF(Avropsblankett!$F$28="","",IF(Avropsblankett!$F$28<500,X17,X18)),"") ->  | Z19: =IF(Avropsblankett!$C$28=$A$16,IF(Avropsblankett!$F$28="","",IF(Avropsblankett!$F$28<500,((Avropsblankett!$F$28-100)*Z17/50),((Avropsblankett!$F$28-500)*Z17/50))),"") ->  | AC19: =IF(Avropsblankett!$C$28=$A$16,IF(Avropsblankett!$F$28="","",IF(Avropsblankett!$F$28<500,AC17,AC18)),"") ->  | AE19: =IF(Avropsblankett!$C$28=$A$16,IF(Avropsblankett!$F$28="","",IF(Avropsblankett!$F$28<500,((Avropsblankett!$F$28-100)*AE17/50),((Avropsblankett!$F$28-500)*AE17/50))),"") ->  | AH19: =IF(Avropsblankett!$C$28=$A$16,IF(Avropsblankett!$F$28="","",IF(Avropsblankett!$F$28<500,AH17,AH18)),"") ->  | AJ19: =IF(Avropsblankett!$C$28=$A$16,IF(Avropsblankett!$F$28="","",IF(Avropsblankett!$F$28<500,((Avropsblankett!$F$28-100)*AJ17/50),((Avropsblankett!$F$28-500)*AJ17/50))),"") ->  | AM19: =IF(Avropsblankett!$C$28=$A$16,IF(Avropsblankett!$F$28="","",IF(Avropsblankett!$F$28<500,AM17,AM18)),"") ->  | AO19: =IF(Avropsblankett!$C$28=$A$16,IF(Avropsblankett!$F$28="","",IF(Avropsblankett!$F$28<500,((Avropsblankett!$F$28-100)*AO17/50),((Avropsblankett!$F$28-500)*AO17/50))),"") ->  | AR19: =IF(Avropsblankett!$C$28=$A$16,IF(Avropsblankett!$F$28="","",IF(Avropsblankett!$F$28<500,AR17,AR18)),"") ->  | AT19: =IF(Avropsblankett!$C$28=$A$16,IF(Avropsblankett!$F$28="","",IF(Avropsblankett!$F$28<500,((Avropsblankett!$F$28-100)*AT17/50),((Avropsblankett!$F$28-500)*AT17/50))),"") ->  | AW19: =IF(Avropsblankett!$C$28=$A$16,IF(Avropsblankett!$F$28="","",IF(Avropsblankett!$F$28<500,AW17,AW18)),"") ->  | AY19: =IF(Avropsblankett!$C$28=$A$16,IF(Avropsblankett!$F$28="","",IF(Avropsblankett!$F$28<500,((Avropsblankett!$F$28-100)*AY17/50),((Avropsblankett!$F$28-500)*AY17/50))),"") -> 
D20: =IF(Avropsblankett!$C$40=$A$16,IF(Avropsblankett!$F$40="","",IF(Avropsblankett!$F$40<500,D17,D18)),"") ->  | F20: =IF(Avropsblankett!$C$40=$A$16,IF(Avropsblankett!$F$40="","",IF(Avropsblankett!$F$40<500,((Avropsblankett!$F$40-100)*F17/50),((Avropsblankett!$F$40-500)*F17/50))),"") ->  | I20: =IF(Avropsblankett!$C$40=$A$16,IF(Avropsblankett!$F$40="","",IF(Avropsblankett!$F$40<500,I17,I18)),"") ->  | K20: =IF(Avropsblankett!$C$40=$A$16,IF(Avropsblankett!$F$40="","",IF(Avropsblankett!$F$40<500,((Avropsblankett!$F$40-100)*K17/50),((Avropsblankett!$F$40-500)*K17/50))),"") ->  | N20: =IF(Avropsblankett!$C$40=$A$16,IF(Avropsblankett!$F$40="","",IF(Avropsblankett!$F$40<500,N17,N18)),"") ->  | P20: =IF(Avropsblankett!$C$40=$A$16,IF(Avropsblankett!$F$40="","",IF(Avropsblankett!$F$40<500,((Avropsblankett!$F$40-100)*P17/50),((Avropsblankett!$F$40-500)*P17/50))),"") ->  | S20: =IF(Avropsblankett!$C$40=$A$16,IF(Avropsblankett!$F$40="","",IF(Avropsblankett!$F$40<500,S17,S18)),"") ->  | U20: =IF(Avropsblankett!$C$40=$A$16,IF(Avropsblankett!$F$40="","",IF(Avropsblankett!$F$40<500,((Avropsblankett!$F$40-100)*U17/50),((Avropsblankett!$F$40-500)*U17/50))),"") ->  | X20: =IF(Avropsblankett!$C$40=$A$16,IF(Avropsblankett!$F$40="","",IF(Avropsblankett!$F$40<500,X17,X18)),"") ->  | Z20: =IF(Avropsblankett!$C$40=$A$16,IF(Avropsblankett!$F$40="","",IF(Avropsblankett!$F$40<500,((Avropsblankett!$F$40-100)*Z17/50),((Avropsblankett!$F$40-500)*Z17/50))),"") ->  | AC20: =IF(Avropsblankett!$C$40=$A$16,IF(Avropsblankett!$F$40="","",IF(Avropsblankett!$F$40<500,AC17,AC18)),"") ->  | AE20: =IF(Avropsblankett!$C$40=$A$16,IF(Avropsblankett!$F$40="","",IF(Avropsblankett!$F$40<500,((Avropsblankett!$F$40-100)*AE17/50),((Avropsblankett!$F$40-500)*AE17/50))),"") ->  | AH20: =IF(Avropsblankett!$C$40=$A$16,IF(Avropsblankett!$F$40="","",IF(Avropsblankett!$F$40<500,AH17,AH18)),"") ->  | AJ20: =IF(Avropsblankett!$C$40=$A$16,IF(Avropsblankett!$F$40="","",IF(Avropsblankett!$F$40<500,((Avropsblankett!$F$40-100)*AJ17/50),((Avropsblankett!$F$40-500)*AJ17/50))),"") ->  | AM20: =IF(Avropsblankett!$C$40=$A$16,IF(Avropsblankett!$F$40="","",IF(Avropsblankett!$F$40<500,AM17,AM18)),"") ->  | AO20: =IF(Avropsblankett!$C$40=$A$16,IF(Avropsblankett!$F$40="","",IF(Avropsblankett!$F$40<500,((Avropsblankett!$F$40-100)*AO17/50),((Avropsblankett!$F$40-500)*AO17/50))),"") ->  | AR20: =IF(Avropsblankett!$C$40=$A$16,IF(Avropsblankett!$F$40="","",IF(Avropsblankett!$F$40<500,AR17,AR18)),"") ->  | AT20: =IF(Avropsblankett!$C$40=$A$16,IF(Avropsblankett!$F$40="","",IF(Avropsblankett!$F$40<500,((Avropsblankett!$F$40-100)*AT17/50),((Avropsblankett!$F$40-500)*AT17/50))),"") ->  | AW20: =IF(Avropsblankett!$C$40=$A$16,IF(Avropsblankett!$F$40="","",IF(Avropsblankett!$F$40<500,AW17,AW18)),"") ->  | AY20: =IF(Avropsblankett!$C$40=$A$16,IF(Avropsblankett!$F$40="","",IF(Avropsblankett!$F$40<500,((Avropsblankett!$F$40-100)*AY17/50),((Avropsblankett!$F$40-500)*AY17/50))),"") -> 
D21: =IF(Avropsblankett!$C$52=$A$16,IF(Avropsblankett!$F$52="","",IF(Avropsblankett!$F$52<500,D17,D18)),"") ->  | F21: =IF(Avropsblankett!$C$52=$A$16,IF(Avropsblankett!$F$52="","",IF(Avropsblankett!$F$52<500,((Avropsblankett!$F$52-100)*F17/50),((Avropsblankett!$F$52-500)*F17/50))),"") ->  | I21: =IF(Avropsblankett!$C$52=$A$16,IF(Avropsblankett!$F$52="","",IF(Avropsblankett!$F$52<500,I17,I18)),"") ->  | K21: =IF(Avropsblankett!$C$52=$A$16,IF(Avropsblankett!$F$52="","",IF(Avropsblankett!$F$52<500,((Avropsblankett!$F$52-100)*K17/50),((Avropsblankett!$F$52-500)*K17/50))),"") ->  | N21: =IF(Avropsblankett!$C$52=$A$16,IF(Avropsblankett!$F$52="","",IF(Avropsblankett!$F$52<500,N17,N18)),"") ->  | P21: =IF(Avropsblankett!$C$52=$A$16,IF(Avropsblankett!$F$52="","",IF(Avropsblankett!$F$52<500,((Avropsblankett!$F$52-100)*P17/50),((Avropsblankett!$F$52-500)*P17/50))),"") ->  | S21: =IF(Avropsblankett!$C$52=$A$16,IF(Avropsblankett!$F$52="","",IF(Avropsblankett!$F$52<500,S17,S18)),"") ->  | U21: =IF(Avropsblankett!$C$52=$A$16,IF(Avropsblankett!$F$52="","",IF(Avropsblankett!$F$52<500,((Avropsblankett!$F$52-100)*U17/50),((Avropsblankett!$F$52-500)*U17/50))),"") ->  | X21: =IF(Avropsblankett!$C$52=$A$16,IF(Avropsblankett!$F$52="","",IF(Avropsblankett!$F$52<500,X17,X18)),"") ->  | Z21: =IF(Avropsblankett!$C$52=$A$16,IF(Avropsblankett!$F$52="","",IF(Avropsblankett!$F$52<500,((Avropsblankett!$F$52-100)*Z17/50),((Avropsblankett!$F$52-500)*Z17/50))),"") ->  | AC21: =IF(Avropsblankett!$C$52=$A$16,IF(Avropsblankett!$F$52="","",IF(Avropsblankett!$F$52<500,AC17,AC18)),"") ->  | AE21: =IF(Avropsblankett!$C$52=$A$16,IF(Avropsblankett!$F$52="","",IF(Avropsblankett!$F$52<500,((Avropsblankett!$F$52-100)*AE17/50),((Avropsblankett!$F$52-500)*AE17/50))),"") ->  | AH21: =IF(Avropsblankett!$C$52=$A$16,IF(Avropsblankett!$F$52="","",IF(Avropsblankett!$F$52<500,AH17,AH18)),"") ->  | AJ21: =IF(Avropsblankett!$C$52=$A$16,IF(Avropsblankett!$F$52="","",IF(Avropsblankett!$F$52<500,((Avropsblankett!$F$52-100)*AJ17/50),((Avropsblankett!$F$52-500)*AJ17/50))),"") ->  | AM21: =IF(Avropsblankett!$C$52=$A$16,IF(Avropsblankett!$F$52="","",IF(Avropsblankett!$F$52<500,AM17,AM18)),"") ->  | AO21: =IF(Avropsblankett!$C$52=$A$16,IF(Avropsblankett!$F$52="","",IF(Avropsblankett!$F$52<500,((Avropsblankett!$F$52-100)*AO17/50),((Avropsblankett!$F$52-500)*AO17/50))),"") ->  | AR21: =IF(Avropsblankett!$C$52=$A$16,IF(Avropsblankett!$F$52="","",IF(Avropsblankett!$F$52<500,AR17,AR18)),"") ->  | AT21: =IF(Avropsblankett!$C$52=$A$16,IF(Avropsblankett!$F$52="","",IF(Avropsblankett!$F$52<500,((Avropsblankett!$F$52-100)*AT17/50),((Avropsblankett!$F$52-500)*AT17/50))),"") ->  | AW21: =IF(Avropsblankett!$C$52=$A$16,IF(Avropsblankett!$F$52="","",IF(Avropsblankett!$F$52<500,AW17,AW18)),"") ->  | AY21: =IF(Avropsblankett!$C$52=$A$16,IF(Avropsblankett!$F$52="","",IF(Avropsblankett!$F$52<500,((Avropsblankett!$F$52-100)*AY17/50),((Avropsblankett!$F$52-500)*AY17/50))),"") -> 
D22: =IF(Avropsblankett!$C$64=$A$16,IF(Avropsblankett!$F$64="","",IF(Avropsblankett!$F$64<500,D17,D18)),"") ->  | F22: =IF(Avropsblankett!$C$64=$A$16,IF(Avropsblankett!$F$64="","",IF(Avropsblankett!$F$64<500,((Avropsblankett!$F$64-100)*F17/50),((Avropsblankett!$F$64-500)*F17/50))),"") ->  | I22: =IF(Avropsblankett!$C$64=$A$16,IF(Avropsblankett!$F$64="","",IF(Avropsblankett!$F$64<500,I17,I18)),"") ->  | K22: =IF(Avropsblankett!$C$64=$A$16,IF(Avropsblankett!$F$64="","",IF(Avropsblankett!$F$64<500,((Avropsblankett!$F$64-100)*K17/50),((Avropsblankett!$F$64-500)*K17/50))),"") ->  | N22: =IF(Avropsblankett!$C$64=$A$16,IF(Avropsblankett!$F$64="","",IF(Avropsblankett!$F$64<500,N17,N18)),"") ->  | P22: =IF(Avropsblankett!$C$64=$A$16,IF(Avropsblankett!$F$64="","",IF(Avropsblankett!$F$64<500,((Avropsblankett!$F$64-100)*P17/50),((Avropsblankett!$F$64-500)*P17/50))),"") ->  | S22: =IF(Avropsblankett!$C$64=$A$16,IF(Avropsblankett!$F$64="","",IF(Avropsblankett!$F$64<500,S17,S18)),"") ->  | U22: =IF(Avropsblankett!$C$64=$A$16,IF(Avropsblankett!$F$64="","",IF(Avropsblankett!$F$64<500,((Avropsblankett!$F$64-100)*U17/50),((Avropsblankett!$F$64-500)*U17/50))),"") ->  | X22: =IF(Avropsblankett!$C$64=$A$16,IF(Avropsblankett!$F$64="","",IF(Avropsblankett!$F$64<500,X17,X18)),"") ->  | Z22: =IF(Avropsblankett!$C$64=$A$16,IF(Avropsblankett!$F$64="","",IF(Avropsblankett!$F$64<500,((Avropsblankett!$F$64-100)*Z17/50),((Avropsblankett!$F$64-500)*Z17/50))),"") ->  | AC22: =IF(Avropsblankett!$C$64=$A$16,IF(Avropsblankett!$F$64="","",IF(Avropsblankett!$F$64<500,AC17,AC18)),"") ->  | AE22: =IF(Avropsblankett!$C$64=$A$16,IF(Avropsblankett!$F$64="","",IF(Avropsblankett!$F$64<500,((Avropsblankett!$F$64-100)*AE17/50),((Avropsblankett!$F$64-500)*AE17/50))),"") ->  | AH22: =IF(Avropsblankett!$C$64=$A$16,IF(Avropsblankett!$F$64="","",IF(Avropsblankett!$F$64<500,AH17,AH18)),"") ->  | AJ22: =IF(Avropsblankett!$C$64=$A$16,IF(Avropsblankett!$F$64="","",IF(Avropsblankett!$F$64<500,((Avropsblankett!$F$64-100)*AJ17/50),((Avropsblankett!$F$64-500)*AJ17/50))),"") ->  | AM22: =IF(Avropsblankett!$C$64=$A$16,IF(Avropsblankett!$F$64="","",IF(Avropsblankett!$F$64<500,AM17,AM18)),"") ->  | AO22: =IF(Avropsblankett!$C$64=$A$16,IF(Avropsblankett!$F$64="","",IF(Avropsblankett!$F$64<500,((Avropsblankett!$F$64-100)*AO17/50),((Avropsblankett!$F$64-500)*AO17/50))),"") ->  | AR22: =IF(Avropsblankett!$C$64=$A$16,IF(Avropsblankett!$F$64="","",IF(Avropsblankett!$F$64<500,AR17,AR18)),"") ->  | AT22: =IF(Avropsblankett!$C$64=$A$16,IF(Avropsblankett!$F$64="","",IF(Avropsblankett!$F$64<500,((Avropsblankett!$F$64-100)*AT17/50),((Avropsblankett!$F$64-500)*AT17/50))),"") ->  | AW22: =IF(Avropsblankett!$C$64=$A$16,IF(Avropsblankett!$F$64="","",IF(Avropsblankett!$F$64<500,AW17,AW18)),"") ->  | AY22: =IF(Avropsblankett!$C$64=$A$16,IF(Avropsblankett!$F$64="","",IF(Avropsblankett!$F$64<500,((Avropsblankett!$F$64-100)*AY17/50),((Avropsblankett!$F$64-500)*AY17/50))),"") -> 
D23: =IF(Avropsblankett!$C$76=$A$16,IF(Avropsblankett!$F$76="","",IF(Avropsblankett!$F$76<500,D17,D18)),"") ->  | F23: =IF(Avropsblankett!$C$76=$A$16,IF(Avropsblankett!$F$76="","",IF(Avropsblankett!$F$76<500,((Avropsblankett!$F$76-100)*F17/50),((Avropsblankett!$F$76-500)*F17/50))),"") ->  | I23: =IF(Avropsblankett!$C$76=$A$16,IF(Avropsblankett!$F$76="","",IF(Avropsblankett!$F$76<500,I17,I18)),"") ->  | K23: =IF(Avropsblankett!$C$76=$A$16,IF(Avropsblankett!$F$76="","",IF(Avropsblankett!$F$76<500,((Avropsblankett!$F$76-100)*K17/50),((Avropsblankett!$F$76-500)*K17/50))),"") ->  | N23: =IF(Avropsblankett!$C$76=$A$16,IF(Avropsblankett!$F$76="","",IF(Avropsblankett!$F$76<500,N17,N18)),"") ->  | P23: =IF(Avropsblankett!$C$76=$A$16,IF(Avropsblankett!$F$76="","",IF(Avropsblankett!$F$76<500,((Avropsblankett!$F$76-100)*P17/50),((Avropsblankett!$F$76-500)*P17/50))),"") ->  | S23: =IF(Avropsblankett!$C$76=$A$16,IF(Avropsblankett!$F$76="","",IF(Avropsblankett!$F$76<500,S17,S18)),"") ->  | U23: =IF(Avropsblankett!$C$76=$A$16,IF(Avropsblankett!$F$76="","",IF(Avropsblankett!$F$76<500,((Avropsblankett!$F$76-100)*U17/50),((Avropsblankett!$F$76-500)*U17/50))),"") ->  | X23: =IF(Avropsblankett!$C$76=$A$16,IF(Avropsblankett!$F$76="","",IF(Avropsblankett!$F$76<500,X17,X18)),"") ->  | Z23: =IF(Avropsblankett!$C$76=$A$16,IF(Avropsblankett!$F$76="","",IF(Avropsblankett!$F$76<500,((Avropsblankett!$F$76-100)*Z17/50),((Avropsblankett!$F$76-500)*Z17/50))),"") ->  | AC23: =IF(Avropsblankett!$C$76=$A$16,IF(Avropsblankett!$F$76="","",IF(Avropsblankett!$F$76<500,AC17,AC18)),"") ->  | AE23: =IF(Avropsblankett!$C$76=$A$16,IF(Avropsblankett!$F$76="","",IF(Avropsblankett!$F$76<500,((Avropsblankett!$F$76-100)*AE17/50),((Avropsblankett!$F$76-500)*AE17/50))),"") ->  | AH23: =IF(Avropsblankett!$C$76=$A$16,IF(Avropsblankett!$F$76="","",IF(Avropsblankett!$F$76<500,AH17,AH18)),"") ->  | AJ23: =IF(Avropsblankett!$C$76=$A$16,IF(Avropsblankett!$F$76="","",IF(Avropsblankett!$F$76<500,((Avropsblankett!$F$76-100)*AJ17/50),((Avropsblankett!$F$76-500)*AJ17/50))),"") ->  | AM23: =IF(Avropsblankett!$C$76=$A$16,IF(Avropsblankett!$F$76="","",IF(Avropsblankett!$F$76<500,AM17,AM18)),"") ->  | AO23: =IF(Avropsblankett!$C$76=$A$16,IF(Avropsblankett!$F$76="","",IF(Avropsblankett!$F$76<500,((Avropsblankett!$F$76-100)*AO17/50),((Avropsblankett!$F$76-500)*AO17/50))),"") ->  | AR23: =IF(Avropsblankett!$C$76=$A$16,IF(Avropsblankett!$F$76="","",IF(Avropsblankett!$F$76<500,AR17,AR18)),"") ->  | AT23: =IF(Avropsblankett!$C$76=$A$16,IF(Avropsblankett!$F$76="","",IF(Avropsblankett!$F$76<500,((Avropsblankett!$F$76-100)*AT17/50),((Avropsblankett!$F$76-500)*AT17/50))),"") ->  | AW23: =IF(Avropsblankett!$C$76=$A$16,IF(Avropsblankett!$F$76="","",IF(Avropsblankett!$F$76<500,AW17,AW18)),"") ->  | AY23: =IF(Avropsblankett!$C$76=$A$16,IF(Avropsblankett!$F$76="","",IF(Avropsblankett!$F$76<500,((Avropsblankett!$F$76-100)*AY17/50),((Avropsblankett!$F$76-500)*AY17/50))),"") -> 
D24: =SUM(D19:D23) -> 0 | F24: =SUM(F19:F23) -> 0 | I24: =SUM(I19:I23) -> 0 | K24: =SUM(K19:K23) -> 0 | N24: =SUM(N19:N23) -> 0 | P24: =SUM(P19:P23) -> 0 | S24: =SUM(S19:S23) -> 0 | U24: =SUM(U19:U23) -> 0 | X24: =SUM(X19:X23) -> 0 | Z24: =SUM(Z19:Z23) -> 0 | AC24: =SUM(AC19:AC23) -> 0 | AE24: =SUM(AE19:AE23) -> 0 | AH24: =SUM(AH19:AH23) -> 0 | AJ24: =SUM(AJ19:AJ23) -> 0 | AM24: =SUM(AM19:AM23) -> 0 | AO24: =SUM(AO19:AO23) -> 0 | AR24: =SUM(AR19:AR23) -> 0 | AT24: =SUM(AT19:AT23) -> 0 | AW24: =SUM(AW19:AW23) -> 0 | AY24: =SUM(AY19:AY23) -> 0
A25: Affischer_3 | C25: Upplaga | D25: Ange pris | E25: Följande | F25: Ange pris | H25: Upplaga | I25: Ange pris | J25: Följande | K25: Ange pris | M25: Upplaga | N25: Ange pris | O25: Följande | P25: Ange pris | R25: Upplaga | S25: Ange pris | T25: Följande | U25: Ange pris | W25: Upplaga | X25: Ange pris | Y25: Följande | Z25: Ange pris | AB25: Upplaga | AC25: Ange pris | AD25: Följande | AE25: Ange pris | AG25: Upplaga | AH25: Ange pris | AI25: Följande | AJ25: Ange pris | AL25: Upplaga | AM25: Ange pris | AN25: Följande | AO25: Ange pris | AQ25: Upplaga | AR25: Ange pris | AS25: Följande | AT25: Ange pris | AV25: Upplaga | AW25: Ange pris | AX25: Följande | AY25: Ange pris
A26: 700 x 1000 mm | C26: 100 | D26: 4500 | E26: 50 | F26: 200 | H26: 100 | I26: 4730 | J26: 50 | K26: 220 | M26: 100 | N26: 4200 | O26: 50 | P26: 200 | R26: 100 | S26: 3250 | T26: 50 | U26: 175 | W26: 100 | X26: 1725 | Y26: 50 | Z26: 92 | AB26: 100 | AC26: 2817 | AD26: 50 | AE26: 123 | AG26: 100 | AH26: 5000 | AI26: 50 | AJ26: 300 | AL26: 100 | AM26: 3150 | AN26: 50 | AO26: 360 | AQ26: 100 | AR26: 2500 | AS26: 50 | AT26: 95 | AV26: 100 | AW26: 2230 | AX26: 50 | AY26: 175
A27: 700 x 1000 mm | C27: 500 | D27: 6100 | H27: 500 | I27: 5610 | M27: 500 | N27: 5500 | R27: 500 | S27: 4400 | W27: 500 | X27: 2445 | AB27: 500 | AC27: 3815 | AG27: 500 | AH27: 6200 | AL27: 500 | AM27: 3980 | AQ27: 500 | AR27: 3250 | AV27: 500 | AW27: 3055
D28: =IF(Avropsblankett!$C$28=$A$25,IF(Avropsblankett!$F$28="","",IF(Avropsblankett!$F$28<500,D26,D27)),"") ->  | F28: =IF(Avropsblankett!$C$28=$A$25,IF(Avropsblankett!$F$28="","",IF(Avropsblankett!$F$28<500,((Avropsblankett!$F$28-100)*F26/50),((Avropsblankett!$F$28-500)*F26/50))),"") ->  | I28: =IF(Avropsblankett!$C$28=$A$25,IF(Avropsblankett!$F$28="","",IF(Avropsblankett!$F$28<500,I26,I27)),"") ->  | K28: =IF(Avropsblankett!$C$28=$A$25,IF(Avropsblankett!$F$28="","",IF(Avropsblankett!$F$28<500,((Avropsblankett!$F$28-100)*K26/50),((Avropsblankett!$F$28-500)*K26/50))),"") ->  | N28: =IF(Avropsblankett!$C$28=$A$25,IF(Avropsblankett!$F$28="","",IF(Avropsblankett!$F$28<500,N26,N27)),"") ->  | P28: =IF(Avropsblankett!$C$28=$A$25,IF(Avropsblankett!$F$28="","",IF(Avropsblankett!$F$28<500,((Avropsblankett!$F$28-100)*P26/50),((Avropsblankett!$F$28-500)*P26/50))),"") ->  | S28: =IF(Avropsblankett!$C$28=$A$25,IF(Avropsblankett!$F$28="","",IF(Avropsblankett!$F$28<500,S26,S27)),"") ->  | U28: =IF(Avropsblankett!$C$28=$A$25,IF(Avropsblankett!$F$28="","",IF(Avropsblankett!$F$28<500,((Avropsblankett!$F$28-100)*U26/50),((Avropsblankett!$F$28-500)*U26/50))),"") ->  | X28: =IF(Avropsblankett!$C$28=$A$25,IF(Avropsblankett!$F$28="","",IF(Avropsblankett!$F$28<500,X26,X27)),"") ->  | Z28: =IF(Avropsblankett!$C$28=$A$25,IF(Avropsblankett!$F$28="","",IF(Avropsblankett!$F$28<500,((Avropsblankett!$F$28-100)*Z26/50),((Avropsblankett!$F$28-500)*Z26/50))),"") ->  | AC28: =IF(Avropsblankett!$C$28=$A$25,IF(Avropsblankett!$F$28="","",IF(Avropsblankett!$F$28<500,AC26,AC27)),"") ->  | AE28: =IF(Avropsblankett!$C$28=$A$25,IF(Avropsblankett!$F$28="","",IF(Avropsblankett!$F$28<500,((Avropsblankett!$F$28-100)*AE26/50),((Avropsblankett!$F$28-500)*AE26/50))),"") ->  | AH28: =IF(Avropsblankett!$C$28=$A$25,IF(Avropsblankett!$F$28="","",IF(Avropsblankett!$F$28<500,AH26,AH27)),"") ->  | AJ28: =IF(Avropsblankett!$C$28=$A$25,IF(Avropsblankett!$F$28="","",IF(Avropsblankett!$F$28<500,((Avropsblankett!$F$28-100)*AJ26/50),((Avropsblankett!$F$28-500)*AJ26/50))),"") ->  | AM28: =IF(Avropsblankett!$C$28=$A$25,IF(Avropsblankett!$F$28="","",IF(Avropsblankett!$F$28<500,AM26,AM27)),"") ->  | AO28: =IF(Avropsblankett!$C$28=$A$25,IF(Avropsblankett!$F$28="","",IF(Avropsblankett!$F$28<500,((Avropsblankett!$F$28-100)*AO26/50),((Avropsblankett!$F$28-500)*AO26/50))),"") ->  | AR28: =IF(Avropsblankett!$C$28=$A$25,IF(Avropsblankett!$F$28="","",IF(Avropsblankett!$F$28<500,AR26,AR27)),"") ->  | AT28: =IF(Avropsblankett!$C$28=$A$25,IF(Avropsblankett!$F$28="","",IF(Avropsblankett!$F$28<500,((Avropsblankett!$F$28-100)*AT26/50),((Avropsblankett!$F$28-500)*AT26/50))),"") ->  | AW28: =IF(Avropsblankett!$C$28=$A$25,IF(Avropsblankett!$F$28="","",IF(Avropsblankett!$F$28<500,AW26,AW27)),"") ->  | AY28: =IF(Avropsblankett!$C$28=$A$25,IF(Avropsblankett!$F$28="","",IF(Avropsblankett!$F$28<500,((Avropsblankett!$F$28-100)*AY26/50),((Avropsblankett!$F$28-500)*AY26/50))),"") -> 
D29: =IF(Avropsblankett!$C$40=$A$25,IF(Avropsblankett!$F$40="","",IF(Avropsblankett!$F$40<500,D26,D27)),"") ->  | F29: =IF(Avropsblankett!$C$40=$A$25,IF(Avropsblankett!$F$40="","",IF(Avropsblankett!$F$40<500,((Avropsblankett!$F$40-100)*F26/50),((Avropsblankett!$F$40-500)*F26/50))),"") ->  | I29: =IF(Avropsblankett!$C$40=$A$25,IF(Avropsblankett!$F$40="","",IF(Avropsblankett!$F$40<500,I26,I27)),"") ->  | K29: =IF(Avropsblankett!$C$40=$A$25,IF(Avropsblankett!$F$40="","",IF(Avropsblankett!$F$40<500,((Avropsblankett!$F$40-100)*K26/50),((Avropsblankett!$F$40-500)*K26/50))),"") ->  | N29: =IF(Avropsblankett!$C$40=$A$25,IF(Avropsblankett!$F$40="","",IF(Avropsblankett!$F$40<500,N26,N27)),"") ->  | P29: =IF(Avropsblankett!$C$40=$A$25,IF(Avropsblankett!$F$40="","",IF(Avropsblankett!$F$40<500,((Avropsblankett!$F$40-100)*P26/50),((Avropsblankett!$F$40-500)*P26/50))),"") ->  | S29: =IF(Avropsblankett!$C$40=$A$25,IF(Avropsblankett!$F$40="","",IF(Avropsblankett!$F$40<500,S26,S27)),"") ->  | U29: =IF(Avropsblankett!$C$40=$A$25,IF(Avropsblankett!$F$40="","",IF(Avropsblankett!$F$40<500,((Avropsblankett!$F$40-100)*U26/50),((Avropsblankett!$F$40-500)*U26/50))),"") ->  | X29: =IF(Avropsblankett!$C$40=$A$25,IF(Avropsblankett!$F$40="","",IF(Avropsblankett!$F$40<500,X26,X27)),"") ->  | Z29: =IF(Avropsblankett!$C$40=$A$25,IF(Avropsblankett!$F$40="","",IF(Avropsblankett!$F$40<500,((Avropsblankett!$F$40-100)*Z26/50),((Avropsblankett!$F$40-500)*Z26/50))),"") ->  | AC29: =IF(Avropsblankett!$C$40=$A$25,IF(Avropsblankett!$F$40="","",IF(Avropsblankett!$F$40<500,AC26,AC27)),"") ->  | AE29: =IF(Avropsblankett!$C$40=$A$25,IF(Avropsblankett!$F$40="","",IF(Avropsblankett!$F$40<500,((Avropsblankett!$F$40-100)*AE26/50),((Avropsblankett!$F$40-500)*AE26/50))),"") ->  | AH29: =IF(Avropsblankett!$C$40=$A$25,IF(Avropsblankett!$F$40="","",IF(Avropsblankett!$F$40<500,AH26,AH27)),"") ->  | AJ29: =IF(Avropsblankett!$C$40=$A$25,IF(Avropsblankett!$F$40="","",IF(Avropsblankett!$F$40<500,((Avropsblankett!$F$40-100)*AJ26/50),((Avropsblankett!$F$40-500)*AJ26/50))),"") ->  | AM29: =IF(Avropsblankett!$C$40=$A$25,IF(Avropsblankett!$F$40="","",IF(Avropsblankett!$F$40<500,AM26,AM27)),"") ->  | AO29: =IF(Avropsblankett!$C$40=$A$25,IF(Avropsblankett!$F$40="","",IF(Avropsblankett!$F$40<500,((Avropsblankett!$F$40-100)*AO26/50),((Avropsblankett!$F$40-500)*AO26/50))),"") ->  | AR29: =IF(Avropsblankett!$C$40=$A$25,IF(Avropsblankett!$F$40="","",IF(Avropsblankett!$F$40<500,AR26,AR27)),"") ->  | AT29: =IF(Avropsblankett!$C$40=$A$25,IF(Avropsblankett!$F$40="","",IF(Avropsblankett!$F$40<500,((Avropsblankett!$F$40-100)*AT26/50),((Avropsblankett!$F$40-500)*AT26/50))),"") ->  | AW29: =IF(Avropsblankett!$C$40=$A$25,IF(Avropsblankett!$F$40="","",IF(Avropsblankett!$F$40<500,AW26,AW27)),"") ->  | AY29: =IF(Avropsblankett!$C$40=$A$25,IF(Avropsblankett!$F$40="","",IF(Avropsblankett!$F$40<500,((Avropsblankett!$F$40-100)*AY26/50),((Avropsblankett!$F$40-500)*AY26/50))),"") -> 
D30: =IF(Avropsblankett!$C$52=$A$25,IF(Avropsblankett!$F$52="","",IF(Avropsblankett!$F$52<500,D26,D27)),"") ->  | F30: =IF(Avropsblankett!$C$52=$A$25,IF(Avropsblankett!$F$52="","",IF(Avropsblankett!$F$52<500,((Avropsblankett!$F$52-100)*F26/50),((Avropsblankett!$F$52-500)*F26/50))),"") ->  | I30: =IF(Avropsblankett!$C$52=$A$25,IF(Avropsblankett!$F$52="","",IF(Avropsblankett!$F$52<500,I26,I27)),"") ->  | K30: =IF(Avropsblankett!$C$52=$A$25,IF(Avropsblankett!$F$52="","",IF(Avropsblankett!$F$52<500,((Avropsblankett!$F$52-100)*K26/50),((Avropsblankett!$F$52-500)*K26/50))),"") ->  | N30: =IF(Avropsblankett!$C$52=$A$25,IF(Avropsblankett!$F$52="","",IF(Avropsblankett!$F$52<500,N26,N27)),"") ->  | P30: =IF(Avropsblankett!$C$52=$A$25,IF(Avropsblankett!$F$52="","",IF(Avropsblankett!$F$52<500,((Avropsblankett!$F$52-100)*P26/50),((Avropsblankett!$F$52-500)*P26/50))),"") ->  | S30: =IF(Avropsblankett!$C$52=$A$25,IF(Avropsblankett!$F$52="","",IF(Avropsblankett!$F$52<500,S26,S27)),"") ->  | U30: =IF(Avropsblankett!$C$52=$A$25,IF(Avropsblankett!$F$52="","",IF(Avropsblankett!$F$52<500,((Avropsblankett!$F$52-100)*U26/50),((Avropsblankett!$F$52-500)*U26/50))),"") ->  | X30: =IF(Avropsblankett!$C$52=$A$25,IF(Avropsblankett!$F$52="","",IF(Avropsblankett!$F$52<500,X26,X27)),"") ->  | Z30: =IF(Avropsblankett!$C$52=$A$25,IF(Avropsblankett!$F$52="","",IF(Avropsblankett!$F$52<500,((Avropsblankett!$F$52-100)*Z26/50),((Avropsblankett!$F$52-500)*Z26/50))),"") ->  | AC30: =IF(Avropsblankett!$C$52=$A$25,IF(Avropsblankett!$F$52="","",IF(Avropsblankett!$F$52<500,AC26,AC27)),"") ->  | AE30: =IF(Avropsblankett!$C$52=$A$25,IF(Avropsblankett!$F$52="","",IF(Avropsblankett!$F$52<500,((Avropsblankett!$F$52-100)*AE26/50),((Avropsblankett!$F$52-500)*AE26/50))),"") ->  | AH30: =IF(Avropsblankett!$C$52=$A$25,IF(Avropsblankett!$F$52="","",IF(Avropsblankett!$F$52<500,AH26,AH27)),"") ->  | AJ30: =IF(Avropsblankett!$C$52=$A$25,IF(Avropsblankett!$F$52="","",IF(Avropsblankett!$F$52<500,((Avropsblankett!$F$52-100)*AJ26/50),((Avropsblankett!$F$52-500)*AJ26/50))),"") ->  | AM30: =IF(Avropsblankett!$C$52=$A$25,IF(Avropsblankett!$F$52="","",IF(Avropsblankett!$F$52<500,AM26,AM27)),"") ->  | AO30: =IF(Avropsblankett!$C$52=$A$25,IF(Avropsblankett!$F$52="","",IF(Avropsblankett!$F$52<500,((Avropsblankett!$F$52-100)*AO26/50),((Avropsblankett!$F$52-500)*AO26/50))),"") ->  | AR30: =IF(Avropsblankett!$C$52=$A$25,IF(Avropsblankett!$F$52="","",IF(Avropsblankett!$F$52<500,AR26,AR27)),"") ->  | AT30: =IF(Avropsblankett!$C$52=$A$25,IF(Avropsblankett!$F$52="","",IF(Avropsblankett!$F$52<500,((Avropsblankett!$F$52-100)*AT26/50),((Avropsblankett!$F$52-500)*AT26/50))),"") ->  | AW30: =IF(Avropsblankett!$C$52=$A$25,IF(Avropsblankett!$F$52="","",IF(Avropsblankett!$F$52<500,AW26,AW27)),"") ->  | AY30: =IF(Avropsblankett!$C$52=$A$25,IF(Avropsblankett!$F$52="","",IF(Avropsblankett!$F$52<500,((Avropsblankett!$F$52-100)*AY26/50),((Avropsblankett!$F$52-500)*AY26/50))),"") -> 
D31: =IF(Avropsblankett!$C$64=$A$25,IF(Avropsblankett!$F$64="","",IF(Avropsblankett!$F$64<500,D26,D27)),"") ->  | F31: =IF(Avropsblankett!$C$64=$A$25,IF(Avropsblankett!$F$64="","",IF(Avropsblankett!$F$64<500,((Avropsblankett!$F$64-100)*F26/50),((Avropsblankett!$F$64-500)*F26/50))),"") ->  | I31: =IF(Avropsblankett!$C$64=$A$25,IF(Avropsblankett!$F$64="","",IF(Avropsblankett!$F$64<500,I26,I27)),"") ->  | K31: =IF(Avropsblankett!$C$64=$A$25,IF(Avropsblankett!$F$64="","",IF(Avropsblankett!$F$64<500,((Avropsblankett!$F$64-100)*K26/50),((Avropsblankett!$F$64-500)*K26/50))),"") ->  | N31: =IF(Avropsblankett!$C$64=$A$25,IF(Avropsblankett!$F$64="","",IF(Avropsblankett!$F$64<500,N26,N27)),"") ->  | P31: =IF(Avropsblankett!$C$64=$A$25,IF(Avropsblankett!$F$64="","",IF(Avropsblankett!$F$64<500,((Avropsblankett!$F$64-100)*P26/50),((Avropsblankett!$F$64-500)*P26/50))),"") ->  | S31: =IF(Avropsblankett!$C$64=$A$25,IF(Avropsblankett!$F$64="","",IF(Avropsblankett!$F$64<500,S26,S27)),"") ->  | U31: =IF(Avropsblankett!$C$64=$A$25,IF(Avropsblankett!$F$64="","",IF(Avropsblankett!$F$64<500,((Avropsblankett!$F$64-100)*U26/50),((Avropsblankett!$F$64-500)*U26/50))),"") ->  | X31: =IF(Avropsblankett!$C$64=$A$25,IF(Avropsblankett!$F$64="","",IF(Avropsblankett!$F$64<500,X26,X27)),"") ->  | Z31: =IF(Avropsblankett!$C$64=$A$25,IF(Avropsblankett!$F$64="","",IF(Avropsblankett!$F$64<500,((Avropsblankett!$F$64-100)*Z26/50),((Avropsblankett!$F$64-500)*Z26/50))),"") ->  | AC31: =IF(Avropsblankett!$C$64=$A$25,IF(Avropsblankett!$F$64="","",IF(Avropsblankett!$F$64<500,AC26,AC27)),"") ->  | AE31: =IF(Avropsblankett!$C$64=$A$25,IF(Avropsblankett!$F$64="","",IF(Avropsblankett!$F$64<500,((Avropsblankett!$F$64-100)*AE26/50),((Avropsblankett!$F$64-500)*AE26/50))),"") ->  | AH31: =IF(Avropsblankett!$C$64=$A$25,IF(Avropsblankett!$F$64="","",IF(Avropsblankett!$F$64<500,AH26,AH27)),"") ->  | AJ31: =IF(Avropsblankett!$C$64=$A$25,IF(Avropsblankett!$F$64="","",IF(Avropsblankett!$F$64<500,((Avropsblankett!$F$64-100)*AJ26/50),((Avropsblankett!$F$64-500)*AJ26/50))),"") ->  | AM31: =IF(Avropsblankett!$C$64=$A$25,IF(Avropsblankett!$F$64="","",IF(Avropsblankett!$F$64<500,AM26,AM27)),"") ->  | AO31: =IF(Avropsblankett!$C$64=$A$25,IF(Avropsblankett!$F$64="","",IF(Avropsblankett!$F$64<500,((Avropsblankett!$F$64-100)*AO26/50),((Avropsblankett!$F$64-500)*AO26/50))),"") ->  | AR31: =IF(Avropsblankett!$C$64=$A$25,IF(Avropsblankett!$F$64="","",IF(Avropsblankett!$F$64<500,AR26,AR27)),"") ->  | AT31: =IF(Avropsblankett!$C$64=$A$25,IF(Avropsblankett!$F$64="","",IF(Avropsblankett!$F$64<500,((Avropsblankett!$F$64-100)*AT26/50),((Avropsblankett!$F$64-500)*AT26/50))),"") ->  | AW31: =IF(Avropsblankett!$C$64=$A$25,IF(Avropsblankett!$F$64="","",IF(Avropsblankett!$F$64<500,AW26,AW27)),"") ->  | AY31: =IF(Avropsblankett!$C$64=$A$25,IF(Avropsblankett!$F$64="","",IF(Avropsblankett!$F$64<500,((Avropsblankett!$F$64-100)*AY26/50),((Avropsblankett!$F$64-500)*AY26/50))),"") -> 
D32: =IF(Avropsblankett!$C$76=$A$25,IF(Avropsblankett!$F$76="","",IF(Avropsblankett!$F$76<500,D26,D27)),"") ->  | F32: =IF(Avropsblankett!$C$76=$A$25,IF(Avropsblankett!$F$76="","",IF(Avropsblankett!$F$76<500,((Avropsblankett!$F$76-100)*F26/50),((Avropsblankett!$F$76-500)*F26/50))),"") ->  | I32: =IF(Avropsblankett!$C$76=$A$25,IF(Avropsblankett!$F$76="","",IF(Avropsblankett!$F$76<500,I26,I27)),"") ->  | K32: =IF(Avropsblankett!$C$76=$A$25,IF(Avropsblankett!$F$76="","",IF(Avropsblankett!$F$76<500,((Avropsblankett!$F$76-100)*K26/50),((Avropsblankett!$F$76-500)*K26/50))),"") ->  | N32: =IF(Avropsblankett!$C$76=$A$25,IF(Avropsblankett!$F$76="","",IF(Avropsblankett!$F$76<500,N26,N27)),"") ->  | P32: =IF(Avropsblankett!$C$76=$A$25,IF(Avropsblankett!$F$76="","",IF(Avropsblankett!$F$76<500,((Avropsblankett!$F$76-100)*P26/50),((Avropsblankett!$F$76-500)*P26/50))),"") ->  | S32: =IF(Avropsblankett!$C$76=$A$25,IF(Avropsblankett!$F$76="","",IF(Avropsblankett!$F$76<500,S26,S27)),"") ->  | U32: =IF(Avropsblankett!$C$76=$A$25,IF(Avropsblankett!$F$76="","",IF(Avropsblankett!$F$76<500,((Avropsblankett!$F$76-100)*U26/50),((Avropsblankett!$F$76-500)*U26/50))),"") ->  | X32: =IF(Avropsblankett!$C$76=$A$25,IF(Avropsblankett!$F$76="","",IF(Avropsblankett!$F$76<500,X26,X27)),"") ->  | Z32: =IF(Avropsblankett!$C$76=$A$25,IF(Avropsblankett!$F$76="","",IF(Avropsblankett!$F$76<500,((Avropsblankett!$F$76-100)*Z26/50),((Avropsblankett!$F$76-500)*Z26/50))),"") ->  | AC32: =IF(Avropsblankett!$C$76=$A$25,IF(Avropsblankett!$F$76="","",IF(Avropsblankett!$F$76<500,AC26,AC27)),"") ->  | AE32: =IF(Avropsblankett!$C$76=$A$25,IF(Avropsblankett!$F$76="","",IF(Avropsblankett!$F$76<500,((Avropsblankett!$F$76-100)*AE26/50),((Avropsblankett!$F$76-500)*AE26/50))),"") ->  | AH32: =IF(Avropsblankett!$C$76=$A$25,IF(Avropsblankett!$F$76="","",IF(Avropsblankett!$F$76<500,AH26,AH27)),"") ->  | AJ32: =IF(Avropsblankett!$C$76=$A$25,IF(Avropsblankett!$F$76="","",IF(Avropsblankett!$F$76<500,((Avropsblankett!$F$76-100)*AJ26/50),((Avropsblankett!$F$76-500)*AJ26/50))),"") ->  | AM32: =IF(Avropsblankett!$C$76=$A$25,IF(Avropsblankett!$F$76="","",IF(Avropsblankett!$F$76<500,AM26,AM27)),"") ->  | AO32: =IF(Avropsblankett!$C$76=$A$25,IF(Avropsblankett!$F$76="","",IF(Avropsblankett!$F$76<500,((Avropsblankett!$F$76-100)*AO26/50),((Avropsblankett!$F$76-500)*AO26/50))),"") ->  | AR32: =IF(Avropsblankett!$C$76=$A$25,IF(Avropsblankett!$F$76="","",IF(Avropsblankett!$F$76<500,AR26,AR27)),"") ->  | AT32: =IF(Avropsblankett!$C$76=$A$25,IF(Avropsblankett!$F$76="","",IF(Avropsblankett!$F$76<500,((Avropsblankett!$F$76-100)*AT26/50),((Avropsblankett!$F$76-500)*AT26/50))),"") ->  | AW32: =IF(Avropsblankett!$C$76=$A$25,IF(Avropsblankett!$F$76="","",IF(Avropsblankett!$F$76<500,AW26,AW27)),"") ->  | AY32: =IF(Avropsblankett!$C$76=$A$25,IF(Avropsblankett!$F$76="","",IF(Avropsblankett!$F$76<500,((Avropsblankett!$F$76-100)*AY26/50),((Avropsblankett!$F$76-500)*AY26/50))),"") -> 
D33: =SUM(D28:D32) -> 0 | F33: =SUM(F28:F32) -> 0 | I33: =SUM(I28:I32) -> 0 | K33: =SUM(K28:K32) -> 0 | N33: =SUM(N28:N32) -> 0 | P33: =SUM(P28:P32) -> 0 | S33: =SUM(S28:S32) -> 0 | U33: =SUM(U28:U32) -> 0 | X33: =SUM(X28:X32) -> 0 | Z33: =SUM(Z28:Z32) -> 0 | AC33: =SUM(AC28:AC32) -> 0 | AE33: =SUM(AE28:AE32) -> 0 | AH33: =SUM(AH28:AH32) -> 0 | AJ33: =SUM(AJ28:AJ32) -> 0 | AM33: =SUM(AM28:AM32) -> 0 | AO33: =SUM(AO28:AO32) -> 0 | AR33: =SUM(AR28:AR32) -> 0 | AT33: =SUM(AT28:AT32) -> 0 | AW33: =SUM(AW28:AW32) -> 0 | AY33: =SUM(AY28:AY32) -> 0
C34: Summa | D34: =SUM(D15,D24,D33) -> 0 | F34: =SUM(F15,F24,F33) -> 0 | H34: Summa | I34: =SUM(I15,I24,I33) -> 0 | K34: =SUM(K15,K24,K33) -> 0 | M34: Summa | N34: =SUM(N15,N24,N33) -> 0 | P34: =SUM(P15,P24,P33) -> 0 | R34: Summa | S34: =SUM(S15,S24,S33) -> 0 | U34: =SUM(U15,U24,U33) -> 0 | W34: Summa | X34: =SUM(X15,X24,X33) -> 0 | Z34: =SUM(Z15,Z24,Z33) -> 0 | AB34: Summa | AC34: =SUM(AC15,AC24,AC33) -> 0 | AE34: =SUM(AE15,AE24,AE33) -> 0 | AG34: Summa | AH34: =SUM(AH15,AH24,AH33) -> 0 | AJ34: =SUM(AJ15,AJ24,AJ33) -> 0 | AL34: Summa | AM34: =SUM(AM15,AM24,AM33) -> 0 | AO34: =SUM(AO15,AO24,AO33) -> 0 | AQ34: Summa | AR34: =SUM(AR15,AR24,AR33) -> 0 | AT34: =SUM(AT15,AT24,AT33) -> 0 | AV34: Summa | AW34: =SUM(AW15,AW24,AW33) -> 0 | AY34: =SUM(AY15,AY24,AY33) -> 0
C35: Totalsumma | D35: =SUM(D34,F34) -> 0 | H35: Totalsumma | I35: =SUM(I34,K34) -> 0 | M35: Totalsumma | N35: =SUM(N34,P34) -> 0 | R35: Totalsumma | S35: =SUM(S34,U34) -> 0 | W35: Totalsumma | X35: =SUM(X34,Z34) -> 0 | AB35: Totalsumma | AC35: =SUM(AC34,AE34) -> 0 | AG35: Totalsumma | AH35: =SUM(AH34,AJ34) -> 0 | AL35: Totalsumma | AM35: =SUM(AM34,AO34) -> 0 | AQ35: Totalsumma | AR35: =SUM(AR34,AT34) -> 0 | AV35: Totalsumma | AW35: =SUM(AW34,AY34) -> 0
B37: =A8 -> 297 x 420 mm
B38: =A17 -> 500 x 700 mm
B39: =A26 -> 700 x 1000 mm
B40: =#REF! -> 

Sheet Ateljétjänster
A1: Ateljétjänster | B1: =Uträkningsblad!C4 -> Bröderna Hansson H-tryck Aktiebolag | D1: =Uträkningsblad!D4 -> Elanders Sverige AB | F1: =Uträkningsblad!E4 -> Exakta Print AB | H1: =Uträkningsblad!F4 -> Kalmar Kuvert Sweden AB | J1: =Uträkningsblad!G4 -> Ljungbergs Tryckeri i Klippan AB | L1: =Uträkningsblad!H4 -> Scandinavian Print Group Sweden AB | N1: =Uträkningsblad!I4 -> Stema Specialtryck AB | P1: =Uträkningsblad!J4 -> Stibo Complete A/S | R1: =Uträkningsblad!K4 -> Åtta.45 Tryckeri AB | T1: =Uträkningsblad!L4 -> Leverantör 10
B3: Priser lämnas i gulmarkerade fält nedan | D3: Priser lämnas i gulmarkerade fält nedan | F3: Priser lämnas i gulmarkerade fält nedan | H3: Priser lämnas i gulmarkerade fält nedan | J3: Priser lämnas i gulmarkerade fält nedan | L3: Priser lämnas i gulmarkerade fält nedan | N3: Priser lämnas i gulmarkerade fält nedan | P3: Priser lämnas i gulmarkerade fält nedan | R3: Priser lämnas i gulmarkerade fält nedan | T3: Priser lämnas i gulmarkerade fält nedan
A4: Typ av tjänst | B4: Pris per timme | D4: Pris per timme | F4: Pris per timme | H4: Pris per timme | J4: Pris per timme | L4: Pris per timme | N4: Pris per timme | P4: Pris per timme | R4: Pris per timme | T4: Pris per timme
A5: Bildbearbetning, tex färgjustering och tryckanpassning | B5: 750 | D5: 750 | F5: 1000 | H5: 400 | J5: 295 | L5: 495 | N5: 500 | P5: 395 | R5: 595 | T5: 750
A6: Prepressarbete | B6: 750 | D6: 700 | F6: 1000 | H6: 400 | J6: 295 | L6: 495 | N6: 500 | P6: 395 | R6: 595 | T6: 750
A7: Retusch | B7: 750 | D7: 750 | F7: 1000 | H7: 400 | J7: 295 | L7: 495 | N7: 500 | P7: 395 | R7: 595 | T7: 750
A8: Layoutarbete med befintlig grafisk manual som bas | B8: 750 | D8: 700 | F8: 1000 | H8: 400 | J8: 295 | L8: 495 | N8: 500 | P8: 395 | R8: 695 | T8: 750
A9: Formgivning | B9: 750 | D9: 700 | F9: 1000 | H9: 400 | J9: 295 | L9: 540 | N9: 500 | P9: 395 | R9: 695 | T9: 750
B10: =IF(Avropsblankett!$C$28=$A$5,Avropsblankett!$F$28*B5,IF(Avropsblankett!$C$28=$A$6,Avropsblankett!$F$28*B6,IF(Avropsblankett!$C$28=$A$7,Avropsblankett!$F$28*B7,IF(Avropsblankett!$C$28=$A$8,Avropsblankett!$F$28*B8,IF(Avropsblankett!$C$28=$A$9,Avropsblankett!$F$28*B9,))))) -> 0 | D10: =IF(Avropsblankett!$C$28=$A$5,Avropsblankett!$F$28*D5,IF(Avropsblankett!$C$28=$A$6,Avropsblankett!$F$28*D6,IF(Avropsblankett!$C$28=$A$7,Avropsblankett!$F$28*D7,IF(Avropsblankett!$C$28=$A$8,Avropsblankett!$F$28*D8,IF(Avropsblankett!$C$28=$A$9,Avropsblankett!$F$28*D9,))))) -> 0 | F10: =IF(Avropsblankett!$C$28=$A$5,Avropsblankett!$F$28*F5,IF(Avropsblankett!$C$28=$A$6,Avropsblankett!$F$28*F6,IF(Avropsblankett!$C$28=$A$7,Avropsblankett!$F$28*F7,IF(Avropsblankett!$C$28=$A$8,Avropsblankett!$F$28*F8,IF(Avropsblankett!$C$28=$A$9,Avropsblankett!$F$28*F9,))))) -> 0 | H10: =IF(Avropsblankett!$C$28=$A$5,Avropsblankett!$F$28*H5,IF(Avropsblankett!$C$28=$A$6,Avropsblankett!$F$28*H6,IF(Avropsblankett!$C$28=$A$7,Avropsblankett!$F$28*H7,IF(Avropsblankett!$C$28=$A$8,Avropsblankett!$F$28*H8,IF(Avropsblankett!$C$28=$A$9,Avropsblankett!$F$28*H9,))))) -> 0 | J10: =IF(Avropsblankett!$C$28=$A$5,Avropsblankett!$F$28*J5,IF(Avropsblankett!$C$28=$A$6,Avropsblankett!$F$28*J6,IF(Avropsblankett!$C$28=$A$7,Avropsblankett!$F$28*J7,IF(Avropsblankett!$C$28=$A$8,Avropsblankett!$F$28*J8,IF(Avropsblankett!$C$28=$A$9,Avropsblankett!$F$28*J9,))))) -> 0 | L10: =IF(Avropsblankett!$C$28=$A$5,Avropsblankett!$F$28*L5,IF(Avropsblankett!$C$28=$A$6,Avropsblankett!$F$28*L6,IF(Avropsblankett!$C$28=$A$7,Avropsblankett!$F$28*L7,IF(Avropsblankett!$C$28=$A$8,Avropsblankett!$F$28*L8,IF(Avropsblankett!$C$28=$A$9,Avropsblankett!$F$28*L9,))))) -> 0 | N10: =IF(Avropsblankett!$C$28=$A$5,Avropsblankett!$F$28*N5,IF(Avropsblankett!$C$28=$A$6,Avropsblankett!$F$28*N6,IF(Avropsblankett!$C$28=$A$7,Avropsblankett!$F$28*N7,IF(Avropsblankett!$C$28=$A$8,Avropsblankett!$F$28*N8,IF(Avropsblankett!$C$28=$A$9,Avropsblankett!$F$28*N9,))))) -> 0 | P10: =IF(Avropsblankett!$C$28=$A$5,Avropsblankett!$F$28*P5,IF(Avropsblankett!$C$28=$A$6,Avropsblankett!$F$28*P6,IF(Avropsblankett!$C$28=$A$7,Avropsblankett!$F$28*P7,IF(Avropsblankett!$C$28=$A$8,Avropsblankett!$F$28*P8,IF(Avropsblankett!$C$28=$A$9,Avropsblankett!$F$28*P9,))))) -> 0 | R10: =IF(Avropsblankett!$C$28=$A$5,Avropsblankett!$F$28*R5,IF(Avropsblankett!$C$28=$A$6,Avropsblankett!$F$28*R6,IF(Avropsblankett!$C$28=$A$7,Avropsblankett!$F$28*R7,IF(Avropsblankett!$C$28=$A$8,Avropsblankett!$F$28*R8,IF(Avropsblankett!$C$28=$A$9,Avropsblankett!$F$28*R9,))))) -> 0 | T10: =IF(Avropsblankett!$C$28=$A$5,Avropsblankett!$F$28*T5,IF(Avropsblankett!$C$28=$A$6,Avropsblankett!$F$28*T6,IF(Avropsblankett!$C$28=$A$7,Avropsblankett!$F$28*T7,IF(Avropsblankett!$C$28=$A$8,Avropsblankett!$F$28*T8,IF(Avropsblankett!$C$28=$A$9,Avropsblankett!$F$28*T9,))))) -> 0
B11: =IF(Avropsblankett!$C$40=$A$5,Avropsblankett!$F$40*B5,IF(Avropsblankett!$C$40=$A$6,Avropsblankett!$F$40*B6,IF(Avropsblankett!$C$40=$A$7,Avropsblankett!$F$40*B7,IF(Avropsblankett!$C$40=$A$8,Avropsblankett!$F$40*B8,IF(Avropsblankett!$C$40=$A$9,Avropsblankett!$F$40*B9,))))) -> 0 | D11: =IF(Avropsblankett!$C$40=$A$5,Avropsblankett!$F$40*D5,IF(Avropsblankett!$C$40=$A$6,Avropsblankett!$F$40*D6,IF(Avropsblankett!$C$40=$A$7,Avropsblankett!$F$40*D7,IF(Avropsblankett!$C$40=$A$8,Avropsblankett!$F$40*D8,IF(Avropsblankett!$C$40=$A$9,Avropsblankett!$F$40*D9,))))) -> 0 | F11: =IF(Avropsblankett!$C$40=$A$5,Avropsblankett!$F$40*F5,IF(Avropsblankett!$C$40=$A$6,Avropsblankett!$F$40*F6,IF(Avropsblankett!$C$40=$A$7,Avropsblankett!$F$40*F7,IF(Avropsblankett!$C$40=$A$8,Avropsblankett!$F$40*F8,IF(Avropsblankett!$C$40=$A$9,Avropsblankett!$F$40*F9,))))) -> 0 | H11: =IF(Avropsblankett!$C$40=$A$5,Avropsblankett!$F$40*H5,IF(Avropsblankett!$C$40=$A$6,Avropsblankett!$F$40*H6,IF(Avropsblankett!$C$40=$A$7,Avropsblankett!$F$40*H7,IF(Avropsblankett!$C$40=$A$8,Avropsblankett!$F$40*H8,IF(Avropsblankett!$C$40=$A$9,Avropsblankett!$F$40*H9,))))) -> 0 | J11: =IF(Avropsblankett!$C$40=$A$5,Avropsblankett!$F$40*J5,IF(Avropsblankett!$C$40=$A$6,Avropsblankett!$F$40*J6,IF(Avropsblankett!$C$40=$A$7,Avropsblankett!$F$40*J7,IF(Avropsblankett!$C$40=$A$8,Avropsblankett!$F$40*J8,IF(Avropsblankett!$C$40=$A$9,Avropsblankett!$F$40*J9,))))) -> 0 | L11: =IF(Avropsblankett!$C$40=$A$5,Avropsblankett!$F$40*L5,IF(Avropsblankett!$C$40=$A$6,Avropsblankett!$F$40*L6,IF(Avropsblankett!$C$40=$A$7,Avropsblankett!$F$40*L7,IF(Avropsblankett!$C$40=$A$8,Avropsblankett!$F$40*L8,IF(Avropsblankett!$C$40=$A$9,Avropsblankett!$F$40*L9,))))) -> 0 | N11: =IF(Avropsblankett!$C$40=$A$5,Avropsblankett!$F$40*N5,IF(Avropsblankett!$C$40=$A$6,Avropsblankett!$F$40*N6,IF(Avropsblankett!$C$40=$A$7,Avropsblankett!$F$40*N7,IF(Avropsblankett!$C$40=$A$8,Avropsblankett!$F$40*N8,IF(Avropsblankett!$C$40=$A$9,Avropsblankett!$F$40*N9,))))) -> 0 | P11: =IF(Avropsblankett!$C$40=$A$5,Avropsblankett!$F$40*P5,IF(Avropsblankett!$C$40=$A$6,Avropsblankett!$F$40*P6,IF(Avropsblankett!$C$40=$A$7,Avropsblankett!$F$40*P7,IF(Avropsblankett!$C$40=$A$8,Avropsblankett!$F$40*P8,IF(Avropsblankett!$C$40=$A$9,Avropsblankett!$F$40*P9,))))) -> 0 | R11: =IF(Avropsblankett!$C$40=$A$5,Avropsblankett!$F$40*R5,IF(Avropsblankett!$C$40=$A$6,Avropsblankett!$F$40*R6,IF(Avropsblankett!$C$40=$A$7,Avropsblankett!$F$40*R7,IF(Avropsblankett!$C$40=$A$8,Avropsblankett!$F$40*R8,IF(Avropsblankett!$C$40=$A$9,Avropsblankett!$F$40*R9,))))) -> 0 | T11: =IF(Avropsblankett!$C$40=$A$5,Avropsblankett!$F$40*T5,IF(Avropsblankett!$C$40=$A$6,Avropsblankett!$F$40*T6,IF(Avropsblankett!$C$40=$A$7,Avropsblankett!$F$40*T7,IF(Avropsblankett!$C$40=$A$8,Avropsblankett!$F$40*T8,IF(Avropsblankett!$C$40=$A$9,Avropsblankett!$F$40*T9,))))) -> 0
B12: =IF(Avropsblankett!$C$52=$A$5,Avropsblankett!$F$52*B5,IF(Avropsblankett!$C$52=$A$6,Avropsblankett!$F$52*B6,IF(Avropsblankett!$C$52=$A$7,Avropsblankett!$F$52*B7,IF(Avropsblankett!$C$52=$A$8,Avropsblankett!$F$52*B8,IF(Avropsblankett!$C$52=$A$9,Avropsblankett!$F$52*B9,))))) -> 0 | D12: =IF(Avropsblankett!$C$52=$A$5,Avropsblankett!$F$52*D5,IF(Avropsblankett!$C$52=$A$6,Avropsblankett!$F$52*D6,IF(Avropsblankett!$C$52=$A$7,Avropsblankett!$F$52*D7,IF(Avropsblankett!$C$52=$A$8,Avropsblankett!$F$52*D8,IF(Avropsblankett!$C$52=$A$9,Avropsblankett!$F$52*D9,))))) -> 0 | F12: =IF(Avropsblankett!$C$52=$A$5,Avropsblankett!$F$52*F5,IF(Avropsblankett!$C$52=$A$6,Avropsblankett!$F$52*F6,IF(Avropsblankett!$C$52=$A$7,Avropsblankett!$F$52*F7,IF(Avropsblankett!$C$52=$A$8,Avropsblankett!$F$52*F8,IF(Avropsblankett!$C$52=$A$9,Avropsblankett!$F$52*F9,))))) -> 0 | H12: =IF(Avropsblankett!$C$52=$A$5,Avropsblankett!$F$52*H5,IF(Avropsblankett!$C$52=$A$6,Avropsblankett!$F$52*H6,IF(Avropsblankett!$C$52=$A$7,Avropsblankett!$F$52*H7,IF(Avropsblankett!$C$52=$A$8,Avropsblankett!$F$52*H8,IF(Avropsblankett!$C$52=$A$9,Avropsblankett!$F$52*H9,))))) -> 0 | J12: =IF(Avropsblankett!$C$52=$A$5,Avropsblankett!$F$52*J5,IF(Avropsblankett!$C$52=$A$6,Avropsblankett!$F$52*J6,IF(Avropsblankett!$C$52=$A$7,Avropsblankett!$F$52*J7,IF(Avropsblankett!$C$52=$A$8,Avropsblankett!$F$52*J8,IF(Avropsblankett!$C$52=$A$9,Avropsblankett!$F$52*J9,))))) -> 0 | L12: =IF(Avropsblankett!$C$52=$A$5,Avropsblankett!$F$52*L5,IF(Avropsblankett!$C$52=$A$6,Avropsblankett!$F$52*L6,IF(Avropsblankett!$C$52=$A$7,Avropsblankett!$F$52*L7,IF(Avropsblankett!$C$52=$A$8,Avropsblankett!$F$52*L8,IF(Avropsblankett!$C$52=$A$9,Avropsblankett!$F$52*L9,))))) -> 0 | N12: =IF(Avropsblankett!$C$52=$A$5,Avropsblankett!$F$52*N5,IF(Avropsblankett!$C$52=$A$6,Avropsblankett!$F$52*N6,IF(Avropsblankett!$C$52=$A$7,Avropsblankett!$F$52*N7,IF(Avropsblankett!$C$52=$A$8,Avropsblankett!$F$52*N8,IF(Avropsblankett!$C$52=$A$9,Avropsblankett!$F$52*N9,))))) -> 0 | P12: =IF(Avropsblankett!$C$52=$A$5,Avropsblankett!$F$52*P5,IF(Avropsblankett!$C$52=$A$6,Avropsblankett!$F$52*P6,IF(Avropsblankett!$C$52=$A$7,Avropsblankett!$F$52*P7,IF(Avropsblankett!$C$52=$A$8,Avropsblankett!$F$52*P8,IF(Avropsblankett!$C$52=$A$9,Avropsblankett!$F$52*P9,))))) -> 0 | R12: =IF(Avropsblankett!$C$52=$A$5,Avropsblankett!$F$52*R5,IF(Avropsblankett!$C$52=$A$6,Avropsblankett!$F$52*R6,IF(Avropsblankett!$C$52=$A$7,Avropsblankett!$F$52*R7,IF(Avropsblankett!$C$52=$A$8,Avropsblankett!$F$52*R8,IF(Avropsblankett!$C$52=$A$9,Avropsblankett!$F$52*R9,))))) -> 0 | T12: =IF(Avropsblankett!$C$52=$A$5,Avropsblankett!$F$52*T5,IF(Avropsblankett!$C$52=$A$6,Avropsblankett!$F$52*T6,IF(Avropsblankett!$C$52=$A$7,Avropsblankett!$F$52*T7,IF(Avropsblankett!$C$52=$A$8,Avropsblankett!$F$52*T8,IF(Avropsblankett!$C$52=$A$9,Avropsblankett!$F$52*T9,))))) -> 0
B13: =IF(Avropsblankett!$C$64=$A$5,Avropsblankett!$F$64*B5,IF(Avropsblankett!$C$64=$A$6,Avropsblankett!$F$64*B6,IF(Avropsblankett!$C$64=$A$7,Avropsblankett!$F$64*B7,IF(Avropsblankett!$C$64=$A$8,Avropsblankett!$F$64*B8,IF(Avropsblankett!$C$64=$A$9,Avropsblankett!$F$64*B9,))))) -> 0 | D13: =IF(Avropsblankett!$C$64=$A$5,Avropsblankett!$F$64*D5,IF(Avropsblankett!$C$64=$A$6,Avropsblankett!$F$64*D6,IF(Avropsblankett!$C$64=$A$7,Avropsblankett!$F$64*D7,IF(Avropsblankett!$C$64=$A$8,Avropsblankett!$F$64*D8,IF(Avropsblankett!$C$64=$A$9,Avropsblankett!$F$64*D9,))))) -> 0 | F13: =IF(Avropsblankett!$C$64=$A$5,Avropsblankett!$F$64*F5,IF(Avropsblankett!$C$64=$A$6,Avropsblankett!$F$64*F6,IF(Avropsblankett!$C$64=$A$7,Avropsblankett!$F$64*F7,IF(Avropsblankett!$C$64=$A$8,Avropsblankett!$F$64*F8,IF(Avropsblankett!$C$64=$A$9,Avropsblankett!$F$64*F9,))))) -> 0 | H13: =IF(Avropsblankett!$C$64=$A$5,Avropsblankett!$F$64*H5,IF(Avropsblankett!$C$64=$A$6,Avropsblankett!$F$64*H6,IF(Avropsblankett!$C$64=$A$7,Avropsblankett!$F$64*H7,IF(Avropsblankett!$C$64=$A$8,Avropsblankett!$F$64*H8,IF(Avropsblankett!$C$64=$A$9,Avropsblankett!$F$64*H9,))))) -> 0 | J13: =IF(Avropsblankett!$C$64=$A$5,Avropsblankett!$F$64*J5,IF(Avropsblankett!$C$64=$A$6,Avropsblankett!$F$64*J6,IF(Avropsblankett!$C$64=$A$7,Avropsblankett!$F$64*J7,IF(Avropsblankett!$C$64=$A$8,Avropsblankett!$F$64*J8,IF(Avropsblankett!$C$64=$A$9,Avropsblankett!$F$64*J9,))))) -> 0 | L13: =IF(Avropsblankett!$C$64=$A$5,Avropsblankett!$F$64*L5,IF(Avropsblankett!$C$64=$A$6,Avropsblankett!$F$64*L6,IF(Avropsblankett!$C$64=$A$7,Avropsblankett!$F$64*L7,IF(Avropsblankett!$C$64=$A$8,Avropsblankett!$F$64*L8,IF(Avropsblankett!$C$64=$A$9,Avropsblankett!$F$64*L9,))))) -> 0 | N13: =IF(Avropsblankett!$C$64=$A$5,Avropsblankett!$F$64*N5,IF(Avropsblankett!$C$64=$A$6,Avropsblankett!$F$64*N6,IF(Avropsblankett!$C$64=$A$7,Avropsblankett!$F$64*N7,IF(Avropsblankett!$C$64=$A$8,Avropsblankett!$F$64*N8,IF(Avropsblankett!$C$64=$A$9,Avropsblankett!$F$64*N9,))))) -> 0 | P13: =IF(Avropsblankett!$C$64=$A$5,Avropsblankett!$F$64*P5,IF(Avropsblankett!$C$64=$A$6,Avropsblankett!$F$64*P6,IF(Avropsblankett!$C$64=$A$7,Avropsblankett!$F$64*P7,IF(Avropsblankett!$C$64=$A$8,Avropsblankett!$F$64*P8,IF(Avropsblankett!$C$64=$A$9,Avropsblankett!$F$64*P9,))))) -> 0 | R13: =IF(Avropsblankett!$C$64=$A$5,Avropsblankett!$F$64*R5,IF(Avropsblankett!$C$64=$A$6,Avropsblankett!$F$64*R6,IF(Avropsblankett!$C$64=$A$7,Avropsblankett!$F$64*R7,IF(Avropsblankett!$C$64=$A$8,Avropsblankett!$F$64*R8,IF(Avropsblankett!$C$64=$A$9,Avropsblankett!$F$64*R9,))))) -> 0 | T13: =IF(Avropsblankett!$C$64=$A$5,Avropsblankett!$F$64*T5,IF(Avropsblankett!$C$64=$A$6,Avropsblankett!$F$64*T6,IF(Avropsblankett!$C$64=$A$7,Avropsblankett!$F$64*T7,IF(Avropsblankett!$C$64=$A$8,Avropsblankett!$F$64*T8,IF(Avropsblankett!$C$64=$A$9,Avropsblankett!$F$64*T9,))))) -> 0
B14: =IF(Avropsblankett!$C$76=$A$5,Avropsblankett!$F$76*B5,IF(Avropsblankett!$C$76=$A$6,Avropsblankett!$F$76*B6,IF(Avropsblankett!$C$76=$A$7,Avropsblankett!$F$76*B7,IF(Avropsblankett!$C$76=$A$8,Avropsblankett!$F$76*B8,IF(Avropsblankett!$C$76=$A$9,Avropsblankett!$F$76*B9,))))) -> 0 | D14: =IF(Avropsblankett!$C$76=$A$5,Avropsblankett!$F$76*D5,IF(Avropsblankett!$C$76=$A$6,Avropsblankett!$F$76*D6,IF(Avropsblankett!$C$76=$A$7,Avropsblankett!$F$76*D7,IF(Avropsblankett!$C$76=$A$8,Avropsblankett!$F$76*D8,IF(Avropsblankett!$C$76=$A$9,Avropsblankett!$F$76*D9,))))) -> 0 | F14: =IF(Avropsblankett!$C$76=$A$5,Avropsblankett!$F$76*F5,IF(Avropsblankett!$C$76=$A$6,Avropsblankett!$F$76*F6,IF(Avropsblankett!$C$76=$A$7,Avropsblankett!$F$76*F7,IF(Avropsblankett!$C$76=$A$8,Avropsblankett!$F$76*F8,IF(Avropsblankett!$C$76=$A$9,Avropsblankett!$F$76*F9,))))) -> 0 | H14: =IF(Avropsblankett!$C$76=$A$5,Avropsblankett!$F$76*H5,IF(Avropsblankett!$C$76=$A$6,Avropsblankett!$F$76*H6,IF(Avropsblankett!$C$76=$A$7,Avropsblankett!$F$76*H7,IF(Avropsblankett!$C$76=$A$8,Avropsblankett!$F$76*H8,IF(Avropsblankett!$C$76=$A$9,Avropsblankett!$F$76*H9,))))) -> 0 | J14: =IF(Avropsblankett!$C$76=$A$5,Avropsblankett!$F$76*J5,IF(Avropsblankett!$C$76=$A$6,Avropsblankett!$F$76*J6,IF(Avropsblankett!$C$76=$A$7,Avropsblankett!$F$76*J7,IF(Avropsblankett!$C$76=$A$8,Avropsblankett!$F$76*J8,IF(Avropsblankett!$C$76=$A$9,Avropsblankett!$F$76*J9,))))) -> 0 | L14: =IF(Avropsblankett!$C$76=$A$5,Avropsblankett!$F$76*L5,IF(Avropsblankett!$C$76=$A$6,Avropsblankett!$F$76*L6,IF(Avropsblankett!$C$76=$A$7,Avropsblankett!$F$76*L7,IF(Avropsblankett!$C$76=$A$8,Avropsblankett!$F$76*L8,IF(Avropsblankett!$C$76=$A$9,Avropsblankett!$F$76*L9,))))) -> 0 | N14: =IF(Avropsblankett!$C$76=$A$5,Avropsblankett!$F$76*N5,IF(Avropsblankett!$C$76=$A$6,Avropsblankett!$F$76*N6,IF(Avropsblankett!$C$76=$A$7,Avropsblankett!$F$76*N7,IF(Avropsblankett!$C$76=$A$8,Avropsblankett!$F$76*N8,IF(Avropsblankett!$C$76=$A$9,Avropsblankett!$F$76*N9,))))) -> 0 | P14: =IF(Avropsblankett!$C$76=$A$5,Avropsblankett!$F$76*P5,IF(Avropsblankett!$C$76=$A$6,Avropsblankett!$F$76*P6,IF(Avropsblankett!$C$76=$A$7,Avropsblankett!$F$76*P7,IF(Avropsblankett!$C$76=$A$8,Avropsblankett!$F$76*P8,IF(Avropsblankett!$C$76=$A$9,Avropsblankett!$F$76*P9,))))) -> 0 | R14: =IF(Avropsblankett!$C$76=$A$5,Avropsblankett!$F$76*R5,IF(Avropsblankett!$C$76=$A$6,Avropsblankett!$F$76*R6,IF(Avropsblankett!$C$76=$A$7,Avropsblankett!$F$76*R7,IF(Avropsblankett!$C$76=$A$8,Avropsblankett!$F$76*R8,IF(Avropsblankett!$C$76=$A$9,Avropsblankett!$F$76*R9,))))) -> 0 | T14: =IF(Avropsblankett!$C$76=$A$5,Avropsblankett!$F$76*T5,IF(Avropsblankett!$C$76=$A$6,Avropsblankett!$F$76*T6,IF(Avropsblankett!$C$76=$A$7,Avropsblankett!$F$76*T7,IF(Avropsblankett!$C$76=$A$8,Avropsblankett!$F$76*T8,IF(Avropsblankett!$C$76=$A$9,Avropsblankett!$F$76*T9,))))) -> 0
A15: Summa | B15: =SUM(B10:B14) -> 0 | D15: =SUM(D10:D14) -> 0 | F15: =SUM(F10:F14) -> 0 | H15: =SUM(H10:H14) -> 0 | J15: =SUM(J10:J14) -> 0 | L15: =SUM(L10:L14) -> 0 | N15: =SUM(N10:N14) -> 0 | P15: =SUM(P10:P14) -> 0 | R15: =SUM(R10:R14) -> 0 | T15: =SUM(T10:T14) -> 0

Sheet Broschyrer
A1: Broschyrer | D1: =Uträkningsblad!C4 -> Bröderna Hansson H-tryck Aktiebolag | I1: =Uträkningsblad!D4 -> Elanders Sverige AB | N1: =Uträkningsblad!E4 -> Exakta Print AB | S1: =Uträkningsblad!F4 -> Kalmar Kuvert Sweden AB | X1: =Uträkningsblad!G4 -> Ljungbergs Tryckeri i Klippan AB | AC1: =Uträkningsblad!H4 -> Scandinavian Print Group Sweden AB | AH1: =Uträkningsblad!I4 -> Stema Specialtryck AB | AM1: =Uträkningsblad!J4 -> Stibo Complete A/S | AR1: =Uträkningsblad!K4 -> Åtta.45 Tryckeri AB | AW1: =Uträkningsblad!L4 -> Leverantör 10
D3: Priser lämnas i gulmarkerade fält nedan | I3: Priser lämnas i gulmarkerade fält nedan | N3: Priser lämnas i gulmarkerade fält nedan | S3: Priser lämnas i gulmarkerade fält nedan | X3: Priser lämnas i gulmarkerade fält nedan | AC3: Priser lämnas i gulmarkerade fält nedan | AH3: Priser lämnas i gulmarkerade fält nedan | AM3: Priser lämnas i gulmarkerade fält nedan | AR3: Priser lämnas i gulmarkerade fält nedan | AW3: Priser lämnas i gulmarkerade fält nedan
A4: Broschyrer_Variant_1 | C4: Beskrivning/omfång | D4: Upplaga | E4: Ange pris | F4: Följande | G4: Ange pris | I4: Upplaga | J4: Ange pris | K4: Följande | L4: Ange pris | N4: Upplaga | O4: Ange pris | P4: Följande | Q4: Ange pris | S4: Upplaga | T4: Ange pris | U4: Följande | V4: Ange pris | X4: Upplaga | Y4: Ange pris | Z4: Följande | AA4: Ange pris | AC4: Upplaga | AD4: Ange pris | AE4: Följande | AF4: Ange pris | AH4: Upplaga | AI4: Ange pris | AJ4: Följande | AK4: Ange pris | AM4: Upplaga | AN4: Ange pris | AO4: Följande | AP4: Ange pris | AR4: Upplaga | AS4: Ange pris | AT4: Följande | AU4: Ange pris | AW4: Upplaga | AX4: Ange pris | AY4: Följande | AZ4: Ange pris
A5: Underlag | B5: A: Öppna filer. B: PDF/PDFx. | C5: 8 sidor | D5: 500 | E5: 3078 | F5: 100 | G5: 390 | I5: 500 | J5: 2117 | K5: 100 | L5: 369 | N5: 500 | O5: 1840 | P5: 100 | Q5: 190 | S5: 500 | T5: 2250 | U5: 100 | V5: 135 | X5: 500 | Y5: 1449 | Z5: 100 | AA5: 40 | AC5: 500 | AD5: 1980 | AE5: 100 | AF5: 258 | AH5: 500 | AI5: 1000 | AJ5: 100 | AK5: 90 | AM5: 500 | AN5: 1605 | AO5: 100 | AP5: 236 | AR5: 500 | AS5: 3560 | AT5: 100 | AU5: 380 | AW5: 500 | AX5: 3515 | AY5: 100 | AZ5: 365
A6: Format | B6: A4 | C6: 16 sidor | D6: 500 | E6: 4817 | F6: 100 | G6: 738 | I6: 500 | J6: 3397 | K6: 100 | L6: 625 | N6: 500 | O6: 3200 | P6: 100 | Q6: 245 | S6: 500 | T6: 3500 | U6: 100 | V6: 240 | X6: 500 | Y6: 2608 | Z6: 100 | AA6: 90 | AC6: 500 | AD6: 3405 | AE6: 100 | AF6: 462 | AH6: 500 | AI6: 1750 | AJ6: 100 | AK6: 150 | AM6: 500 | AN6: 2902 | AO6: 100 | AP6: 431 | AR6: 500 | AS6: 4950 | AT6: 100 | AU6: 560 | AW6: 500 | AX6: 7839 | AY6: 100 | AZ6: 1405
A7: Papper | B7: 130g obestruket | C7: 32 sidor | D7: 500 | E7: 8296 | F7: 100 | G7: 1433 | I7: 500 | J7: 5928 | K7: 100 | L7: 1131 | N7: 500 | O7: 4420 | P7: 100 | Q7: 475 | S7: 500 | T7: 5800 | U7: 100 | V7: 425 | X7: 500 | Y7: 3400 | Z7: 100 | AA7: 140 | AC7: 500 | AD7: 6256 | AE7: 100 | AF7: 688 | AH7: 500 | AI7: 3000 | AJ7: 100 | AK7: 275 | AM7: 500 | AN7: 3403 | AO7: 100 | AP7: 506 | AR7: 500 | AS7: 6320 | AT7: 100 | AU7: 710 | AW7: 500 | AX7: 12480 | AY7: 100 | AZ7: 2490
A8: Tryck | B8: 4+4 färger | C8: 64 sidor | D8: 500 | E8: 15253 | F8: 100 | G8: 2824 | I8: 500 | J8: 10501 | K8: 100 | L8: 2048 | N8: 500 | O8: 6900 | P8: 100 | Q8: 900 | S8: 500 | T8: 12000 | U8: 100 | V8: 850 | X8: 500 | Y8: 5600 | Z8: 100 | AA8: 300 | AC8: 500 | AD8: 11265 | AE8: 100 | AF8: 1190 | AH8: 500 | AI8: 5000 | AJ8: 100 | AK8: 500 | AM8: 500 | AN8: 5601 | AO8: 100 | AP8: 836 | AR8: 500 | AS8: 9150 | AT8: 100 | AU8: 1210
A9: Bokbinderi | B9: Klammerhäftning
E10: =IF(Avropsblankett!$C$28=$A$4,(IF(Avropsblankett!$E$28<17,(E5+(E6-E5)/8*(Avropsblankett!$E$28-8)),IF(Avropsblankett!$E$28<33,(E6+(E7-E6)/24*(Avropsblankett!$E$28-16)),IF(Avropsblankett!$E$28<65,(E7+(E8-E7)/32*(Avropsblankett!$E$28-32)),"")))),"") ->  | G10: =(Avropsblankett!$F$28-500)/100*IF(Avropsblankett!$C$28=$A$4,IF(Avropsblankett!$E$28<17,(G5+(G6-G5)/8*(Avropsblankett!$E$28-8)),IF(Avropsblankett!$E$28<33,(G6+(G7-G6)/16*(Avropsblankett!$E$28-16)),IF(Avropsblankett!$E$28<65,(G7+(G8-G7)/32*(Avropsblankett!$E$28-32)),"")))) -> 0 | J10: =IF(Avropsblankett!$C$28=$A$4,(IF(Avropsblankett!$E$28<17,(J5+(J6-J5)/8*(Avropsblankett!$E$28-8)),IF(Avropsblankett!$E$28<33,(J6+(J7-J6)/24*(Avropsblankett!$E$28-16)),IF(Avropsblankett!$E$28<65,(J7+(J8-J7)/32*(Avropsblankett!$E$28-32)),"")))),"") ->  | L10: =(Avropsblankett!$F$28-500)/100*IF(Avropsblankett!$C$28=$A$4,IF(Avropsblankett!$E$28<17,(L5+(L6-L5)/8*(Avropsblankett!$E$28-8)),IF(Avropsblankett!$E$28<33,(L6+(L7-L6)/16*(Avropsblankett!$E$28-16)),IF(Avropsblankett!$E$28<65,(L7+(L8-L7)/32*(Avropsblankett!$E$28-32)),"")))) -> 0 | O10: =IF(Avropsblankett!$C$28=$A$4,(IF(Avropsblankett!$E$28<17,(O5+(O6-O5)/8*(Avropsblankett!$E$28-8)),IF(Avropsblankett!$E$28<33,(O6+(O7-O6)/24*(Avropsblankett!$E$28-16)),IF(Avropsblankett!$E$28<65,(O7+(O8-O7)/32*(Avropsblankett!$E$28-32)),"")))),"") ->  | Q10: =(Avropsblankett!$F$28-500)/100*IF(Avropsblankett!$C$28=$A$4,IF(Avropsblankett!$E$28<17,(Q5+(Q6-Q5)/8*(Avropsblankett!$E$28-8)),IF(Avropsblankett!$E$28<33,(Q6+(Q7-Q6)/16*(Avropsblankett!$E$28-16)),IF(Avropsblankett!$E$28<65,(Q7+(Q8-Q7)/32*(Avropsblankett!$E$28-32)),"")))) -> 0 | T10: =IF(Avropsblankett!$C$28=$A$4,(IF(Avropsblankett!$E$28<17,(T5+(T6-T5)/8*(Avropsblankett!$E$28-8)),IF(Avropsblankett!$E$28<33,(T6+(T7-T6)/24*(Avropsblankett!$E$28-16)),IF(Avropsblankett!$E$28<65,(T7+(T8-T7)/32*(Avropsblankett!$E$28-32)),"")))),"") ->  | V10: =(Avropsblankett!$F$28-500)/100*IF(Avropsblankett!$C$28=$A$4,IF(Avropsblankett!$E$28<17,(V5+(V6-V5)/8*(Avropsblankett!$E$28-8)),IF(Avropsblankett!$E$28<33,(V6+(V7-V6)/16*(Avropsblankett!$E$28-16)),IF(Avropsblankett!$E$28<65,(V7+(V8-V7)/32*(Avropsblankett!$E$28-32)),"")))) -> 0 | Y10: =IF(Avropsblankett!$C$28=$A$4,(IF(Avropsblankett!$E$28<17,(Y5+(Y6-Y5)/8*(Avropsblankett!$E$28-8)),IF(Avropsblankett!$E$28<33,(Y6+(Y7-Y6)/24*(Avropsblankett!$E$28-16)),IF(Avropsblankett!$E$28<65,(Y7+(Y8-Y7)/32*(Avropsblankett!$E$28-32)),"")))),"") ->  | AA10: =(Avropsblankett!$F$28-500)/100*IF(Avropsblankett!$C$28=$A$4,IF(Avropsblankett!$E$28<17,(AA5+(AA6-AA5)/8*(Avropsblankett!$E$28-8)),IF(Avropsblankett!$E$28<33,(AA6+(AA7-AA6)/16*(Avropsblankett!$E$28-16)),IF(Avropsblankett!$E$28<65,(AA7+(AA8-AA7)/32*(Avropsblankett!$E$28-32)),"")))) -> 0 | AD10: =IF(Avropsblankett!$C$28=$A$4,(IF(Avropsblankett!$E$28<17,(AD5+(AD6-AD5)/8*(Avropsblankett!$E$28-8)),IF(Avropsblankett!$E$28<33,(AD6+(AD7-AD6)/24*(Avropsblankett!$E$28-16)),IF(Avropsblankett!$E$28<65,(AD7+(AD8-AD7)/32*(Avropsblankett!$E$28-32)),"")))),"") ->  | AF10: =(Avropsblankett!$F$28-500)/100*IF(Avropsblankett!$C$28=$A$4,IF(Avropsblankett!$E$28<17,(AF5+(AF6-AF5)/8*(Avropsblankett!$E$28-8)),IF(Avropsblankett!$E$28<33,(AF6+(AF7-AF6)/16*(Avropsblankett!$E$28-16)),IF(Avropsblankett!$E$28<65,(AF7+(AF8-AF7)/32*(Avropsblankett!$E$28-32)),"")))) -> 0 | AI10: =IF(Avropsblankett!$C$28=$A$4,(IF(Avropsblankett!$E$28<17,(AI5+(AI6-AI5)/8*(Avropsblankett!$E$28-8)),IF(Avropsblankett!$E$28<33,(AI6+(AI7-AI6)/24*(Avropsblankett!$E$28-16)),IF(Avropsblankett!$E$28<65,(AI7+(AI8-AI7)/32*(Avropsblankett!$E$28-32)),"")))),"") ->  | AK10: =(Avropsblankett!$F$28-500)/100*IF(Avropsblankett!$C$28=$A$4,IF(Avropsblankett!$E$28<17,(AK5+(AK6-AK5)/8*(Avropsblankett!$E$28-8)),IF(Avropsblankett!$E$28<33,(AK6+(AK7-AK6)/16*(Avropsblankett!$E$28-16)),IF(Avropsblankett!$E$28<65,(AK7+(AK8-AK7)/32*(Avropsblankett!$E$28-32)),"")))) -> 0 | AN10: =IF(Avropsblankett!$C$28=$A$4,(IF(Avropsblankett!$E$28<17,(AN5+(AN6-AN5)/8*(Avropsblankett!$E$28-8)),IF(Avropsblankett!$E$28<33,(AN6+(AN7-AN6)/24*(Avropsblankett!$E$28-16)),IF(Avropsblankett!$E$28<65,(AN7+(AN8-AN7)/32*(Avropsblankett!$E$28-32)),"")))),"") ->  | AP10: =(Avropsblankett!$F$28-500)/100*IF(Avropsblankett!$C$28=$A$4,IF(Avropsblankett!$E$28<17,(AP5+(AP6-AP5)/8*(Avropsblankett!$E$28-8)),IF(Avropsblankett!$E$28<33,(AP6+(AP7-AP6)/16*(Avropsblankett!$E$28-16)),IF(Avropsblankett!$E$28<65,(AP7+(AP8-AP7)/32*(Avropsblankett!$E$28-32)),"")))) -> 0 | AS10: =IF(Avropsblankett!$C$28=$A$4,(IF(Avropsblankett!$E$28<17,(AS5+(AS6-AS5)/8*(Avropsblankett!$E$28-8)),IF(Avropsblankett!$E$28<33,(AS6+(AS7-AS6)/24*(Avropsblankett!$E$28-16)),IF(Avropsblankett!$E$28<65,(AS7+(AS8-AS7)/32*(Avropsblankett!$E$28-32)),"")))),"") ->  | AU10: =(Avropsblankett!$F$28-500)/100*IF(Avropsblankett!$C$28=$A$4,IF(Avropsblankett!$E$28<17,(AU5+(AU6-AU5)/8*(Avropsblankett!$E$28-8)),IF(Avropsblankett!$E$28<33,(AU6+(AU7-AU6)/16*(Avropsblankett!$E$28-16)),IF(Avropsblankett!$E$28<65,(AU7+(AU8-AU7)/32*(Avropsblankett!$E$28-32)),"")))) -> 0 | AX10: =IF(Avropsblankett!$C$28=$A$4,IF(Avropsblankett!$E$28<33,(AX5+(AX6-AX5)/24*(Avropsblankett!$E$28-8)),IF(Avropsblankett!$E$28<65,(AX6+(AX7-AX6)/32*(Avropsblankett!$E$28-32)),"")),"") ->  | AZ10: =(Avropsblankett!$F$28-500)/100*IF(Avropsblankett!$C$28=$A$4,IF(Avropsblankett!$E$28<33,(AZ5+(AZ6-AZ5)/24*(Avropsblankett!$E$28-8)),IF(Avropsblankett!$E$28<65,(AZ6+(AZ7-AZ6)/32*(Avropsblankett!$E$28-32)),""))) -> 0
E11: =IF(Avropsblankett!$C$40=$A$4,(IF(Avropsblankett!$E$40<17,(E5+(E6-E5)/8*(Avropsblankett!$E$40-8)),IF(Avropsblankett!$E$40<33,(E6+(E7-E6)/24*(Avropsblankett!$E$40-16)),IF(Avropsblankett!$E$40<65,(E7+(E8-E7)/32*(Avropsblankett!$E$40-32)),"")))),"") ->  | G11: =(Avropsblankett!$F$40-500)/100*IF(Avropsblankett!$C$40=$A$4,IF(Avropsblankett!$E$40<17,(G5+(G6-G5)/8*(Avropsblankett!$E$40-8)),IF(Avropsblankett!$E$40<33,(G6+(G7-G6)/16*(Avropsblankett!$E$40-16)),IF(Avropsblankett!$E$40<65,(G7+(G8-G7)/32*(Avropsblankett!$E$40-32)),"")))) -> 0 | J11: =IF(Avropsblankett!$C$40=$A$4,(IF(Avropsblankett!$E$40<17,(J5+(J6-J5)/8*(Avropsblankett!$E$40-8)),IF(Avropsblankett!$E$40<33,(J6+(J7-J6)/24*(Avropsblankett!$E$40-16)),IF(Avropsblankett!$E$40<65,(J7+(J8-J7)/32*(Avropsblankett!$E$40-32)),"")))),"") ->  | L11: =(Avropsblankett!$F$40-500)/100*IF(Avropsblankett!$C$40=$A$4,IF(Avropsblankett!$E$40<17,(L5+(L6-L5)/8*(Avropsblankett!$E$40-8)),IF(Avropsblankett!$E$40<33,(L6+(L7-L6)/16*(Avropsblankett!$E$40-16)),IF(Avropsblankett!$E$40<65,(L7+(L8-L7)/32*(Avropsblankett!$E$40-32)),"")))) -> 0 | O11: =IF(Avropsblankett!$C$40=$A$4,(IF(Avropsblankett!$E$40<17,(O5+(O6-O5)/8*(Avropsblankett!$E$40-8)),IF(Avropsblankett!$E$40<33,(O6+(O7-O6)/24*(Avropsblankett!$E$40-16)),IF(Avropsblankett!$E$40<65,(O7+(O8-O7)/32*(Avropsblankett!$E$40-32)),"")))),"") ->  | Q11: =(Avropsblankett!$F$40-500)/100*IF(Avropsblankett!$C$40=$A$4,IF(Avropsblankett!$E$40<17,(Q5+(Q6-Q5)/8*(Avropsblankett!$E$40-8)),IF(Avropsblankett!$E$40<33,(Q6+(Q7-Q6)/16*(Avropsblankett!$E$40-16)),IF(Avropsblankett!$E$40<65,(Q7+(Q8-Q7)/32*(Avropsblankett!$E$40-32)),"")))) -> 0 | T11: =IF(Avropsblankett!$C$40=$A$4,(IF(Avropsblankett!$E$40<17,(T5+(T6-T5)/8*(Avropsblankett!$E$40-8)),IF(Avropsblankett!$E$40<33,(T6+(T7-T6)/24*(Avropsblankett!$E$40-16)),IF(Avropsblankett!$E$40<65,(T7+(T8-T7)/32*(Avropsblankett!$E$40-32)),"")))),"") ->  | V11: =(Avropsblankett!$F$40-500)/100*IF(Avropsblankett!$C$40=$A$4,IF(Avropsblankett!$E$40<17,(V5+(V6-V5)/8*(Avropsblankett!$E$40-8)),IF(Avropsblankett!$E$40<33,(V6+(V7-V6)/16*(Avropsblankett!$E$40-16)),IF(Avropsblankett!$E$40<65,(V7+(V8-V7)/32*(Avropsblankett!$E$40-32)),"")))) -> 0 | Y11: =IF(Avropsblankett!$C$40=$A$4,(IF(Avropsblankett!$E$40<17,(Y5+(Y6-Y5)/8*(Avropsblankett!$E$40-8)),IF(Avropsblankett!$E$40<33,(Y6+(Y7-Y6)/24*(Avropsblankett!$E$40-16)),IF(Avropsblankett!$E$40<65,(Y7+(Y8-Y7)/32*(Avropsblankett!$E$40-32)),"")))),"") ->  | AA11: =(Avropsblankett!$F$40-500)/100*IF(Avropsblankett!$C$40=$A$4,IF(Avropsblankett!$E$40<17,(AA5+(AA6-AA5)/8*(Avropsblankett!$E$40-8)),IF(Avropsblankett!$E$40<33,(AA6+(AA7-AA6)/16*(Avropsblankett!$E$40-16)),IF(Avropsblankett!$E$40<65,(AA7+(AA8-AA7)/32*(Avropsblankett!$E$40-32)),"")))) -> 0 | AD11: =IF(Avropsblankett!$C$40=$A$4,(IF(Avropsblankett!$E$40<17,(AD5+(AD6-AD5)/8*(Avropsblankett!$E$40-8)),IF(Avropsblankett!$E$40<33,(AD6+(AD7-AD6)/24*(Avropsblankett!$E$40-16)),IF(Avropsblankett!$E$40<65,(AD7+(AD8-AD7)/32*(Avropsblankett!$E$40-32)),"")))),"") ->  | AF11: =(Avropsblankett!$F$40-500)/100*IF(Avropsblankett!$C$40=$A$4,IF(Avropsblankett!$E$40<17,(AF5+(AF6-AF5)/8*(Avropsblankett!$E$40-8)),IF(Avropsblankett!$E$40<33,(AF6+(AF7-AF6)/16*(Avropsblankett!$E$40-16)),IF(Avropsblankett!$E$40<65,(AF7+(AF8-AF7)/32*(Avropsblankett!$E$40-32)),"")))) -> 0 | AI11: =IF(Avropsblankett!$C$40=$A$4,(IF(Avropsblankett!$E$40<17,(AI5+(AI6-AI5)/8*(Avropsblankett!$E$40-8)),IF(Avropsblankett!$E$40<33,(AI6+(AI7-AI6)/24*(Avropsblankett!$E$40-16)),IF(Avropsblankett!$E$40<65,(AI7+(AI8-AI7)/32*(Avropsblankett!$E$40-32)),"")))),"") ->  | AK11: =(Avropsblankett!$F$40-500)/100*IF(Avropsblankett!$C$40=$A$4,IF(Avropsblankett!$E$40<17,(AK5+(AK6-AK5)/8*(Avropsblankett!$E$40-8)),IF(Avropsblankett!$E$40<33,(AK6+(AK7-AK6)/16*(Avropsblankett!$E$40-16)),IF(Avropsblankett!$E$40<65,(AK7+(AK8-AK7)/32*(Avropsblankett!$E$40-32)),"")))) -> 0 | AN11: =IF(Avropsblankett!$C$40=$A$4,(IF(Avropsblankett!$E$40<17,(AN5+(AN6-AN5)/8*(Avropsblankett!$E$40-8)),IF(Avropsblankett!$E$40<33,(AN6+(AN7-AN6)/24*(Avropsblankett!$E$40-16)),IF(Avropsblankett!$E$40<65,(AN7+(AN8-AN7)/32*(Avropsblankett!$E$40-32)),"")))),"") ->  | AP11: =(Avropsblankett!$F$40-500)/100*IF(Avropsblankett!$C$40=$A$4,IF(Avropsblankett!$E$40<17,(AP5+(AP6-AP5)/8*(Avropsblankett!$E$40-8)),IF(Avropsblankett!$E$40<33,(AP6+(AP7-AP6)/16*(Avropsblankett!$E$40-16)),IF(Avropsblankett!$E$40<65,(AP7+(AP8-AP7)/32*(Avropsblankett!$E$40-32)),"")))) -> 0 | AS11: =IF(Avropsblankett!$C$40=$A$4,(IF(Avropsblankett!$E$40<17,(AS5+(AS6-AS5)/8*(Avropsblankett!$E$40-8)),IF(Avropsblankett!$E$40<33,(AS6+(AS7-AS6)/24*(Avropsblankett!$E$40-16)),IF(Avropsblankett!$E$40<65,(AS7+(AS8-AS7)/32*(Avropsblankett!$E$40-32)),"")))),"") ->  | AU11: =(Avropsblankett!$F$40-500)/100*IF(Avropsblankett!$C$40=$A$4,IF(Avropsblankett!$E$40<17,(AU5+(AU6-AU5)/8*(Avropsblankett!$E$40-8)),IF(Avropsblankett!$E$40<33,(AU6+(AU7-AU6)/16*(Avropsblankett!$E$40-16)),IF(Avropsblankett!$E$40<65,(AU7+(AU8-AU7)/32*(Avropsblankett!$E$40-32)),"")))) -> 0 | AX11: =IF(Avropsblankett!$C$40=$A$4,IF(Avropsblankett!$E$40<33,(AX5+(AX6-AX5)/24*(Avropsblankett!$E$40-8)),IF(Avropsblankett!$E$40<65,(AX6+(AX7-AX6)/32*(Avropsblankett!$E$40-32)),"")),"") ->  | AZ11: =(Avropsblankett!$F$40-500)/100*IF(Avropsblankett!$C$40=$A$4,IF(Avropsblankett!$E$40<33,(AZ5+(AZ6-AZ5)/24*(Avropsblankett!$E$40-8)),IF(Avropsblankett!$E$40<65,(AZ6+(AZ7-AZ6)/32*(Avropsblankett!$E$40-32)),""))) -> 0
E12: =IF(Avropsblankett!$C$52=$A$4,(IF(Avropsblankett!$E$52<17,(E5+(E6-E5)/8*(Avropsblankett!$E$52-8)),IF(Avropsblankett!$E$52<33,(E6+(E7-E6)/24*(Avropsblankett!$E$52-16)),IF(Avropsblankett!$E$52<65,(E7+(E8-E7)/32*(Avropsblankett!$E$52-32)),"")))),"") ->  | G12: =(Avropsblankett!$F$52-500)/100*IF(Avropsblankett!$C$52=$A$4,IF(Avropsblankett!$E$52<17,(G5+(G6-G5)/8*(Avropsblankett!$E$52-8)),IF(Avropsblankett!$E$52<33,(G6+(G7-G6)/16*(Avropsblankett!$E$52-16)),IF(Avropsblankett!$E$52<65,(G7+(G8-G7)/32*(Avropsblankett!$E$52-32)),"")))) -> 0 | J12: =IF(Avropsblankett!$C$52=$A$4,(IF(Avropsblankett!$E$52<17,(J5+(J6-J5)/8*(Avropsblankett!$E$52-8)),IF(Avropsblankett!$E$52<33,(J6+(J7-J6)/24*(Avropsblankett!$E$52-16)),IF(Avropsblankett!$E$52<65,(J7+(J8-J7)/32*(Avropsblankett!$E$52-32)),"")))),"") ->  | L12: =(Avropsblankett!$F$52-500)/100*IF(Avropsblankett!$C$52=$A$4,IF(Avropsblankett!$E$52<17,(L5+(L6-L5)/8*(Avropsblankett!$E$52-8)),IF(Avropsblankett!$E$52<33,(L6+(L7-L6)/16*(Avropsblankett!$E$52-16)),IF(Avropsblankett!$E$52<65,(L7+(L8-L7)/32*(Avropsblankett!$E$52-32)),"")))) -> 0 | O12: =IF(Avropsblankett!$C$52=$A$4,(IF(Avropsblankett!$E$52<17,(O5+(O6-O5)/8*(Avropsblankett!$E$52-8)),IF(Avropsblankett!$E$52<33,(O6+(O7-O6)/24*(Avropsblankett!$E$52-16)),IF(Avropsblankett!$E$52<65,(O7+(O8-O7)/32*(Avropsblankett!$E$52-32)),"")))),"") ->  | Q12: =(Avropsblankett!$F$52-500)/100*IF(Avropsblankett!$C$52=$A$4,IF(Avropsblankett!$E$52<17,(Q5+(Q6-Q5)/8*(Avropsblankett!$E$52-8)),IF(Avropsblankett!$E$52<33,(Q6+(Q7-Q6)/16*(Avropsblankett!$E$52-16)),IF(Avropsblankett!$E$52<65,(Q7+(Q8-Q7)/32*(Avropsblankett!$E$52-32)),"")))) -> 0 | T12: =IF(Avropsblankett!$C$52=$A$4,(IF(Avropsblankett!$E$52<17,(T5+(T6-T5)/8*(Avropsblankett!$E$52-8)),IF(Avropsblankett!$E$52<33,(T6+(T7-T6)/24*(Avropsblankett!$E$52-16)),IF(Avropsblankett!$E$52<65,(T7+(T8-T7)/32*(Avropsblankett!$E$52-32)),"")))),"") ->  | V12: =(Avropsblankett!$F$52-500)/100*IF(Avropsblankett!$C$52=$A$4,IF(Avropsblankett!$E$52<17,(V5+(V6-V5)/8*(Avropsblankett!$E$52-8)),IF(Avropsblankett!$E$52<33,(V6+(V7-V6)/16*(Avropsblankett!$E$52-16)),IF(Avropsblankett!$E$52<65,(V7+(V8-V7)/32*(Avropsblankett!$E$52-32)),"")))) -> 0 | Y12: =IF(Avropsblankett!$C$52=$A$4,(IF(Avropsblankett!$E$52<17,(Y5+(Y6-Y5)/8*(Avropsblankett!$E$52-8)),IF(Avropsblankett!$E$52<33,(Y6+(Y7-Y6)/24*(Avropsblankett!$E$52-16)),IF(Avropsblankett!$E$52<65,(Y7+(Y8-Y7)/32*(Avropsblankett!$E$52-32)),"")))),"") ->  | AA12: =(Avropsblankett!$F$52-500)/100*IF(Avropsblankett!$C$52=$A$4,IF(Avropsblankett!$E$52<17,(AA5+(AA6-AA5)/8*(Avropsblankett!$E$52-8)),IF(Avropsblankett!$E$52<33,(AA6+(AA7-AA6)/16*(Avropsblankett!$E$52-16)),IF(Avropsblankett!$E$52<65,(AA7+(AA8-AA7)/32*(Avropsblankett!$E$52-32)),"")))) -> 0 | AD12: =IF(Avropsblankett!$C$52=$A$4,(IF(Avropsblankett!$E$52<17,(AD5+(AD6-AD5)/8*(Avropsblankett!$E$52-8)),IF(Avropsblankett!$E$52<33,(AD6+(AD7-AD6)/24*(Avropsblankett!$E$52-16)),IF(Avropsblankett!$E$52<65,(AD7+(AD8-AD7)/32*(Avropsblankett!$E$52-32)),"")))),"") ->  | AF12: =(Avropsblankett!$F$52-500)/100*IF(Avropsblankett!$C$52=$A$4,IF(Avropsblankett!$E$52<17,(AF5+(AF6-AF5)/8*(Avropsblankett!$E$52-8)),IF(Avropsblankett!$E$52<33,(AF6+(AF7-AF6)/16*(Avropsblankett!$E$52-16)),IF(Avropsblankett!$E$52<65,(AF7+(AF8-AF7)/32*(Avropsblankett!$E$52-32)),"")))) -> 0 | AI12: =IF(Avropsblankett!$C$52=$A$4,(IF(Avropsblankett!$E$52<17,(AI5+(AI6-AI5)/8*(Avropsblankett!$E$52-8)),IF(Avropsblankett!$E$52<33,(AI6+(AI7-AI6)/24*(Avropsblankett!$E$52-16)),IF(Avropsblankett!$E$52<65,(AI7+(AI8-AI7)/32*(Avropsblankett!$E$52-32)),"")))),"") ->  | AK12: =(Avropsblankett!$F$52-500)/100*IF(Avropsblankett!$C$52=$A$4,IF(Avropsblankett!$E$52<17,(AK5+(AK6-AK5)/8*(Avropsblankett!$E$52-8)),IF(Avropsblankett!$E$52<33,(AK6+(AK7-AK6)/16*(Avropsblankett!$E$52-16)),IF(Avropsblankett!$E$52<65,(AK7+(AK8-AK7)/32*(Avropsblankett!$E$52-32)),"")))) -> 0 | AN12: =IF(Avropsblankett!$C$52=$A$4,(IF(Avropsblankett!$E$52<17,(AN5+(AN6-AN5)/8*(Avropsblankett!$E$52-8)),IF(Avropsblankett!$E$52<33,(AN6+(AN7-AN6)/24*(Avropsblankett!$E$52-16)),IF(Avropsblankett!$E$52<65,(AN7+(AN8-AN7)/32*(Avropsblankett!$E$52-32)),"")))),"") ->  | AP12: =(Avropsblankett!$F$52-500)/100*IF(Avropsblankett!$C$52=$A$4,IF(Avropsblankett!$E$52<17,(AP5+(AP6-AP5)/8*(Avropsblankett!$E$52-8)),IF(Avropsblankett!$E$52<33,(AP6+(AP7-AP6)/16*(Avropsblankett!$E$52-16)),IF(Avropsblankett!$E$52<65,(AP7+(AP8-AP7)/32*(Avropsblankett!$E$52-32)),"")))) -> 0 | AS12: =IF(Avropsblankett!$C$52=$A$4,(IF(Avropsblankett!$E$52<17,(AS5+(AS6-AS5)/8*(Avropsblankett!$E$52-8)),IF(Avropsblankett!$E$52<33,(AS6+(AS7-AS6)/24*(Avropsblankett!$E$52-16)),IF(Avropsblankett!$E$52<65,(AS7+(AS8-AS7)/32*(Avropsblankett!$E$52-32)),"")))),"") ->  | AU12: =(Avropsblankett!$F$52-500)/100*IF(Avropsblankett!$C$52=$A$4,IF(Avropsblankett!$E$52<17,(AU5+(AU6-AU5)/8*(Avropsblankett!$E$52-8)),IF(Avropsblankett!$E$52<33,(AU6+(AU7-AU6)/16*(Avropsblankett!$E$52-16)),IF(Avropsblankett!$E$52<65,(AU7+(AU8-AU7)/32*(Avropsblankett!$E$52-32)),"")))) -> 0 | AX12: =IF(Avropsblankett!$C$52=$A$4,IF(Avropsblankett!$E$52<33,(AX5+(AX6-AX5)/24*(Avropsblankett!$E$52-8)),IF(Avropsblankett!$E$52<65,(AX6+(AX7-AX6)/32*(Avropsblankett!$E$52-32)),"")),"") ->  | AZ12: =(Avropsblankett!$F$52-500)/100*IF(Avropsblankett!$C$52=$A$4,IF(Avropsblankett!$E$52<33,(AZ5+(AZ6-AZ5)/24*(Avropsblankett!$E$52-8)),IF(Avropsblankett!$E$52<65,(AZ6+(AZ7-AZ6)/32*(Avropsblankett!$E$52-32)),""))) -> 0
E13: =IF(Avropsblankett!$C$64=$A$4,(IF(Avropsblankett!$E$64<17,(E5+(E6-E5)/8*(Avropsblankett!$E$64-8)),IF(Avropsblankett!$E$64<33,(E6+(E7-E6)/24*(Avropsblankett!$E$64-16)),IF(Avropsblankett!$E$64<65,(E7+(E8-E7)/32*(Avropsblankett!$E$64-32)),"")))),"") ->  | G13: =(Avropsblankett!$F$64-500)/100*IF(Avropsblankett!$C$64=$A$4,IF(Avropsblankett!$E$64<17,(G5+(G6-G5)/8*(Avropsblankett!$E$64-8)),IF(Avropsblankett!$E$64<33,(G6+(G7-G6)/16*(Avropsblankett!$E$64-16)),IF(Avropsblankett!$E$64<65,(G7+(G8-G7)/32*(Avropsblankett!$E$64-32)),"")))) -> 0 | J13: =IF(Avropsblankett!$C$64=$A$4,(IF(Avropsblankett!$E$64<17,(J5+(J6-J5)/8*(Avropsblankett!$E$64-8)),IF(Avropsblankett!$E$64<33,(J6+(J7-J6)/24*(Avropsblankett!$E$64-16)),IF(Avropsblankett!$E$64<65,(J7+(J8-J7)/32*(Avropsblankett!$E$64-32)),"")))),"") ->  | L13: =(Avropsblankett!$F$64-500)/100*IF(Avropsblankett!$C$64=$A$4,IF(Avropsblankett!$E$64<17,(L5+(L6-L5)/8*(Avropsblankett!$E$64-8)),IF(Avropsblankett!$E$64<33,(L6+(L7-L6)/16*(Avropsblankett!$E$64-16)),IF(Avropsblankett!$E$64<65,(L7+(L8-L7)/32*(Avropsblankett!$E$64-32)),"")))) -> 0 | O13: =IF(Avropsblankett!$C$64=$A$4,(IF(Avropsblankett!$E$64<17,(O5+(O6-O5)/8*(Avropsblankett!$E$64-8)),IF(Avropsblankett!$E$64<33,(O6+(O7-O6)/24*(Avropsblankett!$E$64-16)),IF(Avropsblankett!$E$64<65,(O7+(O8-O7)/32*(Avropsblankett!$E$64-32)),"")))),"") ->  | Q13: =(Avropsblankett!$F$64-500)/100*IF(Avropsblankett!$C$64=$A$4,IF(Avropsblankett!$E$64<17,(Q5+(Q6-Q5)/8*(Avropsblankett!$E$64-8)),IF(Avropsblankett!$E$64<33,(Q6+(Q7-Q6)/16*(Avropsblankett!$E$64-16)),IF(Avropsblankett!$E$64<65,(Q7+(Q8-Q7)/32*(Avropsblankett!$E$64-32)),"")))) -> 0 | T13: =IF(Avropsblankett!$C$64=$A$4,(IF(Avropsblankett!$E$64<17,(T5+(T6-T5)/8*(Avropsblankett!$E$64-8)),IF(Avropsblankett!$E$64<33,(T6+(T7-T6)/24*(Avropsblankett!$E$64-16)),IF(Avropsblankett!$E$64<65,(T7+(T8-T7)/32*(Avropsblankett!$E$64-32)),"")))),"") ->  | V13: =(Avropsblankett!$F$64-500)/100*IF(Avropsblankett!$C$64=$A$4,IF(Avropsblankett!$E$64<17,(V5+(V6-V5)/8*(Avropsblankett!$E$64-8)),IF(Avropsblankett!$E$64<33,(V6+(V7-V6)/16*(Avropsblankett!$E$64-16)),IF(Avropsblankett!$E$64<65,(V7+(V8-V7)/32*(Avropsblankett!$E$64-32)),"")))) -> 0 | Y13: =IF(Avropsblankett!$C$64=$A$4,(IF(Avropsblankett!$E$64<17,(Y5+(Y6-Y5)/8*(Avropsblankett!$E$64-8)),IF(Avropsblankett!$E$64<33,(Y6+(Y7-Y6)/24*(Avropsblankett!$E$64-16)),IF(Avropsblankett!$E$64<65,(Y7+(Y8-Y7)/32*(Avropsblankett!$E$64-32)),"")))),"") ->  | AA13: =(Avropsblankett!$F$64-500)/100*IF(Avropsblankett!$C$64=$A$4,IF(Avropsblankett!$E$64<17,(AA5+(AA6-AA5)/8*(Avropsblankett!$E$64-8)),IF(Avropsblankett!$E$64<33,(AA6+(AA7-AA6)/16*(Avropsblankett!$E$64-16)),IF(Avropsblankett!$E$64<65,(AA7+(AA8-AA7)/32*(Avropsblankett!$E$64-32)),"")))) -> 0 | AD13: =IF(Avropsblankett!$C$64=$A$4,(IF(Avropsblankett!$E$64<17,(AD5+(AD6-AD5)/8*(Avropsblankett!$E$64-8)),IF(Avropsblankett!$E$64<33,(AD6+(AD7-AD6)/24*(Avropsblankett!$E$64-16)),IF(Avropsblankett!$E$64<65,(AD7+(AD8-AD7)/32*(Avropsblankett!$E$64-32)),"")))),"") ->  | AF13: =(Avropsblankett!$F$64-500)/100*IF(Avropsblankett!$C$64=$A$4,IF(Avropsblankett!$E$64<17,(AF5+(AF6-AF5)/8*(Avropsblankett!$E$64-8)),IF(Avropsblankett!$E$64<33,(AF6+(AF7-AF6)/16*(Avropsblankett!$E$64-16)),IF(Avropsblankett!$E$64<65,(AF7+(AF8-AF7)/32*(Avropsblankett!$E$64-32)),"")))) -> 0 | AI13: =IF(Avropsblankett!$C$64=$A$4,(IF(Avropsblankett!$E$64<17,(AI5+(AI6-AI5)/8*(Avropsblankett!$E$64-8)),IF(Avropsblankett!$E$64<33,(AI6+(AI7-AI6)/24*(Avropsblankett!$E$64-16)),IF(Avropsblankett!$E$64<65,(AI7+(AI8-AI7)/32*(Avropsblankett!$E$64-32)),"")))),"") ->  | AK13: =(Avropsblankett!$F$64-500)/100*IF(Avropsblankett!$C$64=$A$4,IF(Avropsblankett!$E$64<17,(AK5+(AK6-AK5)/8*(Avropsblankett!$E$64-8)),IF(Avropsblankett!$E$64<33,(AK6+(AK7-AK6)/16*(Avropsblankett!$E$64-16)),IF(Avropsblankett!$E$64<65,(AK7+(AK8-AK7)/32*(Avropsblankett!$E$64-32)),"")))) -> 0 | AN13: =IF(Avropsblankett!$C$64=$A$4,(IF(Avropsblankett!$E$64<17,(AN5+(AN6-AN5)/8*(Avropsblankett!$E$64-8)),IF(Avropsblankett!$E$64<33,(AN6+(AN7-AN6)/24*(Avropsblankett!$E$64-16)),IF(Avropsblankett!$E$64<65,(AN7+(AN8-AN7)/32*(Avropsblankett!$E$64-32)),"")))),"") ->  | AP13: =(Avropsblankett!$F$64-500)/100*IF(Avropsblankett!$C$64=$A$4,IF(Avropsblankett!$E$64<17,(AP5+(AP6-AP5)/8*(Avropsblankett!$E$64-8)),IF(Avropsblankett!$E$64<33,(AP6+(AP7-AP6)/16*(Avropsblankett!$E$64-16)),IF(Avropsblankett!$E$64<65,(AP7+(AP8-AP7)/32*(Avropsblankett!$E$64-32)),"")))) -> 0 | AS13: =IF(Avropsblankett!$C$64=$A$4,(IF(Avropsblankett!$E$64<17,(AS5+(AS6-AS5)/8*(Avropsblankett!$E$64-8)),IF(Avropsblankett!$E$64<33,(AS6+(AS7-AS6)/24*(Avropsblankett!$E$64-16)),IF(Avropsblankett!$E$64<65,(AS7+(AS8-AS7)/32*(Avropsblankett!$E$64-32)),"")))),"") ->  | AU13: =(Avropsblankett!$F$64-500)/100*IF(Avropsblankett!$C$64=$A$4,IF(Avropsblankett!$E$64<17,(AU5+(AU6-AU5)/8*(Avropsblankett!$E$64-8)),IF(Avropsblankett!$E$64<33,(AU6+(AU7-AU6)/16*(Avropsblankett!$E$64-16)),IF(Avropsblankett!$E$64<65,(AU7+(AU8-AU7)/32*(Avropsblankett!$E$64-32)),"")))) -> 0 | AX13: =IF(Avropsblankett!$C$64=$A$4,IF(Avropsblankett!$E$64<33,(AX5+(AX6-AX5)/24*(Avropsblankett!$E$64-8)),IF(Avropsblankett!$E$64<65,(AX6+(AX7-AX6)/32*(Avropsblankett!$E$64-32)),"")),"") ->  | AZ13: =(Avropsblankett!$F$64-500)/100*IF(Avropsblankett!$C$64=$A$4,IF(Avropsblankett!$E$64<33,(AZ5+(AZ6-AZ5)/24*(Avropsblankett!$E$64-8)),IF(Avropsblankett!$E$64<65,(AZ6+(AZ7-AZ6)/32*(Avropsblankett!$E$64-32)),""))) -> 0
E14: =IF(Avropsblankett!$C$76=$A$4,(IF(Avropsblankett!$E$76<17,(E5+(E6-E5)/8*(Avropsblankett!$E$76-8)),IF(Avropsblankett!$E$76<33,(E6+(E7-E6)/24*(Avropsblankett!$E$76-16)),IF(Avropsblankett!$E$76<65,(E7+(E8-E7)/32*(Avropsblankett!$E$76-32)),"")))),"") ->  | G14: =(Avropsblankett!$F$76-500)/100*IF(Avropsblankett!$C$76=$A$4,IF(Avropsblankett!$E$76,(G5+(G6-G5)/8*(Avropsblankett!$E$76-8)),IF(Avropsblankett!$E$76<33,(G6+(G7-G6)/16*(Avropsblankett!$E$76-16)),IF(Avropsblankett!$E$76<65,(G7+(G8-G7)/32*(Avropsblankett!$E$76-32)),"")))) -> 0 | J14: =IF(Avropsblankett!$C$76=$A$4,(IF(Avropsblankett!$E$76<17,(J5+(J6-J5)/8*(Avropsblankett!$E$76-8)),IF(Avropsblankett!$E$76<33,(J6+(J7-J6)/24*(Avropsblankett!$E$76-16)),IF(Avropsblankett!$E$76<65,(J7+(J8-J7)/32*(Avropsblankett!$E$76-32)),"")))),"") ->  | L14: =(Avropsblankett!$F$76-500)/100*IF(Avropsblankett!$C$76=$A$4,IF(Avropsblankett!$E$76,(L5+(L6-L5)/8*(Avropsblankett!$E$76-8)),IF(Avropsblankett!$E$76<33,(L6+(L7-L6)/16*(Avropsblankett!$E$76-16)),IF(Avropsblankett!$E$76<65,(L7+(L8-L7)/32*(Avropsblankett!$E$76-32)),"")))) -> 0 | O14: =IF(Avropsblankett!$C$76=$A$4,(IF(Avropsblankett!$E$76<17,(O5+(O6-O5)/8*(Avropsblankett!$E$76-8)),IF(Avropsblankett!$E$76<33,(O6+(O7-O6)/24*(Avropsblankett!$E$76-16)),IF(Avropsblankett!$E$76<65,(O7+(O8-O7)/32*(Avropsblankett!$E$76-32)),"")))),"") ->  | Q14: =(Avropsblankett!$F$76-500)/100*IF(Avropsblankett!$C$76=$A$4,IF(Avropsblankett!$E$76,(Q5+(Q6-Q5)/8*(Avropsblankett!$E$76-8)),IF(Avropsblankett!$E$76<33,(Q6+(Q7-Q6)/16*(Avropsblankett!$E$76-16)),IF(Avropsblankett!$E$76<65,(Q7+(Q8-Q7)/32*(Avropsblankett!$E$76-32)),"")))) -> 0 | T14: =IF(Avropsblankett!$C$76=$A$4,(IF(Avropsblankett!$E$76<17,(T5+(T6-T5)/8*(Avropsblankett!$E$76-8)),IF(Avropsblankett!$E$76<33,(T6+(T7-T6)/24*(Avropsblankett!$E$76-16)),IF(Avropsblankett!$E$76<65,(T7+(T8-T7)/32*(Avropsblankett!$E$76-32)),"")))),"") ->  | V14: =(Avropsblankett!$F$76-500)/100*IF(Avropsblankett!$C$76=$A$4,IF(Avropsblankett!$E$76,(V5+(V6-V5)/8*(Avropsblankett!$E$76-8)),IF(Avropsblankett!$E$76<33,(V6+(V7-V6)/16*(Avropsblankett!$E$76-16)),IF(Avropsblankett!$E$76<65,(V7+(V8-V7)/32*(Avropsblankett!$E$76-32)),"")))) -> 0 | Y14: =IF(Avropsblankett!$C$76=$A$4,(IF(Avropsblankett!$E$76<17,(Y5+(Y6-Y5)/8*(Avropsblankett!$E$76-8)),IF(Avropsblankett!$E$76<33,(Y6+(Y7-Y6)/24*(Avropsblankett!$E$76-16)),IF(Avropsblankett!$E$76<65,(Y7+(Y8-Y7)/32*(Avropsblankett!$E$76-32)),"")))),"") ->  | AA14: =(Avropsblankett!$F$76-500)/100*IF(Avropsblankett!$C$76=$A$4,IF(Avropsblankett!$E$76,(AA5+(AA6-AA5)/8*(Avropsblankett!$E$76-8)),IF(Avropsblankett!$E$76<33,(AA6+(AA7-AA6)/16*(Avropsblankett!$E$76-16)),IF(Avropsblankett!$E$76<65,(AA7+(AA8-AA7)/32*(Avropsblankett!$E$76-32)),"")))) -> 0 | AD14: =IF(Avropsblankett!$C$76=$A$4,(IF(Avropsblankett!$E$76<17,(AD5+(AD6-AD5)/8*(Avropsblankett!$E$76-8)),IF(Avropsblankett!$E$76<33,(AD6+(AD7-AD6)/24*(Avropsblankett!$E$76-16)),IF(Avropsblankett!$E$76<65,(AD7+(AD8-AD7)/32*(Avropsblankett!$E$76-32)),"")))),"") ->  | AF14: =(Avropsblankett!$F$76-500)/100*IF(Avropsblankett!$C$76=$A$4,IF(Avropsblankett!$E$76,(AF5+(AF6-AF5)/8*(Avropsblankett!$E$76-8)),IF(Avropsblankett!$E$76<33,(AF6+(AF7-AF6)/16*(Avropsblankett!$E$76-16)),IF(Avropsblankett!$E$76<65,(AF7+(AF8-AF7)/32*(Avropsblankett!$E$76-32)),"")))) -> 0 | AI14: =IF(Avropsblankett!$C$76=$A$4,(IF(Avropsblankett!$E$76<17,(AI5+(AI6-AI5)/8*(Avropsblankett!$E$76-8)),IF(Avropsblankett!$E$76<33,(AI6+(AI7-AI6)/24*(Avropsblankett!$E$76-16)),IF(Avropsblankett!$E$76<65,(AI7+(AI8-AI7)/32*(Avropsblankett!$E$76-32)),"")))),"") ->  | AK14: =(Avropsblankett!$F$76-500)/100*IF(Avropsblankett!$C$76=$A$4,IF(Avropsblankett!$E$76,(AK5+(AK6-AK5)/8*(Avropsblankett!$E$76-8)),IF(Avropsblankett!$E$76<33,(AK6+(AK7-AK6)/16*(Avropsblankett!$E$76-16)),IF(Avropsblankett!$E$76<65,(AK7+(AK8-AK7)/32*(Avropsblankett!$E$76-32)),"")))) -> 0 | AN14: =IF(Avropsblankett!$C$76=$A$4,(IF(Avropsblankett!$E$76<17,(AN5+(AN6-AN5)/8*(Avropsblankett!$E$76-8)),IF(Avropsblankett!$E$76<33,(AN6+(AN7-AN6)/24*(Avropsblankett!$E$76-16)),IF(Avropsblankett!$E$76<65,(AN7+(AN8-AN7)/32*(Avropsblankett!$E$76-32)),"")))),"") ->  | AP14: =(Avropsblankett!$F$76-500)/100*IF(Avropsblankett!$C$76=$A$4,IF(Avropsblankett!$E$76,(AP5+(AP6-AP5)/8*(Avropsblankett!$E$76-8)),IF(Avropsblankett!$E$76<33,(AP6+(AP7-AP6)/16*(Avropsblankett!$E$76-16)),IF(Avropsblankett!$E$76<65,(AP7+(AP8-AP7)/32*(Avropsblankett!$E$76-32)),"")))) -> 0 | AS14: =IF(Avropsblankett!$C$76=$A$4,(IF(Avropsblankett!$E$76<17,(AS5+(AS6-AS5)/8*(Avropsblankett!$E$76-8)),IF(Avropsblankett!$E$76<33,(AS6+(AS7-AS6)/24*(Avropsblankett!$E$76-16)),IF(Avropsblankett!$E$76<65,(AS7+(AS8-AS7)/32*(Avropsblankett!$E$76-32)),"")))),"") ->  | AU14: =(Avropsblankett!$F$76-500)/100*IF(Avropsblankett!$C$76=$A$4,IF(Avropsblankett!$E$76,(AU5+(AU6-AU5)/8*(Avropsblankett!$E$76-8)),IF(Avropsblankett!$E$76<33,(AU6+(AU7-AU6)/16*(Avropsblankett!$E$76-16)),IF(Avropsblankett!$E$76<65,(AU7+(AU8-AU7)/32*(Avropsblankett!$E$76-32)),"")))) -> 0 | AX14: =IF(Avropsblankett!$C$76=$A$4,IF(Avropsblankett!$E$76<33,(AX5+(AX6-AX5)/24*(Avropsblankett!$E$76-8)),IF(Avropsblankett!$E$76<65,(AX6+(AX7-AX6)/32*(Avropsblankett!$E$76-32)),"")),"") ->  | AZ14: =(Avropsblankett!$F$76-500)/100*IF(Avropsblankett!$C$76=$A$4,IF(Avropsblankett!$E$76<33,(AZ5+(AZ6-AZ5)/24*(Avropsblankett!$E$76-8)),IF(Avropsblankett!$E$76<65,(AZ6+(AZ7-AZ6)/32*(Avropsblankett!$E$76-32)),""))) -> 0
E15: =SUM(E10:E14) -> 0 | G15: =SUM(G10:G14) -> 0 | J15: =SUM(J10:J14) -> 0 | L15: =SUM(L10:L14) -> 0 | O15: =SUM(O10:O14) -> 0 | Q15: =SUM(Q10:Q14) -> 0 | T15: =SUM(T10:T14) -> 0 | V15: =SUM(V10:V14) -> 0 | Y15: =SUM(Y10:Y14) -> 0 | AA15: =SUM(AA10:AA14) -> 0 | AD15: =SUM(AD10:AD14) -> 0 | AF15: =SUM(AF10:AF14) -> 0 | AI15: =SUM(AI10:AI14) -> 0 | AK15: =SUM(AK10:AK14) -> 0 | AN15: =SUM(AN10:AN14) -> 0 | AP15: =SUM(AP10:AP14) -> 0 | AS15: =SUM(AS10:AS14) -> 0 | AU15: =SUM(AU10:AU14) -> 0 | AX15: =SUM(AX10:AX14) -> 0 | AZ15: =SUM(AZ10:AZ14) -> 0
A16: Broschyrer_Variant_2 | C16: Beskrivning/omfång inklusive omslag | D16: Upplaga | E16: Ange pris | F16: Följande | G16: Ange pris | I16: Upplaga | J16: Ange pris | K16: Följande | L16: Ange pris | N16: Upplaga | O16: Ange pris | P16: Följande | Q16: Ange pris | S16: Upplaga | T16: Ange pris | U16: Följande | V16: Ange pris | X16: Upplaga | Y16: Ange pris | Z16: Följande | AA16: Ange pris | AC16: Upplaga | AD16: Ange pris | AE16: Följande | AF16: Ange pris | AH16: Upplaga | AI16: Ange pris | AJ16: Följande | AK16: Ange pris | AM16: Upplaga | AN16: Ange pris | AO16: Följande | AP16: Ange pris | AR16: Upplaga | AS16: Ange pris | AT16: Följande | AU16: Ange pris | AW16: Upplaga | AX16: Ange pris | AY16: Följande | AZ16: Ange pris
A17: Underlag | B17: A: Öppna filer. B: PDF/PDFx. | C17: 8 sidor + omslag | D17: 500 | E17: 3948 | F17: 100 | G17: 563 | I17: 500 | J17: 2947 | K17: 100 | L17: 530 | N17: 500 | O17: 4100 | P17: 100 | Q17: 200 | S17: 500 | T17: 4000 | U17: 100 | V17: 400 | X17: 500 | Y17: 2000 | Z17: 100 | AA17: 50 | AC17: 500 | AD17: 3895 | AE17: 100 | AF17: 424 | AH17: 500 | AI17: 1500 | AJ17: 100 | AK17: 140 | AM17: 500 | AN17: 3503 | AO17: 100 | AP17: 521 | AR17: 500 | AS17: 6150 | AT17: 100 | AU17: 780 | AW17: 500 | AX17: 3875 | AY17: 100 | AZ17: 575
A18: Format | B18: A4 | C18: 16 sidor + omslag | D18: 500 | E18: 5687 | F18: 100 | G18: 911 | I18: 500 | J18: 4175 | K18: 100 | L18: 776 | N18: 500 | O18: 5100 | P18: 100 | Q18: 260 | S18: 500 | T18: 5500 | U18: 100 | V18: 500 | X18: 500 | Y18: 3000 | Z18: 100 | AA18: 90 | AC18: 500 | AD18: 5864 | AE18: 100 | AF18: 830 | AH18: 500 | AI18: 2250 | AJ18: 100 | AK18: 200 | AM18: 500 | AN18: 4502 | AO18: 100 | AP18: 671 | AR18: 500 | AS18: 7820 | AT18: 100 | AU18: 995 | AW18: 500 | AX18: 8278 | AY18: 100 | AZ18: 1590
A19: Inlaga | B19: Mattbestruket 130 g | C19: 32 sidor + omslag | D19: 500 | E19: 8730 | F19: 100 | G19: 1521 | I19: 500 | J19: 6631 | K19: 100 | L19: 1267 | N19: 500 | O19: 6720 | P19: 100 | Q19: 490 | S19: 500 | T19: 7800 | U19: 100 | V19: 600 | X19: 500 | Y19: 4200 | Z19: 100 | AA19: 160 | AC19: 500 | AD19: 7990 | AE19: 100 | AF19: 896 | AH19: 500 | AI19: 3500 | AJ19: 100 | AK19: 325 | AM19: 500 | AN19: 5104 | AO19: 100 | AP19: 761 | AR19: 500 | AS19: 9250 | AT19: 100 | AU19: 1185 | AW19: 500 | AX19: 12976 | AY19: 100 | AZ19: 2590
A20: Omslag | B20: Mattbestruket 250 g | C20: 64 sidor + omslag | D20: 500 | E20: 16557 | F20: 100 | G20: 3086 | I20: 500 | J20: 11063 | K20: 100 | L20: 2156 | N20: 500 | O20: 7900 | P20: 100 | Q20: 945 | S20: 500 | T20: 12500 | U20: 100 | V20: 900 | X20: 500 | Y20: 7200 | Z20: 100 | AA20: 320 | AC20: 500 | AD20: 12230 | AE20: 100 | AF20: 1455 | AH20: 500 | AI20: 5500 | AJ20: 100 | AK20: 550 | AM20: 500 | AN20: 7201 | AO20: 100 | AP20: 1076 | AR20: 500 | AS20: 11700 | AT20: 100 | AU20: 1690
A21: Tryck inlaga | B21: 4+4 färger
A22: Tryck omslag | B22: 4+4 färger
A23: Bokbinderi | B23: Klammerhäftning
E24: =IF(Avropsblankett!$C$28=$A$16,(IF(Avropsblankett!$E$28<17,(E17+(E18-E17)/8*(Avropsblankett!$E$28-8)),IF(Avropsblankett!$E$28<33,(E18+(E19-E18)/24*(Avropsblankett!$E$28-16)),IF(Avropsblankett!$E$28<65,(E19+(E20-E19)/32*(Avropsblankett!$E$28-32)),"")))),"") ->  | G24: =(Avropsblankett!$F$28-500)/100*IF(Avropsblankett!$C$28=$A$16,IF(Avropsblankett!$E$28<17,(G17+(G18-G17)/8*(Avropsblankett!$E$28-8)),IF(Avropsblankett!$E$28<33,(G18+(G19-G18)/16*(Avropsblankett!$E$28-16)),IF(Avropsblankett!$E$28<65,(G19+(G20-G19)/32*(Avropsblankett!$E$28-32)),"")))) -> 0 | J24: =IF(Avropsblankett!$C$28=$A$16,(IF(Avropsblankett!$E$28<17,(J17+(J18-J17)/8*(Avropsblankett!$E$28-8)),IF(Avropsblankett!$E$28<33,(J18+(J19-J18)/24*(Avropsblankett!$E$28-16)),IF(Avropsblankett!$E$28<65,(J19+(J20-J19)/32*(Avropsblankett!$E$28-32)),"")))),"") ->  | L24: =(Avropsblankett!$F$28-500)/100*IF(Avropsblankett!$C$28=$A$16,IF(Avropsblankett!$E$28<17,(L17+(L18-L17)/8*(Avropsblankett!$E$28-8)),IF(Avropsblankett!$E$28<33,(L18+(L19-L18)/16*(Avropsblankett!$E$28-16)),IF(Avropsblankett!$E$28<65,(L19+(L20-L19)/32*(Avropsblankett!$E$28-32)),"")))) -> 0 | O24: =IF(Avropsblankett!$C$28=$A$16,(IF(Avropsblankett!$E$28<17,(O17+(O18-O17)/8*(Avropsblankett!$E$28-8)),IF(Avropsblankett!$E$28<33,(O18+(O19-O18)/24*(Avropsblankett!$E$28-16)),IF(Avropsblankett!$E$28<65,(O19+(O20-O19)/32*(Avropsblankett!$E$28-32)),"")))),"") ->  | Q24: =(Avropsblankett!$F$28-500)/100*IF(Avropsblankett!$C$28=$A$16,IF(Avropsblankett!$E$28<17,(Q17+(Q18-Q17)/8*(Avropsblankett!$E$28-8)),IF(Avropsblankett!$E$28<33,(Q18+(Q19-Q18)/16*(Avropsblankett!$E$28-16)),IF(Avropsblankett!$E$28<65,(Q19+(Q20-Q19)/32*(Avropsblankett!$E$28-32)),"")))) -> 0 | T24: =IF(Avropsblankett!$C$28=$A$16,(IF(Avropsblankett!$E$28<17,(T17+(T18-T17)/8*(Avropsblankett!$E$28-8)),IF(Avropsblankett!$E$28<33,(T18+(T19-T18)/24*(Avropsblankett!$E$28-16)),IF(Avropsblankett!$E$28<65,(T19+(T20-T19)/32*(Avropsblankett!$E$28-32)),"")))),"") ->  | V24: =(Avropsblankett!$F$28-500)/100*IF(Avropsblankett!$C$28=$A$16,IF(Avropsblankett!$E$28<17,(V17+(V18-V17)/8*(Avropsblankett!$E$28-8)),IF(Avropsblankett!$E$28<33,(V18+(V19-V18)/16*(Avropsblankett!$E$28-16)),IF(Avropsblankett!$E$28<65,(V19+(V20-V19)/32*(Avropsblankett!$E$28-32)),"")))) -> 0 | Y24: =IF(Avropsblankett!$C$28=$A$16,(IF(Avropsblankett!$E$28<17,(Y17+(Y18-Y17)/8*(Avropsblankett!$E$28-8)),IF(Avropsblankett!$E$28<33,(Y18+(Y19-Y18)/24*(Avropsblankett!$E$28-16)),IF(Avropsblankett!$E$28<65,(Y19+(Y20-Y19)/32*(Avropsblankett!$E$28-32)),"")))),"") ->  | AA24: =(Avropsblankett!$F$28-500)/100*IF(Avropsblankett!$C$28=$A$16,IF(Avropsblankett!$E$28<17,(AA17+(AA18-AA17)/8*(Avropsblankett!$E$28-8)),IF(Avropsblankett!$E$28<33,(AA18+(AA19-AA18)/16*(Avropsblankett!$E$28-16)),IF(Avropsblankett!$E$28<65,(AA19+(AA20-AA19)/32*(Avropsblankett!$E$28-32)),"")))) -> 0 | AD24: =IF(Avropsblankett!$C$28=$A$16,(IF(Avropsblankett!$E$28<17,(AD17+(AD18-AD17)/8*(Avropsblankett!$E$28-8)),IF(Avropsblankett!$E$28<33,(AD18+(AD19-AD18)/24*(Avropsblankett!$E$28-16)),IF(Avropsblankett!$E$28<65,(AD19+(AD20-AD19)/32*(Avropsblankett!$E$28-32)),"")))),"") ->  | AF24: =(Avropsblankett!$F$28-500)/100*IF(Avropsblankett!$C$28=$A$16,IF(Avropsblankett!$E$28<17,(AF17+(AF18-AF17)/8*(Avropsblankett!$E$28-8)),IF(Avropsblankett!$E$28<33,(AF18+(AF19-AF18)/16*(Avropsblankett!$E$28-16)),IF(Avropsblankett!$E$28<65,(AF19+(AF20-AF19)/32*(Avropsblankett!$E$28-32)),"")))) -> 0 | AI24: =IF(Avropsblankett!$C$28=$A$16,(IF(Avropsblankett!$E$28<17,(AI17+(AI18-AI17)/8*(Avropsblankett!$E$28-8)),IF(Avropsblankett!$E$28<33,(AI18+(AI19-AI18)/24*(Avropsblankett!$E$28-16)),IF(Avropsblankett!$E$28<65,(AI19+(AI20-AI19)/32*(Avropsblankett!$E$28-32)),"")))),"") ->  | AK24: =(Avropsblankett!$F$28-500)/100*IF(Avropsblankett!$C$28=$A$16,IF(Avropsblankett!$E$28<17,(AK17+(AK18-AK17)/8*(Avropsblankett!$E$28-8)),IF(Avropsblankett!$E$28<33,(AK18+(AK19-AK18)/16*(Avropsblankett!$E$28-16)),IF(Avropsblankett!$E$28<65,(AK19+(AK20-AK19)/32*(Avropsblankett!$E$28-32)),"")))) -> 0 | AN24: =IF(Avropsblankett!$C$28=$A$16,(IF(Avropsblankett!$E$28<17,(AN17+(AN18-AN17)/8*(Avropsblankett!$E$28-8)),IF(Avropsblankett!$E$28<33,(AN18+(AN19-AN18)/24*(Avropsblankett!$E$28-16)),IF(Avropsblankett!$E$28<65,(AN19+(AN20-AN19)/32*(Avropsblankett!$E$28-32)),"")))),"") ->  | AP24: =(Avropsblankett!$F$28-500)/100*IF(Avropsblankett!$C$28=$A$16,IF(Avropsblankett!$E$28<17,(AP17+(AP18-AP17)/8*(Avropsblankett!$E$28-8)),IF(Avropsblankett!$E$28<33,(AP18+(AP19-AP18)/16*(Avropsblankett!$E$28-16)),IF(Avropsblankett!$E$28<65,(AP19+(AP20-AP19)/32*(Avropsblankett!$E$28-32)),"")))) -> 0 | AS24: =IF(Avropsblankett!$C$28=$A$16,(IF(Avropsblankett!$E$28<17,(AS17+(AS18-AS17)/8*(Avropsblankett!$E$28-8)),IF(Avropsblankett!$E$28<33,(AS18+(AS19-AS18)/24*(Avropsblankett!$E$28-16)),IF(Avropsblankett!$E$28<65,(AS19+(AS20-AS19)/32*(Avropsblankett!$E$28-32)),"")))),"") ->  | AU24: =(Avropsblankett!$F$28-500)/100*IF(Avropsblankett!$C$28=$A$16,IF(Avropsblankett!$E$28<17,(AU17+(AU18-AU17)/8*(Avropsblankett!$E$28-8)),IF(Avropsblankett!$E$28<33,(AU18+(AU19-AU18)/16*(Avropsblankett!$E$28-16)),IF(Avropsblankett!$E$28<65,(AU19+(AU20-AU19)/32*(Avropsblankett!$E$28-32)),"")))) -> 0 | AX24: =IF(Avropsblankett!$C$28=$A$16,IF(Avropsblankett!$E$28<33,(AX17+(AX18-AX17)/24*(Avropsblankett!$E$28-8)),IF(Avropsblankett!$E$28<65,(AX18+(AX19-AX18)/32*(Avropsblankett!$E$28-32)),"")),"") ->  | AZ24: =(Avropsblankett!$F$28-500)/100*IF(Avropsblankett!$C$28=$A$16,IF(Avropsblankett!$E$28<33,(AZ17+(AZ18-AZ17)/24*(Avropsblankett!$E$28-8)),IF(Avropsblankett!$E$28<65,(AZ18+(AZ19-AZ18)/32*(Avropsblankett!$E$28-32)),""))) -> 0
E25: =IF(Avropsblankett!$C$40=$A$16,(IF(Avropsblankett!$E$40<17,(E17+(E18-E17)/8*(Avropsblankett!$E$40-8)),IF(Avropsblankett!$E$40<33,(E18+(E19-E18)/24*(Avropsblankett!$E$40-16)),IF(Avropsblankett!$E$40<65,(E19+(E20-E19)/32*(Avropsblankett!$E$40-32)),"")))),"") ->  | G25: =(Avropsblankett!$F$40-500)/100*IF(Avropsblankett!$C$40=$A$16,IF(Avropsblankett!$E$40<17,(G17+(G18-G17)/8*(Avropsblankett!$E$40-8)),IF(Avropsblankett!$E$40<33,(G18+(G19-G18)/16*(Avropsblankett!$E$40-16)),IF(Avropsblankett!$E$40<65,(G19+(G20-G19)/32*(Avropsblankett!$E$40-32)),"")))) -> 0 | J25: =IF(Avropsblankett!$C$40=$A$16,(IF(Avropsblankett!$E$40<17,(J17+(J18-J17)/8*(Avropsblankett!$E$40-8)),IF(Avropsblankett!$E$40<33,(J18+(J19-J18)/24*(Avropsblankett!$E$40-16)),IF(Avropsblankett!$E$40<65,(J19+(J20-J19)/32*(Avropsblankett!$E$40-32)),"")))),"") ->  | L25: =(Avropsblankett!$F$40-500)/100*IF(Avropsblankett!$C$40=$A$16,IF(Avropsblankett!$E$40<17,(L17+(L18-L17)/8*(Avropsblankett!$E$40-8)),IF(Avropsblankett!$E$40<33,(L18+(L19-L18)/16*(Avropsblankett!$E$40-16)),IF(Avropsblankett!$E$40<65,(L19+(L20-L19)/32*(Avropsblankett!$E$40-32)),"")))) -> 0 | O25: =IF(Avropsblankett!$C$40=$A$16,(IF(Avropsblankett!$E$40<17,(O17+(O18-O17)/8*(Avropsblankett!$E$40-8)),IF(Avropsblankett!$E$40<33,(O18+(O19-O18)/24*(Avropsblankett!$E$40-16)),IF(Avropsblankett!$E$40<65,(O19+(O20-O19)/32*(Avropsblankett!$E$40-32)),"")))),"") ->  | Q25: =(Avropsblankett!$F$40-500)/100*IF(Avropsblankett!$C$40=$A$16,IF(Avropsblankett!$E$40<17,(Q17+(Q18-Q17)/8*(Avropsblankett!$E$40-8)),IF(Avropsblankett!$E$40<33,(Q18+(Q19-Q18)/16*(Avropsblankett!$E$40-16)),IF(Avropsblankett!$E$40<65,(Q19+(Q20-Q19)/32*(Avropsblankett!$E$40-32)),"")))) -> 0 | T25: =IF(Avropsblankett!$C$40=$A$16,(IF(Avropsblankett!$E$40<17,(T17+(T18-T17)/8*(Avropsblankett!$E$40-8)),IF(Avropsblankett!$E$40<33,(T18+(T19-T18)/24*(Avropsblankett!$E$40-16)),IF(Avropsblankett!$E$40<65,(T19+(T20-T19)/32*(Avropsblankett!$E$40-32)),"")))),"") ->  | V25: =(Avropsblankett!$F$40-500)/100*IF(Avropsblankett!$C$40=$A$16,IF(Avropsblankett!$E$40<17,(V17+(V18-V17)/8*(Avropsblankett!$E$40-8)),IF(Avropsblankett!$E$40<33,(V18+(V19-V18)/16*(Avropsblankett!$E$40-16)),IF(Avropsblankett!$E$40<65,(V19+(V20-V19)/32*(Avropsblankett!$E$40-32)),"")))) -> 0 | Y25: =IF(Avropsblankett!$C$40=$A$16,(IF(Avropsblankett!$E$40<17,(Y17+(Y18-Y17)/8*(Avropsblankett!$E$40-8)),IF(Avropsblankett!$E$40<33,(Y18+(Y19-Y18)/24*(Avropsblankett!$E$40-16)),IF(Avropsblankett!$E$40<65,(Y19+(Y20-Y19)/32*(Avropsblankett!$E$40-32)),"")))),"") ->  | AA25: =(Avropsblankett!$F$40-500)/100*IF(Avropsblankett!$C$40=$A$16,IF(Avropsblankett!$E$40<17,(AA17+(AA18-AA17)/8*(Avropsblankett!$E$40-8)),IF(Avropsblankett!$E$40<33,(AA18+(AA19-AA18)/16*(Avropsblankett!$E$40-16)),IF(Avropsblankett!$E$40<65,(AA19+(AA20-AA19)/32*(Avropsblankett!$E$40-32)),"")))) -> 0 | AD25: =IF(Avropsblankett!$C$40=$A$16,(IF(Avropsblankett!$E$40<17,(AD17+(AD18-AD17)/8*(Avropsblankett!$E$40-8)),IF(Avropsblankett!$E$40<33,(AD18+(AD19-AD18)/24*(Avropsblankett!$E$40-16)),IF(Avropsblankett!$E$40<65,(AD19+(AD20-AD19)/32*(Avropsblankett!$E$40-32)),"")))),"") ->  | AF25: =(Avropsblankett!$F$40-500)/100*IF(Avropsblankett!$C$40=$A$16,IF(Avropsblankett!$E$40<17,(AF17+(AF18-AF17)/8*(Avropsblankett!$E$40-8)),IF(Avropsblankett!$E$40<33,(AF18+(AF19-AF18)/16*(Avropsblankett!$E$40-16)),IF(Avropsblankett!$E$40<65,(AF19+(AF20-AF19)/32*(Avropsblankett!$E$40-32)),"")))) -> 0 | AI25: =IF(Avropsblankett!$C$40=$A$16,(IF(Avropsblankett!$E$40<17,(AI17+(AI18-AI17)/8*(Avropsblankett!$E$40-8)),IF(Avropsblankett!$E$40<33,(AI18+(AI19-AI18)/24*(Avropsblankett!$E$40-16)),IF(Avropsblankett!$E$40<65,(AI19+(AI20-AI19)/32*(Avropsblankett!$E$40-32)),"")))),"") ->  | AK25: =(Avropsblankett!$F$40-500)/100*IF(Avropsblankett!$C$40=$A$16,IF(Avropsblankett!$E$40<17,(AK17+(AK18-AK17)/8*(Avropsblankett!$E$40-8)),IF(Avropsblankett!$E$40<33,(AK18+(AK19-AK18)/16*(Avropsblankett!$E$40-16)),IF(Avropsblankett!$E$40<65,(AK19+(AK20-AK19)/32*(Avropsblankett!$E$40-32)),"")))) -> 0 | AN25: =IF(Avropsblankett!$C$40=$A$16,(IF(Avropsblankett!$E$40<17,(AN17+(AN18-AN17)/8*(Avropsblankett!$E$40-8)),IF(Avropsblankett!$E$40<33,(AN18+(AN19-AN18)/24*(Avropsblankett!$E$40-16)),IF(Avropsblankett!$E$40<65,(AN19+(AN20-AN19)/32*(Avropsblankett!$E$40-32)),"")))),"") ->  | AP25: =(Avropsblankett!$F$40-500)/100*IF(Avropsblankett!$C$40=$A$16,IF(Avropsblankett!$E$40<17,(AP17+(AP18-AP17)/8*(Avropsblankett!$E$40-8)),IF(Avropsblankett!$E$40<33,(AP18+(AP19-AP18)/16*(Avropsblankett!$E$40-16)),IF(Avropsblankett!$E$40<65,(AP19+(AP20-AP19)/32*(Avropsblankett!$E$40-32)),"")))) -> 0 | AS25: =IF(Avropsblankett!$C$40=$A$16,(IF(Avropsblankett!$E$40<17,(AS17+(AS18-AS17)/8*(Avropsblankett!$E$40-8)),IF(Avropsblankett!$E$40<33,(AS18+(AS19-AS18)/24*(Avropsblankett!$E$40-16)),IF(Avropsblankett!$E$40<65,(AS19+(AS20-AS19)/32*(Avropsblankett!$E$40-32)),"")))),"") ->  | AU25: =(Avropsblankett!$F$40-500)/100*IF(Avropsblankett!$C$40=$A$16,IF(Avropsblankett!$E$40<17,(AU17+(AU18-AU17)/8*(Avropsblankett!$E$40-8)),IF(Avropsblankett!$E$40<33,(AU18+(AU19-AU18)/16*(Avropsblankett!$E$40-16)),IF(Avropsblankett!$E$40<65,(AU19+(AU20-AU19)/32*(Avropsblankett!$E$40-32)),"")))) -> 0 | AX25: =IF(Avropsblankett!$C$40=$A$16,IF(Avropsblankett!$E$40<33,(AX17+(AX18-AX17)/24*(Avropsblankett!$E$40-8)),IF(Avropsblankett!$E$40<65,(AX18+(AX19-AX18)/32*(Avropsblankett!$E$40-32)),"")),"") ->  | AZ25: =(Avropsblankett!$F$40-500)/100*IF(Avropsblankett!$C$40=$A$16,IF(Avropsblankett!$E$40<33,(AZ17+(AZ18-AZ17)/24*(Avropsblankett!$E$40-8)),IF(Avropsblankett!$E$40<65,(AZ18+(AZ19-AZ18)/32*(Avropsblankett!$E$40-32)),""))) -> 0
E26: =IF(Avropsblankett!$C$52=$A$16,(IF(Avropsblankett!$E$52<17,(E17+(E18-E17)/8*(Avropsblankett!$E$52-8)),IF(Avropsblankett!$E$52<33,(E18+(E19-E18)/24*(Avropsblankett!$E$52-16)),IF(Avropsblankett!$E$52<65,(E19+(E20-E19)/32*(Avropsblankett!$E$52-32)),"")))),"") ->  | G26: =(Avropsblankett!$F$52-500)/100*IF(Avropsblankett!$C$52=$A$16,IF(Avropsblankett!$E$52<17,(G17+(G18-G17)/8*(Avropsblankett!$E$52-8)),IF(Avropsblankett!$E$52<33,(G18+(G19-G18)/16*(Avropsblankett!$E$52-16)),IF(Avropsblankett!$E$52<65,(G19+(G20-G19)/32*(Avropsblankett!$E$52-32)),"")))) -> 0 | J26: =IF(Avropsblankett!$C$52=$A$16,(IF(Avropsblankett!$E$52<17,(J17+(J18-J17)/8*(Avropsblankett!$E$52-8)),IF(Avropsblankett!$E$52<33,(J18+(J19-J18)/24*(Avropsblankett!$E$52-16)),IF(Avropsblankett!$E$52<65,(J19+(J20-J19)/32*(Avropsblankett!$E$52-32)),"")))),"") ->  | L26: =(Avropsblankett!$F$52-500)/100*IF(Avropsblankett!$C$52=$A$16,IF(Avropsblankett!$E$52<17,(L17+(L18-L17)/8*(Avropsblankett!$E$52-8)),IF(Avropsblankett!$E$52<33,(L18+(L19-L18)/16*(Avropsblankett!$E$52-16)),IF(Avropsblankett!$E$52<65,(L19+(L20-L19)/32*(Avropsblankett!$E$52-32)),"")))) -> 0 | O26: =IF(Avropsblankett!$C$52=$A$16,(IF(Avropsblankett!$E$52<17,(O17+(O18-O17)/8*(Avropsblankett!$E$52-8)),IF(Avropsblankett!$E$52<33,(O18+(O19-O18)/24*(Avropsblankett!$E$52-16)),IF(Avropsblankett!$E$52<65,(O19+(O20-O19)/32*(Avropsblankett!$E$52-32)),"")))),"") ->  | Q26: =(Avropsblankett!$F$52-500)/100*IF(Avropsblankett!$C$52=$A$16,IF(Avropsblankett!$E$52<17,(Q17+(Q18-Q17)/8*(Avropsblankett!$E$52-8)),IF(Avropsblankett!$E$52<33,(Q18+(Q19-Q18)/16*(Avropsblankett!$E$52-16)),IF(Avropsblankett!$E$52<65,(Q19+(Q20-Q19)/32*(Avropsblankett!$E$52-32)),"")))) -> 0 | T26: =IF(Avropsblankett!$C$52=$A$16,(IF(Avropsblankett!$E$52<17,(T17+(T18-T17)/8*(Avropsblankett!$E$52-8)),IF(Avropsblankett!$E$52<33,(T18+(T19-T18)/24*(Avropsblankett!$E$52-16)),IF(Avropsblankett!$E$52<65,(T19+(T20-T19)/32*(Avropsblankett!$E$52-32)),"")))),"") ->  | V26: =(Avropsblankett!$F$52-500)/100*IF(Avropsblankett!$C$52=$A$16,IF(Avropsblankett!$E$52<17,(V17+(V18-V17)/8*(Avropsblankett!$E$52-8)),IF(Avropsblankett!$E$52<33,(V18+(V19-V18)/16*(Avropsblankett!$E$52-16)),IF(Avropsblankett!$E$52<65,(V19+(V20-V19)/32*(Avropsblankett!$E$52-32)),"")))) -> 0 | Y26: =IF(Avropsblankett!$C$52=$A$16,(IF(Avropsblankett!$E$52<17,(Y17+(Y18-Y17)/8*(Avropsblankett!$E$52-8)),IF(Avropsblankett!$E$52<33,(Y18+(Y19-Y18)/24*(Avropsblankett!$E$52-16)),IF(Avropsblankett!$E$52<65,(Y19+(Y20-Y19)/32*(Avropsblankett!$E$52-32)),"")))),"") ->  | AA26: =(Avropsblankett!$F$52-500)/100*IF(Avropsblankett!$C$52=$A$16,IF(Avropsblankett!$E$52<17,(AA17+(AA18-AA17)/8*(Avropsblankett!$E$52-8)),IF(Avropsblankett!$E$52<33,(AA18+(AA19-AA18)/16*(Avropsblankett!$E$52-16)),IF(Avropsblankett!$E$52<65,(AA19+(AA20-AA19)/32*(Avropsblankett!$E$52-32)),"")))) -> 0 | AD26: =IF(Avropsblankett!$C$52=$A$16,(IF(Avropsblankett!$E$52<17,(AD17+(AD18-AD17)/8*(Avropsblankett!$E$52-8)),IF(Avropsblankett!$E$52<33,(AD18+(AD19-AD18)/24*(Avropsblankett!$E$52-16)),IF(Avropsblankett!$E$52<65,(AD19+(AD20-AD19)/32*(Avropsblankett!$E$52-32)),"")))),"") ->  | AF26: =(Avropsblankett!$F$52-500)/100*IF(Avropsblankett!$C$52=$A$16,IF(Avropsblankett!$E$52<17,(AF17+(AF18-AF17)/8*(Avropsblankett!$E$52-8)),IF(Avropsblankett!$E$52<33,(AF18+(AF19-AF18)/16*(Avropsblankett!$E$52-16)),IF(Avropsblankett!$E$52<65,(AF19+(AF20-AF19)/32*(Avropsblankett!$E$52-32)),"")))) -> 0 | AI26: =IF(Avropsblankett!$C$52=$A$16,(IF(Avropsblankett!$E$52<17,(AI17+(AI18-AI17)/8*(Avropsblankett!$E$52-8)),IF(Avropsblankett!$E$52<33,(AI18+(AI19-AI18)/24*(Avropsblankett!$E$52-16)),IF(Avropsblankett!$E$52<65,(AI19+(AI20-AI19)/32*(Avropsblankett!$E$52-32)),"")))),"") ->  | AK26: =(Avropsblankett!$F$52-500)/100*IF(Avropsblankett!$C$52=$A$16,IF(Avropsblankett!$E$52<17,(AK17+(AK18-AK17)/8*(Avropsblankett!$E$52-8)),IF(Avropsblankett!$E$52<33,(AK18+(AK19-AK18)/16*(Avropsblankett!$E$52-16)),IF(Avropsblankett!$E$52<65,(AK19+(AK20-AK19)/32*(Avropsblankett!$E$52-32)),"")))) -> 0 | AN26: =IF(Avropsblankett!$C$52=$A$16,(IF(Avropsblankett!$E$52<17,(AN17+(AN18-AN17)/8*(Avropsblankett!$E$52-8)),IF(Avropsblankett!$E$52<33,(AN18+(AN19-AN18)/24*(Avropsblankett!$E$52-16)),IF(Avropsblankett!$E$52<65,(AN19+(AN20-AN19)/32*(Avropsblankett!$E$52-32)),"")))),"") ->  | AP26: =(Avropsblankett!$F$52-500)/100*IF(Avropsblankett!$C$52=$A$16,IF(Avropsblankett!$E$52<17,(AP17+(AP18-AP17)/8*(Avropsblankett!$E$52-8)),IF(Avropsblankett!$E$52<33,(AP18+(AP19-AP18)/16*(Avropsblankett!$E$52-16)),IF(Avropsblankett!$E$52<65,(AP19+(AP20-AP19)/32*(Avropsblankett!$E$52-32)),"")))) -> 0 | AS26: =IF(Avropsblankett!$C$52=$A$16,(IF(Avropsblankett!$E$52<17,(AS17+(AS18-AS17)/8*(Avropsblankett!$E$52-8)),IF(Avropsblankett!$E$52<33,(AS18+(AS19-AS18)/24*(Avropsblankett!$E$52-16)),IF(Avropsblankett!$E$52<65,(AS19+(AS20-AS19)/32*(Avropsblankett!$E$52-32)),"")))),"") ->  | AU26: =(Avropsblankett!$F$52-500)/100*IF(Avropsblankett!$C$52=$A$16,IF(Avropsblankett!$E$52<17,(AU17+(AU18-AU17)/8*(Avropsblankett!$E$52-8)),IF(Avropsblankett!$E$52<33,(AU18+(AU19-AU18)/16*(Avropsblankett!$E$52-16)),IF(Avropsblankett!$E$52<65,(AU19+(AU20-AU19)/32*(Avropsblankett!$E$52-32)),"")))) -> 0 | AX26: =IF(Avropsblankett!$C$52=$A$16,IF(Avropsblankett!$E$52<33,(AX17+(AX18-AX17)/24*(Avropsblankett!$E$52-8)),IF(Avropsblankett!$E$52<65,(AX18+(AX19-AX18)/32*(Avropsblankett!$E$52-32)),"")),"") ->  | AZ26: =(Avropsblankett!$F$52-500)/100*IF(Avropsblankett!$C$52=$A$16,IF(Avropsblankett!$E$52<33,(AZ17+(AZ18-AZ17)/24*(Avropsblankett!$E$52-8)),IF(Avropsblankett!$E$52<65,(AZ18+(AZ19-AZ18)/32*(Avropsblankett!$E$52-32)),""))) -> 0
E27: =IF(Avropsblankett!$C$64=$A$16,(IF(Avropsblankett!$E$64<17,(E17+(E18-E17)/8*(Avropsblankett!$E$64-8)),IF(Avropsblankett!$E$64<33,(E18+(E19-E18)/24*(Avropsblankett!$E$64-16)),IF(Avropsblankett!$E$64<65,(E19+(E20-E19)/32*(Avropsblankett!$E$64-32)),"")))),"") ->  | G27: =(Avropsblankett!$F$64-500)/100*IF(Avropsblankett!$C$64=$A$16,IF(Avropsblankett!$E$64<17,(G17+(G18-G17)/8*(Avropsblankett!$E$64-8)),IF(Avropsblankett!$E$64<33,(G18+(G19-G18)/16*(Avropsblankett!$E$64-16)),IF(Avropsblankett!$E$64<65,(G19+(G20-G19)/32*(Avropsblankett!$E$64-32)),"")))) -> 0 | J27: =IF(Avropsblankett!$C$64=$A$16,(IF(Avropsblankett!$E$64<17,(J17+(J18-J17)/8*(Avropsblankett!$E$64-8)),IF(Avropsblankett!$E$64<33,(J18+(J19-J18)/24*(Avropsblankett!$E$64-16)),IF(Avropsblankett!$E$64<65,(J19+(J20-J19)/32*(Avropsblankett!$E$64-32)),"")))),"") ->  | L27: =(Avropsblankett!$F$64-500)/100*IF(Avropsblankett!$C$64=$A$16,IF(Avropsblankett!$E$64<17,(L17+(L18-L17)/8*(Avropsblankett!$E$64-8)),IF(Avropsblankett!$E$64<33,(L18+(L19-L18)/16*(Avropsblankett!$E$64-16)),IF(Avropsblankett!$E$64<65,(L19+(L20-L19)/32*(Avropsblankett!$E$64-32)),"")))) -> 0 | O27: =IF(Avropsblankett!$C$64=$A$16,(IF(Avropsblankett!$E$64<17,(O17+(O18-O17)/8*(Avropsblankett!$E$64-8)),IF(Avropsblankett!$E$64<33,(O18+(O19-O18)/24*(Avropsblankett!$E$64-16)),IF(Avropsblankett!$E$64<65,(O19+(O20-O19)/32*(Avropsblankett!$E$64-32)),"")))),"") ->  | Q27: =(Avropsblankett!$F$64-500)/100*IF(Avropsblankett!$C$64=$A$16,IF(Avropsblankett!$E$64<17,(Q17+(Q18-Q17)/8*(Avropsblankett!$E$64-8)),IF(Avropsblankett!$E$64<33,(Q18+(Q19-Q18)/16*(Avropsblankett!$E$64-16)),IF(Avropsblankett!$E$64<65,(Q19+(Q20-Q19)/32*(Avropsblankett!$E$64-32)),"")))) -> 0 | T27: =IF(Avropsblankett!$C$64=$A$16,(IF(Avropsblankett!$E$64<17,(T17+(T18-T17)/8*(Avropsblankett!$E$64-8)),IF(Avropsblankett!$E$64<33,(T18+(T19-T18)/24*(Avropsblankett!$E$64-16)),IF(Avropsblankett!$E$64<65,(T19+(T20-T19)/32*(Avropsblankett!$E$64-32)),"")))),"") ->  | V27: =(Avropsblankett!$F$64-500)/100*IF(Avropsblankett!$C$64=$A$16,IF(Avropsblankett!$E$64<17,(V17+(V18-V17)/8*(Avropsblankett!$E$64-8)),IF(Avropsblankett!$E$64<33,(V18+(V19-V18)/16*(Avropsblankett!$E$64-16)),IF(Avropsblankett!$E$64<65,(V19+(V20-V19)/32*(Avropsblankett!$E$64-32)),"")))) -> 0 | Y27: =IF(Avropsblankett!$C$64=$A$16,(IF(Avropsblankett!$E$64<17,(Y17+(Y18-Y17)/8*(Avropsblankett!$E$64-8)),IF(Avropsblankett!$E$64<33,(Y18+(Y19-Y18)/24*(Avropsblankett!$E$64-16)),IF(Avropsblankett!$E$64<65,(Y19+(Y20-Y19)/32*(Avropsblankett!$E$64-32)),"")))),"") ->  | AA27: =(Avropsblankett!$F$64-500)/100*IF(Avropsblankett!$C$64=$A$16,IF(Avropsblankett!$E$64<17,(AA17+(AA18-AA17)/8*(Avropsblankett!$E$64-8)),IF(Avropsblankett!$E$64<33,(AA18+(AA19-AA18)/16*(Avropsblankett!$E$64-16)),IF(Avropsblankett!$E$64<65,(AA19+(AA20-AA19)/32*(Avropsblankett!$E$64-32)),"")))) -> 0 | AD27: =IF(Avropsblankett!$C$64=$A$16,(IF(Avropsblankett!$E$64<17,(AD17+(AD18-AD17)/8*(Avropsblankett!$E$64-8)),IF(Avropsblankett!$E$64<33,(AD18+(AD19-AD18)/24*(Avropsblankett!$E$64-16)),IF(Avropsblankett!$E$64<65,(AD19+(AD20-AD19)/32*(Avropsblankett!$E$64-32)),"")))),"") ->  | AF27: =(Avropsblankett!$F$64-500)/100*IF(Avropsblankett!$C$64=$A$16,IF(Avropsblankett!$E$64<17,(AF17+(AF18-AF17)/8*(Avropsblankett!$E$64-8)),IF(Avropsblankett!$E$64<33,(AF18+(AF19-AF18)/16*(Avropsblankett!$E$64-16)),IF(Avropsblankett!$E$64<65,(AF19+(AF20-AF19)/32*(Avropsblankett!$E$64-32)),"")))) -> 0 | AI27: =IF(Avropsblankett!$C$64=$A$16,(IF(Avropsblankett!$E$64<17,(AI17+(AI18-AI17)/8*(Avropsblankett!$E$64-8)),IF(Avropsblankett!$E$64<33,(AI18+(AI19-AI18)/24*(Avropsblankett!$E$64-16)),IF(Avropsblankett!$E$64<65,(AI19+(AI20-AI19)/32*(Avropsblankett!$E$64-32)),"")))),"") ->  | AK27: =(Avropsblankett!$F$64-500)/100*IF(Avropsblankett!$C$64=$A$16,IF(Avropsblankett!$E$64<17,(AK17+(AK18-AK17)/8*(Avropsblankett!$E$64-8)),IF(Avropsblankett!$E$64<33,(AK18+(AK19-AK18)/16*(Avropsblankett!$E$64-16)),IF(Avropsblankett!$E$64<65,(AK19+(AK20-AK19)/32*(Avropsblankett!$E$64-32)),"")))) -> 0 | AN27: =IF(Avropsblankett!$C$64=$A$16,(IF(Avropsblankett!$E$64<17,(AN17+(AN18-AN17)/8*(Avropsblankett!$E$64-8)),IF(Avropsblankett!$E$64<33,(AN18+(AN19-AN18)/24*(Avropsblankett!$E$64-16)),IF(Avropsblankett!$E$64<65,(AN19+(AN20-AN19)/32*(Avropsblankett!$E$64-32)),"")))),"") ->  | AP27: =(Avropsblankett!$F$64-500)/100*IF(Avropsblankett!$C$64=$A$16,IF(Avropsblankett!$E$64<17,(AP17+(AP18-AP17)/8*(Avropsblankett!$E$64-8)),IF(Avropsblankett!$E$64<33,(AP18+(AP19-AP18)/16*(Avropsblankett!$E$64-16)),IF(Avropsblankett!$E$64<65,(AP19+(AP20-AP19)/32*(Avropsblankett!$E$64-32)),"")))) -> 0 | AS27: =IF(Avropsblankett!$C$64=$A$16,(IF(Avropsblankett!$E$64<17,(AS17+(AS18-AS17)/8*(Avropsblankett!$E$64-8)),IF(Avropsblankett!$E$64<33,(AS18+(AS19-AS18)/24*(Avropsblankett!$E$64-16)),IF(Avropsblankett!$E$64<65,(AS19+(AS20-AS19)/32*(Avropsblankett!$E$64-32)),"")))),"") ->  | AU27: =(Avropsblankett!$F$64-500)/100*IF(Avropsblankett!$C$64=$A$16,IF(Avropsblankett!$E$64<17,(AU17+(AU18-AU17)/8*(Avropsblankett!$E$64-8)),IF(Avropsblankett!$E$64<33,(AU18+(AU19-AU18)/16*(Avropsblankett!$E$64-16)),IF(Avropsblankett!$E$64<65,(AU19+(AU20-AU19)/32*(Avropsblankett!$E$64-32)),"")))) -> 0 | AX27: =IF(Avropsblankett!$C$64=$A$16,IF(Avropsblankett!$E$64<33,(AX17+(AX18-AX17)/24*(Avropsblankett!$E$64-8)),IF(Avropsblankett!$E$64<65,(AX18+(AX19-AX18)/32*(Avropsblankett!$E$64-32)),"")),"") ->  | AZ27: =(Avropsblankett!$F$64-500)/100*IF(Avropsblankett!$C$64=$A$16,IF(Avropsblankett!$E$64<33,(AZ17+(AZ18-AZ17)/24*(Avropsblankett!$E$64-8)),IF(Avropsblankett!$E$64<65,(AZ18+(AZ19-AZ18)/32*(Avropsblankett!$E$64-32)),""))) -> 0
E28: =IF(Avropsblankett!$C$76=$A$16,(IF(Avropsblankett!$E$76<17,(E17+(E18-E17)/8*(Avropsblankett!$E$76-8)),IF(Avropsblankett!$E$76<33,(E18+(E19-E18)/24*(Avropsblankett!$E$76-16)),IF(Avropsblankett!$E$76<65,(E19+(E20-E19)/32*(Avropsblankett!$E$76-32)),"")))),"") ->  | G28: =(Avropsblankett!$F$76-500)/100*IF(Avropsblankett!$C$76=$A$16,IF(Avropsblankett!$E$76<17,(G17+(G18-G17)/8*(Avropsblankett!$E$76-8)),IF(Avropsblankett!$E$76<33,(G18+(G19-G18)/16*(Avropsblankett!$E$76-16)),IF(Avropsblankett!$E$76<65,(G19+(G20-G19)/32*(Avropsblankett!$E$76-32)),"")))) -> 0 | J28: =IF(Avropsblankett!$C$76=$A$16,(IF(Avropsblankett!$E$76<17,(J17+(J18-J17)/8*(Avropsblankett!$E$76-8)),IF(Avropsblankett!$E$76<33,(J18+(J19-J18)/24*(Avropsblankett!$E$76-16)),IF(Avropsblankett!$E$76<65,(J19+(J20-J19)/32*(Avropsblankett!$E$76-32)),"")))),"") ->  | L28: =(Avropsblankett!$F$76-500)/100*IF(Avropsblankett!$C$76=$A$16,IF(Avropsblankett!$E$76<17,(L17+(L18-L17)/8*(Avropsblankett!$E$76-8)),IF(Avropsblankett!$E$76<33,(L18+(L19-L18)/16*(Avropsblankett!$E$76-16)),IF(Avropsblankett!$E$76<65,(L19+(L20-L19)/32*(Avropsblankett!$E$76-32)),"")))) -> 0 | O28: =IF(Avropsblankett!$C$76=$A$16,(IF(Avropsblankett!$E$76<17,(O17+(O18-O17)/8*(Avropsblankett!$E$76-8)),IF(Avropsblankett!$E$76<33,(O18+(O19-O18)/24*(Avropsblankett!$E$76-16)),IF(Avropsblankett!$E$76<65,(O19+(O20-O19)/32*(Avropsblankett!$E$76-32)),"")))),"") ->  | Q28: =(Avropsblankett!$F$76-500)/100*IF(Avropsblankett!$C$76=$A$16,IF(Avropsblankett!$E$76<17,(Q17+(Q18-Q17)/8*(Avropsblankett!$E$76-8)),IF(Avropsblankett!$E$76<33,(Q18+(Q19-Q18)/16*(Avropsblankett!$E$76-16)),IF(Avropsblankett!$E$76<65,(Q19+(Q20-Q19)/32*(Avropsblankett!$E$76-32)),"")))) -> 0 | T28: =IF(Avropsblankett!$C$76=$A$16,(IF(Avropsblankett!$E$76<17,(T17+(T18-T17)/8*(Avropsblankett!$E$76-8)),IF(Avropsblankett!$E$76<33,(T18+(T19-T18)/24*(Avropsblankett!$E$76-16)),IF(Avropsblankett!$E$76<65,(T19+(T20-T19)/32*(Avropsblankett!$E$76-32)),"")))),"") ->  | V28: =(Avropsblankett!$F$76-500)/100*IF(Avropsblankett!$C$76=$A$16,IF(Avropsblankett!$E$76<17,(V17+(V18-V17)/8*(Avropsblankett!$E$76-8)),IF(Avropsblankett!$E$76<33,(V18+(V19-V18)/16*(Avropsblankett!$E$76-16)),IF(Avropsblankett!$E$76<65,(V19+(V20-V19)/32*(Avropsblankett!$E$76-32)),"")))) -> 0 | Y28: =IF(Avropsblankett!$C$76=$A$16,(IF(Avropsblankett!$E$76<17,(Y17+(Y18-Y17)/8*(Avropsblankett!$E$76-8)),IF(Avropsblankett!$E$76<33,(Y18+(Y19-Y18)/24*(Avropsblankett!$E$76-16)),IF(Avropsblankett!$E$76<65,(Y19+(Y20-Y19)/32*(Avropsblankett!$E$76-32)),"")))),"") ->  | AA28: =(Avropsblankett!$F$76-500)/100*IF(Avropsblankett!$C$76=$A$16,IF(Avropsblankett!$E$76<17,(AA17+(AA18-AA17)/8*(Avropsblankett!$E$76-8)),IF(Avropsblankett!$E$76<33,(AA18+(AA19-AA18)/16*(Avropsblankett!$E$76-16)),IF(Avropsblankett!$E$76<65,(AA19+(AA20-AA19)/32*(Avropsblankett!$E$76-32)),"")))) -> 0 | AD28: =IF(Avropsblankett!$C$76=$A$16,(IF(Avropsblankett!$E$76<17,(AD17+(AD18-AD17)/8*(Avropsblankett!$E$76-8)),IF(Avropsblankett!$E$76<33,(AD18+(AD19-AD18)/24*(Avropsblankett!$E$76-16)),IF(Avropsblankett!$E$76<65,(AD19+(AD20-AD19)/32*(Avropsblankett!$E$76-32)),"")))),"") ->  | AF28: =(Avropsblankett!$F$76-500)/100*IF(Avropsblankett!$C$76=$A$16,IF(Avropsblankett!$E$76<17,(AF17+(AF18-AF17)/8*(Avropsblankett!$E$76-8)),IF(Avropsblankett!$E$76<33,(AF18+(AF19-AF18)/16*(Avropsblankett!$E$76-16)),IF(Avropsblankett!$E$76<65,(AF19+(AF20-AF19)/32*(Avropsblankett!$E$76-32)),"")))) -> 0 | AI28: =IF(Avropsblankett!$C$76=$A$16,(IF(Avropsblankett!$E$76<17,(AI17+(AI18-AI17)/8*(Avropsblankett!$E$76-8)),IF(Avropsblankett!$E$76<33,(AI18+(AI19-AI18)/24*(Avropsblankett!$E$76-16)),IF(Avropsblankett!$E$76<65,(AI19+(AI20-AI19)/32*(Avropsblankett!$E$76-32)),"")))),"") ->  | AK28: =(Avropsblankett!$F$76-500)/100*IF(Avropsblankett!$C$76=$A$16,IF(Avropsblankett!$E$76<17,(AK17+(AK18-AK17)/8*(Avropsblankett!$E$76-8)),IF(Avropsblankett!$E$76<33,(AK18+(AK19-AK18)/16*(Avropsblankett!$E$76-16)),IF(Avropsblankett!$E$76<65,(AK19+(AK20-AK19)/32*(Avropsblankett!$E$76-32)),"")))) -> 0 | AN28: =IF(Avropsblankett!$C$76=$A$16,(IF(Avropsblankett!$E$76<17,(AN17+(AN18-AN17)/8*(Avropsblankett!$E$76-8)),IF(Avropsblankett!$E$76<33,(AN18+(AN19-AN18)/24*(Avropsblankett!$E$76-16)),IF(Avropsblankett!$E$76<65,(AN19+(AN20-AN19)/32*(Avropsblankett!$E$76-32)),"")))),"") ->  | AP28: =(Avropsblankett!$F$76-500)/100*IF(Avropsblankett!$C$76=$A$16,IF(Avropsblankett!$E$76<17,(AP17+(AP18-AP17)/8*(Avropsblankett!$E$76-8)),IF(Avropsblankett!$E$76<33,(AP18+(AP19-AP18)/16*(Avropsblankett!$E$76-16)),IF(Avropsblankett!$E$76<65,(AP19+(AP20-AP19)/32*(Avropsblankett!$E$76-32)),"")))) -> 0 | AS28: =IF(Avropsblankett!$C$76=$A$16,(IF(Avropsblankett!$E$76<17,(AS17+(AS18-AS17)/8*(Avropsblankett!$E$76-8)),IF(Avropsblankett!$E$76<33,(AS18+(AS19-AS18)/24*(Avropsblankett!$E$76-16)),IF(Avropsblankett!$E$76<65,(AS19+(AS20-AS19)/32*(Avropsblankett!$E$76-32)),"")))),"") ->  | AU28: =(Avropsblankett!$F$76-500)/100*IF(Avropsblankett!$C$76=$A$16,IF(Avropsblankett!$E$76<17,(AU17+(AU18-AU17)/8*(Avropsblankett!$E$76-8)),IF(Avropsblankett!$E$76<33,(AU18+(AU19-AU18)/16*(Avropsblankett!$E$76-16)),IF(Avropsblankett!$E$76<65,(AU19+(AU20-AU19)/32*(Avropsblankett!$E$76-32)),"")))) -> 0 | AX28: =IF(Avropsblankett!$C$76=$A$16,IF(Avropsblankett!$E$76<33,(AX17+(AX18-AX17)/24*(Avropsblankett!$E$76-8)),IF(Avropsblankett!$E$76<65,(AX18+(AX19-AX18)/32*(Avropsblankett!$E$76-32)),"")),"") ->  | AZ28: =(Avropsblankett!$F$76-500)/100*IF(Avropsblankett!$C$76=$A$16,IF(Avropsblankett!$E$76<33,(AZ17+(AZ18-AZ17)/24*(Avropsblankett!$E$76-8)),IF(Avropsblankett!$E$76<65,(AZ18+(AZ19-AZ18)/32*(Avropsblankett!$E$76-32)),""))) -> 0
E29: =SUM(E24:E28) -> 0 | G29: =SUM(G24:G28) -> 0 | J29: =SUM(J24:J28) -> 0 | L29: =SUM(L24:L28) -> 0 | O29: =SUM(O24:O28) -> 0 | Q29: =SUM(Q24:Q28) -> 0 | T29: =SUM(T24:T28) -> 0 | V29: =SUM(V24:V28) -> 0 | Y29: =SUM(Y24:Y28) -> 0 | AA29: =SUM(AA24:AA28) -> 0 | AD29: =SUM(AD24:AD28) -> 0 | AF29: =SUM(AF24:AF28) -> 0 | AI29: =SUM(AI24:AI28) -> 0 | AK29: =SUM(AK24:AK28) -> 0 | AN29: =SUM(AN24:AN28) -> 0 | AP29: =SUM(AP24:AP28) -> 0 | AS29: =SUM(AS24:AS28) -> 0 | AU29: =SUM(AU24:AU28) -> 0 | AX29: =SUM(AX24:AX28) -> 0 | AZ29: =SUM(AZ24:AZ28) -> 0
A30: Broschyrer_Variant_3 | C30: Beskrivning/omfång inklusive omslag | D30: Upplaga | E30: Ange pris | F30: Följande | G30: Ange pris | I30: Upplaga | J30: Ange pris | K30: Följande | L30: Ange pris | N30: Upplaga | O30: Ange pris | P30: Följande | Q30: Ange pris | S30: Upplaga | T30: Ange pris | U30: Följande | V30: Ange pris | X30: Upplaga | Y30: Ange pris | Z30: Följande | AA30: Ange pris | AC30: Upplaga | AD30: Ange pris | AE30: Följande | AF30: Ange pris | AH30: Upplaga | AI30: Ange pris | AJ30: Följande | AK30: Ange pris | AM30: Upplaga | AN30: Ange pris | AO30: Följande | AP30: Ange pris | AR30: Upplaga | AS30: Ange pris | AT30: Följande | AU30: Ange pris | AW30: Upplaga | AX30: Ange pris | AY30: Följande | AZ30: Ange pris
A31: Underlag | B31: A: Öppna filer. B: PDF/PDFx. | C31: 8 sidor+omslag | D31: 500 | E31: 2139 | F31: 100 | G31: 202 | I31: 500 | J31: 1648 | K31: 100 | L31: 273 | N31: 500 | O31: 2200 | P31: 100 | Q31: 160 | S31: 500 | T31: 1635 | U31: 100 | V31: 265 | X31: 500 | Y31: 760 | Z31: 100 | AA31: 40 | AC31: 500 | AD31: 2390 | AE31: 100 | AF31: 215 | AH31: 500 | AI31: 1250 | AJ31: 100 | AK31: 110 | AM31: 500 | AN31: 2253 | AO31: 100 | AP31: 334 | AR31: 500 | AS31: 3540 | AT31: 100 | AU31: 460 | AW31: 500 | AX31: 2010 | AY31: 100 | AZ31: 200
A32: Format | B32: A5 | C32: 16 sidor+omslag | D32: 500 | E32: 2672 | F32: 100 | G32: 309 | I32: 500 | J32: 2084 | K32: 100 | L32: 361 | N32: 500 | O32: 2400 | P32: 100 | Q32: 220 | S32: 500 | T32: 2000 | U32: 100 | V32: 330 | X32: 500 | Y32: 1140 | Z32: 100 | AA32: 90 | AC32: 500 | AD32: 4532 | AE32: 100 | AF32: 390 | AH32: 500 | AI32: 1750 | AJ32: 100 | AK32: 130 | AM32: 500 | AN32: 2612 | AO32: 100 | AP32: 386 | AR32: 500 | AS32: 4300 | AT32: 100 | AU32: 585 | AW32: 500 | AX32: 3400 | AY32: 100 | AZ32: 480
A33: Inlaga | B33: Obestruket 80g | C33: 32 sidor+omslag | D33: 500 | E33: 3739 | F33: 100 | G33: 522 | I33: 500 | J33: 2927 | K33: 100 | L33: 529 | N33: 500 | O33: 2600 | P33: 100 | Q33: 420 | S33: 500 | T33: 2750 | U33: 100 | V33: 450 | X33: 500 | Y33: 2720 | Z33: 100 | AA33: 130 | AC33: 500 | AD33: 4086 | AE33: 100 | AF33: 435 | AH33: 500 | AI33: 2750 | AJ33: 100 | AK33: 160 | AM33: 500 | AN33: 2903 | AO33: 100 | AP33: 431 | AR33: 500 | AS33: 5290 | AT33: 100 | AU33: 625 | AW33: 500 | AX33: 5380 | AY33: 100 | AZ33: 875
A34: Omslag | B34: bestruket 250g | C34: 64 sidor+omslag | D34: 500 | E34: 6007 | F34: 100 | G34: 975 | I34: 500 | J34: 4390 | K34: 100 | L34: 824 | N34: 500 | O34: 3700 | P34: 100 | Q34: 870 | S34: 500 | T34: 4200 | U34: 100 | V34: 700 | X34: 500 | Y34: 3550 | Z34: 100 | AA34: 290 | AC34: 500 | AD34: 6470 | AE34: 100 | AF34: 692 | AH34: 500 | AI34: 3250 | AJ34: 100 | AK34: 260 | AM34: 500 | AN34: 3801 | AO34: 100 | AP34: 566 | AR34: 500 | AS34: 7250 | AT34: 100 | AU34: 980
A35: Tryck inlaga | B35: 1+1 färger (svart)
A36: Tryckomslag | B36: 4+4 färger
A37: Bokbinderi | B37: Klammerhäftning
E38: =IF(Avropsblankett!$C$28=$A$30,(IF(Avropsblankett!$E$28<17,(E31+(E32-E31)/8*(Avropsblankett!$E$28-8)),IF(Avropsblankett!$E$28<33,(E32+(E33-E32)/24*(Avropsblankett!$E$28-16)),IF(Avropsblankett!$E$28<65,(E33+(E34-E33)/32*(Avropsblankett!$E$28-32)),"")))),"") ->  | G38: =(Avropsblankett!$F$28-500)/100*IF(Avropsblankett!$C$28=$A$30,IF(Avropsblankett!$E$28<17,(G31+(G32-G31)/8*(Avropsblankett!$E$28-8)),IF(Avropsblankett!$E$28<33,(G32+(G33-G32)/16*(Avropsblankett!$E$28-16)),IF(Avropsblankett!$E$28<65,(G33+(G34-G33)/32*(Avropsblankett!$E$28-32)),"")))) -> 0 | J38: =IF(Avropsblankett!$C$28=$A$30,(IF(Avropsblankett!$E$28<17,(J31+(J32-J31)/8*(Avropsblankett!$E$28-8)),IF(Avropsblankett!$E$28<33,(J32+(J33-J32)/24*(Avropsblankett!$E$28-16)),IF(Avropsblankett!$E$28<65,(J33+(J34-J33)/32*(Avropsblankett!$E$28-32)),"")))),"") ->  | L38: =(Avropsblankett!$F$28-500)/100*IF(Avropsblankett!$C$28=$A$30,IF(Avropsblankett!$E$28<17,(L31+(L32-L31)/8*(Avropsblankett!$E$28-8)),IF(Avropsblankett!$E$28<33,(L32+(L33-L32)/16*(Avropsblankett!$E$28-16)),IF(Avropsblankett!$E$28<65,(L33+(L34-L33)/32*(Avropsblankett!$E$28-32)),"")))) -> 0 | O38: =IF(Avropsblankett!$C$28=$A$30,(IF(Avropsblankett!$E$28<17,(O31+(O32-O31)/8*(Avropsblankett!$E$28-8)),IF(Avropsblankett!$E$28<33,(O32+(O33-O32)/24*(Avropsblankett!$E$28-16)),IF(Avropsblankett!$E$28<65,(O33+(O34-O33)/32*(Avropsblankett!$E$28-32)),"")))),"") ->  | Q38: =(Avropsblankett!$F$28-500)/100*IF(Avropsblankett!$C$28=$A$30,IF(Avropsblankett!$E$28<17,(Q31+(Q32-Q31)/8*(Avropsblankett!$E$28-8)),IF(Avropsblankett!$E$28<33,(Q32+(Q33-Q32)/16*(Avropsblankett!$E$28-16)),IF(Avropsblankett!$E$28<65,(Q33+(Q34-Q33)/32*(Avropsblankett!$E$28-32)),"")))) -> 0 | T38: =IF(Avropsblankett!$C$28=$A$30,(IF(Avropsblankett!$E$28<17,(T31+(T32-T31)/8*(Avropsblankett!$E$28-8)),IF(Avropsblankett!$E$28<33,(T32+(T33-T32)/24*(Avropsblankett!$E$28-16)),IF(Avropsblankett!$E$28<65,(T33+(T34-T33)/32*(Avropsblankett!$E$28-32)),"")))),"") ->  | V38: =(Avropsblankett!$F$28-500)/100*IF(Avropsblankett!$C$28=$A$30,IF(Avropsblankett!$E$28<17,(V31+(V32-V31)/8*(Avropsblankett!$E$28-8)),IF(Avropsblankett!$E$28<33,(V32+(V33-V32)/16*(Avropsblankett!$E$28-16)),IF(Avropsblankett!$E$28<65,(V33+(V34-V33)/32*(Avropsblankett!$E$28-32)),"")))) -> 0 | Y38: =IF(Avropsblankett!$C$28=$A$30,(IF(Avropsblankett!$E$28<17,(Y31+(Y32-Y31)/8*(Avropsblankett!$E$28-8)),IF(Avropsblankett!$E$28<33,(Y32+(Y33-Y32)/24*(Avropsblankett!$E$28-16)),IF(Avropsblankett!$E$28<65,(Y33+(Y34-Y33)/32*(Avropsblankett!$E$28-32)),"")))),"") ->  | AA38: =(Avropsblankett!$F$28-500)/100*IF(Avropsblankett!$C$28=$A$30,IF(Avropsblankett!$E$28<17,(AA31+(AA32-AA31)/8*(Avropsblankett!$E$28-8)),IF(Avropsblankett!$E$28<33,(AA32+(AA33-AA32)/16*(Avropsblankett!$E$28-16)),IF(Avropsblankett!$E$28<65,(AA33+(AA34-AA33)/32*(Avropsblankett!$E$28-32)),"")))) -> 0 | AD38: =IF(Avropsblankett!$C$28=$A$30,(IF(Avropsblankett!$E$28<17,(AD31+(AD32-AD31)/8*(Avropsblankett!$E$28-8)),IF(Avropsblankett!$E$28<33,(AD32+(AD33-AD32)/24*(Avropsblankett!$E$28-16)),IF(Avropsblankett!$E$28<65,(AD33+(AD34-AD33)/32*(Avropsblankett!$E$28-32)),"")))),"") ->  | AF38: =(Avropsblankett!$F$28-500)/100*IF(Avropsblankett!$C$28=$A$30,IF(Avropsblankett!$E$28<17,(AF31+(AF32-AF31)/8*(Avropsblankett!$E$28-8)),IF(Avropsblankett!$E$28<33,(AF32+(AF33-AF32)/16*(Avropsblankett!$E$28-16)),IF(Avropsblankett!$E$28<65,(AF33+(AF34-AF33)/32*(Avropsblankett!$E$28-32)),"")))) -> 0 | AI38: =IF(Avropsblankett!$C$28=$A$30,(IF(Avropsblankett!$E$28<17,(AI31+(AI32-AI31)/8*(Avropsblankett!$E$28-8)),IF(Avropsblankett!$E$28<33,(AI32+(AI33-AI32)/24*(Avropsblankett!$E$28-16)),IF(Avropsblankett!$E$28<65,(AI33+(AI34-AI33)/32*(Avropsblankett!$E$28-32)),"")))),"") ->  | AK38: =(Avropsblankett!$F$28-500)/100*IF(Avropsblankett!$C$28=$A$30,IF(Avropsblankett!$E$28<17,(AK31+(AK32-AK31)/8*(Avropsblankett!$E$28-8)),IF(Avropsblankett!$E$28<33,(AK32+(AK33-AK32)/16*(Avropsblankett!$E$28-16)),IF(Avropsblankett!$E$28<65,(AK33+(AK34-AK33)/32*(Avropsblankett!$E$28-32)),"")))) -> 0 | AN38: =IF(Avropsblankett!$C$28=$A$30,(IF(Avropsblankett!$E$28<17,(AN31+(AN32-AN31)/8*(Avropsblankett!$E$28-8)),IF(Avropsblankett!$E$28<33,(AN32+(AN33-AN32)/24*(Avropsblankett!$E$28-16)),IF(Avropsblankett!$E$28<65,(AN33+(AN34-AN33)/32*(Avropsblankett!$E$28-32)),"")))),"") ->  | AP38: =(Avropsblankett!$F$28-500)/100*IF(Avropsblankett!$C$28=$A$30,IF(Avropsblankett!$E$28<17,(AP31+(AP32-AP31)/8*(Avropsblankett!$E$28-8)),IF(Avropsblankett!$E$28<33,(AP32+(AP33-AP32)/16*(Avropsblankett!$E$28-16)),IF(Avropsblankett!$E$28<65,(AP33+(AP34-AP33)/32*(Avropsblankett!$E$28-32)),"")))) -> 0 | AS38: =IF(Avropsblankett!$C$28=$A$30,(IF(Avropsblankett!$E$28<17,(AS31+(AS32-AS31)/8*(Avropsblankett!$E$28-8)),IF(Avropsblankett!$E$28<33,(AS32+(AS33-AS32)/24*(Avropsblankett!$E$28-16)),IF(Avropsblankett!$E$28<65,(AS33+(AS34-AS33)/32*(Avropsblankett!$E$28-32)),"")))),"") ->  | AU38: =(Avropsblankett!$F$28-500)/100*IF(Avropsblankett!$C$28=$A$30,IF(Avropsblankett!$E$28<17,(AU31+(AU32-AU31)/8*(Avropsblankett!$E$28-8)),IF(Avropsblankett!$E$28<33,(AU32+(AU33-AU32)/16*(Avropsblankett!$E$28-16)),IF(Avropsblankett!$E$28<65,(AU33+(AU34-AU33)/32*(Avropsblankett!$E$28-32)),"")))) -> 0 | AX38: =IF(Avropsblankett!$C$28=$A$30,IF(Avropsblankett!$E$28<33,(AX31+(AX32-AX31)/24*(Avropsblankett!$E$28-8)),IF(Avropsblankett!$E$28<65,(AX32+(AX33-AX32)/32*(Avropsblankett!$E$28-32)),"")),"") ->  | AZ38: =(Avropsblankett!$F$28-500)/100*IF(Avropsblankett!$C$28=$A$30,IF(Avropsblankett!$E$28<33,(AZ31+(AZ32-AZ31)/24*(Avropsblankett!$E$28-8)),IF(Avropsblankett!$E$28<65,(AZ32+(AZ33-AZ32)/32*(Avropsblankett!$E$28-32)),""))) -> 0
E39: =IF(Avropsblankett!$C$40=$A$30,(IF(Avropsblankett!$E$40<17,(E31+(E32-E31)/8*(Avropsblankett!$E$40-8)),IF(Avropsblankett!$E$40<33,(E32+(E33-E32)/24*(Avropsblankett!$E$40-16)),IF(Avropsblankett!$E$40<65,(E33+(E34-E33)/32*(Avropsblankett!$E$40-32)),"")))),"") ->  | G39: =(Avropsblankett!$F$40-500)/100*IF(Avropsblankett!$C$40=$A$30,IF(Avropsblankett!$E$40<17,(G31+(G32-G31)/8*(Avropsblankett!$E$40-8)),IF(Avropsblankett!$E$40<33,(G32+(G33-G32)/16*(Avropsblankett!$E$40-16)),IF(Avropsblankett!$E$40<65,(G33+(G34-G33)/32*(Avropsblankett!$E$40-32)),"")))) -> 0 | J39: =IF(Avropsblankett!$C$40=$A$30,(IF(Avropsblankett!$E$40<17,(J31+(J32-J31)/8*(Avropsblankett!$E$40-8)),IF(Avropsblankett!$E$40<33,(J32+(J33-J32)/24*(Avropsblankett!$E$40-16)),IF(Avropsblankett!$E$40<65,(J33+(J34-J33)/32*(Avropsblankett!$E$40-32)),"")))),"") ->  | L39: =(Avropsblankett!$F$40-500)/100*IF(Avropsblankett!$C$40=$A$30,IF(Avropsblankett!$E$40<17,(L31+(L32-L31)/8*(Avropsblankett!$E$40-8)),IF(Avropsblankett!$E$40<33,(L32+(L33-L32)/16*(Avropsblankett!$E$40-16)),IF(Avropsblankett!$E$40<65,(L33+(L34-L33)/32*(Avropsblankett!$E$40-32)),"")))) -> 0 | O39: =IF(Avropsblankett!$C$40=$A$30,(IF(Avropsblankett!$E$40<17,(O31+(O32-O31)/8*(Avropsblankett!$E$40-8)),IF(Avropsblankett!$E$40<33,(O32+(O33-O32)/24*(Avropsblankett!$E$40-16)),IF(Avropsblankett!$E$40<65,(O33+(O34-O33)/32*(Avropsblankett!$E$40-32)),"")))),"") ->  | Q39: =(Avropsblankett!$F$40-500)/100*IF(Avropsblankett!$C$40=$A$30,IF(Avropsblankett!$E$40<17,(Q31+(Q32-Q31)/8*(Avropsblankett!$E$40-8)),IF(Avropsblankett!$E$40<33,(Q32+(Q33-Q32)/16*(Avropsblankett!$E$40-16)),IF(Avropsblankett!$E$40<65,(Q33+(Q34-Q33)/32*(Avropsblankett!$E$40-32)),"")))) -> 0 | T39: =IF(Avropsblankett!$C$40=$A$30,(IF(Avropsblankett!$E$40<17,(T31+(T32-T31)/8*(Avropsblankett!$E$40-8)),IF(Avropsblankett!$E$40<33,(T32+(T33-T32)/24*(Avropsblankett!$E$40-16)),IF(Avropsblankett!$E$40<65,(T33+(T34-T33)/32*(Avropsblankett!$E$40-32)),"")))),"") ->  | V39: =(Avropsblankett!$F$40-500)/100*IF(Avropsblankett!$C$40=$A$30,IF(Avropsblankett!$E$40<17,(V31+(V32-V31)/8*(Avropsblankett!$E$40-8)),IF(Avropsblankett!$E$40<33,(V32+(V33-V32)/16*(Avropsblankett!$E$40-16)),IF(Avropsblankett!$E$40<65,(V33+(V34-V33)/32*(Avropsblankett!$E$40-32)),"")))) -> 0 | Y39: =IF(Avropsblankett!$C$40=$A$30,(IF(Avropsblankett!$E$40<17,(Y31+(Y32-Y31)/8*(Avropsblankett!$E$40-8)),IF(Avropsblankett!$E$40<33,(Y32+(Y33-Y32)/24*(Avropsblankett!$E$40-16)),IF(Avropsblankett!$E$40<65,(Y33+(Y34-Y33)/32*(Avropsblankett!$E$40-32)),"")))),"") ->  | AA39: =(Avropsblankett!$F$40-500)/100*IF(Avropsblankett!$C$40=$A$30,IF(Avropsblankett!$E$40<17,(AA31+(AA32-AA31)/8*(Avropsblankett!$E$40-8)),IF(Avropsblankett!$E$40<33,(AA32+(AA33-AA32)/16*(Avropsblankett!$E$40-16)),IF(Avropsblankett!$E$40<65,(AA33+(AA34-AA33)/32*(Avropsblankett!$E$40-32)),"")))) -> 0 | AD39: =IF(Avropsblankett!$C$40=$A$30,(IF(Avropsblankett!$E$40<17,(AD31+(AD32-AD31)/8*(Avropsblankett!$E$40-8)),IF(Avropsblankett!$E$40<33,(AD32+(AD33-AD32)/24*(Avropsblankett!$E$40-16)),IF(Avropsblankett!$E$40<65,(AD33+(AD34-AD33)/32*(Avropsblankett!$E$40-32)),"")))),"") ->  | AF39: =(Avropsblankett!$F$40-500)/100*IF(Avropsblankett!$C$40=$A$30,IF(Avropsblankett!$E$40<17,(AF31+(AF32-AF31)/8*(Avropsblankett!$E$40-8)),IF(Avropsblankett!$E$40<33,(AF32+(AF33-AF32)/16*(Avropsblankett!$E$40-16)),IF(Avropsblankett!$E$40<65,(AF33+(AF34-AF33)/32*(Avropsblankett!$E$40-32)),"")))) -> 0 | AI39: =IF(Avropsblankett!$C$40=$A$30,(IF(Avropsblankett!$E$40<17,(AI31+(AI32-AI31)/8*(Avropsblankett!$E$40-8)),IF(Avropsblankett!$E$40<33,(AI32+(AI33-AI32)/24*(Avropsblankett!$E$40-16)),IF(Avropsblankett!$E$40<65,(AI33+(AI34-AI33)/32*(Avropsblankett!$E$40-32)),"")))),"") ->  | AK39: =(Avropsblankett!$F$40-500)/100*IF(Avropsblankett!$C$40=$A$30,IF(Avropsblankett!$E$40<17,(AK31+(AK32-AK31)/8*(Avropsblankett!$E$40-8)),IF(Avropsblankett!$E$40<33,(AK32+(AK33-AK32)/16*(Avropsblankett!$E$40-16)),IF(Avropsblankett!$E$40<65,(AK33+(AK34-AK33)/32*(Avropsblankett!$E$40-32)),"")))) -> 0 | AN39: =IF(Avropsblankett!$C$40=$A$30,(IF(Avropsblankett!$E$40<17,(AN31+(AN32-AN31)/8*(Avropsblankett!$E$40-8)),IF(Avropsblankett!$E$40<33,(AN32+(AN33-AN32)/24*(Avropsblankett!$E$40-16)),IF(Avropsblankett!$E$40<65,(AN33+(AN34-AN33)/32*(Avropsblankett!$E$40-32)),"")))),"") ->  | AP39: =(Avropsblankett!$F$40-500)/100*IF(Avropsblankett!$C$40=$A$30,IF(Avropsblankett!$E$40<17,(AP31+(AP32-AP31)/8*(Avropsblankett!$E$40-8)),IF(Avropsblankett!$E$40<33,(AP32+(AP33-AP32)/16*(Avropsblankett!$E$40-16)),IF(Avropsblankett!$E$40<65,(AP33+(AP34-AP33)/32*(Avropsblankett!$E$40-32)),"")))) -> 0 | AS39: =IF(Avropsblankett!$C$40=$A$30,(IF(Avropsblankett!$E$40<17,(AS31+(AS32-AS31)/8*(Avropsblankett!$E$40-8)),IF(Avropsblankett!$E$40<33,(AS32+(AS33-AS32)/24*(Avropsblankett!$E$40-16)),IF(Avropsblankett!$E$40<65,(AS33+(AS34-AS33)/32*(Avropsblankett!$E$40-32)),"")))),"") ->  | AU39: =(Avropsblankett!$F$40-500)/100*IF(Avropsblankett!$C$40=$A$30,IF(Avropsblankett!$E$40<17,(AU31+(AU32-AU31)/8*(Avropsblankett!$E$40-8)),IF(Avropsblankett!$E$40<33,(AU32+(AU33-AU32)/16*(Avropsblankett!$E$40-16)),IF(Avropsblankett!$E$40<65,(AU33+(AU34-AU33)/32*(Avropsblankett!$E$40-32)),"")))) -> 0 | AX39: =IF(Avropsblankett!$C$40=$A$30,IF(Avropsblankett!$E$40<33,(AX31+(AX32-AX31)/24*(Avropsblankett!$E$40-8)),IF(Avropsblankett!$E$40<65,(AX32+(AX33-AX32)/32*(Avropsblankett!$E$40-32)),"")),"") ->  | AZ39: =(Avropsblankett!$F$40-500)/100*IF(Avropsblankett!$C$40=$A$30,IF(Avropsblankett!$E$40<33,(AZ31+(AZ32-AZ31)/24*(Avropsblankett!$E$40-8)),IF(Avropsblankett!$E$40<65,(AZ32+(AZ33-AZ32)/32*(Avropsblankett!$E$40-32)),""))) -> 0
E40: =IF(Avropsblankett!$C$52=$A$30,(IF(Avropsblankett!$E$52<17,(E31+(E32-E31)/8*(Avropsblankett!$E$52-8)),IF(Avropsblankett!$E$52<33,(E32+(E33-E32)/24*(Avropsblankett!$E$52-16)),IF(Avropsblankett!$E$52<65,(E33+(E34-E33)/32*(Avropsblankett!$E$52-32)),"")))),"") ->  | G40: =(Avropsblankett!$F$52-500)/100*IF(Avropsblankett!$C$52=$A$30,IF(Avropsblankett!$E$52<17,(G31+(G32-G31)/8*(Avropsblankett!$E$52-8)),IF(Avropsblankett!$E$52<33,(G32+(G33-G32)/16*(Avropsblankett!$E$52-16)),IF(Avropsblankett!$E$52<65,(G33+(G34-G33)/32*(Avropsblankett!$E$52-32)),"")))) -> 0 | J40: =IF(Avropsblankett!$C$52=$A$30,(IF(Avropsblankett!$E$52<17,(J31+(J32-J31)/8*(Avropsblankett!$E$52-8)),IF(Avropsblankett!$E$52<33,(J32+(J33-J32)/24*(Avropsblankett!$E$52-16)),IF(Avropsblankett!$E$52<65,(J33+(J34-J33)/32*(Avropsblankett!$E$52-32)),"")))),"") ->  | L40: =(Avropsblankett!$F$52-500)/100*IF(Avropsblankett!$C$52=$A$30,IF(Avropsblankett!$E$52<17,(L31+(L32-L31)/8*(Avropsblankett!$E$52-8)),IF(Avropsblankett!$E$52<33,(L32+(L33-L32)/16*(Avropsblankett!$E$52-16)),IF(Avropsblankett!$E$52<65,(L33+(L34-L33)/32*(Avropsblankett!$E$52-32)),"")))) -> 0 | O40: =IF(Avropsblankett!$C$52=$A$30,(IF(Avropsblankett!$E$52<17,(O31+(O32-O31)/8*(Avropsblankett!$E$52-8)),IF(Avropsblankett!$E$52<33,(O32+(O33-O32)/24*(Avropsblankett!$E$52-16)),IF(Avropsblankett!$E$52<65,(O33+(O34-O33)/32*(Avropsblankett!$E$52-32)),"")))),"") ->  | Q40: =(Avropsblankett!$F$52-500)/100*IF(Avropsblankett!$C$52=$A$30,IF(Avropsblankett!$E$52<17,(Q31+(Q32-Q31)/8*(Avropsblankett!$E$52-8)),IF(Avropsblankett!$E$52<33,(Q32+(Q33-Q32)/16*(Avropsblankett!$E$52-16)),IF(Avropsblankett!$E$52<65,(Q33+(Q34-Q33)/32*(Avropsblankett!$E$52-32)),"")))) -> 0 | T40: =IF(Avropsblankett!$C$52=$A$30,(IF(Avropsblankett!$E$52<17,(T31+(T32-T31)/8*(Avropsblankett!$E$52-8)),IF(Avropsblankett!$E$52<33,(T32+(T33-T32)/24*(Avropsblankett!$E$52-16)),IF(Avropsblankett!$E$52<65,(T33+(T34-T33)/32*(Avropsblankett!$E$52-32)),"")))),"") ->  | V40: =(Avropsblankett!$F$52-500)/100*IF(Avropsblankett!$C$52=$A$30,IF(Avropsblankett!$E$52<17,(V31+(V32-V31)/8*(Avropsblankett!$E$52-8)),IF(Avropsblankett!$E$52<33,(V32+(V33-V32)/16*(Avropsblankett!$E$52-16)),IF(Avropsblankett!$E$52<65,(V33+(V34-V33)/32*(Avropsblankett!$E$52-32)),"")))) -> 0 | Y40: =IF(Avropsblankett!$C$52=$A$30,(IF(Avropsblankett!$E$52<17,(Y31+(Y32-Y31)/8*(Avropsblankett!$E$52-8)),IF(Avropsblankett!$E$52<33,(Y32+(Y33-Y32)/24*(Avropsblankett!$E$52-16)),IF(Avropsblankett!$E$52<65,(Y33+(Y34-Y33)/32*(Avropsblankett!$E$52-32)),"")))),"") ->  | AA40: =(Avropsblankett!$F$52-500)/100*IF(Avropsblankett!$C$52=$A$30,IF(Avropsblankett!$E$52<17,(AA31+(AA32-AA31)/8*(Avropsblankett!$E$52-8)),IF(Avropsblankett!$E$52<33,(AA32+(AA33-AA32)/16*(Avropsblankett!$E$52-16)),IF(Avropsblankett!$E$52<65,(AA33+(AA34-AA33)/32*(Avropsblankett!$E$52-32)),"")))) -> 0 | AD40: =IF(Avropsblankett!$C$52=$A$30,(IF(Avropsblankett!$E$52<17,(AD31+(AD32-AD31)/8*(Avropsblankett!$E$52-8)),IF(Avropsblankett!$E$52<33,(AD32+(AD33-AD32)/24*(Avropsblankett!$E$52-16)),IF(Avropsblankett!$E$52<65,(AD33+(AD34-AD33)/32*(Avropsblankett!$E$52-32)),"")))),"") ->  | AF40: =(Avropsblankett!$F$52-500)/100*IF(Avropsblankett!$C$52=$A$30,IF(Avropsblankett!$E$52<17,(AF31+(AF32-AF31)/8*(Avropsblankett!$E$52-8)),IF(Avropsblankett!$E$52<33,(AF32+(AF33-AF32)/16*(Avropsblankett!$E$52-16)),IF(Avropsblankett!$E$52<65,(AF33+(AF34-AF33)/32*(Avropsblankett!$E$52-32)),"")))) -> 0 | AI40: =IF(Avropsblankett!$C$52=$A$30,(IF(Avropsblankett!$E$52<17,(AI31+(AI32-AI31)/8*(Avropsblankett!$E$52-8)),IF(Avropsblankett!$E$52<33,(AI32+(AI33-AI32)/24*(Avropsblankett!$E$52-16)),IF(Avropsblankett!$E$52<65,(AI33+(AI34-AI33)/32*(Avropsblankett!$E$52-32)),"")))),"") ->  | AK40: =(Avropsblankett!$F$52-500)/100*IF(Avropsblankett!$C$52=$A$30,IF(Avropsblankett!$E$52<17,(AK31+(AK32-AK31)/8*(Avropsblankett!$E$52-8)),IF(Avropsblankett!$E$52<33,(AK32+(AK33-AK32)/16*(Avropsblankett!$E$52-16)),IF(Avropsblankett!$E$52<65,(AK33+(AK34-AK33)/32*(Avropsblankett!$E$52-32)),"")))) -> 0 | AN40: =IF(Avropsblankett!$C$52=$A$30,(IF(Avropsblankett!$E$52<17,(AN31+(AN32-AN31)/8*(Avropsblankett!$E$52-8)),IF(Avropsblankett!$E$52<33,(AN32+(AN33-AN32)/24*(Avropsblankett!$E$52-16)),IF(Avropsblankett!$E$52<65,(AN33+(AN34-AN33)/32*(Avropsblankett!$E$52-32)),"")))),"") ->  | AP40: =(Avropsblankett!$F$52-500)/100*IF(Avropsblankett!$C$52=$A$30,IF(Avropsblankett!$E$52<17,(AP31+(AP32-AP31)/8*(Avropsblankett!$E$52-8)),IF(Avropsblankett!$E$52<33,(AP32+(AP33-AP32)/16*(Avropsblankett!$E$52-16)),IF(Avropsblankett!$E$52<65,(AP33+(AP34-AP33)/32*(Avropsblankett!$E$52-32)),"")))) -> 0 | AS40: =IF(Avropsblankett!$C$52=$A$30,(IF(Avropsblankett!$E$52<17,(AS31+(AS32-AS31)/8*(Avropsblankett!$E$52-8)),IF(Avropsblankett!$E$52<33,(AS32+(AS33-AS32)/24*(Avropsblankett!$E$52-16)),IF(Avropsblankett!$E$52<65,(AS33+(AS34-AS33)/32*(Avropsblankett!$E$52-32)),"")))),"") ->  | AU40: =(Avropsblankett!$F$52-500)/100*IF(Avropsblankett!$C$52=$A$30,IF(Avropsblankett!$E$52<17,(AU31+(AU32-AU31)/8*(Avropsblankett!$E$52-8)),IF(Avropsblankett!$E$52<33,(AU32+(AU33-AU32)/16*(Avropsblankett!$E$52-16)),IF(Avropsblankett!$E$52<65,(AU33+(AU34-AU33)/32*(Avropsblankett!$E$52-32)),"")))) -> 0 | AX40: =IF(Avropsblankett!$C$52=$A$30,IF(Avropsblankett!$E$52<33,(AX31+(AX32-AX31)/24*(Avropsblankett!$E$52-8)),IF(Avropsblankett!$E$52<65,(AX32+(AX33-AX32)/32*(Avropsblankett!$E$52-32)),"")),"") ->  | AZ40: =(Avropsblankett!$F$52-500)/100*IF(Avropsblankett!$C$52=$A$30,IF(Avropsblankett!$E$52<33,(AZ31+(AZ32-AZ31)/24*(Avropsblankett!$E$52-8)),IF(Avropsblankett!$E$52<65,(AZ32+(AZ33-AZ32)/32*(Avropsblankett!$E$52-32)),""))) -> 0
E41: =IF(Avropsblankett!$C$64=$A$30,(IF(Avropsblankett!$E$64<17,(E31+(E32-E31)/8*(Avropsblankett!$E$64-8)),IF(Avropsblankett!$E$64<33,(E32+(E33-E32)/24*(Avropsblankett!$E$64-16)),IF(Avropsblankett!$E$64<65,(E33+(E34-E33)/32*(Avropsblankett!$E$64-32)),"")))),"") ->  | G41: =(Avropsblankett!$F$64-500)/100*IF(Avropsblankett!$C$64=$A$30,IF(Avropsblankett!$E$64<17,(G31+(G32-G31)/8*(Avropsblankett!$E$64-8)),IF(Avropsblankett!$E$64<33,(G32+(G33-G32)/16*(Avropsblankett!$E$64-16)),IF(Avropsblankett!$E$64<65,(G33+(G34-G33)/32*(Avropsblankett!$E$64-32)),"")))) -> 0 | J41: =IF(Avropsblankett!$C$64=$A$30,(IF(Avropsblankett!$E$64<17,(J31+(J32-J31)/8*(Avropsblankett!$E$64-8)),IF(Avropsblankett!$E$64<33,(J32+(J33-J32)/24*(Avropsblankett!$E$64-16)),IF(Avropsblankett!$E$64<65,(J33+(J34-J33)/32*(Avropsblankett!$E$64-32)),"")))),"") ->  | L41: =(Avropsblankett!$F$64-500)/100*IF(Avropsblankett!$C$64=$A$30,IF(Avropsblankett!$E$64<17,(L31+(L32-L31)/8*(Avropsblankett!$E$64-8)),IF(Avropsblankett!$E$64<33,(L32+(L33-L32)/16*(Avropsblankett!$E$64-16)),IF(Avropsblankett!$E$64<65,(L33+(L34-L33)/32*(Avropsblankett!$E$64-32)),"")))) -> 0 | O41: =IF(Avropsblankett!$C$64=$A$30,(IF(Avropsblankett!$E$64<17,(O31+(O32-O31)/8*(Avropsblankett!$E$64-8)),IF(Avropsblankett!$E$64<33,(O32+(O33-O32)/24*(Avropsblankett!$E$64-16)),IF(Avropsblankett!$E$64<65,(O33+(O34-O33)/32*(Avropsblankett!$E$64-32)),"")))),"") ->  | Q41: =(Avropsblankett!$F$64-500)/100*IF(Avropsblankett!$C$64=$A$30,IF(Avropsblankett!$E$64<17,(Q31+(Q32-Q31)/8*(Avropsblankett!$E$64-8)),IF(Avropsblankett!$E$64<33,(Q32+(Q33-Q32)/16*(Avropsblankett!$E$64-16)),IF(Avropsblankett!$E$64<65,(Q33+(Q34-Q33)/32*(Avropsblankett!$E$64-32)),"")))) -> 0 | T41: =IF(Avropsblankett!$C$64=$A$30,(IF(Avropsblankett!$E$64<17,(T31+(T32-T31)/8*(Avropsblankett!$E$64-8)),IF(Avropsblankett!$E$64<33,(T32+(T33-T32)/24*(Avropsblankett!$E$64-16)),IF(Avropsblankett!$E$64<65,(T33+(T34-T33)/32*(Avropsblankett!$E$64-32)),"")))),"") ->  | V41: =(Avropsblankett!$F$64-500)/100*IF(Avropsblankett!$C$64=$A$30,IF(Avropsblankett!$E$64<17,(V31+(V32-V31)/8*(Avropsblankett!$E$64-8)),IF(Avropsblankett!$E$64<33,(V32+(V33-V32)/16*(Avropsblankett!$E$64-16)),IF(Avropsblankett!$E$64<65,(V33+(V34-V33)/32*(Avropsblankett!$E$64-32)),"")))) -> 0 | Y41: =IF(Avropsblankett!$C$64=$A$30,(IF(Avropsblankett!$E$64<17,(Y31+(Y32-Y31)/8*(Avropsblankett!$E$64-8)),IF(Avropsblankett!$E$64<33,(Y32+(Y33-Y32)/24*(Avropsblankett!$E$64-16)),IF(Avropsblankett!$E$64<65,(Y33+(Y34-Y33)/32*(Avropsblankett!$E$64-32)),"")))),"") ->  | AA41: =(Avropsblankett!$F$64-500)/100*IF(Avropsblankett!$C$64=$A$30,IF(Avropsblankett!$E$64<17,(AA31+(AA32-AA31)/8*(Avropsblankett!$E$64-8)),IF(Avropsblankett!$E$64<33,(AA32+(AA33-AA32)/16*(Avropsblankett!$E$64-16)),IF(Avropsblankett!$E$64<65,(AA33+(AA34-AA33)/32*(Avropsblankett!$E$64-32)),"")))) -> 0 | AD41: =IF(Avropsblankett!$C$64=$A$30,(IF(Avropsblankett!$E$64<17,(AD31+(AD32-AD31)/8*(Avropsblankett!$E$64-8)),IF(Avropsblankett!$E$64<33,(AD32+(AD33-AD32)/24*(Avropsblankett!$E$64-16)),IF(Avropsblankett!$E$64<65,(AD33+(AD34-AD33)/32*(Avropsblankett!$E$64-32)),"")))),"") ->  | AF41: =(Avropsblankett!$F$64-500)/100*IF(Avropsblankett!$C$64=$A$30,IF(Avropsblankett!$E$64<17,(AF31+(AF32-AF31)/8*(Avropsblankett!$E$64-8)),IF(Avropsblankett!$E$64<33,(AF32+(AF33-AF32)/16*(Avropsblankett!$E$64-16)),IF(Avropsblankett!$E$64<65,(AF33+(AF34-AF33)/32*(Avropsblankett!$E$64-32)),"")))) -> 0 | AI41: =IF(Avropsblankett!$C$64=$A$30,(IF(Avropsblankett!$E$64<17,(AI31+(AI32-AI31)/8*(Avropsblankett!$E$64-8)),IF(Avropsblankett!$E$64<33,(AI32+(AI33-AI32)/24*(Avropsblankett!$E$64-16)),IF(Avropsblankett!$E$64<65,(AI33+(AI34-AI33)/32*(Avropsblankett!$E$64-32)),"")))),"") ->  | AK41: =(Avropsblankett!$F$64-500)/100*IF(Avropsblankett!$C$64=$A$30,IF(Avropsblankett!$E$64<17,(AK31+(AK32-AK31)/8*(Avropsblankett!$E$64-8)),IF(Avropsblankett!$E$64<33,(AK32+(AK33-AK32)/16*(Avropsblankett!$E$64-16)),IF(Avropsblankett!$E$64<65,(AK33+(AK34-AK33)/32*(Avropsblankett!$E$64-32)),"")))) -> 0 | AN41: =IF(Avropsblankett!$C$64=$A$30,(IF(Avropsblankett!$E$64<17,(AN31+(AN32-AN31)/8*(Avropsblankett!$E$64-8)),IF(Avropsblankett!$E$64<33,(AN32+(AN33-AN32)/24*(Avropsblankett!$E$64-16)),IF(Avropsblankett!$E$64<65,(AN33+(AN34-AN33)/32*(Avropsblankett!$E$64-32)),"")))),"") ->  | AP41: =(Avropsblankett!$F$64-500)/100*IF(Avropsblankett!$C$64=$A$30,IF(Avropsblankett!$E$64<17,(AP31+(AP32-AP31)/8*(Avropsblankett!$E$64-8)),IF(Avropsblankett!$E$64<33,(AP32+(AP33-AP32)/16*(Avropsblankett!$E$64-16)),IF(Avropsblankett!$E$64<65,(AP33+(AP34-AP33)/32*(Avropsblankett!$E$64-32)),"")))) -> 0 | AS41: =IF(Avropsblankett!$C$64=$A$30,(IF(Avropsblankett!$E$64<17,(AS31+(AS32-AS31)/8*(Avropsblankett!$E$64-8)),IF(Avropsblankett!$E$64<33,(AS32+(AS33-AS32)/24*(Avropsblankett!$E$64-16)),IF(Avropsblankett!$E$64<65,(AS33+(AS34-AS33)/32*(Avropsblankett!$E$64-32)),"")))),"") ->  | AU41: =(Avropsblankett!$F$64-500)/100*IF(Avropsblankett!$C$64=$A$30,IF(Avropsblankett!$E$64<17,(AU31+(AU32-AU31)/8*(Avropsblankett!$E$64-8)),IF(Avropsblankett!$E$64<33,(AU32+(AU33-AU32)/16*(Avropsblankett!$E$64-16)),IF(Avropsblankett!$E$64<65,(AU33+(AU34-AU33)/32*(Avropsblankett!$E$64-32)),"")))) -> 0 | AX41: =IF(Avropsblankett!$C$64=$A$30,IF(Avropsblankett!$E$64<33,(AX31+(AX32-AX31)/24*(Avropsblankett!$E$64-8)),IF(Avropsblankett!$E$64<65,(AX32+(AX33-AX32)/32*(Avropsblankett!$E$64-32)),"")),"") ->  | AZ41: =(Avropsblankett!$F$64-500)/100*IF(Avropsblankett!$C$64=$A$30,IF(Avropsblankett!$E$64<33,(AZ31+(AZ32-AZ31)/24*(Avropsblankett!$E$64-8)),IF(Avropsblankett!$E$64<65,(AZ32+(AZ33-AZ32)/32*(Avropsblankett!$E$64-32)),""))) -> 0
E42: =IF(Avropsblankett!$C$76=$A$30,(IF(Avropsblankett!$E$76<17,(E31+(E32-E31)/8*(Avropsblankett!$E$76-8)),IF(Avropsblankett!$E$76<33,(E32+(E33-E32)/24*(Avropsblankett!$E$76-16)),IF(Avropsblankett!$E$76<65,(E33+(E34-E33)/32*(Avropsblankett!$E$76-32)),"")))),"") ->  | G42: =(Avropsblankett!$F$76-500)/100*IF(Avropsblankett!$C$76=$A$30,IF(Avropsblankett!$E$76<17,(G31+(G32-G31)/8*(Avropsblankett!$E$76-8)),IF(Avropsblankett!$E$76<33,(G32+(G33-G32)/16*(Avropsblankett!$E$76-16)),IF(Avropsblankett!$E$76<65,(G33+(G34-G33)/32*(Avropsblankett!$E$76-32)),"")))) -> 0 | J42: =IF(Avropsblankett!$C$76=$A$30,(IF(Avropsblankett!$E$76<17,(J31+(J32-J31)/8*(Avropsblankett!$E$76-8)),IF(Avropsblankett!$E$76<33,(J32+(J33-J32)/24*(Avropsblankett!$E$76-16)),IF(Avropsblankett!$E$76<65,(J33+(J34-J33)/32*(Avropsblankett!$E$76-32)),"")))),"") ->  | L42: =(Avropsblankett!$F$76-500)/100*IF(Avropsblankett!$C$76=$A$30,IF(Avropsblankett!$E$76<17,(L31+(L32-L31)/8*(Avropsblankett!$E$76-8)),IF(Avropsblankett!$E$76<33,(L32+(L33-L32)/16*(Avropsblankett!$E$76-16)),IF(Avropsblankett!$E$76<65,(L33+(L34-L33)/32*(Avropsblankett!$E$76-32)),"")))) -> 0 | O42: =IF(Avropsblankett!$C$76=$A$30,(IF(Avropsblankett!$E$76<17,(O31+(O32-O31)/8*(Avropsblankett!$E$76-8)),IF(Avropsblankett!$E$76<33,(O32+(O33-O32)/24*(Avropsblankett!$E$76-16)),IF(Avropsblankett!$E$76<65,(O33+(O34-O33)/32*(Avropsblankett!$E$76-32)),"")))),"") ->  | Q42: =(Avropsblankett!$F$76-500)/100*IF(Avropsblankett!$C$76=$A$30,IF(Avropsblankett!$E$76<17,(Q31+(Q32-Q31)/8*(Avropsblankett!$E$76-8)),IF(Avropsblankett!$E$76<33,(Q32+(Q33-Q32)/16*(Avropsblankett!$E$76-16)),IF(Avropsblankett!$E$76<65,(Q33+(Q34-Q33)/32*(Avropsblankett!$E$76-32)),"")))) -> 0 | T42: =IF(Avropsblankett!$C$76=$A$30,(IF(Avropsblankett!$E$76<17,(T31+(T32-T31)/8*(Avropsblankett!$E$76-8)),IF(Avropsblankett!$E$76<33,(T32+(T33-T32)/24*(Avropsblankett!$E$76-16)),IF(Avropsblankett!$E$76<65,(T33+(T34-T33)/32*(Avropsblankett!$E$76-32)),"")))),"") ->  | V42: =(Avropsblankett!$F$76-500)/100*IF(Avropsblankett!$C$76=$A$30,IF(Avropsblankett!$E$76<17,(V31+(V32-V31)/8*(Avropsblankett!$E$76-8)),IF(Avropsblankett!$E$76<33,(V32+(V33-V32)/16*(Avropsblankett!$E$76-16)),IF(Avropsblankett!$E$76<65,(V33+(V34-V33)/32*(Avropsblankett!$E$76-32)),"")))) -> 0 | Y42: =IF(Avropsblankett!$C$76=$A$30,(IF(Avropsblankett!$E$76<17,(Y31+(Y32-Y31)/8*(Avropsblankett!$E$76-8)),IF(Avropsblankett!$E$76<33,(Y32+(Y33-Y32)/24*(Avropsblankett!$E$76-16)),IF(Avropsblankett!$E$76<65,(Y33+(Y34-Y33)/32*(Avropsblankett!$E$76-32)),"")))),"") ->  | AA42: =(Avropsblankett!$F$76-500)/100*IF(Avropsblankett!$C$76=$A$30,IF(Avropsblankett!$E$76<17,(AA31+(AA32-AA31)/8*(Avropsblankett!$E$76-8)),IF(Avropsblankett!$E$76<33,(AA32+(AA33-AA32)/16*(Avropsblankett!$E$76-16)),IF(Avropsblankett!$E$76<65,(AA33+(AA34-AA33)/32*(Avropsblankett!$E$76-32)),"")))) -> 0 | AD42: =IF(Avropsblankett!$C$76=$A$30,(IF(Avropsblankett!$E$76<17,(AD31+(AD32-AD31)/8*(Avropsblankett!$E$76-8)),IF(Avropsblankett!$E$76<33,(AD32+(AD33-AD32)/24*(Avropsblankett!$E$76-16)),IF(Avropsblankett!$E$76<65,(AD33+(AD34-AD33)/32*(Avropsblankett!$E$76-32)),"")))),"") ->  | AF42: =(Avropsblankett!$F$76-500)/100*IF(Avropsblankett!$C$76=$A$30,IF(Avropsblankett!$E$76<17,(AF31+(AF32-AF31)/8*(Avropsblankett!$E$76-8)),IF(Avropsblankett!$E$76<33,(AF32+(AF33-AF32)/16*(Avropsblankett!$E$76-16)),IF(Avropsblankett!$E$76<65,(AF33+(AF34-AF33)/32*(Avropsblankett!$E$76-32)),"")))) -> 0 | AI42: =IF(Avropsblankett!$C$76=$A$30,(IF(Avropsblankett!$E$76<17,(AI31+(AI32-AI31)/8*(Avropsblankett!$E$76-8)),IF(Avropsblankett!$E$76<33,(AI32+(AI33-AI32)/24*(Avropsblankett!$E$76-16)),IF(Avropsblankett!$E$76<65,(AI33+(AI34-AI33)/32*(Avropsblankett!$E$76-32)),"")))),"") ->  | AK42: =(Avropsblankett!$F$76-500)/100*IF(Avropsblankett!$C$76=$A$30,IF(Avropsblankett!$E$76<17,(AK31+(AK32-AK31)/8*(Avropsblankett!$E$76-8)),IF(Avropsblankett!$E$76<33,(AK32+(AK33-AK32)/16*(Avropsblankett!$E$76-16)),IF(Avropsblankett!$E$76<65,(AK33+(AK34-AK33)/32*(Avropsblankett!$E$76-32)),"")))) -> 0 | AN42: =IF(Avropsblankett!$C$76=$A$30,(IF(Avropsblankett!$E$76<17,(AN31+(AN32-AN31)/8*(Avropsblankett!$E$76-8)),IF(Avropsblankett!$E$76<33,(AN32+(AN33-AN32)/24*(Avropsblankett!$E$76-16)),IF(Avropsblankett!$E$76<65,(AN33+(AN34-AN33)/32*(Avropsblankett!$E$76-32)),"")))),"") ->  | AP42: =(Avropsblankett!$F$76-500)/100*IF(Avropsblankett!$C$76=$A$30,IF(Avropsblankett!$E$76<17,(AP31+(AP32-AP31)/8*(Avropsblankett!$E$76-8)),IF(Avropsblankett!$E$76<33,(AP32+(AP33-AP32)/16*(Avropsblankett!$E$76-16)),IF(Avropsblankett!$E$76<65,(AP33+(AP34-AP33)/32*(Avropsblankett!$E$76-32)),"")))) -> 0 | AS42: =IF(Avropsblankett!$C$76=$A$30,(IF(Avropsblankett!$E$76<17,(AS31+(AS32-AS31)/8*(Avropsblankett!$E$76-8)),IF(Avropsblankett!$E$76<33,(AS32+(AS33-AS32)/24*(Avropsblankett!$E$76-16)),IF(Avropsblankett!$E$76<65,(AS33+(AS34-AS33)/32*(Avropsblankett!$E$76-32)),"")))),"") ->  | AU42: =(Avropsblankett!$F$76-500)/100*IF(Avropsblankett!$C$76=$A$30,IF(Avropsblankett!$E$76<17,(AU31+(AU32-AU31)/8*(Avropsblankett!$E$76-8)),IF(Avropsblankett!$E$76<33,(AU32+(AU33-AU32)/16*(Avropsblankett!$E$76-16)),IF(Avropsblankett!$E$76<65,(AU33+(AU34-AU33)/32*(Avropsblankett!$E$76-32)),"")))) -> 0 | AX42: =IF(Avropsblankett!$C$76=$A$30,IF(Avropsblankett!$E$76<33,(AX31+(AX32-AX31)/24*(Avropsblankett!$E$76-8)),IF(Avropsblankett!$E$76<65,(AX32+(AX33-AX32)/32*(Avropsblankett!$E$76-32)),"")),"") ->  | AZ42: =(Avropsblankett!$F$76-500)/100*IF(Avropsblankett!$C$76=$A$30,IF(Avropsblankett!$E$76<33,(AZ31+(AZ32-AZ31)/24*(Avropsblankett!$E$76-8)),IF(Avropsblankett!$E$76<65,(AZ32+(AZ33-AZ32)/32*(Avropsblankett!$E$76-32)),""))) -> 0
E43: =SUM(E38:E42) -> 0 | G43: =SUM(G38:G42) -> 0 | J43: =SUM(J38:J42) -> 0 | L43: =SUM(L38:L42) -> 0 | O43: =SUM(O38:O42) -> 0 | Q43: =SUM(Q38:Q42) -> 0 | T43: =SUM(T38:T42) -> 0 | V43: =SUM(V38:V42) -> 0 | Y43: =SUM(Y38:Y42) -> 0 | AA43: =SUM(AA38:AA42) -> 0 | AD43: =SUM(AD38:AD42) -> 0 | AF43: =SUM(AF38:AF42) -> 0 | AI43: =SUM(AI38:AI42) -> 0 | AK43: =SUM(AK38:AK42) -> 0 | AN43: =SUM(AN38:AN42) -> 0 | AP43: =SUM(AP38:AP42) -> 0 | AS43: =SUM(AS38:AS42) -> 0 | AU43: =SUM(AU38:AU42) -> 0 | AX43: =SUM(AX38:AX42) -> 0 | AZ43: =SUM(AZ38:AZ42) -> 0
D44: Summa | E44: =SUM(E15,E29,E43) -> 0 | G44: =SUM(G15,G29,G43) -> 0 | I44: Summa | J44: =SUM(J15,J29,J43) -> 0 | L44: =SUM(L15,L29,L43) -> 0 | N44: Summa | O44: =SUM(O15,O29,O43) -> 0 | Q44: =SUM(Q15,Q29,Q43) -> 0 | S44: Summa | T44: =SUM(T15,T29,T43) -> 0 | V44: =SUM(V15,V29,V43) -> 0 | X44: Summa | Y44: =SUM(Y15,Y29,Y43) -> 0 | AA44: =SUM(AA15,AA29,AA43) -> 0 | AC44: Summa | AD44: =SUM(AD15,AD29,AD43) -> 0 | AF44: =SUM(AF15,AF29,AF43) -> 0 | AH44: Summa | AI44: =SUM(AI15,AI29,AI43) -> 0 | AK44: =SUM(AK15,AK29,AK43) -> 0 | AM44: Summa | AN44: =SUM(AN15,AN29,AN43) -> 0 | AP44: =SUM(AP15,AP29,AP43) -> 0 | AR44: Summa | AS44: =SUM(AS15,AS29,AS43) -> 0 | AU44: =SUM(AU15,AU29,AU43) -> 0 | AW44: Summa | AX44: =SUM(AX15,AX29,AX43) -> 0 | AZ44: =SUM(AZ15,AZ29,AZ43) -> 0
D45: Totalsumma | E45: =SUM(E44,G44) -> 0 | I45: Totalsumma | J45: =SUM(J44,L44) -> 0 | N45: Totalsumma | O45: =SUM(O44,Q44) -> 0 | S45: Totalsumma | T45: =SUM(T44,V44) -> 0 | X45: Totalsumma | Y45: =SUM(Y44,AA44) -> 0 | AC45: Totalsumma | AD45: =SUM(AD44,AF44) -> 0 | AH45: Totalsumma | AI45: =SUM(AI44,AK44) -> 0 | AM45: Totalsumma | AN45: =SUM(AN44,AP44) -> 0 | AR45: Totalsumma | AS45: =SUM(AS44,AU44) -> 0 | AW45: Totalsumma | AX45: =SUM(AX44,AZ44) -> 0
B46: =A4 -> Broschyrer_Variant_1
B47: =A16 -> Broschyrer_Variant_2
B48: =A30 -> Broschyrer_Variant_3

Sheet Folders
A1: Folders | D1: =Uträkningsblad!C4 -> Bröderna Hansson H-tryck Aktiebolag | I1: =Uträkningsblad!D4 -> Elanders Sverige AB | N1: =Uträkningsblad!E4 -> Exakta Print AB | S1: =Uträkningsblad!F4 -> Kalmar Kuvert Sweden AB | X1: =Uträkningsblad!G4 -> Ljungbergs Tryckeri i Klippan AB | AC1: =Uträkningsblad!H4 -> Scandinavian Print Group Sweden AB | AH1: =Uträkningsblad!I4 -> Stema Specialtryck AB | AM1: =Uträkningsblad!J4 -> Stibo Complete A/S | AR1: =Uträkningsblad!K4 -> Åtta.45 Tryckeri AB | AW1: =Uträkningsblad!L4 -> Leverantör 10
D2: Priser lämnas i gulmarkerade fält nedan | I2: Priser lämnas i gulmarkerade fält nedan | N2: Priser lämnas i gulmarkerade fält nedan | S2: Priser lämnas i gulmarkerade fält nedan | X2: Priser lämnas i gulmarkerade fält nedan | AC2: Priser lämnas i gulmarkerade fält nedan | AH2: Priser lämnas i gulmarkerade fält nedan | AM2: Priser lämnas i gulmarkerade fält nedan | AR2: Priser lämnas i gulmarkerade fält nedan | AW2: Priser lämnas i gulmarkerade fält nedan
A3: Folders_Variant_1 | C3: Beskrivning/omfång inklusive omslag | D3: Upplaga | E3: Ange pris | F3: Följande | G3: Ange pris | I3: Upplaga | J3: Ange pris | K3: Följande | L3: Ange pris | N3: Upplaga | O3: Ange pris | P3: Följande | Q3: Ange pris | S3: Upplaga | T3: Ange pris | U3: Följande | V3: Ange pris | X3: Upplaga | Y3: Ange pris | Z3: Följande | AA3: Ange pris | AC3: Upplaga | AD3: Ange pris | AE3: Följande | AF3: Ange pris | AH3: Upplaga | AI3: Ange pris | AJ3: Följande | AK3: Ange pris | AM3: Upplaga | AN3: Ange pris | AO3: Följande | AP3: Ange pris | AR3: Upplaga | AS3: Ange pris | AT3: Följande | AU3: Ange pris | AW3: Upplaga | AX3: Ange pris | AY3: Följande | AZ3: Ange pris
A4: Underlag | B4: A: Öppna filer. B: PDF/PDFx. | C4: 4 sidor | D4: 100 | E4: 1345 | F4: 100 | G4: 216 | I4: 100 | J4: 496 | K4: 100 | L4: 214 | N4: 100 | O4: 1350 | P4: 100 | Q4: 240 | S4: 100 | T4: 600 | U4: 100 | V4: 225 | X4: 100 | Y4: 405 | Z4: 100 | AA4: 45 | AC4: 100 | AD4: 675 | AE4: 100 | AF4: 288 | AH4: 100 | AI4: 550 | AJ4: 100 | AK4: 190 | AM4: 100 | AN4: 635 | AO4: 100 | AP4: 620 | AR4: 100 | AS4: 710 | AT4: 100 | AU4: 250 | AW4: 100 | AX4: 1120 | AY4: 100 | AZ4: 145
A5: Format | B5: A4 | C5: 4 sidor | D5: 1000 | E5: 3288 | F5: 100 | G5: 216 | I5: 1000 | J5: 2366 | K5: 100 | L5: 214 | N5: 1000 | O5: 3100 | P5: 100 | Q5: 65 | S5: 1000 | T5: 1800 | U5: 100 | V5: 200 | X5: 1000 | Y5: 960 | Z5: 100 | AA5: 147 | AC5: 1000 | AD5: 2392 | AE5: 100 | AF5: 379 | AH5: 1000 | AI5: 1800 | AJ5: 100 | AK5: 40 | AM5: 1000 | AN5: 1695 | AO5: 100 | AP5: 165 | AR5: 1000 | AS5: 2450 | AT5: 100 | AU5: 170 | AW5: 1000 | AX5: 2390 | AY5: 100 | AZ5: 710
A6: Papper | B6: Mattbestruket 130 g | C6: 4 sidor | D6: 3000 | E6: 7606 | F6: 100 | G6: 216 | I6: 3000 | J6: 6250 | K6: 100 | L6: 205 | N6: 3000 | O6: 5200 | P6: 100 | Q6: 70 | S6: 3000 | T6: 2725 | U6: 100 | V6: 125 | X6: 3000 | Y6: 1670 | Z6: 100 | AA6: 147 | AC6: 3000 | AD6: 3775 | AE6: 100 | AF6: 12 | AH6: 3000 | AI6: 2400 | AJ6: 100 | AK6: 35 | AM6: 3000 | AN6: 2415 | AO6: 100 | AP6: 75 | AR6: 3000 | AS6: 3840 | AT6: 100 | AU6: 70 | AW6: 3000 | AX6: 3945 | AY6: 100 | AZ6: 225
A7: Tryck | B7: 4+4 färger
A8: Sidor | B8: 4 stycken
E9: =IF(Avropsblankett!$C$28=$A$3,IF(Avropsblankett!$F$28<1000,E4,IF(Avropsblankett!$F$28<3000,E5,E6)),"") ->  | G9: =IF(Avropsblankett!$C$28=$A$3,IF(Avropsblankett!$F$28<1000,((Avropsblankett!$F$28-100)*G4/100),IF(Avropsblankett!$F$28<3000,((Avropsblankett!$F$28-1000)*G5/100),((Avropsblankett!$F$28-3000)*G6/100))),"") ->  | J9: =IF(Avropsblankett!$C$28=$A$3,IF(Avropsblankett!$F$28<1000,J4,IF(Avropsblankett!$F$28<3000,J5,J6)),"") ->  | L9: =IF(Avropsblankett!$C$28=$A$3,IF(Avropsblankett!$F$28<1000,((Avropsblankett!$F$28-100)*L4/100),IF(Avropsblankett!$F$28<3000,((Avropsblankett!$F$28-1000)*L5/100),((Avropsblankett!$F$28-3000)*L6/100))),"") ->  | O9: =IF(Avropsblankett!$C$28=$A$3,IF(Avropsblankett!$F$28<1000,O4,IF(Avropsblankett!$F$28<3000,O5,O6)),"") ->  | Q9: =IF(Avropsblankett!$C$28=$A$3,IF(Avropsblankett!$F$28<1000,((Avropsblankett!$F$28-100)*Q4/100),IF(Avropsblankett!$F$28<3000,((Avropsblankett!$F$28-1000)*Q5/100),((Avropsblankett!$F$28-3000)*Q6/100))),"") ->  | T9: =IF(Avropsblankett!$C$28=$A$3,IF(Avropsblankett!$F$28<1000,T4,IF(Avropsblankett!$F$28<3000,T5,T6)),"") ->  | V9: =IF(Avropsblankett!$C$28=$A$3,IF(Avropsblankett!$F$28<1000,((Avropsblankett!$F$28-100)*V4/100),IF(Avropsblankett!$F$28<3000,((Avropsblankett!$F$28-1000)*V5/100),((Avropsblankett!$F$28-3000)*V6/100))),"") ->  | Y9: =IF(Avropsblankett!$C$28=$A$3,IF(Avropsblankett!$F$28<1000,Y4,IF(Avropsblankett!$F$28<3000,Y5,Y6)),"") ->  | AA9: =IF(Avropsblankett!$C$28=$A$3,IF(Avropsblankett!$F$28<1000,((Avropsblankett!$F$28-100)*AA4/100),IF(Avropsblankett!$F$28<3000,((Avropsblankett!$F$28-1000)*AA5/100),((Avropsblankett!$F$28-3000)*AA6/100))),"") ->  | AD9: =IF(Avropsblankett!$C$28=$A$3,IF(Avropsblankett!$F$28<1000,AD4,IF(Avropsblankett!$F$28<3000,AD5,AD6)),"") ->  | AF9: =IF(Avropsblankett!$C$28=$A$3,IF(Avropsblankett!$F$28<1000,((Avropsblankett!$F$28-100)*AF4/100),IF(Avropsblankett!$F$28<3000,((Avropsblankett!$F$28-1000)*AF5/100),((Avropsblankett!$F$28-3000)*AF6/100))),"") ->  | AI9: =IF(Avropsblankett!$C$28=$A$3,IF(Avropsblankett!$F$28<1000,AI4,IF(Avropsblankett!$F$28<3000,AI5,AI6)),"") ->  | AK9: =IF(Avropsblankett!$C$28=$A$3,IF(Avropsblankett!$F$28<1000,((Avropsblankett!$F$28-100)*AK4/100),IF(Avropsblankett!$F$28<3000,((Avropsblankett!$F$28-1000)*AK5/100),((Avropsblankett!$F$28-3000)*AK6/100))),"") ->  | AN9: =IF(Avropsblankett!$C$28=$A$3,IF(Avropsblankett!$F$28<1000,AN4,IF(Avropsblankett!$F$28<3000,AN5,AN6)),"") ->  | AP9: =IF(Avropsblankett!$C$28=$A$3,IF(Avropsblankett!$F$28<1000,((Avropsblankett!$F$28-100)*AP4/100),IF(Avropsblankett!$F$28<3000,((Avropsblankett!$F$28-1000)*AP5/100),((Avropsblankett!$F$28-3000)*AP6/100))),"") ->  | AS9: =IF(Avropsblankett!$C$28=$A$3,IF(Avropsblankett!$F$28<1000,AS4,IF(Avropsblankett!$F$28<3000,AS5,AS6)),"") ->  | AU9: =IF(Avropsblankett!$C$28=$A$3,IF(Avropsblankett!$F$28<1000,((Avropsblankett!$F$28-100)*AU4/100),IF(Avropsblankett!$F$28<3000,((Avropsblankett!$F$28-1000)*AU5/100),((Avropsblankett!$F$28-3000)*AU6/100))),"") ->  | AX9: =IF(Avropsblankett!$C$28=$A$3,IF(Avropsblankett!$F$28<1000,AX4,IF(Avropsblankett!$F$28<3000,AX5,AX6)),"") ->  | AZ9: =IF(Avropsblankett!$C$28=$A$3,IF(Avropsblankett!$F$28<1000,((Avropsblankett!$F$28-100)*AZ4/100),IF(Avropsblankett!$F$28<3000,((Avropsblankett!$F$28-1000)*AZ5/100),((Avropsblankett!$F$28-3000)*AZ6/100))),"") -> 
E10: =IF(Avropsblankett!$C$40=$A$3,IF(Avropsblankett!$F$40<1000,E4,IF(Avropsblankett!$F$40<3000,E5,E6)),"") ->  | G10: =IF(Avropsblankett!$C$40=$A$3,IF(Avropsblankett!$F$40<1000,((Avropsblankett!$F$40-100)*G4/100),IF(Avropsblankett!$F$40<3000,((Avropsblankett!$F$40-1000)*G5/100),((Avropsblankett!$F$40-3000)*G6/100))),"") ->  | J10: =IF(Avropsblankett!$C$40=$A$3,IF(Avropsblankett!$F$40<1000,J4,IF(Avropsblankett!$F$40<3000,J5,J6)),"") ->  | L10: =IF(Avropsblankett!$C$40=$A$3,IF(Avropsblankett!$F$40<1000,((Avropsblankett!$F$40-100)*L4/100),IF(Avropsblankett!$F$40<3000,((Avropsblankett!$F$40-1000)*L5/100),((Avropsblankett!$F$40-3000)*L6/100))),"") ->  | O10: =IF(Avropsblankett!$C$40=$A$3,IF(Avropsblankett!$F$40<1000,O4,IF(Avropsblankett!$F$40<3000,O5,O6)),"") ->  | Q10: =IF(Avropsblankett!$C$40=$A$3,IF(Avropsblankett!$F$40<1000,((Avropsblankett!$F$40-100)*Q4/100),IF(Avropsblankett!$F$40<3000,((Avropsblankett!$F$40-1000)*Q5/100),((Avropsblankett!$F$40-3000)*Q6/100))),"") ->  | T10: =IF(Avropsblankett!$C$40=$A$3,IF(Avropsblankett!$F$40<1000,T4,IF(Avropsblankett!$F$40<3000,T5,T6)),"") ->  | V10: =IF(Avropsblankett!$C$40=$A$3,IF(Avropsblankett!$F$40<1000,((Avropsblankett!$F$40-100)*V4/100),IF(Avropsblankett!$F$40<3000,((Avropsblankett!$F$40-1000)*V5/100),((Avropsblankett!$F$40-3000)*V6/100))),"") ->  | Y10: =IF(Avropsblankett!$C$40=$A$3,IF(Avropsblankett!$F$40<1000,Y4,IF(Avropsblankett!$F$40<3000,Y5,Y6)),"") ->  | AA10: =IF(Avropsblankett!$C$40=$A$3,IF(Avropsblankett!$F$40<1000,((Avropsblankett!$F$40-100)*AA4/100),IF(Avropsblankett!$F$40<3000,((Avropsblankett!$F$40-1000)*AA5/100),((Avropsblankett!$F$40-3000)*AA6/100))),"") ->  | AD10: =IF(Avropsblankett!$C$40=$A$3,IF(Avropsblankett!$F$40<1000,AD4,IF(Avropsblankett!$F$40<3000,AD5,AD6)),"") ->  | AF10: =IF(Avropsblankett!$C$40=$A$3,IF(Avropsblankett!$F$40<1000,((Avropsblankett!$F$40-100)*AF4/100),IF(Avropsblankett!$F$40<3000,((Avropsblankett!$F$40-1000)*AF5/100),((Avropsblankett!$F$40-3000)*AF6/100))),"") ->  | AI10: =IF(Avropsblankett!$C$40=$A$3,IF(Avropsblankett!$F$40<1000,AI4,IF(Avropsblankett!$F$40<3000,AI5,AI6)),"") ->  | AK10: =IF(Avropsblankett!$C$40=$A$3,IF(Avropsblankett!$F$40<1000,((Avropsblankett!$F$40-100)*AK4/100),IF(Avropsblankett!$F$40<3000,((Avropsblankett!$F$40-1000)*AK5/100),((Avropsblankett!$F$40-3000)*AK6/100))),"") ->  | AN10: =IF(Avropsblankett!$C$40=$A$3,IF(Avropsblankett!$F$40<1000,AN4,IF(Avropsblankett!$F$40<3000,AN5,AN6)),"") ->  | AP10: =IF(Avropsblankett!$C$40=$A$3,IF(Avropsblankett!$F$40<1000,((Avropsblankett!$F$40-100)*AP4/100),IF(Avropsblankett!$F$40<3000,((Avropsblankett!$F$40-1000)*AP5/100),((Avropsblankett!$F$40-3000)*AP6/100))),"") ->  | AS10: =IF(Avropsblankett!$C$40=$A$3,IF(Avropsblankett!$F$40<1000,AS4,IF(Avropsblankett!$F$40<3000,AS5,AS6)),"") ->  | AU10: =IF(Avropsblankett!$C$40=$A$3,IF(Avropsblankett!$F$40<1000,((Avropsblankett!$F$40-100)*AU4/100),IF(Avropsblankett!$F$40<3000,((Avropsblankett!$F$40-1000)*AU5/100),((Avropsblankett!$F$40-3000)*AU6/100))),"") ->  | AX10: =IF(Avropsblankett!$C$40=$A$3,IF(Avropsblankett!$F$40<1000,AX4,IF(Avropsblankett!$F$40<3000,AX5,AX6)),"") ->  | AZ10: =IF(Avropsblankett!$C$40=$A$3,IF(Avropsblankett!$F$40<1000,((Avropsblankett!$F$40-100)*AZ4/100),IF(Avropsblankett!$F$40<3000,((Avropsblankett!$F$40-1000)*AZ5/100),((Avropsblankett!$F$40-3000)*AZ6/100))),"") -> 
E11: =IF(Avropsblankett!$C$52=$A$3,IF(Avropsblankett!$F$52<1000,E4,IF(Avropsblankett!$F$52<3000,E5,E6)),"") ->  | G11: =IF(Avropsblankett!$C$52=$A$3,IF(Avropsblankett!$F$52<1000,((Avropsblankett!$F$52-100)*G4/100),IF(Avropsblankett!$F$52<3000,((Avropsblankett!$F$52-1000)*G5/100),((Avropsblankett!$F$52-3000)*G6/100))),"") ->  | J11: =IF(Avropsblankett!$C$52=$A$3,IF(Avropsblankett!$F$52<1000,J4,IF(Avropsblankett!$F$52<3000,J5,J6)),"") ->  | L11: =IF(Avropsblankett!$C$52=$A$3,IF(Avropsblankett!$F$52<1000,((Avropsblankett!$F$52-100)*L4/100),IF(Avropsblankett!$F$52<3000,((Avropsblankett!$F$52-1000)*L5/100),((Avropsblankett!$F$52-3000)*L6/100))),"") ->  | O11: =IF(Avropsblankett!$C$52=$A$3,IF(Avropsblankett!$F$52<1000,O4,IF(Avropsblankett!$F$52<3000,O5,O6)),"") ->  | Q11: =IF(Avropsblankett!$C$52=$A$3,IF(Avropsblankett!$F$52<1000,((Avropsblankett!$F$52-100)*Q4/100),IF(Avropsblankett!$F$52<3000,((Avropsblankett!$F$52-1000)*Q5/100),((Avropsblankett!$F$52-3000)*Q6/100))),"") ->  | T11: =IF(Avropsblankett!$C$52=$A$3,IF(Avropsblankett!$F$52<1000,T4,IF(Avropsblankett!$F$52<3000,T5,T6)),"") ->  | V11: =IF(Avropsblankett!$C$52=$A$3,IF(Avropsblankett!$F$52<1000,((Avropsblankett!$F$52-100)*V4/100),IF(Avropsblankett!$F$52<3000,((Avropsblankett!$F$52-1000)*V5/100),((Avropsblankett!$F$52-3000)*V6/100))),"") ->  | Y11: =IF(Avropsblankett!$C$52=$A$3,IF(Avropsblankett!$F$52<1000,Y4,IF(Avropsblankett!$F$52<3000,Y5,Y6)),"") ->  | AA11: =IF(Avropsblankett!$C$52=$A$3,IF(Avropsblankett!$F$52<1000,((Avropsblankett!$F$52-100)*AA4/100),IF(Avropsblankett!$F$52<3000,((Avropsblankett!$F$52-1000)*AA5/100),((Avropsblankett!$F$52-3000)*AA6/100))),"") ->  | AD11: =IF(Avropsblankett!$C$52=$A$3,IF(Avropsblankett!$F$52<1000,AD4,IF(Avropsblankett!$F$52<3000,AD5,AD6)),"") ->  | AF11: =IF(Avropsblankett!$C$52=$A$3,IF(Avropsblankett!$F$52<1000,((Avropsblankett!$F$52-100)*AF4/100),IF(Avropsblankett!$F$52<3000,((Avropsblankett!$F$52-1000)*AF5/100),((Avropsblankett!$F$52-3000)*AF6/100))),"") ->  | AI11: =IF(Avropsblankett!$C$52=$A$3,IF(Avropsblankett!$F$52<1000,AI4,IF(Avropsblankett!$F$52<3000,AI5,AI6)),"") ->  | AK11: =IF(Avropsblankett!$C$52=$A$3,IF(Avropsblankett!$F$52<1000,((Avropsblankett!$F$52-100)*AK4/100),IF(Avropsblankett!$F$52<3000,((Avropsblankett!$F$52-1000)*AK5/100),((Avropsblankett!$F$52-3000)*AK6/100))),"") ->  | AN11: =IF(Avropsblankett!$C$52=$A$3,IF(Avropsblankett!$F$52<1000,AN4,IF(Avropsblankett!$F$52<3000,AN5,AN6)),"") ->  | AP11: =IF(Avropsblankett!$C$52=$A$3,IF(Avropsblankett!$F$52<1000,((Avropsblankett!$F$52-100)*AP4/100),IF(Avropsblankett!$F$52<3000,((Avropsblankett!$F$52-1000)*AP5/100),((Avropsblankett!$F$52-3000)*AP6/100))),"") ->  | AS11: =IF(Avropsblankett!$C$52=$A$3,IF(Avropsblankett!$F$52<1000,AS4,IF(Avropsblankett!$F$52<3000,AS5,AS6)),"") ->  | AU11: =IF(Avropsblankett!$C$52=$A$3,IF(Avropsblankett!$F$52<1000,((Avropsblankett!$F$52-100)*AU4/100),IF(Avropsblankett!$F$52<3000,((Avropsblankett!$F$52-1000)*AU5/100),((Avropsblankett!$F$52-3000)*AU6/100))),"") ->  | AX11: =IF(Avropsblankett!$C$52=$A$3,IF(Avropsblankett!$F$52<1000,AX4,IF(Avropsblankett!$F$52<3000,AX5,AX6)),"") ->  | AZ11: =IF(Avropsblankett!$C$52=$A$3,IF(Avropsblankett!$F$52<1000,((Avropsblankett!$F$52-100)*AZ4/100),IF(Avropsblankett!$F$52<3000,((Avropsblankett!$F$52-1000)*AZ5/100),((Avropsblankett!$F$52-3000)*AZ6/100))),"") -> 
E12: =IF(Avropsblankett!$C$64=$A$3,IF(Avropsblankett!$F$64<1000,E4,IF(Avropsblankett!$F$64<3000,E5,E6)),"") ->  | G12: =IF(Avropsblankett!$C$64=$A$3,IF(Avropsblankett!$F$64<1000,((Avropsblankett!$F$64-100)*G4/100),IF(Avropsblankett!$F$64<3000,((Avropsblankett!$F$64-1000)*G5/100),((Avropsblankett!$F$64-3000)*64/100))),"") ->  | J12: =IF(Avropsblankett!$C$64=$A$3,IF(Avropsblankett!$F$64<1000,J4,IF(Avropsblankett!$F$64<3000,J5,J6)),"") ->  | L12: =IF(Avropsblankett!$C$64=$A$3,IF(Avropsblankett!$F$64<1000,((Avropsblankett!$F$64-100)*L4/100),IF(Avropsblankett!$F$64<3000,((Avropsblankett!$F$64-1000)*L5/100),((Avropsblankett!$F$64-3000)*64/100))),"") ->  | O12: =IF(Avropsblankett!$C$64=$A$3,IF(Avropsblankett!$F$64<1000,O4,IF(Avropsblankett!$F$64<3000,O5,O6)),"") ->  | Q12: =IF(Avropsblankett!$C$64=$A$3,IF(Avropsblankett!$F$64<1000,((Avropsblankett!$F$64-100)*Q4/100),IF(Avropsblankett!$F$64<3000,((Avropsblankett!$F$64-1000)*Q5/100),((Avropsblankett!$F$64-3000)*64/100))),"") ->  | T12: =IF(Avropsblankett!$C$64=$A$3,IF(Avropsblankett!$F$64<1000,T4,IF(Avropsblankett!$F$64<3000,T5,T6)),"") ->  | V12: =IF(Avropsblankett!$C$64=$A$3,IF(Avropsblankett!$F$64<1000,((Avropsblankett!$F$64-100)*V4/100),IF(Avropsblankett!$F$64<3000,((Avropsblankett!$F$64-1000)*V5/100),((Avropsblankett!$F$64-3000)*64/100))),"") ->  | Y12: =IF(Avropsblankett!$C$64=$A$3,IF(Avropsblankett!$F$64<1000,Y4,IF(Avropsblankett!$F$64<3000,Y5,Y6)),"") ->  | AA12: =IF(Avropsblankett!$C$64=$A$3,IF(Avropsblankett!$F$64<1000,((Avropsblankett!$F$64-100)*AA4/100),IF(Avropsblankett!$F$64<3000,((Avropsblankett!$F$64-1000)*AA5/100),((Avropsblankett!$F$64-3000)*64/100))),"") ->  | AD12: =IF(Avropsblankett!$C$64=$A$3,IF(Avropsblankett!$F$64<1000,AD4,IF(Avropsblankett!$F$64<3000,AD5,AD6)),"") ->  | AF12: =IF(Avropsblankett!$C$64=$A$3,IF(Avropsblankett!$F$64<1000,((Avropsblankett!$F$64-100)*AF4/100),IF(Avropsblankett!$F$64<3000,((Avropsblankett!$F$64-1000)*AF5/100),((Avropsblankett!$F$64-3000)*64/100))),"") ->  | AI12: =IF(Avropsblankett!$C$64=$A$3,IF(Avropsblankett!$F$64<1000,AI4,IF(Avropsblankett!$F$64<3000,AI5,AI6)),"") ->  | AK12: =IF(Avropsblankett!$C$64=$A$3,IF(Avropsblankett!$F$64<1000,((Avropsblankett!$F$64-100)*AK4/100),IF(Avropsblankett!$F$64<3000,((Avropsblankett!$F$64-1000)*AK5/100),((Avropsblankett!$F$64-3000)*64/100))),"") ->  | AN12: =IF(Avropsblankett!$C$64=$A$3,IF(Avropsblankett!$F$64<1000,AN4,IF(Avropsblankett!$F$64<3000,AN5,AN6)),"") ->  | AP12: =IF(Avropsblankett!$C$64=$A$3,IF(Avropsblankett!$F$64<1000,((Avropsblankett!$F$64-100)*AP4/100),IF(Avropsblankett!$F$64<3000,((Avropsblankett!$F$64-1000)*AP5/100),((Avropsblankett!$F$64-3000)*64/100))),"") ->  | AS12: =IF(Avropsblankett!$C$64=$A$3,IF(Avropsblankett!$F$64<1000,AS4,IF(Avropsblankett!$F$64<3000,AS5,AS6)),"") ->  | AU12: =IF(Avropsblankett!$C$64=$A$3,IF(Avropsblankett!$F$64<1000,((Avropsblankett!$F$64-100)*AU4/100),IF(Avropsblankett!$F$64<3000,((Avropsblankett!$F$64-1000)*AU5/100),((Avropsblankett!$F$64-3000)*64/100))),"") ->  | AX12: =IF(Avropsblankett!$C$64=$A$3,IF(Avropsblankett!$F$64<1000,AX4,IF(Avropsblankett!$F$64<3000,AX5,AX6)),"") ->  | AZ12: =IF(Avropsblankett!$C$64=$A$3,IF(Avropsblankett!$F$64<1000,((Avropsblankett!$F$64-100)*AZ4/100),IF(Avropsblankett!$F$64<3000,((Avropsblankett!$F$64-1000)*AZ5/100),((Avropsblankett!$F$64-3000)*64/100))),"") -> 
E13: =IF(Avropsblankett!$C$76=$A$3,IF(Avropsblankett!$F$76<1000,E4,IF(Avropsblankett!$F$76<3000,E5,E6)),"") ->  | G13: =IF(Avropsblankett!$C$76=$A$3,IF(Avropsblankett!$F$76<1000,((Avropsblankett!$F$76-100)*G4/100),IF(Avropsblankett!$F$76<3000,((Avropsblankett!$F$76-1000)*G5/100),((Avropsblankett!$F$76-3000)*G6/100))),"") ->  | J13: =IF(Avropsblankett!$C$76=$A$3,IF(Avropsblankett!$F$76<1000,J4,IF(Avropsblankett!$F$76<3000,J5,J6)),"") ->  | L13: =IF(Avropsblankett!$C$76=$A$3,IF(Avropsblankett!$F$76<1000,((Avropsblankett!$F$76-100)*L4/100),IF(Avropsblankett!$F$76<3000,((Avropsblankett!$F$76-1000)*L5/100),((Avropsblankett!$F$76-3000)*L6/100))),"") ->  | O13: =IF(Avropsblankett!$C$76=$A$3,IF(Avropsblankett!$F$76<1000,O4,IF(Avropsblankett!$F$76<3000,O5,O6)),"") ->  | Q13: =IF(Avropsblankett!$C$76=$A$3,IF(Avropsblankett!$F$76<1000,((Avropsblankett!$F$76-100)*Q4/100),IF(Avropsblankett!$F$76<3000,((Avropsblankett!$F$76-1000)*Q5/100),((Avropsblankett!$F$76-3000)*Q6/100))),"") ->  | T13: =IF(Avropsblankett!$C$76=$A$3,IF(Avropsblankett!$F$76<1000,T4,IF(Avropsblankett!$F$76<3000,T5,T6)),"") ->  | V13: =IF(Avropsblankett!$C$76=$A$3,IF(Avropsblankett!$F$76<1000,((Avropsblankett!$F$76-100)*V4/100),IF(Avropsblankett!$F$76<3000,((Avropsblankett!$F$76-1000)*V5/100),((Avropsblankett!$F$76-3000)*V6/100))),"") ->  | Y13: =IF(Avropsblankett!$C$76=$A$3,IF(Avropsblankett!$F$76<1000,Y4,IF(Avropsblankett!$F$76<3000,Y5,Y6)),"") ->  | AA13: =IF(Avropsblankett!$C$76=$A$3,IF(Avropsblankett!$F$76<1000,((Avropsblankett!$F$76-100)*AA4/100),IF(Avropsblankett!$F$76<3000,((Avropsblankett!$F$76-1000)*AA5/100),((Avropsblankett!$F$76-3000)*AA6/100))),"") ->  | AD13: =IF(Avropsblankett!$C$76=$A$3,IF(Avropsblankett!$F$76<1000,AD4,IF(Avropsblankett!$F$76<3000,AD5,AD6)),"") ->  | AF13: =IF(Avropsblankett!$C$76=$A$3,IF(Avropsblankett!$F$76<1000,((Avropsblankett!$F$76-100)*AF4/100),IF(Avropsblankett!$F$76<3000,((Avropsblankett!$F$76-1000)*AF5/100),((Avropsblankett!$F$76-3000)*AF6/100))),"") ->  | AI13: =IF(Avropsblankett!$C$76=$A$3,IF(Avropsblankett!$F$76<1000,AI4,IF(Avropsblankett!$F$76<3000,AI5,AI6)),"") ->  | AK13: =IF(Avropsblankett!$C$76=$A$3,IF(Avropsblankett!$F$76<1000,((Avropsblankett!$F$76-100)*AK4/100),IF(Avropsblankett!$F$76<3000,((Avropsblankett!$F$76-1000)*AK5/100),((Avropsblankett!$F$76-3000)*AK6/100))),"") ->  | AN13: =IF(Avropsblankett!$C$76=$A$3,IF(Avropsblankett!$F$76<1000,AN4,IF(Avropsblankett!$F$76<3000,AN5,AN6)),"") ->  | AP13: =IF(Avropsblankett!$C$76=$A$3,IF(Avropsblankett!$F$76<1000,((Avropsblankett!$F$76-100)*AP4/100),IF(Avropsblankett!$F$76<3000,((Avropsblankett!$F$76-1000)*AP5/100),((Avropsblankett!$F$76-3000)*AP6/100))),"") ->  | AS13: =IF(Avropsblankett!$C$76=$A$3,IF(Avropsblankett!$F$76<1000,AS4,IF(Avropsblankett!$F$76<3000,AS5,AS6)),"") ->  | AU13: =IF(Avropsblankett!$C$76=$A$3,IF(Avropsblankett!$F$76<1000,((Avropsblankett!$F$76-100)*AU4/100),IF(Avropsblankett!$F$76<3000,((Avropsblankett!$F$76-1000)*AU5/100),((Avropsblankett!$F$76-3000)*AU6/100))),"") ->  | AX13: =IF(Avropsblankett!$C$76=$A$3,IF(Avropsblankett!$F$76<1000,AX4,IF(Avropsblankett!$F$76<3000,AX5,AX6)),"") ->  | AZ13: =IF(Avropsblankett!$C$76=$A$3,IF(Avropsblankett!$F$76<1000,((Avropsblankett!$F$76-100)*AZ4/100),IF(Avropsblankett!$F$76<3000,((Avropsblankett!$F$76-1000)*AZ5/100),((Avropsblankett!$F$76-3000)*AZ6/100))),"") -> 
E14: =SUM(E9:E13) -> 0 | G14: =SUM(G9:G13) -> 0 | J14: =SUM(J9:J13) -> 0 | L14: =SUM(L9:L13) -> 0 | O14: =SUM(O9:O13) -> 0 | Q14: =SUM(Q9:Q13) -> 0 | T14: =SUM(T9:T13) -> 0 | V14: =SUM(V9:V13) -> 0 | Y14: =SUM(Y9:Y13) -> 0 | AA14: =SUM(AA9:AA13) -> 0 | AD14: =SUM(AD9:AD13) -> 0 | AF14: =SUM(AF9:AF13) -> 0 | AI14: =SUM(AI9:AI13) -> 0 | AK14: =SUM(AK9:AK13) -> 0 | AN14: =SUM(AN9:AN13) -> 0 | AP14: =SUM(AP9:AP13) -> 0 | AS14: =SUM(AS9:AS13) -> 0 | AU14: =SUM(AU9:AU13) -> 0 | AX14: =SUM(AX9:AX13) -> 0 | AZ14: =SUM(AZ9:AZ13) -> 0
A15: Folders_Variant_2 | C15: Beskrivning/omfång inklusive omslag | D15: Upplaga | E15: Ange pris | F15: Följande | G15: Ange pris | I15: Upplaga | J15: Ange pris | K15: Följande | L15: Ange pris | N15: Upplaga | O15: Ange pris | P15: Följande | Q15: Ange pris | S15: Upplaga | T15: Ange pris | U15: Följande | V15: Ange pris | X15: Upplaga | Y15: Ange pris | Z15: Följande | AA15: Ange pris | AC15: Upplaga | AD15: Ange pris | AE15: Följande | AF15: Ange pris | AH15: Upplaga | AI15: Ange pris | AJ15: Följande | AK15: Ange pris | AM15: Upplaga | AN15: Ange pris | AO15: Följande | AP15: Ange pris | AR15: Upplaga | AS15: Ange pris | AT15: Följande | AU15: Ange pris | AW15: Upplaga | AX15: Ange pris | AY15: Följande | AZ15: Ange pris
A16: Underlag | B16: A: Öppna filer. B: PDF/PDFx. | C16: 4 sidor | D16: 100 | E16: 1261 | F16: 100 | G16: 133 | I16: 100 | J16: 435 | K16: 100 | L16: 153 | N16: 100 | O16: 1100 | P16: 100 | Q16: 240 | S16: 100 | T16: 500 | U16: 100 | V16: 83 | X16: 100 | Y16: 220 | Z16: 100 | AA16: 86 | AC16: 100 | AD16: 495 | AE16: 100 | AF16: 167 | AH16: 100 | AI16: 500 | AJ16: 100 | AK16: 110 | AM16: 100 | AN16: 555 | AO16: 100 | AP16: 545 | AR16: 100 | AS16: 510 | AT16: 100 | AU16: 170 | AW16: 100 | AX16: 1740 | AY16: 100 | AZ16: 75
A17: Format | B17: A5 | C17: 4 sidor | D17: 1000 | E17: 2454 | F17: 100 | G17: 133 | I17: 1000 | J17: 1752 | K17: 100 | L17: 153 | N17: 1000 | O17: 2400 | P17: 100 | Q17: 125 | S17: 1000 | T17: 1250 | U17: 100 | V17: 50 | X17: 1000 | Y17: 765 | Z17: 100 | AA17: 86 | AC17: 1000 | AD17: 1812 | AE17: 100 | AF17: 113 | AH17: 1000 | AI17: 1700 | AJ17: 100 | AK17: 30 | AM17: 1000 | AN17: 1355 | AO17: 100 | AP17: 125 | AR17: 1000 | AS17: 1945 | AT17: 100 | AU17: 105 | AW17: 1000 | AX17: 2375 | AY17: 100 | AZ17: 75
A18: Papper | B18: Mattbestruket 130 g | C18: 4 sidor | D18: 3000 | E18: 5105 | F18: 100 | G18: 132 | I18: 3000 | J18: 4200 | K18: 100 | L18: 125 | N18: 3000 | O18: 3500 | P18: 100 | Q18: 35 | S18: 3000 | T18: 2000 | U18: 100 | V18: 40 | X18: 3000 | Y18: 1120 | Z18: 100 | AA18: 86 | AC18: 3000 | AD18: 2594 | AE18: 100 | AF18: 9 | AH18: 3000 | AI18: 2000 | AJ18: 100 | AK18: 25 | AM18: 3000 | AN18: 1965 | AO18: 100 | AP18: 60 | AR18: 3000 | AS18: 3050 | AT18: 100 | AU18: 45 | AW18: 3000 | AX18: 3790 | AY18: 100 | AZ18: 75
A19: Tryck | B19: 4+4 färger
A20: Sidor | B20: 4 stycken
